Workbook

Sheet Contents
C1: Go to Charts by Pressing Shift and Enter on Menu Item
C3: Sheet Tab | D3: Description | E3: Author
B4: 1 | C4: Contents
B5: 2 | C5: Summary
B6: 3 | C6: Assumptions - General
B7: 4 | C7: Assumptions - Technology
B8: 5 | C8: Assumptions - Budget & Timing
B9: 6 | C9: Assumptions - O&M
B10: 7 | C10: Assumptions - PPA
B11: 8 | C11: Assumptions - Tax Depr
B12: 9 | C12: Assumptions - Financing
B13: 10 | C13: Pre-Financing Cash Flow
B14: 11 | C14: Project Finance
B15: 12 | C15: Annual Summary
B16: 13 | C16: Exim Rates
B17: 14 | C17: PPA Back-up
B18: 15 | C18: e-mails
B19: 16 | C19: Sheet2
B20: 17 | C20: Sheet1
B21: 18 | C21: Alternate Budget

Sheet Summary
A3: Plant Costs and Characteristics | I3: Uses and Sources | O3: Profit Ratios (IRR)
B4: Plant Capacity - Summar Gross | F4: ='Assumptions - Technology'!G8 -> 175 | J4: Uses of Funds | P4: Pre-tax Project IRR | S4: ='Pre-Financing Cash Flow'!G344 -> 0.06094223559
B5: Total Plant Cost | F5: ='Project Finance'!F26/1000 -> 194247.4106 | K5: EPC Cost | M5: ='Project Finance'!F19 -> 148472500 | P5: Post-tax Project IRR | S5: =S4 -> 0.06094223559
B6: Cost/kW | F6: =F5/F4 -> 1109.985204 | K6: Soft Cost | M6: ='Project Finance'!F20 -> 29137085.01
K7: Development Fee | M7: ='Project Finance'!F21 -> 7000000 | P7: Pre-tax Debt IRR | S7: ='Project Finance'!F275 -> 0.04347904027
B8: Fixed Cost | F8: ='Assumptions - O&M'!G59/1000 -> 2966.61 | K8: IDC and Fees | M8: ='Project Finance'!F22+'Project Finance'!F23+'Project Finance'!F24 -> 2549215.606 | P8: Post-tax Debt IRR | S8: =S7 -> 0.04347904027
B9: Fixed Cost/kW | F9: =F8/F4 -> 16.95205714 | K9: DSRA | M9: ='Project Finance'!F25 -> 7441750.743
L10: Total | M10: =SUM(M5:M9) -> 194600551.4 | P10: Equity IRR | S10: ='Project Finance'!F265 -> 0.07966378033 | T10: ='Assumptions - PPA'!E16 -> 0.08
B11: Variable Cost | F11: ='Assumptions - O&M'!G39/1000 -> 2535
B12: Average Generation | F12: =AVERAGE('Pre-Financing Cash Flow'!AH153:CO153)*2/1000 -> 1391.864748 | J12: Sources of Funds | O12: Credit Ratios
B13: Cost/MWH | F13: =F11/F12 -> 1.821297654 | K13: Total Debt | M13: ='Project Finance'!F35 -> 145685558 | P13: Minimum DSCR | S13: ='Project Finance'!G282 -> 0.5684110706
K14: Total Equity | M14: ='Project Finance'!F44 -> 48561852.66 | P14: Average DSCR | S14: ='Project Finance'!I282 -> 1.267922269
A15: Adjusted LCOE | L15: Total | M15: =SUM(M13:M14) -> 194247410.6 | P15: LLCR | S15: ='Project Finance'!H294 -> 1.242708072
B16: Capacity | E16: USD/MWH | F16: ='Pre-Financing Cash Flow'!F265 -> 10.36524721 | P16: PLCR | S16: ='Project Finance'!H288 -> 1.419144515
B17: Fixed O&M | E17: USD/MWH | F17: ='Pre-Financing Cash Flow'!F243 -> 2.271570808
B18: Variable O&M | E18: USD/MWH | F18: ='Pre-Financing Cash Flow'!F219 -> 1.94108157
B19: Fuel | E19: USD/MWH | F19: ='Pre-Financing Cash Flow'!F206 -> 33.11863171
B20: Total LCOE | E20: USD/MWH | F20: =SUM(F16:F19) -> 47.69653129
B21: Less: Government Fuel Recipts | E21: USD/MWH | F21: =-'Assumptions - O&M'!F25*F19 -> -19.87117902
B22: Adjusted LCOE | E22: USD/MWH | F22: =F20+F21 -> 27.82535227

Sheet Assumptions - General
A1: Plant Code Scenario | F1: ='Assumptions - Technology'!$G$4 -> 1
A3: Timing Assumptions
G4: =INDEX(I4:L4,$F$1) -> 3-LM6000 | I4: ='Assumptions - Technology'!H6 -> 3-LM6000 | J4: ='Assumptions - Technology'!I6 -> 3-LM6000 | K4: ='Assumptions - Technology'!J6 -> 3-LM6000 | L4: ='Assumptions - Technology'!K6 -> 4-LM6000
G5: 3 on 1 | I5: ='Assumptions - Technology'!H7 -> 3 on 1 | J5: ='Assumptions - Technology'!I7 -> No CC | K5: ='Assumptions - Technology'!J7 -> CT to CC | L5: ='Assumptions - Technology'!K7 -> 4 on 2 HSRG
B6: Model Start Date | F6: Date | G6: 2016-02-01 | I6: 2016-02-01 | J6: 2016-01-01 | K6: 2016-01-01 | L6: 2016-01-01
B7: Financial Close | F7: Date | G7: 2017-01-01 | I7: 2017-01-01 | J7: 2017-01-01 | K7: 2017-01-01 | L7: 2017-01-01
B8: Development Period | F8: Months | G8: 11 | I8: =DAYS360(I6,I7)/30 -> 11 | J8: =DAYS360(J6,J7)/30 -> 12 | K8: =DAYS360(K6,K7)/30 -> 12 | L8: =DAYS360(L6,L7)/30 -> 12
B9: Start of Construction | F9: Date | G9: 2017-04-01 | I9: 2017-04-01 | J9: 2017-01-01 | K9: 2017-01-01 | L9: 2017-01-01
B10: End of Construction | F10: Date | G10: 2018-01-01 | I10: =EDATE(I9,9) -> 2018-01-01 | J10: 2017-09-01 | K10: =EDATE(J10,5) -> 2018-02-01 | L10: =K10 -> 2018-02-01
B11: Construction Period | F11: Months | G11: 9 | I11: =DAYS360(I9,I10)/30 -> 9 | J11: =DAYS360(J9,J10)/30 -> 8 | K11: =DAYS360(K9,K10)/30 -> 13 | L11: =DAYS360(L9,L10)/30 -> 13
B12: Start of Testing | F12: Date | G12: 2018-01-01 | I12: =I10 -> 2018-01-01 | J12: =J10 -> 2017-09-01 | K12: =K10 -> 2018-02-01 | L12: =L10 -> 2018-02-01
B13: End of Testing | F13: Date | G13: 2018-02-01 | I13: =EDATE(I12,1) -> 2018-02-01 | J13: =EDATE(J12,1) -> 2017-10-01 | K13: =EDATE(K12,1) -> 2018-03-01 | L13: =EDATE(L12,1) -> 2018-03-01
B14: Testing Perood | F14: Months | G14: 1 | I14: =DAYS360(I12,I13)/30 -> 1 | J14: =DAYS360(J12,J13)/30 -> 1 | K14: =DAYS360(K12,K13)/30 -> 1 | L14: =DAYS360(L12,L13)/30 -> 1
B15: Commercial Operation Date | F15: Date | G15: 2018-02-01 | I15: =I13 -> 2018-02-01 | J15: =J13 -> 2017-10-01 | K15: =K13 -> 2018-03-01 | L15: =L13 -> 2018-03-01
B16: Operating Life | F16: Years | G16: 30 | I16: 30 | J16: 30 | K16: 30 | L16: 30
B17: Decomissioning Date | F17: Date | G17: 2048-02-01 | I17: =EDATE(I15,I16*12) -> 2048-02-01 | J17: =EDATE(J15,J16*12) -> 2047-10-01 | K17: =EDATE(K15,K16*12) -> 2048-03-01 | L17: =EDATE(L15,L16*12) -> 2048-03-01
B18: PPA Period | F18: Years | G18: 30 | I18: 30 | J18: 30 | K18: 30 | L18: 30
B19: End of PPA Period | F19: Date | G19: 2048-02-01 | I19: =EDATE(I15,I18*12) -> 2048-02-01 | J19: =EDATE(J15,J18*12) -> 2047-10-01 | K19: =EDATE(K15,K18*12) -> 2048-03-01 | L19: =EDATE(L15,L18*12) -> 2048-03-01
B20: Fiscal Month | F20: Month | G20: 1 | I20: =MONTH(I15-1) -> 1 | J20: =MONTH(J15-1) -> 9 | K20: =MONTH(K15-1) -> 2 | L20: =MONTH(L15-1) -> 2
B22: Months in Model Time Period | F22: Date | G22: Months | H22: Per/Year
C23: Monthly Period Start | F23: =G6 -> 2016-02-01 | G23: 1 | H23: =12/G23 -> 12
C24: Semi-Annual Period Start | F24: =G15 -> 2018-02-01 | G24: 6 | H24: =12/G24 -> 2
C25: Total Monthly Periods | F25: =DAYS360(F23,F24)/30 -> 24
C27: Month of COD | G27: =MONTH(G15) -> 2
C28: Fiscal Year Month End | G28: =IF(G27=1,12,G27-1) -> 1
A30: General Macro-Economic Assumptions
B31: Reference Exchange Rate | F31: Rupees/$ | G31: 106
B32: Reference Exchange Rate Date | F32: Date | G32: 2016-01-01
B33: Year | M33: 2016 | N33: 2017 | O33: 2018 | P33: 2019 | Q33: 2020 | R33: 2021 | S33: 2022 | T33: 2023 | U33: 2024 | V33: 2025 | W33: 2026 | X33: 2027 | Y33: 2028 | Z33: 2029 | AA33: 2030 | AB33: 2031 | AC33: 2032 | AD33: 2033 | AE33: 2034 | AF33: 2035 | AG33: 2036 | AH33: 2037 | AI33: 2038 | AJ33: 2039 | AK33: 2040 | AL33: 2041 | AM33: 2042 | AN33: 2043 | AO33: 2044 | AP33: 2045 | AQ33: 2046 | AR33: 2047 | AS33: 2048 | AT33: 2049
B34: Pakistan Inflation Rate | F34: % p.a. | N34: 0.05 | O34: 0.05 | P34: 0.05 | Q34: 0.05 | R34: 0.05 | S34: 0.05 | T34: 0.05 | U34: 0.05 | V34: 0.05 | W34: 0.05 | X34: 0.05 | Y34: 0.05 | Z34: 0.05 | AA34: 0.05 | AB34: 0.05 | AC34: 0.05 | AD34: 0.05 | AE34: 0.05 | AF34: 0.05 | AG34: 0.05 | AH34: 0.05 | AI34: 0.05 | AJ34: 0.05 | AK34: 0.05 | AL34: 0.05 | AM34: 0.05 | AN34: 0.05 | AO34: 0.05 | AP34: 0.05 | AQ34: 0.05 | AR34: 0.05 | AS34: 0.05 | AT34: 0.05
B35: U.S. Inflation Rate | N35: 0.015 | O35: 0.015 | P35: 0.015 | Q35: 0.015 | R35: 0.015 | S35: 0.015 | T35: 0.015 | U35: 0.015 | V35: 0.015 | W35: 0.015 | X35: 0.015 | Y35: 0.015 | Z35: 0.015 | AA35: 0.015 | AB35: 0.015 | AC35: 0.015 | AD35: 0.015 | AE35: 0.015 | AF35: 0.015 | AG35: 0.015 | AH35: 0.015 | AI35: 0.015 | AJ35: 0.015 | AK35: 0.015 | AL35: 0.015 | AM35: 0.015 | AN35: 0.015 | AO35: 0.015 | AP35: 0.015 | AQ35: 0.015 | AR35: 0.015 | AS35: 0.015 | AT35: 0.015
B36: Variation from PPP Exchange Rate | N36: 1 | O36: 1 | P36: 1 | Q36: 1 | R36: 1 | S36: 1 | T36: 1 | U36: 1 | V36: 1 | W36: 1 | X36: 1 | Y36: 1 | Z36: 1 | AA36: 1 | AB36: 1 | AC36: 1 | AD36: 1 | AE36: 1 | AF36: 1 | AG36: 1 | AH36: 1 | AI36: 1 | AJ36: 1 | AK36: 1 | AL36: 1 | AM36: 1 | AN36: 1 | AO36: 1 | AP36: 1 | AQ36: 1 | AR36: 1 | AS36: 1 | AT36: 1
B37: Assumed Exchange Rate | M37: =G31 -> 106 | N37: =M37*(1+N34)/(1+N35)*N36 -> 109.6551724 | O37: =N37*(1+O34)/(1+O35)*O36 -> 113.4363853 | P37: 117.3479847 | Q37: 121.394467 | R37: 125.5804831 | S37: 129.9108446 | T37: 134.3905289 | U37: 139.024685 | V37: 143.8186397 | W37: 148.7779031 | X37: 153.9081756 | Y37: 159.2153541 | Z37: 164.7055387 | AA37: 170.3850401 | AB37: 176.2603863 | AC37: 182.3383306 | AD37: 188.6258593 | AE37: 195.1301993 | AF37: 201.8588268 | AG37: 208.819476 | AH37: 216.0201476 | AI37: 223.4691182 | AJ37: 231.1749499 | AK37: 239.1464999 | AL37: 247.3929309 | AM37: 255.9237216 | AN37: 264.7486775 | AO37: 273.8779423 | AP37: 283.3220093 | AQ37: 293.0917337 | AR37: 303.1983452 | AS37: 313.6534606 | AT37: 324.4690972
B38: Increase in Exchange Rate | N38: =N37/M37-1 -> 0.03448275862 | O38: =O37/N37-1 -> 0.03448275862 | P38: 0.03448275862 | Q38: 0.03448275862 | R38: 0.03448275862 | S38: 0.03448275862 | T38: 0.03448275862 | U38: 0.03448275862 | V38: 0.03448275862 | W38: 0.03448275862 | X38: 0.03448275862 | Y38: 0.03448275862 | Z38: 0.03448275862 | AA38: 0.03448275862 | AB38: 0.03448275862 | AC38: 0.03448275862 | AD38: 0.03448275862 | AE38: 0.03448275862 | AF38: 0.03448275862 | AG38: 0.03448275862 | AH38: 0.03448275862 | AI38: 0.03448275862 | AJ38: 0.03448275862 | AK38: 0.03448275862 | AL38: 0.03448275862 | AM38: 0.03448275862 | AN38: 0.03448275862 | AO38: 0.03448275862 | AP38: 0.03448275862 | AQ38: 0.03448275862 | AR38: 0.03448275862 | AS38: 0.03448275862 | AT38: 0.03448275862

Sheet Assumptions - Technology
A2: Technology Characteristics
B4: Plant Technology Code | F4: Code | G4: 1 | H4: Selection | I4: =INDEX(Y15:Y17,$G$4) -> 0
B6: GE Model Name | G6: =INDEX(H6:K6,$G$4) -> 3-LM6000 | H6: 3-LM6000 | I6: 3-LM6000 | J6: 3-LM6000 | K6: 4-LM6000
B7: Combined Cycle Aerodervative | G7: =INDEX(H7:K7,$G$4) -> 3 on 1 | H7: 3 on 1 | I7: No CC | J7: CT to CC | K7: 4 on 2 HSRG
B8: Summer Capacity | F8: MW | G8: =INDEX(H8:K8,$G$4) -> 175 | H8: 175 | I8: =H8-50 -> 125 | J8: 175 | K8: 140
B9: Winter Capacity | F9: MW | G9: =INDEX(H9:K9,$G$4) -> 195 | H9: 195 | I9: =H9-50 -> 145 | J9: 190 | K9: 152
B11: Winter Month Start | G11: 11
B12: Winter Month End | G12: 2
B14: Chillers Included | G14: =INDEX(H14:K14,$G$4) -> TRUE | H14: TRUE | I14: TRUE | J14: TRUE | K14: TRUE
I15: ='Assumptions - Technology'!G11 -> 11
B16: Rated Output | F16: MW | G16: =INDEX(H16:K16,$G$4) -> 175 | H16: =H8 -> 175 | I16: =I8 -> 125 | J16: =J8 -> 175 | K16: =K8 -> 140
B17: Gross Output | F17: MW | G17: =INDEX(H17:K17,$G$4) -> 175 | H17: =H16 -> 175 | I17: =I16 -> 125 | J17: =J16 -> 175 | K17: =K16 -> 140
B18: Parasitic Load (2%) | F18: % | G18: =INDEX(H18:K18,$G$4) -> 0.02 | H18: 0.02 | I18: 0.02 | J18: 0.02 | K18: 0.02
B19: Continuous Electric Power Output | F19: MW | G19: =INDEX(H19:K19,$G$4) -> 175 | H19: =H8 -> 175 | I19: =I8 -> 125 | J19: =J8 -> 175 | K19: =K8 -> 140
B20: Net Export - Summer | F20: MW | G20: =INDEX(H20:K20,$G$4) -> 171.5 | H20: =H19-H18*H19 -> 171.5 | I20: =I19-I18*I19 -> 122.5 | J20: =J19-J18*J19 -> 171.5 | K20: =K19-K18*K19 -> 137.2
B21: Forced Outage | F21: % | G21: =INDEX(H21:K21,$G$4) -> 0.02 | H21: 0.02 | I21: 0.02 | J21: 0.02 | K21: 0.02
B22: Dispatch when Available | F22: % | G22: 1 | H22: 1 | I22: 1 | J22: 1 | K22: 1
B24: Heat Rate and Standard Testing Conditons
B25: Ambient Corrected Heat Rate @ 60% RH from HR Curve
C26: Average Ambient Temperature | F26: º F | G26: 79.88 | H26: 79.88 | I26: 79.88 | J26: 79.88 | K26: 79.88
C27: Site Relative Humidity (RH) | F27: % | G27: 52 | H27: 52 | I27: 52 | J27: 52 | K27: 52
C28: Minimum Operations | F28: BTU/kWh | G28: 10000 | H28: 10000 | I28: 11000 | J28: 10000 | K28: 10000
C29: Operating Condition 1 | F29: BTU/kWh | G29: 9500 | H29: 9500 | I29: =I28-500 -> 10500 | J29: 8500 | K29: 8500
C30: Operating Condition 2 | F30: BTU/kWh | G30: 9250 | H30: 9250 | I30: =I29-500 -> 10000 | J30: 7500 | K30: 7500
C31: Full Capacity | F31: BTU/kWh | G31: 6700 | H31: 6700 | I31: =I32 -> 9000 | J31: =J32 -> 6531 | K31: =K32 -> 6531
C32: Heat Rate (LHV) - Summer | F32: BTU/kWh | G32: =G31 -> 6700 | H32: =H31 -> 6700 | I32: 9000 | J32: 6531 | K32: 6531
C33: Winter Heat Rate (LHV) - Winter | F33: BTU/kWh | G33: 6531 | H33: 6531 | I33: =I31 -> 9000 | J33: 6506 | K33: 6506
B35: Overhaul Timing
C36: On-site hot section replacement | F36: Fired Hrs | G36: 25000 | H36: 25000 | I36: 25000 | J36: 25000 | K36: 25000
C37: Depot maintenance overhaul of hot section | F37: Fired Hrs | G37: 50000 | H37: 50000 | I37: 50000 | J37: 50000 | K37: 50000
C38: Net on-site hot section replacement | F38: Fired Hrs | G38: 75000 | H38: 75000 | I38: 75000 | J38: 75000 | K38: 75000
C39: Depot maintenance | F39: Fired Hrs | G39: 100000 | H39: 100000 | I39: 100000 | J39: 100000 | K39: 100000
B41: Outage Days for Overhauls
C42: On-site hot section replacement | F42: Days | G42: 5 | H42: 5 | I42: 5 | J42: 5 | K42: 5
C43: Depot maintenance overhaul of hot section | F43: Days | G43: 20 | H43: 20 | I43: 20 | J43: 20 | K43: 20
C44: Net on-site hot section replacement | F44: Days | G44: 7 | H44: 7 | I44: 7 | J44: 7 | K44: 7
C45: Depot maintenance | F45: Days | G45: 35 | H45: 35 | I45: 35 | J45: 35 | K45: 35
B47: Capacity Degradation
C48: Annual Degradation | F48: % p.a. | G48: 0.001226398699 | H48: =J48 -> 0.001226398699 | I48: =1.04^(1/32)-1 -> 0.001226398699 | J48: =I48 -> 0.001226398699 | K48: =J48 -> 0.001226398699
C49: Recovery at Overhaul (Depot) | F49: % p.a. | G49: 1 | H49: 1 | I49: 1 | J49: 1 | K49: 1
B51: Heat Rate Degradation
C52: Annual Degradation | F52: % p.a. | G52: =INDEX(H52:K52,$G$4) -> 0.0009241393239 | H52: =1.03^(1/32)-1 -> 0.0009241393239 | I52: =H52 -> 0.0009241393239 | J52: =I52 -> 0.0009241393239 | K52: =J52 -> 0.0009241393239
C53: Recovery at Overhaul (Depot) | F53: % p.a. | G53: =INDEX(H53:K53,$G$4) -> 1 | H53: 1 | I53: 1 | J53: 1 | K53: 1
A55: Natural Gas Availability
B57: Outage for Pipeline Problems | G57: 0.02
B59: Supply from Existing 15 km 20” pipeline | F59: MMCFd | G59: 130
B60: Existing Use | F60: MMCFd | G60: 60
B61: Available Use | F61: MMCFd | G61: =G59-G60 -> 70
B62: MMCF to MMBTU | F62: Factor | G62: 1029
A66: Plant Guaranteed Conditions
A67: Complex Capacity 200 MW at 77 F, 60% RH, PF 1 and Colony Load 20 KW
A68: Heat Rate 7390 LHV. Brand New with 250 hours and no degradaton
A71: Plant Names
G72: =TRANSPOSE(H6:K7) -> 3-LM6000 | H72: 3 on 1 | I72: =G72&" - "&H72 -> 3-LM6000 - 3 on 1
G73: 3-LM6000 | H73: No CC | I73: =G73&" - "&H73 -> 3-LM6000 - No CC
G74: 3-LM6000 | H74: CT to CC | I74: =G74&" - "&H74 -> 3-LM6000 - CT to CC
G75: 4-LM6000 | H75: 4 on 2 HSRG | I75: =G75&" - "&H75 -> 4-LM6000 - 4 on 2 HSRG

Sheet Assumptions - Budget & Timing
A2: Technology | F2: Code | G2: ='Assumptions - Technology'!G4 -> 1
A4: Engineering, Procurement & Construction
B5: Construction Timing
C6: Construction Start | F6: ='Assumptions - General'!G9 -> 2017-04-01
C7: Construction Period | M7: =-1 -> -1 | N7: =M7+1 -> 0 | O7: =N7+1 -> 1 | P7: 2 | Q7: 3 | R7: 4 | S7: 5 | T7: 6 | U7: 7 | V7: 8 | W7: 9 | X7: 10 | Y7: 11 | Z7: 12
C8: Date | F8: ='Assumptions - General'!G6 -> 2016-02-01 | M8: =EDATE($F$6,M7) -> 2017-03-01 | N8: 2017-04-01 | O8: 2017-05-01 | P8: 2017-06-01 | Q8: 2017-07-01 | R8: 2017-08-01 | S8: 2017-09-01 | T8: 2017-10-01 | U8: 2017-11-01 | V8: 2017-12-01 | W8: 2018-01-01 | X8: 2018-02-01 | Y8: 2018-03-01 | Z8: 2018-04-01
C9: Construction Percent | M9: 0 | N9: 0 | O9: 0.08 | P9: 0.1 | Q9: 0.1 | R9: 0.2 | S9: 0.1 | T9: 0.1 | U9: 0.2 | V9: 0.12 | W9: 0
H11: =INDEX(I11:K11,$G$2) -> 3-LM6000 | I11: ='Assumptions - Technology'!H6 -> 3-LM6000 | J11: ='Assumptions - Technology'!I6 -> 3-LM6000 | K11: ='Assumptions - Technology'!J6 -> 3-LM6000 | L11: ='Assumptions - Technology'!K6 -> 4-LM6000
B12: Cosntruction Cost | H12: =INDEX(I12:K12,$G$2) -> 3 on 1 | I12: ='Assumptions - Technology'!H7 -> 3 on 1 | J12: ='Assumptions - Technology'!I7 -> No CC | K12: ='Assumptions - Technology'!J7 -> CT to CC | L12: ='Assumptions - Technology'!K7 -> 4 on 2 HSRG
C13: Site Work | F13: EPC | G13: Civil Works | H13: =INDEX(I13:K13,$G$2) -> 1000000 | I13: 1000000 | J13: 1000000 | K13: 1000000 | L13: 1000000
C14: Concrete Work | F14: EPC | G14: Civil Works | H14: =INDEX(I14:K14,$G$2) -> 3000000 | I14: 3000000 | J14: 3000000 | K14: 3000000 | L14: 3000000
C15: Buildings | F15: EPC | G15: Civil Works | H15: 2000000 | I15: 2000000 | J15: 2000000 | K15: 2000000 | L15: 2100000
C16: Equipment - Gas Turbines | F16: EPC | G16: Plant & Equip | H16: 61500000 | I16: 61500000 | J16: 61500000 | K16: 61500000 | L16: 43875000
C17: GT Installation Costs | F17: EPC | G17: Plant & Equip | H17: 15375000 | I17: 15375000 | J17: 4000000 | K17: 15375000 | L17: 12000000
C18: HSRG and Steam Turbine | F18: EPC | G18: Plant & Equip | H18: 19000000 | I18: 19000000 | J18: 0 | K18: 19000000 | L18: 13000000
C19: Balance of Plant Installation Cost | F19: EPC | G19: Plant & Equip | H19: 9500000 | I19: 9500000 | J19: 7000000 | K19: 9500000 | L19: 8000000
C20: Equipment - Electrical | F20: EPC | G20: Plant & Equip | H20: 7000000 | I20: 7000000 | J20: 5000000 | K20: 7000000 | L20: 7000000
C21: Miscellaneous - Loose Equipment | F21: EPC | G21: Plant & Equip | H21: 5000000 | I21: 5000000 | J21: 2000000 | K21: 5000000 | L21: 5000000
C22: Technical Supervision and Training | F22: EPC | G22: Civil Works | H22: 3600000 | I22: 3600000 | J22: 1000000 | K22: 3600000 | L22: 3600000
C23: Miscellaneous - Contracts | F23: EPC | G23: Plant & Equip | H23: 4000000 | I23: 4000000 | J23: 1000000 | K23: 4000000 | L23: 4000000
C24: Engineering | F24: EPC | G24: Engineering | H24: 4000000 | I24: 4000000 | J24: 4000000 | K24: 4000000 | L24: 4000000
D25: Total EPC Costs before Contingency | H25: 134975000 | I25: =SUM(I13:I24) -> 134975000 | J25: =SUM(J13:J24) -> 91500000 | K25: =SUM(K13:K24) -> 134975000 | L25: =SUM(L13:L24) -> 106575000
C26: EPC Contingency Percent | F26: Percent | G26: % | H26: 0.1
C27: EPC Contingency | F27: EPC | G27: =G21 -> Plant & Equip | H27: =H25*H26 -> 13497500 | I27: =I25*$H$26 -> 13497500 | J27: =J25*$H$26 -> 9150000 | K27: =K25*$H$26 -> 13497500 | L27: =L25*$H$26 -> 10657500
D28: Total EPC Costs | H28: =H25+H27 -> 148472500 | I28: =I25+I27 -> 148472500 | J28: =J25+J27 -> 100650000 | K28: =K25+K27 -> 148472500 | L28: =L25+L27 -> 117232500
D30: Capacity - Summer | H30: =INDEX(I30:K30,$G$2) -> 195000 | I30: ='Assumptions - Technology'!H9*1000 -> 195000 | J30: ='Assumptions - Technology'!I9*1000 -> 145000 | K30: ='Assumptions - Technology'!J9*1000 -> 190000 | L30: ='Assumptions - Technology'!K9*1000 -> 152000
D31: EPC Cost/kW | H31: =INDEX(I31:K31,$G$2) -> 761.3974359 | I31: =I28/I30 -> 761.3974359 | J31: =J28/J30 -> 694.137931 | K31: =K28/K30 -> 781.4342105 | L31: =L28/L30 -> 771.2664474
A33: Soft Costs
B34: Soft Cost Timing
C35: Development Start Date | F35: ='Assumptions - General'!G6 -> 2016-02-01
C36: Financial Close | F36: ='Assumptions - General'!G7 -> 2017-01-01
C37: Construction End | F37: ='Assumptions - General'!G10 -> 2018-01-01
C39: Start/End | F39: Start | G39: End | H39: Months | I39: Percent
D40: =G47 -> Development | F40: =F35 -> 2016-02-01 | G40: =F36 -> 2017-01-01 | H40: =DAYS360(F40,G40)/30 -> 11 | I40: =1/H40 -> 0.09090909091
D41: General | F41: =F36 -> 2017-01-01 | G41: =F37 -> 2018-01-01 | H41: =DAYS360(F41,G41)/30 -> 12 | I41: =1/H41 -> 0.08333333333
D42: Owner Costs | F42: =F35 -> 2016-02-01 | G42: =F37 -> 2018-01-01 | H42: =DAYS360(F42,G42)/30 -> 23 | I42: =1/H42 -> 0.04347826087
D43: =G56 -> Insurance | F43: =F36 -> 2017-01-01 | G43: =F37 -> 2018-01-01 | H43: =DAYS360(F43,G43)/30 -> 12 | I43: =1/H43 -> 0.08333333333
H45: =INDEX(I45:K45,$G$2) -> 3-LM6000 | I45: =I11 -> 3-LM6000 | J45: 3-LM6000 | K45: 3-LM6000 | L45: 4-LM6000
B46: Total Soft Cost | H46: =INDEX(I46:K46,$G$2) -> 3 on 1 | I46: 3 on 1 | J46: No CC | K46: CT to CC | L46: 4 on 2 HSRG
C47: Development Costs | F47: Other Cost | G47: Development | H47: =INDEX(I47:K47,$G$2) -> 2880000 | I47: 2880000 | J47: 1500000 | K47: 2880000 | L47: 2880000
C48: Development Overhead | F48: Other Cost | G48: Development | H48: 700000 | I48: 700000 | J48: 364583.3333 | K48: 700000 | L48: 700000
C49: Project Company Costs | F49: Other Cost | G49: General | H49: 250000 | I49: 250000 | J49: 150000 | K49: 250000 | L49: 250000
C50: Owner/Operator Equipment | F50: Other Cost | G50: General | H50: 1200000 | I50: 1200000 | J50: 800000 | K50: 1200000 | L50: 1200000
C51: Travel | F51: Other Cost | G51: Owner Costs | H51: 700000 | I51: 700000 | J51: 600000 | K51: 700000 | L51: 700000
C52: Furniture and Fixtures | F52: Other Cost | G52: Owner Costs | H52: 300000 | I52: 300000 | J52: 300000 | K52: 300000 | L52: 300000
C53: Project Management | F53: Other Cost | G53: Owner Costs | H53: 2200000 | I53: 2200000 | J53: 1200000 | K53: 2200000 | L53: 2200000
C54: Pre-Operation Expenses | F54: Other Cost | G54: General | H54: 2000000 | I54: 2000000 | J54: 1000000 | K54: 2000000 | L54: 2000000
C55: Additional Spare Parts | F55: Other Cost | G55: Owner Costs | H55: 2000000 | I55: 2000000 | J55: 1500000 | K55: 2000000 | L55: 2000000
C56: Insurance | F56: Other Cost | G56: Insurance | H56: 3500000 | I56: 3500000 | J56: 3500000 | K56: 3500000 | L56: 3500000
C57: Land | F57: Other Cost | G57: Development | H57: 700000 | I57: 700000 | J57: 600000 | K57: 700000 | L57: 700000
C58: Import License Fee/Import Duties | F58: Other Cost | G58: Owner Costs | H58: 0 | I58: 0 | J58: 0 | K58: 0 | L58: 0
C59: Clearing and Forwarding | F59: Other Cost | G59: Owner Costs | H59: 700000 | I59: 700000 | J59: 700000 | K59: 700000 | L59: 700000
C60: Owneers Contingency | F60: Other Cost | G60: Owner Costs | H60: 120000 | I60: =I50*0.1 -> 120000 | J60: =J50*0.1 -> 80000 | K60: =K50*0.1 -> 120000 | L60: =L50*0.1 -> 120000
C61: Transport Cost | F61: Other Cost | G61: Owner Costs | H61: 5000000 | I61: 5000000 | J61: 5000000 | K61: 5000000 | L61: 5000000 | N61: ='e-mails'!O77*1000000 -> 196300000
C62: Overall Contingency | F62: Other Cost | G62: Owner Costs | H62: 6887085.005 | I62: 6887085.005 | J62: 1000000 | K62: 25000000 | L62: 2000000 | N62: =Computed -> 194600551.4
D63: Soft Costs | H63: =SUM(H47:H62) -> 29137085.01 | I63: =SUM(I47:I62) -> 29137085.01 | J63: =SUM(J47:J62) -> 18294583.33 | K63: =SUM(K47:K62) -> 47250000 | L63: =SUM(L47:L62) -> 24250000 | N63: =N61-N62 -> 1699448.645
B65: Development Fees | F65: Date | G65: =F6 -> 2017-04-01 | H65: =INDEX(I65:K65,$G$2) -> 7000000 | I65: 7000000 | J65: 7000000 | K65: 7000000 | L65: 7000000
B67: Total Cost Before Financing | H67: 184609585 | I67: =I65+I63+I28 -> 184609585 | J67: =J65+J63+J28 -> 125944583.3 | K67: =K65+K63+K28 -> 202722500 | L67: =L65+L63+L28 -> 148482500
B69: Summer Capacity | H69: 175 | I69: ='Assumptions - Technology'!H8 -> 175 | J69: ='Assumptions - Technology'!I8 -> 125 | K69: ='Assumptions - Technology'!J8 -> 175 | L69: ='Assumptions - Technology'!K8 -> 140
B70: Cost/kW | H70: 1054.911914 | I70: =I67/I69/1000 -> 1054.911914 | J70: =J67/J69/1000 -> 1007.556667 | K70: =K67/K69/1000 -> 1158.414286 | L70: =L67/L69/1000 -> 1060.589286

Sheet Assumptions - O&M
A2: Fuel Expenses
B4: Year | L4: =YEAR('Assumptions - General'!G6) -> 2016 | M4: =L4+1 -> 2017 | N4: =M4+1 -> 2018 | O4: 2019 | P4: 2020 | Q4: 2021 | R4: 2022 | S4: 2023 | T4: 2024 | U4: 2025 | V4: 2026 | W4: 2027 | X4: 2028 | Y4: 2029 | Z4: 2030 | AA4: 2031 | AB4: 2032 | AC4: 2033 | AD4: 2034 | AE4: 2035 | AF4: 2036 | AG4: 2037 | AH4: 2038 | AI4: 2039 | AJ4: 2040 | AK4: 2041 | AL4: 2042 | AM4: 2043 | AN4: 2044 | AO4: 2045 | AP4: 2046 | AQ4: 2047 | AR4: 2048 | AS4: 2049
C5: Real Gas Price
D6: Base Case | F6: PAK | L6: 530 | M6: 530 | N6: 530 | O6: 530 | P6: 530 | Q6: 530 | R6: 530 | S6: 530 | T6: 530 | U6: 530 | V6: 530 | W6: 530 | X6: 530 | Y6: 530 | Z6: 530 | AA6: 530 | AB6: 530 | AC6: 530 | AD6: 530 | AE6: 530 | AF6: 530 | AG6: 530 | AH6: 530 | AI6: 530 | AJ6: 530 | AK6: 530 | AL6: 530 | AM6: 530 | AN6: 530 | AO6: 530 | AP6: 530 | AQ6: 530 | AR6: 530 | AS6: 530
D7: Shadow Price from PAK Marginal Cost | F7: PAK | L7: 700 | M7: 700 | N7: 700 | O7: 700 | P7: 700 | Q7: 700 | R7: 700 | S7: 700 | T7: 700 | U7: 700 | V7: 700 | W7: 700 | X7: 700 | Y7: 700 | Z7: 700 | AA7: 700 | AB7: 700 | AC7: 700 | AD7: 700 | AE7: 700 | AF7: 700 | AG7: 700 | AH7: 700 | AI7: 700 | AJ7: 700 | AK7: 700 | AL7: 700 | AM7: 700 | AN7: 700 | AO7: 700 | AP7: 700 | AQ7: 700 | AR7: 700 | AS7: 700
D8: High Case | F8: PAK | L8: 250 | M8: 250 | N8: 250 | O8: 250 | P8: 250 | Q8: 250 | R8: 250 | S8: 250 | T8: 250 | U8: 250 | V8: 250 | W8: 250 | X8: 250 | Y8: 250 | Z8: 250 | AA8: 250 | AB8: 250 | AC8: 250 | AD8: 250 | AE8: 250 | AF8: 250 | AG8: 250 | AH8: 250 | AI8: 250 | AJ8: 250 | AK8: 250 | AL8: 250 | AM8: 250 | AN8: 250 | AO8: 250 | AP8: 250 | AQ8: 250 | AR8: 250 | AS8: 250
D10: =INDEX(D6:D8,$F$10) -> Shadow Price from PAK Marginal Cost | F10: 2 | L10: =INDEX(L6:L8,$F$10) -> 700 | M10: =INDEX(M6:M8,$F$10) -> 700 | N10: 700 | O10: 700 | P10: 700 | Q10: 700 | R10: 700 | S10: 700 | T10: 700 | U10: 700 | V10: 700 | W10: 700 | X10: 700 | Y10: 700 | Z10: 700 | AA10: 700 | AB10: 700 | AC10: 700 | AD10: 700 | AE10: 700 | AF10: 700 | AG10: 700 | AH10: 700 | AI10: 700 | AJ10: 700 | AK10: 700 | AL10: 700 | AM10: 700 | AN10: 700 | AO10: 700 | AP10: 700 | AQ10: 700 | AR10: 700 | AS10: 700
C12: Inflation in Gas Price - PAK
D13: No Inflation Case | L13: 0 | M13: 0 | N13: 0 | O13: 0 | P13: 0 | Q13: 0 | R13: 0 | S13: 0 | T13: 0 | U13: 0 | V13: 0 | W13: 0 | X13: 0 | Y13: 0 | Z13: 0 | AA13: 0 | AB13: 0 | AC13: 0 | AD13: 0 | AE13: 0 | AF13: 0 | AG13: 0 | AH13: 0 | AI13: 0 | AJ13: 0 | AK13: 0 | AL13: 0 | AM13: 0 | AN13: 0 | AO13: 0 | AP13: 0 | AQ13: 0 | AR13: 0 | AS13: 0
D14: PAK Inflation Case | L14: ='Assumptions - General'!N34 -> 0.05 | M14: ='Assumptions - General'!O34 -> 0.05 | N14: ='Assumptions - General'!P34 -> 0.05 | O14: ='Assumptions - General'!Q34 -> 0.05 | P14: ='Assumptions - General'!R34 -> 0.05 | Q14: ='Assumptions - General'!S34 -> 0.05 | R14: ='Assumptions - General'!T34 -> 0.05 | S14: ='Assumptions - General'!U34 -> 0.05 | T14: ='Assumptions - General'!V34 -> 0.05 | U14: ='Assumptions - General'!W34 -> 0.05 | V14: ='Assumptions - General'!X34 -> 0.05 | W14: ='Assumptions - General'!Y34 -> 0.05 | X14: ='Assumptions - General'!Z34 -> 0.05 | Y14: ='Assumptions - General'!AA34 -> 0.05 | Z14: ='Assumptions - General'!AB34 -> 0.05 | AA14: ='Assumptions - General'!AC34 -> 0.05 | AB14: ='Assumptions - General'!AD34 -> 0.05 | AC14: ='Assumptions - General'!AE34 -> 0.05 | AD14: ='Assumptions - General'!AF34 -> 0.05 | AE14: ='Assumptions - General'!AG34 -> 0.05 | AF14: ='Assumptions - General'!AH34 -> 0.05 | AG14: ='Assumptions - General'!AI34 -> 0.05 | AH14: ='Assumptions - General'!AJ34 -> 0.05 | AI14: ='Assumptions - General'!AK34 -> 0.05 | AJ14: ='Assumptions - General'!AL34 -> 0.05 | AK14: ='Assumptions - General'!AM34 -> 0.05 | AL14: ='Assumptions - General'!AN34 -> 0.05 | AM14: ='Assumptions - General'!AO34 -> 0.05 | AN14: ='Assumptions - General'!AP34 -> 0.05 | AO14: ='Assumptions - General'!AQ34 -> 0.05 | AP14: ='Assumptions - General'!AR34 -> 0.05 | AQ14: ='Assumptions - General'!AS34 -> 0.05 | AR14: ='Assumptions - General'!AT34 -> 0.05 | AS14: ='Assumptions - General'!AU34 -> 0
D15: Alternative Case | L15: 0.02 | M15: 0.02 | N15: 0.02 | O15: 0.02 | P15: 0.02 | Q15: 0.02 | R15: 0.02 | S15: 0.02 | T15: 0.02 | U15: 0.02 | V15: 0.02 | W15: 0.02 | X15: 0.02 | Y15: 0.02 | Z15: 0.02 | AA15: 0.02 | AB15: 0.02 | AC15: 0.02 | AD15: 0.02 | AE15: 0.02 | AF15: 0.02 | AG15: 0.02 | AH15: 0.02 | AI15: 0.02 | AJ15: 0.02 | AK15: 0.02 | AL15: 0.02 | AM15: 0.02 | AN15: 0.02 | AO15: 0.02 | AP15: 0.02 | AQ15: 0.02 | AR15: 0.02 | AS15: 0.02
D17: =INDEX(D13:D15,$F$10) -> PAK Inflation Case | F17: 1 | L17: =INDEX(L13:L15,$F$17) -> 0 | M17: =INDEX(M13:M15,$F$17) -> 0 | N17: 0 | O17: 0 | P17: 0 | Q17: 0 | R17: 0 | S17: 0 | T17: 0 | U17: 0 | V17: 0 | W17: 0 | X17: 0 | Y17: 0 | Z17: 0 | AA17: 0 | AB17: 0 | AC17: 0 | AD17: 0 | AE17: 0 | AF17: 0 | AG17: 0 | AH17: 0 | AI17: 0 | AJ17: 0 | AK17: 0 | AL17: 0 | AM17: 0 | AN17: 0 | AO17: 0 | AP17: 0 | AQ17: 0 | AR17: 0 | AS17: 0
D18: Index | K18: 1 | L18: 1 | M18: =L18*(1+M17) -> 1 | N18: 1 | O18: 1 | P18: 1 | Q18: 1 | R18: 1 | S18: 1 | T18: 1 | U18: 1 | V18: 1 | W18: 1 | X18: 1 | Y18: 1 | Z18: 1 | AA18: 1 | AB18: 1 | AC18: 1 | AD18: 1 | AE18: 1 | AF18: 1 | AG18: 1 | AH18: 1 | AI18: 1 | AJ18: 1 | AK18: 1 | AL18: 1 | AM18: 1 | AN18: 1 | AO18: 1 | AP18: 1 | AQ18: 1 | AR18: 1 | AS18: 1
C20: Exchange Rate from PPP | L20: ='Assumptions - General'!M37 -> 106 | M20: ='Assumptions - General'!N37 -> 109.6551724 | N20: ='Assumptions - General'!O37 -> 113.4363853 | O20: ='Assumptions - General'!P37 -> 117.3479847 | P20: ='Assumptions - General'!Q37 -> 121.394467 | Q20: ='Assumptions - General'!R37 -> 125.5804831 | R20: ='Assumptions - General'!S37 -> 129.9108446 | S20: ='Assumptions - General'!T37 -> 134.3905289 | T20: ='Assumptions - General'!U37 -> 139.024685 | U20: ='Assumptions - General'!V37 -> 143.8186397 | V20: ='Assumptions - General'!W37 -> 148.7779031 | W20: ='Assumptions - General'!X37 -> 153.9081756 | X20: ='Assumptions - General'!Y37 -> 159.2153541 | Y20: ='Assumptions - General'!Z37 -> 164.7055387 | Z20: ='Assumptions - General'!AA37 -> 170.3850401 | AA20: ='Assumptions - General'!AB37 -> 176.2603863 | AB20: ='Assumptions - General'!AC37 -> 182.3383306 | AC20: ='Assumptions - General'!AD37 -> 188.6258593 | AD20: ='Assumptions - General'!AE37 -> 195.1301993 | AE20: ='Assumptions - General'!AF37 -> 201.8588268 | AF20: ='Assumptions - General'!AG37 -> 208.819476 | AG20: ='Assumptions - General'!AH37 -> 216.0201476 | AH20: ='Assumptions - General'!AI37 -> 223.4691182 | AI20: ='Assumptions - General'!AJ37 -> 231.1749499 | AJ20: ='Assumptions - General'!AK37 -> 239.1464999 | AK20: ='Assumptions - General'!AL37 -> 247.3929309 | AL20: ='Assumptions - General'!AM37 -> 255.9237216 | AM20: ='Assumptions - General'!AN37 -> 264.7486775 | AN20: ='Assumptions - General'!AO37 -> 273.8779423 | AO20: ='Assumptions - General'!AP37 -> 283.3220093 | AP20: ='Assumptions - General'!AQ37 -> 293.0917337 | AQ20: ='Assumptions - General'!AR37 -> 303.1983452 | AR20: ='Assumptions - General'!AS37 -> 313.6534606 | AS20: ='Assumptions - General'!AT37 -> 324.4690972
C22: Gas Price in PAK | L22: =L18*L10 -> 700 | M22: =M18*M10 -> 700 | N22: 700 | O22: 700 | P22: 700 | Q22: 700 | R22: 700 | S22: 700 | T22: 700 | U22: 700 | V22: 700 | W22: 700 | X22: 700 | Y22: 700 | Z22: 700 | AA22: 700 | AB22: 700 | AC22: 700 | AD22: 700 | AE22: 700 | AF22: 700 | AG22: 700 | AH22: 700 | AI22: 700 | AJ22: 700 | AK22: 700 | AL22: 700 | AM22: 700 | AN22: 700 | AO22: 700 | AP22: 700 | AQ22: 700 | AR22: 700 | AS22: 700
C23: Gas Price in USD | L23: =L22/L20 -> 6.603773585 | M23: =M22/M20 -> 6.383647799 | N23: 6.170859539 | O23: 5.965164221 | P23: 5.766325413 | Q23: 5.574114566 | R23: 5.388310747 | S23: 5.208700389 | T23: 5.035077043 | U23: 4.867241141 | V23: 4.70499977 | W23: 4.548166444 | X23: 4.396560896 | Y23: 4.250008866 | Z23: 4.108341904 | AA23: 3.971397174 | AB23: 3.839017268 | AC23: 3.711050026 | AD23: 3.587348358 | AE23: 3.46777008 | AF23: 3.352177744 | AG23: 3.240438486 | AH23: 3.13242387 | AI23: 3.028009741 | AJ23: 2.927076083 | AK23: 2.82950688 | AL23: 2.735189984 | AM23: 2.644016984 | AN23: 2.555883085 | AO23: 2.470686982 | AP23: 2.388330749 | AQ23: 2.308719724 | AR23: 2.2317624 | AS23: 2.15737032
C25: Percent of Gas Price Accrued to PAK Govt | F25: 0.6 | L25: =$F$25 -> 0.6 | M25: =$F$25 -> 0.6 | N25: 0.6 | O25: 0.6 | P25: 0.6 | Q25: 0.6 | R25: 0.6 | S25: 0.6 | T25: 0.6 | U25: 0.6 | V25: 0.6 | W25: 0.6 | X25: 0.6 | Y25: 0.6 | Z25: 0.6 | AA25: 0.6 | AB25: 0.6 | AC25: 0.6 | AD25: 0.6 | AE25: 0.6 | AF25: 0.6 | AG25: 0.6 | AH25: 0.6 | AI25: 0.6 | AJ25: 0.6 | AK25: 0.6 | AL25: 0.6 | AM25: 0.6 | AN25: 0.6 | AO25: 0.6 | AP25: 0.6 | AQ25: 0.6 | AR25: 0.6 | AS25: 0.6
A28: Non-Fuel Operation and Maintenance
G30: =INDEX(H30:K30,'Assumptions - Budget & Timing'!$G$2) -> 3-LM6000 | H30: ='Assumptions - Budget & Timing'!I11 -> 3-LM6000 | I30: ='Assumptions - Budget & Timing'!J11 -> 3-LM6000 | J30: ='Assumptions - Budget & Timing'!K11 -> 3-LM6000 | K30: ='Assumptions - Budget & Timing'!L11 -> 4-LM6000
G31: =INDEX(H31:K31,'Assumptions - Budget & Timing'!$G$2) -> 3 on 1 | H31: ='Assumptions - Budget & Timing'!I12 -> 3 on 1 | I31: ='Assumptions - Budget & Timing'!J12 -> No CC | J31: ='Assumptions - Budget & Timing'!K12 -> CT to CC | K31: ='Assumptions - Budget & Timing'!L12 -> 4 on 2 HSRG
C32: Variable O&M Cost (2016 $) | G32: =INDEX(H32:K32,'Assumptions - Budget & Timing'!$G$2) -> 800000 | H32: 800000 | I32: 800000 | J32: 175000 | K32: 175000
D33: Maintenance. Parts & Materials - International | G33: =INDEX(H33:K33,'Assumptions - Budget & Timing'!$G$2) -> 416000 | H33: 416000 | I33: 416000 | J33: 416000 | K33: 416000
D34: Chemicals, Oils & Consumables - Domestic | G34: =INDEX(H34:K34,'Assumptions - Budget & Timing'!$G$2) -> 219000 | H34: 219000 | I34: 219000 | J34: 219000 | K34: 219000
D35: Chemicals, Oils & Consumables - International | G35: =INDEX(H35:K35,'Assumptions - Budget & Timing'!$G$2) -> 49000 | H35: 49000 | I35: 49000 | J35: 49000 | K35: 49000
D36: Reserve for Major Maintenance - Domestic | G36: =INDEX(H36:K36,'Assumptions - Budget & Timing'!$G$2) -> 300000 | H36: 300000 | I36: 300000 | J36: 300000 | K36: 300000
D37: Reserve for Major Maintenance - International | G37: =INDEX(H37:K37,'Assumptions - Budget & Timing'!$G$2) -> 601000 | H37: 601000 | I37: 601000 | J37: 601000 | K37: 601000
D38: Site Utilities - Domestic | G38: =INDEX(H38:K38,'Assumptions - Budget & Timing'!$G$2) -> 150000 | H38: 150000 | I38: 150000 | J38: 150000 | K38: 150000
E39: Total | G39: =INDEX(H39:K39,'Assumptions - Budget & Timing'!$G$2) -> 2535000 | H39: =SUM(H32:H38) -> 2535000 | I39: =SUM(I32:I38) -> 2535000 | J39: =SUM(J32:J38) -> 1910000 | K39: =SUM(K32:K38) -> 1910000
C41: Fixed O&M Cost
D42: Labor - Domestic | G42: =INDEX(H42:K42,'Assumptions - Budget & Timing'!$G$2) -> 750000 | H42: 750000 | I42: 750000 | J42: 750000 | K42: 750000
D43: Labor - International | G43: =INDEX(H43:K43,'Assumptions - Budget & Timing'!$G$2) -> 900 | H43: 900 | I43: 900 | J43: 900 | K43: 900
D44: Administration. Safety & Training - Domestic | G44: =INDEX(H44:K44,'Assumptions - Budget & Timing'!$G$2) -> 150000 | H44: 150000 | I44: 150000 | J44: 150000 | K44: 150000
D45: Administration. Safety & Training - International | G45: =INDEX(H45:K45,'Assumptions - Budget & Timing'!$G$2) -> 250000 | H45: 250000 | I45: 250000 | J45: 250000 | K45: 250000
D46: Maintenance. Parts & Materials - Domestic | G46: =INDEX(H46:K46,'Assumptions - Budget & Timing'!$G$2) -> 40000 | H46: 40000 | I46: 40000 | J46: 40000 | K46: 40000
D47: Maintenance. Parts & Materials - International | G47: =INDEX(H47:K47,'Assumptions - Budget & Timing'!$G$2) -> 60 | H47: 60 | I47: 60 | J47: 60 | K47: 60
D48: Chemicals, Oils & Consumables - Domestic | G48: =INDEX(H48:K48,'Assumptions - Budget & Timing'!$G$2) -> 50 | H48: 50 | I48: 50 | J48: 50 | K48: 50
D49: Chemicals, Oils & Consumables - International | G49: =INDEX(H49:K49,'Assumptions - Budget & Timing'!$G$2) -> 30000 | H49: 30000 | I49: 30000 | J49: 30000 | K49: 30000
D50: Reserve for Major Maintenance - Domestic | G50: =INDEX(H50:K50,'Assumptions - Budget & Timing'!$G$2) -> 65000 | H50: 65000 | I50: 65000 | J50: 65000 | K50: 65000
D51: Reserve for Major Maintenance - International | G51: =INDEX(H51:K51,'Assumptions - Budget & Timing'!$G$2) -> 100000 | H51: 100000 | I51: 100000 | J51: 100000 | K51: 100000
D52: O&M Management - Domestic | G52: =INDEX(H52:K52,'Assumptions - Budget & Timing'!$G$2) -> 100000 | H52: 100000 | I52: 100000 | J52: 100000 | K52: 100000
D53: O&M Management - International | G53: =INDEX(H53:K53,'Assumptions - Budget & Timing'!$G$2) -> 300 | H53: 300 | I53: 300 | J53: 300 | K53: 300
D54: Insurance - International | G54: =INDEX(H54:K54,'Assumptions - Budget & Timing'!$G$2) -> 980000 | H54: 980000 | I54: 980000 | J54: 1216000 | K54: 1216000
D55: Contingency - Domestic | G55: =INDEX(H55:K55,'Assumptions - Budget & Timing'!$G$2) -> 100000 | H55: 100000 | I55: 100000 | J55: 100000 | K55: 100000
D56: Contingency - International | G56: =INDEX(H56:K56,'Assumptions - Budget & Timing'!$G$2) -> 300 | H56: 300 | I56: 300 | J56: 300 | K56: 300
D57: Administrative Management - Domestic | G57: =INDEX(H57:K57,'Assumptions - Budget & Timing'!$G$2) -> 150000 | H57: 150000 | I57: 150000 | J57: 150000 | K57: 150000
D58: Administrative Management - International | G58: =INDEX(H58:K58,'Assumptions - Budget & Timing'!$G$2) -> 250000 | H58: 250000 | I58: 250000 | J58: 250000 | K58: 250000
E59: Total | G59: =INDEX(H59:K59,'Assumptions - Budget & Timing'!$G$2) -> 2966610 | H59: =SUM(H42:H58) -> 2966610 | I59: =SUM(I42:I58) -> 2966610 | J59: =SUM(J42:J58) -> 3202610 | K59: =SUM(K42:K58) -> 3202610
A61: Working Capital
B63: Accounts Receivable Days | F63: Days | G63: 5
B64: Accounts Payable Days - O&M Expenses | F64: Days | G64: 5
B65: Fuel Expense Payable Days | F65: Days | G65: 5

Sheet Assumptions - PPA
A1: Purchased Power Agreement Assumptions
A3: Year | G3: =YEAR('Assumptions - General'!G15) -> 2018 | H3: =G3+1 -> 2019 | I3: =H3+1 -> 2020 | J3: 2021 | K3: 2022 | L3: 2023 | M3: 2024 | N3: 2025 | O3: 2026 | P3: 2027 | Q3: 2028 | R3: 2029 | S3: 2030 | T3: 2031 | U3: 2032 | V3: 2033 | W3: 2034 | X3: 2035 | Y3: 2036 | Z3: 2037 | AA3: 2038 | AB3: 2039 | AC3: 2040 | AD3: 2041 | AE3: 2042 | AF3: 2043
A5: PPA Method
B6: Computed PPA from ROE using Pakistan Method | E6: TRUE
B7: Use Input Capacity Price | E7: =NOT(E6) -> FALSE
B9: Fuel Cost per MWH | E9: USD/MWH | H9: =AVERAGEIF('Pre-Financing Cash Flow'!13:13,'Assumptions - PPA'!H3,'Pre-Financing Cash Flow'!202:202) -> 41.26085121 | I9: =AVERAGEIF('Pre-Financing Cash Flow'!13:13,'Assumptions - PPA'!I3,'Pre-Financing Cash Flow'!202:202) -> 39.92234925 | J9: =AVERAGEIF('Pre-Financing Cash Flow'!13:13,'Assumptions - PPA'!J3,'Pre-Financing Cash Flow'!202:202) -> 38.62726829 | K9: =AVERAGEIF('Pre-Financing Cash Flow'!13:13,'Assumptions - PPA'!K3,'Pre-Financing Cash Flow'!202:202) -> 37.37419976 | L9: =AVERAGEIF('Pre-Financing Cash Flow'!13:13,'Assumptions - PPA'!L3,'Pre-Financing Cash Flow'!202:202) -> 36.16178077 | M9: =AVERAGEIF('Pre-Financing Cash Flow'!13:13,'Assumptions - PPA'!M3,'Pre-Financing Cash Flow'!202:202) -> 34.89320939 | N9: =AVERAGEIF('Pre-Financing Cash Flow'!13:13,'Assumptions - PPA'!N3,'Pre-Financing Cash Flow'!202:202) -> 33.66655218 | O9: =AVERAGEIF('Pre-Financing Cash Flow'!13:13,'Assumptions - PPA'!O3,'Pre-Financing Cash Flow'!202:202) -> 32.57440928 | P9: =AVERAGEIF('Pre-Financing Cash Flow'!13:13,'Assumptions - PPA'!P3,'Pre-Financing Cash Flow'!202:202) -> 31.51769548 | Q9: =AVERAGEIF('Pre-Financing Cash Flow'!13:13,'Assumptions - PPA'!Q3,'Pre-Financing Cash Flow'!202:202) -> 30.49526148 | R9: =AVERAGEIF('Pre-Financing Cash Flow'!13:13,'Assumptions - PPA'!R3,'Pre-Financing Cash Flow'!202:202) -> 29.50599524 | S9: =AVERAGEIF('Pre-Financing Cash Flow'!13:13,'Assumptions - PPA'!S3,'Pre-Financing Cash Flow'!202:202) -> 28.47091178 | T9: =AVERAGEIF('Pre-Financing Cash Flow'!13:13,'Assumptions - PPA'!T3,'Pre-Financing Cash Flow'!202:202) -> 27.47002795 | U9: =AVERAGEIF('Pre-Financing Cash Flow'!13:13,'Assumptions - PPA'!U3,'Pre-Financing Cash Flow'!202:202) -> 26.57890028 | V9: =AVERAGEIF('Pre-Financing Cash Flow'!13:13,'Assumptions - PPA'!V3,'Pre-Financing Cash Flow'!202:202) -> 25.71668079 | W9: =AVERAGEIF('Pre-Financing Cash Flow'!13:13,'Assumptions - PPA'!W3,'Pre-Financing Cash Flow'!202:202) -> 24.8824317 | X9: =AVERAGEIF('Pre-Financing Cash Flow'!13:13,'Assumptions - PPA'!X3,'Pre-Financing Cash Flow'!202:202) -> 24.07524565 | Y9: =AVERAGEIF('Pre-Financing Cash Flow'!13:13,'Assumptions - PPA'!Y3,'Pre-Financing Cash Flow'!202:202) -> 23.2306753 | Z9: =AVERAGEIF('Pre-Financing Cash Flow'!13:13,'Assumptions - PPA'!Z3,'Pre-Financing Cash Flow'!202:202) -> 22.41400995 | AA9: =AVERAGEIF('Pre-Financing Cash Flow'!13:13,'Assumptions - PPA'!AA3,'Pre-Financing Cash Flow'!202:202) -> 21.6868995 | AB9: =AVERAGEIF('Pre-Financing Cash Flow'!13:13,'Assumptions - PPA'!AB3,'Pre-Financing Cash Flow'!202:202) -> 20.98337651 | AC9: =AVERAGEIF('Pre-Financing Cash Flow'!13:13,'Assumptions - PPA'!AC3,'Pre-Financing Cash Flow'!202:202) -> 20.3026758 | AD9: =AVERAGEIF('Pre-Financing Cash Flow'!13:13,'Assumptions - PPA'!AD3,'Pre-Financing Cash Flow'!202:202) -> 19.64405703 | AE9: =AVERAGEIF('Pre-Financing Cash Flow'!13:13,'Assumptions - PPA'!AE3,'Pre-Financing Cash Flow'!202:202) -> 18.95493475 | AF9: =AVERAGEIF('Pre-Financing Cash Flow'!13:13,'Assumptions - PPA'!AF3,'Pre-Financing Cash Flow'!202:202) -> 18.28858139
B11: Variable O&M per MWH | E11: USD/MWH | H11: =AVERAGEIF('Pre-Financing Cash Flow'!13:13,'Assumptions - PPA'!H3,'Pre-Financing Cash Flow'!217:217) -> 1.706015309 | I11: =AVERAGEIF('Pre-Financing Cash Flow'!13:13,'Assumptions - PPA'!I3,'Pre-Financing Cash Flow'!217:217) -> 1.731605538 | J11: =AVERAGEIF('Pre-Financing Cash Flow'!13:13,'Assumptions - PPA'!J3,'Pre-Financing Cash Flow'!217:217) -> 1.777655801 | K11: =AVERAGEIF('Pre-Financing Cash Flow'!13:13,'Assumptions - PPA'!K3,'Pre-Financing Cash Flow'!217:217) -> 1.783943316 | L11: =AVERAGEIF('Pre-Financing Cash Flow'!13:13,'Assumptions - PPA'!L3,'Pre-Financing Cash Flow'!217:217) -> 1.810702466 | M11: =AVERAGEIF('Pre-Financing Cash Flow'!13:13,'Assumptions - PPA'!M3,'Pre-Financing Cash Flow'!217:217) -> 1.968180267 | N11: =AVERAGEIF('Pre-Financing Cash Flow'!13:13,'Assumptions - PPA'!N3,'Pre-Financing Cash Flow'!217:217) -> 1.874595711 | O11: =AVERAGEIF('Pre-Financing Cash Flow'!13:13,'Assumptions - PPA'!O3,'Pre-Financing Cash Flow'!217:217) -> 1.893412412 | P11: =AVERAGEIF('Pre-Financing Cash Flow'!13:13,'Assumptions - PPA'!P3,'Pre-Financing Cash Flow'!217:217) -> 1.949166078 | Q11: =AVERAGEIF('Pre-Financing Cash Flow'!13:13,'Assumptions - PPA'!Q3,'Pre-Financing Cash Flow'!217:217) -> 1.992516574 | R11: =AVERAGEIF('Pre-Financing Cash Flow'!13:13,'Assumptions - PPA'!R3,'Pre-Financing Cash Flow'!217:217) -> 1.974336872 | S11: =AVERAGEIF('Pre-Financing Cash Flow'!13:13,'Assumptions - PPA'!S3,'Pre-Financing Cash Flow'!217:217) -> 2.140170235 | T11: =AVERAGEIF('Pre-Financing Cash Flow'!13:13,'Assumptions - PPA'!T3,'Pre-Financing Cash Flow'!217:217) -> 2.344306563 | U11: =AVERAGEIF('Pre-Financing Cash Flow'!13:13,'Assumptions - PPA'!U3,'Pre-Financing Cash Flow'!217:217) -> 2.070339048 | V11: =AVERAGEIF('Pre-Financing Cash Flow'!13:13,'Assumptions - PPA'!V3,'Pre-Financing Cash Flow'!217:217) -> 2.125397578 | W11: =AVERAGEIF('Pre-Financing Cash Flow'!13:13,'Assumptions - PPA'!W3,'Pre-Financing Cash Flow'!217:217) -> 2.132915045 | X11: =AVERAGEIF('Pre-Financing Cash Flow'!13:13,'Assumptions - PPA'!X3,'Pre-Financing Cash Flow'!217:217) -> 2.164908771 | Y11: =AVERAGEIF('Pre-Financing Cash Flow'!13:13,'Assumptions - PPA'!Y3,'Pre-Financing Cash Flow'!217:217) -> 2.320101942 | Z11: =AVERAGEIF('Pre-Financing Cash Flow'!13:13,'Assumptions - PPA'!Z3,'Pre-Financing Cash Flow'!217:217) -> 2.315540747 | AA11: =AVERAGEIF('Pre-Financing Cash Flow'!13:13,'Assumptions - PPA'!AA3,'Pre-Financing Cash Flow'!217:217) -> 2.263798286 | AB11: =AVERAGEIF('Pre-Financing Cash Flow'!13:13,'Assumptions - PPA'!AB3,'Pre-Financing Cash Flow'!217:217) -> 2.330458382 | AC11: =AVERAGEIF('Pre-Financing Cash Flow'!13:13,'Assumptions - PPA'!AC3,'Pre-Financing Cash Flow'!217:217) -> 2.332221589 | AD11: =AVERAGEIF('Pre-Financing Cash Flow'!13:13,'Assumptions - PPA'!AD3,'Pre-Financing Cash Flow'!217:217) -> 2.360553041 | AE11: =AVERAGEIF('Pre-Financing Cash Flow'!13:13,'Assumptions - PPA'!AE3,'Pre-Financing Cash Flow'!217:217) -> 2.523397437 | AF11: =AVERAGEIF('Pre-Financing Cash Flow'!13:13,'Assumptions - PPA'!AF3,'Pre-Financing Cash Flow'!217:217) -> 2.797599834
B13: Fixed O&M per kW/Month
A15: Computed PPA Inputs
B16: ROE | E16: =G16/100 -> 0.08 | G16: 8
B17: PPA Term | E17: ='Assumptions - General'!G18 -> 30
B18: Discount Rate for Levelizing Cost | E18: 0.12
G19: 1 | H19: 2 | I19: 3 | J19: 4 | K19: 5 | L19: 6 | M19: 7 | N19: 8 | O19: 9 | P19: 10 | Q19: 11 | R19: 12 | S19: 13 | T19: 14 | U19: 15 | V19: 16 | W19: 17 | X19: 18 | Y19: 19 | Z19: 20
B20: Total Equity Balance | G20: ='Project Finance'!F44 -> 48561852.66 | H20: =G20 -> 48561852.66 | I20: =H20 -> 48561852.66 | J20: 48561852.66 | K20: 48561852.66 | L20: 48561852.66 | M20: 48561852.66 | N20: 48561852.66 | O20: 48561852.66 | P20: 48561852.66 | Q20: 48561852.66 | R20: 48561852.66 | S20: 48561852.66 | T20: 48561852.66 | U20: 48561852.66 | V20: 48561852.66 | W20: 48561852.66 | X20: 48561852.66 | Y20: 48561852.66 | Z20: 48561852.66
B21: Equity Return | E21: =E16 -> 0.08 | G21: =$E$21*G20 -> 3884948.213 | H21: =$E$21*H20 -> 3884948.213 | I21: 3884948.213 | J21: 3884948.213 | K21: 3884948.213 | L21: 3884948.213 | M21: 3884948.213 | N21: 3884948.213 | O21: 3884948.213 | P21: 3884948.213 | Q21: 3884948.213 | R21: 3884948.213 | S21: 3884948.213 | T21: 3884948.213 | U21: 3884948.213 | V21: 3884948.213 | W21: 3884948.213 | X21: 3884948.213 | Y21: 3884948.213 | Z21: 3884948.213
B22: Debt Service | G22: ='Annual Summary'!J143+'Annual Summary'!J144 -> 0 | H22: ='Annual Summary'!K143+'Annual Summary'!K144 -> 14797348.35 | I22: ='Annual Summary'!L143+'Annual Summary'!L144 -> 15902671.3 | J22: ='Annual Summary'!M143+'Annual Summary'!M144 -> 15773408.47 | K22: ='Annual Summary'!N143+'Annual Summary'!N144 -> 15378335.73 | L22: ='Annual Summary'!O143+'Annual Summary'!O144 -> 15253145.48 | M22: ='Annual Summary'!P143+'Annual Summary'!P144 -> 15005082.71 | N22: ='Annual Summary'!Q143+'Annual Summary'!Q144 -> 14559549.78 | O22: ='Annual Summary'!R143+'Annual Summary'!R144 -> 14663665.29 | P22: ='Annual Summary'!S143+'Annual Summary'!S144 -> 14232104.94 | Q22: ='Annual Summary'!T143+'Annual Summary'!T144 -> 13671414.2 | R22: ='Annual Summary'!U143+'Annual Summary'!U144 -> 13110723.46 | S22: ='Annual Summary'!V143+'Annual Summary'!V144 -> 8516231.399 | T22: ='Annual Summary'!W143+'Annual Summary'!W144 -> 8078446.297 | U22: ='Annual Summary'!X143+'Annual Summary'!X144 -> 7624635.784 | V22: ='Annual Summary'!Y143+'Annual Summary'!Y144 -> 3.311084583e-09 | W22: ='Annual Summary'!Z143+'Annual Summary'!Z144 -> 3.311084583e-09 | X22: ='Annual Summary'!AA143+'Annual Summary'!AA144 -> 3.311084583e-09 | Y22: ='Annual Summary'!AB143+'Annual Summary'!AB144 -> 3.311084583e-09 | Z22: ='Annual Summary'!AC143+'Annual Summary'!AC144 -> 3.311084583e-09
B23: Terminal | Z23: =Z20 -> 48561852.66
B24: Total Cash Flow | F24: =-G20 -> -48561852.66 | G24: =G21+G23 -> 3884948.213 | H24: =H21+H23 -> 3884948.213 | I24: 3884948.213 | J24: 3884948.213 | K24: 3884948.213 | L24: 3884948.213 | M24: 3884948.213 | N24: 3884948.213 | O24: 3884948.213 | P24: 3884948.213 | Q24: 3884948.213 | R24: 3884948.213 | S24: 3884948.213 | T24: 3884948.213 | U24: 3884948.213 | V24: 3884948.213 | W24: 3884948.213 | X24: 3884948.213 | Y24: 3884948.213 | Z24: 52446800.87 | AA24: 0 | AB24: 0 | AC24: 0 | AD24: 0 | AE24: 0 | AF24: 0
F25: =IRR(F24:AF24) -> 0.08
B26: Revenues for Capacity Charge | G26: =G21+G22 -> 3884948.213 | H26: =H21+H22 -> 18682296.56 | I26: 19787619.51 | J26: 19658356.69 | K26: 19263283.94 | L26: 19138093.69 | M26: 18890030.92 | N26: 18444498 | O26: 18548613.5 | P26: 18117053.15 | Q26: 17556362.41 | R26: 16995671.68 | S26: 12401179.61 | T26: 11963394.51 | U26: 11509584 | V26: 3884948.213 | W26: 3884948.213 | X26: 3884948.213 | Y26: 3884948.213 | Z26: 3884948.213
B28: Capacity for Capacity Charge | E28: USD/kW/mo | F28: ='Assumptions - Technology'!G19 -> 175 | G28: =G26/($F$28*1000)/12 -> 1.84997534 | H28: =H26/($F$28*1000)/12 -> 8.896331694 | I28: 9.422675957 | J28: 9.361122232 | K28: 9.172992353 | L28: 9.113377949 | M28: 8.995252819 | N28: 8.783094283 | O28: 8.832673097 | P28: 8.627168166 | Q28: 8.360172577 | R28: 8.093176989 | S28: 5.905323625 | T28: 5.696854529 | U28: 5.480754284 | V28: 1.84997534 | W28: 1.84997534 | X28: 1.84997534 | Y28: 1.84997534 | Z28: 1.84997534 | AA28: 0 | AB28: 0 | AC28: 0 | AD28: 0 | AE28: 0 | AF28: 0
B32: Fixed Charge | E32: USD/kW/Yr | F32: 35 | G32: =$F$32 -> 35 | H32: =$F$32 -> 35 | I32: 35 | J32: 35 | K32: 35 | L32: 35 | M32: 35 | N32: 35 | O32: 35 | P32: 35 | Q32: 35 | R32: 35 | S32: 35 | T32: 35 | U32: 35 | V32: 35 | W32: 35 | X32: 35 | Y32: 35 | Z32: 35
F33: 1 | G33: =(1+'Assumptions - General'!$N$35)*F33 -> 1.015 | H33: =(1+'Assumptions - General'!$N$35)*G33 -> 1.030225 | I33: =(1+'Assumptions - General'!$N$35)*H33 -> 1.045678375 | J33: =(1+'Assumptions - General'!$N$35)*I33 -> 1.061363551 | K33: =(1+'Assumptions - General'!$N$35)*J33 -> 1.077284004 | L33: =(1+'Assumptions - General'!$N$35)*K33 -> 1.093443264 | M33: =(1+'Assumptions - General'!$N$35)*L33 -> 1.109844913 | N33: =(1+'Assumptions - General'!$N$35)*M33 -> 1.126492587 | O33: =(1+'Assumptions - General'!$N$35)*N33 -> 1.143389975 | P33: =(1+'Assumptions - General'!$N$35)*O33 -> 1.160540825 | Q33: =(1+'Assumptions - General'!$N$35)*P33 -> 1.177948937 | R33: =(1+'Assumptions - General'!$N$35)*Q33 -> 1.195618171 | S33: =(1+'Assumptions - General'!$N$35)*R33 -> 1.213552444 | T33: =(1+'Assumptions - General'!$N$35)*S33 -> 1.231755731 | U33: =(1+'Assumptions - General'!$N$35)*T33 -> 1.250232067 | V33: =(1+'Assumptions - General'!$N$35)*U33 -> 1.268985548 | W33: =(1+'Assumptions - General'!$N$35)*V33 -> 1.288020331 | X33: =(1+'Assumptions - General'!$N$35)*W33 -> 1.307340636 | Y33: =(1+'Assumptions - General'!$N$35)*X33 -> 1.326950745 | Z33: =(1+'Assumptions - General'!$N$35)*Y33 -> 1.346855007
G34: =G32*G33/12 -> 2.960416667 | H34: =H32*H33/12 -> 3.004822917 | I34: 3.04989526 | J34: 3.095643689 | K34: 3.142078345 | L34: 3.18920952 | M34: 3.237047663 | N34: 3.285603378 | O34: 3.334887428 | P34: 3.38491074 | Q34: 3.435684401 | R34: 3.487219667 | S34: 3.539527962 | T34: 3.592620881 | U34: 3.646510194 | V34: 3.701207847 | W34: 3.756725965 | X34: 3.813076855 | Y34: 3.870273007 | Z34: 3.928327102 | AA34: 0 | AB34: 0 | AC34: 0 | AD34: 0 | AE34: 0 | AF34: 0
C36: Year of PPA | G36: 1 | H36: =G36+1 -> 2 | I36: =H36+1 -> 3 | J36: 4 | K36: 5 | L36: 6 | M36: 7 | N36: 8 | O36: 9 | P36: 10 | Q36: 11 | R36: 12 | S36: 13 | T36: 14 | U36: 15 | V36: 16 | W36: 17 | X36: 18 | Y36: 19 | Z36: 20 | AA36: 21 | AB36: 22 | AC36: 23 | AD36: 24 | AE36: 25 | AF36: 26
C38: Fixed Capacity Charge
D39: Charge per kW-month in PAK without Index | E39: Rupee/kW-month | G39: =LOOKUP(G3,$H:$H,$P:$P) -> 2463.455821 | H39: 2903.482388 | I39: 2903.482388 | J39: 2903.482388 | K39: 2903.482388 | L39: 2903.482388 | M39: 2903.482388 | N39: 2903.482388 | O39: 2809.933433 | P39: 2554.615821 | Q39: 2395.892687 | R39: 1773.965373 | S39: 1076.944179 | T39: 0 | U39: 0 | V39: 0 | W39: 0 | X39: 0 | Y39: 0 | Z39: 0 | AA39: 0 | AB39: 0 | AC39: 0 | AD39: 0 | AE39: 0 | AF39: 0
D40: Exchange Rate | E40: PAK/USD | G40: =LOOKUP(G3,'Assumptions - General'!33:33,'Assumptions - General'!37:37) -> 113.4363853 | H40: =LOOKUP(H3,'Assumptions - General'!33:33,'Assumptions - General'!37:37) -> 117.3479847 | I40: =LOOKUP(I3,'Assumptions - General'!33:33,'Assumptions - General'!37:37) -> 121.394467 | J40: =LOOKUP(J3,'Assumptions - General'!33:33,'Assumptions - General'!37:37) -> 125.5804831 | K40: =LOOKUP(K3,'Assumptions - General'!33:33,'Assumptions - General'!37:37) -> 129.9108446 | L40: =LOOKUP(L3,'Assumptions - General'!33:33,'Assumptions - General'!37:37) -> 134.3905289 | M40: =LOOKUP(M3,'Assumptions - General'!33:33,'Assumptions - General'!37:37) -> 139.024685 | N40: =LOOKUP(N3,'Assumptions - General'!33:33,'Assumptions - General'!37:37) -> 143.8186397 | O40: =LOOKUP(O3,'Assumptions - General'!33:33,'Assumptions - General'!37:37) -> 148.7779031 | P40: =LOOKUP(P3,'Assumptions - General'!33:33,'Assumptions - General'!37:37) -> 153.9081756 | Q40: =LOOKUP(Q3,'Assumptions - General'!33:33,'Assumptions - General'!37:37) -> 159.2153541 | R40: =LOOKUP(R3,'Assumptions - General'!33:33,'Assumptions - General'!37:37) -> 164.7055387 | S40: =LOOKUP(S3,'Assumptions - General'!33:33,'Assumptions - General'!37:37) -> 170.3850401 | T40: =LOOKUP(T3,'Assumptions - General'!33:33,'Assumptions - General'!37:37) -> 176.2603863 | U40: =LOOKUP(U3,'Assumptions - General'!33:33,'Assumptions - General'!37:37) -> 182.3383306 | V40: =LOOKUP(V3,'Assumptions - General'!33:33,'Assumptions - General'!37:37) -> 188.6258593 | W40: =LOOKUP(W3,'Assumptions - General'!33:33,'Assumptions - General'!37:37) -> 195.1301993 | X40: =LOOKUP(X3,'Assumptions - General'!33:33,'Assumptions - General'!37:37) -> 201.8588268 | Y40: =LOOKUP(Y3,'Assumptions - General'!33:33,'Assumptions - General'!37:37) -> 208.819476 | Z40: =LOOKUP(Z3,'Assumptions - General'!33:33,'Assumptions - General'!37:37) -> 216.0201476 | AA40: =LOOKUP(AA3,'Assumptions - General'!33:33,'Assumptions - General'!37:37) -> 223.4691182 | AB40: =LOOKUP(AB3,'Assumptions - General'!33:33,'Assumptions - General'!37:37) -> 231.1749499 | AC40: =LOOKUP(AC3,'Assumptions - General'!33:33,'Assumptions - General'!37:37) -> 239.1464999 | AD40: =LOOKUP(AD3,'Assumptions - General'!33:33,'Assumptions - General'!37:37) -> 247.3929309 | AE40: =LOOKUP(AE3,'Assumptions - General'!33:33,'Assumptions - General'!37:37) -> 255.9237216 | AF40: =LOOKUP(AF3,'Assumptions - General'!33:33,'Assumptions - General'!37:37) -> 264.7486775
D41: Indexed Capacity Charge | E41: Rupee/kW-month | G41: =G39 -> 2463.455821 | H41: =H40/$G$40*H39 -> 3003.60247 | I41: 3107.174969 | J41: 3214.318934 | K41: 3325.157518 | L41: 3439.818122 | M41: 3558.43254 | N41: 3681.13711 | O41: 3685.378401 | P41: 3466.050682 | Q41: 3362.791415 | R41: 2575.733719 | S41: 1617.604234 | T41: 0 | U41: 0 | V41: 0 | W41: 0 | X41: 0 | Y41: 0 | Z41: 0 | AA41: 0 | AB41: 0 | AC41: 0 | AD41: 0 | AE41: 0 | AF41: 0
D42: Input Capacity Charge in USD | E42: USD/kW/mo | G42: =G41/G40 -> 21.71662836 | H42: =H41/H40 -> 25.59568856 | I42: 25.59568856 | J42: 25.59568856 | K42: 25.59568856 | L42: 25.59568856 | M42: 25.59568856 | N42: 25.59568856 | O42: 24.77100647 | P42: 22.52025058 | Q42: 21.12102463 | R42: 15.63841592 | S42: 9.493816086 | T42: 0 | U42: 0 | V42: 0 | W42: 0 | X42: 0 | Y42: 0 | Z42: 0 | AA42: 0 | AB42: 0 | AC42: 0 | AD42: 0 | AE42: 0 | AF42: 0
D44: Capacity Charge in USD | E44: USD/kW/mo | F44: =E6 -> TRUE | G44: =IF($F$44,G28,G42) -> 1.84997534 | H44: =IF($F$44,H28,H42) -> 8.896331694 | I44: 9.422675957 | J44: 9.361122232 | K44: 9.172992353 | L44: 9.113377949 | M44: 8.995252819 | N44: 8.783094283 | O44: 8.832673097 | P44: 8.627168166 | Q44: 8.360172577 | R44: 8.093176989 | S44: 5.905323625 | T44: 5.696854529 | U44: 5.480754284 | V44: 1.84997534 | W44: 1.84997534 | X44: 1.84997534 | Y44: 1.84997534 | Z44: 1.84997534 | AA44: 0 | AB44: 0 | AC44: 0 | AD44: 0 | AE44: 0 | AF44: 0
C46: Indexed Capacity Charge
D47: Charge per kW-month in PAK without Index | E47: Rupee/kW-month | G47: =LOOKUP(G3,$H:$H,$Q:$Q) -> 554.0161194 | H47: 1129.517015 | I47: 1129.517015 | J47: 1129.517015 | K47: 1129.517015 | L47: 1129.517015 | M47: 1129.517015 | N47: 1129.517015 | O47: 1094.869254 | P47: 1094.869254 | Q47: 1025.652836 | R47: 1025.573731 | S47: 1026.522985 | T47: 990.9259701 | U47: 990.9259701 | V47: 990.9259701 | W47: 990.9259701 | X47: 990.9259701 | Y47: 990.9259701 | Z47: 990.9259701 | AA47: 1025.573731 | AB47: 1025.573731 | AC47: 1025.573731 | AD47: 1025.573731 | AE47: 1025.573731 | AF47: 1025.573731
D48: Inflation Rate | E48: % | G48: =LOOKUP(G3,'Assumptions - General'!33:33,'Assumptions - General'!34:34) -> 0.05 | H48: =LOOKUP(H3,'Assumptions - General'!33:33,'Assumptions - General'!34:34) -> 0.05 | I48: =LOOKUP(I3,'Assumptions - General'!33:33,'Assumptions - General'!34:34) -> 0.05 | J48: =LOOKUP(J3,'Assumptions - General'!33:33,'Assumptions - General'!34:34) -> 0.05 | K48: =LOOKUP(K3,'Assumptions - General'!33:33,'Assumptions - General'!34:34) -> 0.05 | L48: =LOOKUP(L3,'Assumptions - General'!33:33,'Assumptions - General'!34:34) -> 0.05 | M48: =LOOKUP(M3,'Assumptions - General'!33:33,'Assumptions - General'!34:34) -> 0.05 | N48: =LOOKUP(N3,'Assumptions - General'!33:33,'Assumptions - General'!34:34) -> 0.05 | O48: =LOOKUP(O3,'Assumptions - General'!33:33,'Assumptions - General'!34:34) -> 0.05 | P48: =LOOKUP(P3,'Assumptions - General'!33:33,'Assumptions - General'!34:34) -> 0.05 | Q48: =LOOKUP(Q3,'Assumptions - General'!33:33,'Assumptions - General'!34:34) -> 0.05 | R48: =LOOKUP(R3,'Assumptions - General'!33:33,'Assumptions - General'!34:34) -> 0.05 | S48: =LOOKUP(S3,'Assumptions - General'!33:33,'Assumptions - General'!34:34) -> 0.05 | T48: =LOOKUP(T3,'Assumptions - General'!33:33,'Assumptions - General'!34:34) -> 0.05 | U48: =LOOKUP(U3,'Assumptions - General'!33:33,'Assumptions - General'!34:34) -> 0.05 | V48: =LOOKUP(V3,'Assumptions - General'!33:33,'Assumptions - General'!34:34) -> 0.05 | W48: =LOOKUP(W3,'Assumptions - General'!33:33,'Assumptions - General'!34:34) -> 0.05 | X48: =LOOKUP(X3,'Assumptions - General'!33:33,'Assumptions - General'!34:34) -> 0.05 | Y48: =LOOKUP(Y3,'Assumptions - General'!33:33,'Assumptions - General'!34:34) -> 0.05 | Z48: =LOOKUP(Z3,'Assumptions - General'!33:33,'Assumptions - General'!34:34) -> 0.05 | AA48: =LOOKUP(AA3,'Assumptions - General'!33:33,'Assumptions - General'!34:34) -> 0.05 | AB48: =LOOKUP(AB3,'Assumptions - General'!33:33,'Assumptions - General'!34:34) -> 0.05 | AC48: =LOOKUP(AC3,'Assumptions - General'!33:33,'Assumptions - General'!34:34) -> 0.05 | AD48: =LOOKUP(AD3,'Assumptions - General'!33:33,'Assumptions - General'!34:34) -> 0.05 | AE48: =LOOKUP(AE3,'Assumptions - General'!33:33,'Assumptions - General'!34:34) -> 0.05 | AF48: =LOOKUP(AF3,'Assumptions - General'!33:33,'Assumptions - General'!34:34) -> 0.05
D49: Inflation Index | E49: Index | F49: 1 | G49: =F49*(1+G48) -> 1.05 | H49: =G49*(1+H48) -> 1.1025 | I49: 1.157625 | J49: 1.21550625 | K49: 1.276281563 | L49: 1.340095641 | M49: 1.407100423 | N49: 1.477455444 | O49: 1.551328216 | P49: 1.628894627 | Q49: 1.710339358 | R49: 1.795856326 | S49: 1.885649142 | T49: 1.979931599 | U49: 2.078928179 | V49: 2.182874588 | W49: 2.292018318 | X49: 2.406619234 | Y49: 2.526950195 | Z49: 2.653297705 | AA49: 2.78596259 | AB49: 2.92526072 | AC49: 3.071523756 | AD49: 3.225099944 | AE49: 3.386354941 | AF49: 3.555672688
D50: Escalated Capacity Charge | E50: Rupee/kW-month | G50: =G47*G49 -> 581.7169254 | H50: =H47*H49 -> 1245.292509 | I50: 1307.557134 | J50: 1372.934991 | K50: 1441.581741 | L50: 1513.660828 | M50: 1589.343869 | N50: 1668.811063 | O50: 1698.501566 | P50: 1783.426644 | Q50: 1754.214413 | R50: 1841.783073 | S50: 1935.662186 | T50: 1961.965641 | U50: 2060.063923 | V50: 2163.067119 | W50: 2271.220475 | X50: 2384.781499 | Y50: 2504.020574 | Z50: 2629.221603 | AA50: 2857.210049 | AB50: 3000.070552 | AC50: 3150.074079 | AD50: 3307.577783 | AE50: 3472.956672 | AF50: 3646.604506
D51: Exchange Rate | E51: PAK/USD | G51: =G40 -> 113.4363853 | H51: =H40 -> 117.3479847 | I51: 121.394467 | J51: 125.5804831 | K51: 129.9108446 | L51: 134.3905289 | M51: 139.024685 | N51: 143.8186397 | O51: 148.7779031 | P51: 153.9081756 | Q51: 159.2153541 | R51: 164.7055387 | S51: 170.3850401 | T51: 176.2603863 | U51: 182.3383306 | V51: 188.6258593 | W51: 195.1301993 | X51: 201.8588268 | Y51: 208.819476 | Z51: 216.0201476 | AA51: 223.4691182 | AB51: 231.1749499 | AC51: 239.1464999 | AD51: 247.3929309 | AE51: 255.9237216 | AF51: 264.7486775
D53: Escalated Capacity Charge - USD | E53: USD/kW/mo | G53: =IF($E$6,G34,G50/G51) -> 2.960416667 | H53: =IF($E$6,H34,H50/H51) -> 3.004822917 | I53: 3.04989526 | J53: 3.095643689 | K53: 3.142078345 | L53: 3.18920952 | M53: 3.237047663 | N53: 3.285603378 | O53: 3.334887428 | P53: 3.38491074 | Q53: 3.435684401 | R53: 3.487219667 | S53: 3.539527962 | T53: 3.592620881 | U53: 3.646510194 | V53: 3.701207847 | W53: 3.756725965 | X53: 3.813076855 | Y53: 3.870273007 | Z53: 3.928327102 | AA53: 0 | AB53: 0 | AC53: 0 | AD53: 0 | AE53: 0 | AF53: 0
G54: =G32/12 -> 2.916666667 | H54: =H32/12 -> 2.916666667 | I54: 2.916666667 | J54: 2.916666667 | K54: 2.916666667 | L54: 2.916666667 | M54: 2.916666667 | N54: 2.916666667 | O54: 2.916666667 | P54: 2.916666667 | Q54: 2.916666667 | R54: 2.916666667 | S54: 2.916666667 | T54: 2.916666667 | U54: 2.916666667 | V54: 2.916666667 | W54: 2.916666667 | X54: 2.916666667 | Y54: 2.916666667 | Z54: 2.916666667 | AA54: 0 | AB54: 0 | AC54: 0 | AD54: 0 | AE54: 0 | AF54: 0
B55: Energy Charges
C56: Fuel Charge
D57: Fuel Cost/kWh | E57: Rupee/kWh | G57: =LOOKUP(G3,$H:$H,$T:$T) -> 2.143731343 | H57: 2.143731343 | I57: 2.143731343 | J57: 2.143731343 | K57: 2.143731343 | L57: 2.143731343 | M57: 2.143731343 | N57: 2.143731343 | O57: 2.143731343 | P57: 2.143731343 | Q57: 2.143731343 | R57: 2.143731343 | S57: 2.143731343 | T57: 2.143731343 | U57: 2.143731343 | V57: 2.143731343 | W57: 2.143731343 | X57: 2.143731343 | Y57: 2.143731343 | Z57: 2.143731343 | AA57: 2.143731343 | AB57: 2.143731343 | AC57: 2.143731343 | AD57: 2.143731343 | AE57: 2.143731343 | AF57: 2.143731343
D58: Fuel Inflation Rate | E58: % | G58: =G48 -> 0.05 | H58: =H48 -> 0.05 | I58: 0.05 | J58: 0.05 | K58: 0.05 | L58: 0.05 | M58: 0.05 | N58: 0.05 | O58: 0.05 | P58: 0.05 | Q58: 0.05 | R58: 0.05 | S58: 0.05 | T58: 0.05 | U58: 0.05 | V58: 0.05 | W58: 0.05 | X58: 0.05 | Y58: 0.05 | Z58: 0.05 | AA58: 0.05 | AB58: 0.05 | AC58: 0.05 | AD58: 0.05 | AE58: 0.05 | AF58: 0.05
D59: Fuel Index | E59: Index | F59: 1 | G59: =F59*(1+G58) -> 1.05 | H59: =G59*(1+H58) -> 1.1025 | I59: 1.157625 | J59: 1.21550625 | K59: 1.276281563 | L59: 1.340095641 | M59: 1.407100423 | N59: 1.477455444 | O59: 1.551328216 | P59: 1.628894627 | Q59: 1.710339358 | R59: 1.795856326 | S59: 1.885649142 | T59: 1.979931599 | U59: 2.078928179 | V59: 2.182874588 | W59: 2.292018318 | X59: 2.406619234 | Y59: 2.526950195 | Z59: 2.653297705 | AA59: 2.78596259 | AB59: 2.92526072 | AC59: 3.071523756 | AD59: 3.225099944 | AE59: 3.386354941 | AF59: 3.555672688
D60: Escalated Fuel Charge | E60: Rupee/kWh | G60: =G57*G59 -> 2.25091791 | H60: =H57*H59 -> 2.363463806 | I60: 2.481636996 | J60: 2.605718846 | K60: 2.736004788 | L60: 2.872805028 | M60: 3.016445279 | N60: 3.167267543 | O60: 3.32563092 | P60: 3.491912466 | Q60: 3.66650809 | R60: 3.849833494 | S60: 4.042325169 | T60: 4.244441427 | U60: 4.456663499 | V60: 4.679496674 | W60: 4.913471507 | X60: 5.159145083 | Y60: 5.417102337 | Z60: 5.687957454 | AA60: 5.972355326 | AB60: 6.270973093 | AC60: 6.584521747 | AD60: 6.913747835 | AE60: 7.259435226 | AF60: 7.622406988
D61: Fuel Charge in USD | E61: USD/MWH | G61: =IF($E$6,G9,G60*1000/G51) -> 0 | H61: 41.26085121 | I61: 39.92234925 | J61: 38.62726829 | K61: 37.37419976 | L61: 36.16178077 | M61: 34.89320939 | N61: 33.66655218 | O61: 32.57440928 | P61: 31.51769548 | Q61: 30.49526148 | R61: 29.50599524 | S61: 28.47091178 | T61: 27.47002795 | U61: 26.57890028 | V61: 25.71668079 | W61: 24.8824317 | X61: 24.07524565 | Y61: 23.2306753 | Z61: 22.41400995 | AA61: 21.6868995 | AB61: 20.98337651 | AC61: 20.3026758 | AD61: 19.64405703 | AE61: 18.95493475 | AF61: 18.28858139
C63: Variable Energy Charge/kWh | E63: Rupee/kWh
D64: Variable Cost Inflation Rate | E64: % | G64: =G48 -> 0.05 | H64: =H48 -> 0.05 | I64: 0.05 | J64: 0.05 | K64: 0.05 | L64: 0.05 | M64: 0.05 | N64: 0.05 | O64: 0.05 | P64: 0.05 | Q64: 0.05 | R64: 0.05 | S64: 0.05 | T64: 0.05 | U64: 0.05 | V64: 0.05 | W64: 0.05 | X64: 0.05 | Y64: 0.05 | Z64: 0.05 | AA64: 0.05 | AB64: 0.05 | AC64: 0.05 | AD64: 0.05 | AE64: 0.05 | AF64: 0.05
D65: Inflation Index | E65: Index | F65: 1 | G65: =F65*(1+G64) -> 1.05 | H65: =G65*(1+H64) -> 1.1025 | I65: 1.157625 | J65: 1.21550625 | K65: 1.276281563 | L65: 1.340095641 | M65: 1.407100423 | N65: 1.477455444 | O65: 1.551328216 | P65: 1.628894627 | Q65: 1.710339358 | R65: 1.795856326 | S65: 1.885649142 | T65: 1.979931599 | U65: 2.078928179 | V65: 2.182874588 | W65: 2.292018318 | X65: 2.406619234 | Y65: 2.526950195 | Z65: 2.653297705 | AA65: 2.78596259 | AB65: 2.92526072 | AC65: 3.071523756 | AD65: 3.225099944 | AE65: 3.386354941 | AF65: 3.555672688
D66: Inflated Charge | E66: Rupee/kWh | G66: =G63*G65 -> 0 | H66: =H63*H65 -> 0 | I66: 0 | J66: 0 | K66: 0 | L66: 0 | M66: 0 | N66: 0 | O66: 0 | P66: 0 | Q66: 0 | R66: 0 | S66: 0 | T66: 0 | U66: 0 | V66: 0 | W66: 0 | X66: 0 | Y66: 0 | Z66: 0 | AA66: 0 | AB66: 0 | AC66: 0 | AD66: 0 | AE66: 0 | AF66: 0
D67: Variable Energy Charge | E67: USD/MWH | G67: =G66/G51*1000 -> 0 | H67: =H66/H51*1000 -> 0 | I67: 0 | J67: 0 | K67: 0 | L67: 0 | M67: 0 | N67: 0 | O67: 0 | P67: 0 | Q67: 0 | R67: 0 | S67: 0 | T67: 0 | U67: 0 | V67: 0 | W67: 0 | X67: 0 | Y67: 0 | Z67: 0 | AA67: 0 | AB67: 0 | AC67: 0 | AD67: 0 | AE67: 0 | AF67: 0
D70: Contract Heat Rate | E70: MMBTU/MWH
D71: Taget Fuel Price | E71: USD/MMBTU
E72: USD/MWH
C74: Variable Energy Charge in USD | E74: USD/MWH
C75: Variable Energy Charge in PAK | E75: PAK/MWH
C77: Energy Generation | E77: MWH
D79: Fuel Revenues
D80: Variable Energy Charge Revenues
B82: Fixed O&M Expense Revenues
C83: Charge per kW-month in USD | E83: USD/kW-month
C84: Charge per kW-month in PAK | E84: Rupee/kW-month
D86: Available Capacity | E86: MW
D88: Fixed O&M Revenues | E88: USD
B90: Incentive Payments
C91: Charge per MWH | E91: USD/MWH
C92: Incentive Revenues | E92: USD
F94: Rate | G94: 2000 | H94: 53.6
F95: Current | H95: ='Assumptions - General'!G31 -> 106 | O95: Adj | P95: 4 | Q95: 4 | S95: Adj | T95: 2
I96: Rs/kWh | K96: Rupees/kW/Month
L97: Esc | N97: PAK | O97: Exchange | Q97: Esc | S97: Indexed | T97: USD | U97: Adjusted
I98: Fuel | J98: Var O&M | K98: Foreign | L98: Component | M98: Total | N98: Inflation | O98: Rate | P98: Foreign | Q98: Component | S98: Rate | T98: Rate | U98: Rate
G99: 1 | H99: =G3 -> 2018 | I99: 0.542 | J99: 0.1316 | K99: 311.418 | L99: =M99-K99 -> 70.036 | M99: 381.454 | N99: =LOOKUP(H99,'Assumptions - General'!$33:$33,'Assumptions - General'!$34:$34) -> 0.05 | O99: =LOOKUP(H99,'Assumptions - General'!$33:$33,'Assumptions - General'!$37:$37) -> 113.4363853 | P99: =K99*$H$95/$H$94*$P$95 -> 2463.455821 | Q99: =L99*($H$95/$H$94)*$Q$95 -> 554.0161194 | S99: =K99 -> 311.418 | T99: =I99*$H$95/$H$94*$T$95 -> 2.143731343 | U99: =J99*$H$95/$H$94 -> 0.2602537313 | V99: =K99/$H$94 -> 5.810037313
G100: =G99+1 -> 2 | H100: =H99+1 -> 2019 | I100: 0.542 | J100: 0.1316 | K100: 367.044 | L100: 142.788 | M100: 509.832 | N100: =LOOKUP(H100,'Assumptions - General'!$33:$33,'Assumptions - General'!$34:$34) -> 0.05 | O100: =LOOKUP(H100,'Assumptions - General'!$33:$33,'Assumptions - General'!$37:$37) -> 117.3479847 | P100: =K100*$H$95/$H$94*$P$95 -> 2903.482388 | Q100: =L100*($H$95/$H$94)*$Q$95 -> 1129.517015 | S100: =S99*(O100/O99) -> 322.1565517 | T100: =I100*$H$95/$H$94*$T$95 -> 2.143731343 | U100: =J100*$H$95/$H$94 -> 0.2602537313 | V100: 6.847835821
G101: =G100+1 -> 3 | H101: =H100+1 -> 2020 | I101: 0.542 | J101: 0.1316 | K101: 367.044 | L101: 142.788 | M101: 509.832 | N101: =LOOKUP(H101,'Assumptions - General'!$33:$33,'Assumptions - General'!$34:$34) -> 0.05 | O101: =LOOKUP(H101,'Assumptions - General'!$33:$33,'Assumptions - General'!$37:$37) -> 121.394467 | P101: 2903.482388 | Q101: 1129.517015 | S101: 333.2653983 | T101: 2.143731343 | U101: 0.2602537313 | V101: 6.847835821
G102: 4 | H102: 2021 | I102: 0.542 | J102: 0.1316 | K102: 367.044 | L102: 142.788 | M102: 509.832 | N102: =LOOKUP(H102,'Assumptions - General'!$33:$33,'Assumptions - General'!$34:$34) -> 0.05 | O102: =LOOKUP(H102,'Assumptions - General'!$33:$33,'Assumptions - General'!$37:$37) -> 125.5804831 | P102: 2903.482388 | Q102: 1129.517015 | S102: 344.7573086 | T102: 2.143731343 | U102: 0.2602537313 | V102: 6.847835821
G103: 5 | H103: 2022 | I103: 0.542 | J103: 0.1316 | K103: 367.044 | L103: 142.788 | M103: 509.832 | N103: =LOOKUP(H103,'Assumptions - General'!$33:$33,'Assumptions - General'!$34:$34) -> 0.05 | O103: =LOOKUP(H103,'Assumptions - General'!$33:$33,'Assumptions - General'!$37:$37) -> 129.9108446 | P103: 2903.482388 | Q103: 1129.517015 | S103: 356.6454917 | T103: 2.143731343 | U103: 0.2602537313 | V103: 6.847835821
G104: 6 | H104: 2023 | I104: 0.542 | J104: 0.1316 | K104: 367.044 | L104: 142.788 | M104: 509.832 | N104: =LOOKUP(H104,'Assumptions - General'!$33:$33,'Assumptions - General'!$34:$34) -> 0.05 | O104: =LOOKUP(H104,'Assumptions - General'!$33:$33,'Assumptions - General'!$37:$37) -> 134.3905289 | P104: 2903.482388 | Q104: 1129.517015 | S104: 368.9436121 | T104: 2.143731343 | U104: 0.2602537313 | V104: 6.847835821
G105: 7 | H105: 2024 | I105: 0.542 | J105: 0.1316 | K105: 367.044 | L105: 142.788 | M105: 509.832 | N105: =LOOKUP(H105,'Assumptions - General'!$33:$33,'Assumptions - General'!$34:$34) -> 0.05 | O105: =LOOKUP(H105,'Assumptions - General'!$33:$33,'Assumptions - General'!$37:$37) -> 139.024685 | P105: 2903.482388 | Q105: 1129.517015 | S105: 381.6658056 | T105: 2.143731343 | U105: 0.2602537313 | V105: 6.847835821
G106: 8 | H106: 2025 | I106: 0.542 | J106: 0.1316 | K106: 367.044 | L106: 142.788 | M106: 509.832 | N106: =LOOKUP(H106,'Assumptions - General'!$33:$33,'Assumptions - General'!$34:$34) -> 0.05 | O106: =LOOKUP(H106,'Assumptions - General'!$33:$33,'Assumptions - General'!$37:$37) -> 143.8186397 | P106: 2903.482388 | Q106: 1129.517015 | S106: 394.8266954 | T106: 2.143731343 | U106: 0.2602537313 | V106: 6.847835821
G107: 9 | H107: 2026 | I107: 0.542 | J107: 0.1316 | K107: 355.218 | L107: 138.408 | M107: 493.626 | N107: =LOOKUP(H107,'Assumptions - General'!$33:$33,'Assumptions - General'!$34:$34) -> 0.05 | O107: =LOOKUP(H107,'Assumptions - General'!$33:$33,'Assumptions - General'!$37:$37) -> 148.7779031 | P107: 2809.933433 | Q107: 1094.869254 | S107: 408.4414091 | T107: 2.143731343 | U107: 0.2602537313 | V107: 6.627201493
G108: 10 | H108: 2027 | I108: 0.542 | J108: 0.1316 | K108: 322.942 | L108: 138.408 | M108: 461.35 | N108: =LOOKUP(H108,'Assumptions - General'!$33:$33,'Assumptions - General'!$34:$34) -> 0.05 | O108: =LOOKUP(H108,'Assumptions - General'!$33:$33,'Assumptions - General'!$37:$37) -> 153.9081756 | P108: 2554.615821 | Q108: 1094.869254 | S108: 422.5255956 | T108: 2.143731343 | U108: 0.2602537313 | V108: 6.025037313
G109: 11 | H109: 2028 | I109: 0.542 | J109: 0.1316 | K109: 302.877 | L109: 129.658 | M109: 432.535 | N109: =LOOKUP(H109,'Assumptions - General'!$33:$33,'Assumptions - General'!$34:$34) -> 0.05 | O109: =LOOKUP(H109,'Assumptions - General'!$33:$33,'Assumptions - General'!$37:$37) -> 159.2153541 | P109: 2395.892687 | Q109: 1025.652836 | S109: 437.0954437 | T109: 2.143731343 | U109: 0.2602537313 | V109: 5.650690299
G110: 12 | H110: 2029 | I110: 0.542 | J110: 0.1316 | K110: 224.256 | L110: 129.648 | M110: 353.904 | N110: =LOOKUP(H110,'Assumptions - General'!$33:$33,'Assumptions - General'!$34:$34) -> 0.05 | O110: =LOOKUP(H110,'Assumptions - General'!$33:$33,'Assumptions - General'!$37:$37) -> 164.7055387 | P110: 1773.965373 | Q110: 1025.573731 | S110: 452.1677004 | T110: 2.143731343 | U110: 0.2602537313 | V110: 4.183880597
G111: 13 | H111: 2030 | I111: 0.542 | J111: 0.1316 | K111: 136.142 | L111: 129.768 | M111: 265.91 | N111: =LOOKUP(H111,'Assumptions - General'!$33:$33,'Assumptions - General'!$34:$34) -> 0.05 | O111: =LOOKUP(H111,'Assumptions - General'!$33:$33,'Assumptions - General'!$37:$37) -> 170.3850401 | P111: 1076.944179 | Q111: 1026.522985 | S111: 467.7596901 | T111: 2.143731343 | U111: 0.2602537313 | V111: 2.539962687
G112: 14 | H112: 2031 | I112: 0.542 | J112: 0.1316 | K112: 0 | L112: 125.268 | M112: 125.268 | N112: =LOOKUP(H112,'Assumptions - General'!$33:$33,'Assumptions - General'!$34:$34) -> 0.05 | O112: =LOOKUP(H112,'Assumptions - General'!$33:$33,'Assumptions - General'!$37:$37) -> 176.2603863 | P112: 0 | Q112: 990.9259701 | S112: 483.8893346 | T112: 2.143731343 | U112: 0.2602537313 | V112: 0
G113: 15 | H113: 2032 | I113: 0.542 | J113: 0.1316 | K113: 0 | L113: 125.268 | M113: 125.268 | N113: =LOOKUP(H113,'Assumptions - General'!$33:$33,'Assumptions - General'!$34:$34) -> 0.05 | O113: =LOOKUP(H113,'Assumptions - General'!$33:$33,'Assumptions - General'!$37:$37) -> 182.3383306 | P113: 0 | Q113: 990.9259701 | S113: 500.5751737 | T113: 2.143731343 | U113: 0.2602537313 | V113: 0
G114: 16 | H114: 2033 | I114: 0.542 | J114: 0.1316 | K114: 0 | L114: 125.268 | M114: 125.268 | N114: =LOOKUP(H114,'Assumptions - General'!$33:$33,'Assumptions - General'!$34:$34) -> 0.05 | O114: =LOOKUP(H114,'Assumptions - General'!$33:$33,'Assumptions - General'!$37:$37) -> 188.6258593 | P114: 0 | Q114: 990.9259701 | S114: 517.8363866 | T114: 2.143731343 | U114: 0.2602537313 | V114: 0
G115: 17 | H115: 2034 | I115: 0.542 | J115: 0.1316 | K115: 0 | L115: 125.268 | M115: 125.268 | N115: =LOOKUP(H115,'Assumptions - General'!$33:$33,'Assumptions - General'!$34:$34) -> 0.05 | O115: =LOOKUP(H115,'Assumptions - General'!$33:$33,'Assumptions - General'!$37:$37) -> 195.1301993 | P115: 0 | Q115: 990.9259701 | S115: 535.6928137 | T115: 2.143731343 | U115: 0.2602537313 | V115: 0
G116: 18 | H116: 2035 | I116: 0.542 | J116: 0.1316 | K116: 0 | L116: 125.268 | M116: 125.268 | N116: =LOOKUP(H116,'Assumptions - General'!$33:$33,'Assumptions - General'!$34:$34) -> 0.05 | O116: =LOOKUP(H116,'Assumptions - General'!$33:$33,'Assumptions - General'!$37:$37) -> 201.8588268 | P116: 0 | Q116: 990.9259701 | S116: 554.1649797 | T116: 2.143731343 | U116: 0.2602537313 | V116: 0
G117: 19 | H117: 2036 | I117: 0.542 | J117: 0.1316 | K117: 0 | L117: 125.268 | M117: 125.268 | N117: =LOOKUP(H117,'Assumptions - General'!$33:$33,'Assumptions - General'!$34:$34) -> 0.05 | O117: =LOOKUP(H117,'Assumptions - General'!$33:$33,'Assumptions - General'!$37:$37) -> 208.819476 | P117: 0 | Q117: 990.9259701 | S117: 573.2741169 | T117: 2.143731343 | U117: 0.2602537313 | V117: 0
G118: 20 | H118: 2037 | I118: 0.542 | J118: 0.1316 | K118: 0 | L118: 125.268 | M118: 125.268 | N118: =LOOKUP(H118,'Assumptions - General'!$33:$33,'Assumptions - General'!$34:$34) -> 0.05 | O118: =LOOKUP(H118,'Assumptions - General'!$33:$33,'Assumptions - General'!$37:$37) -> 216.0201476 | P118: 0 | Q118: 990.9259701 | S118: 593.0421899 | T118: 2.143731343 | U118: 0.2602537313 | V118: 0
G119: 21 | H119: 2038 | I119: 0.542 | J119: 0.1316 | K119: 0 | L119: 129.648 | M119: 129.648 | N119: =LOOKUP(H119,'Assumptions - General'!$33:$33,'Assumptions - General'!$34:$34) -> 0.05 | O119: =LOOKUP(H119,'Assumptions - General'!$33:$33,'Assumptions - General'!$37:$37) -> 223.4691182 | P119: 0 | Q119: 1025.573731 | S119: 613.4919206 | T119: 2.143731343 | U119: 0.2602537313 | V119: 0
G120: 22 | H120: 2039 | I120: 0.542 | J120: 0.1316 | K120: 0 | L120: 129.648 | M120: 129.648 | N120: =LOOKUP(H120,'Assumptions - General'!$33:$33,'Assumptions - General'!$34:$34) -> 0.05 | O120: =LOOKUP(H120,'Assumptions - General'!$33:$33,'Assumptions - General'!$37:$37) -> 231.1749499 | P120: 0 | Q120: 1025.573731 | S120: 634.6468144 | T120: 2.143731343 | U120: 0.2602537313 | V120: 0
G121: 23 | H121: 2040 | I121: 0.542 | J121: 0.1316 | K121: 0 | L121: 129.648 | M121: 129.648 | N121: =LOOKUP(H121,'Assumptions - General'!$33:$33,'Assumptions - General'!$34:$34) -> 0.05 | O121: =LOOKUP(H121,'Assumptions - General'!$33:$33,'Assumptions - General'!$37:$37) -> 239.1464999 | P121: 0 | Q121: 1025.573731 | S121: 656.5311873 | T121: 2.143731343 | U121: 0.2602537313 | V121: 0
G122: 24 | H122: 2041 | I122: 0.542 | J122: 0.1316 | K122: 0 | L122: 129.648 | M122: 129.648 | N122: =LOOKUP(H122,'Assumptions - General'!$33:$33,'Assumptions - General'!$34:$34) -> 0.05 | O122: =LOOKUP(H122,'Assumptions - General'!$33:$33,'Assumptions - General'!$37:$37) -> 247.3929309 | P122: 0 | Q122: 1025.573731 | S122: 679.1701938 | T122: 2.143731343 | U122: 0.2602537313 | V122: 0
G123: 25 | H123: 2042 | I123: 0.542 | J123: 0.1316 | K123: 0 | L123: 129.648 | M123: 129.648 | N123: =LOOKUP(H123,'Assumptions - General'!$33:$33,'Assumptions - General'!$34:$34) -> 0.05 | O123: =LOOKUP(H123,'Assumptions - General'!$33:$33,'Assumptions - General'!$37:$37) -> 255.9237216 | P123: 0 | Q123: 1025.573731 | S123: 702.5898556 | T123: 2.143731343 | U123: 0.2602537313 | V123: 0
G124: 26 | H124: 2043 | I124: 0.542 | J124: 0.1316 | K124: 0 | L124: 129.648 | M124: 129.648 | N124: =LOOKUP(H124,'Assumptions - General'!$33:$33,'Assumptions - General'!$34:$34) -> 0.05 | O124: =LOOKUP(H124,'Assumptions - General'!$33:$33,'Assumptions - General'!$37:$37) -> 264.7486775 | P124: 0 | Q124: 1025.573731 | S124: 726.817092 | T124: 2.143731343 | U124: 0.2602537313 | V124: 0
G125: 27 | H125: 2044 | I125: 0.542 | J125: 0.1316 | K125: 0 | L125: 129.648 | M125: 129.648 | N125: =LOOKUP(H125,'Assumptions - General'!$33:$33,'Assumptions - General'!$34:$34) -> 0.05 | O125: =LOOKUP(H125,'Assumptions - General'!$33:$33,'Assumptions - General'!$37:$37) -> 273.8779423 | P125: 0 | Q125: 1025.573731 | S125: 751.8797504 | T125: 2.143731343 | U125: 0.2602537313 | V125: 0
G126: 28 | H126: 2045 | I126: 0.542 | J126: 0.1316 | K126: 0 | L126: 129.648 | M126: 129.648 | N126: =LOOKUP(H126,'Assumptions - General'!$33:$33,'Assumptions - General'!$34:$34) -> 0.05 | O126: =LOOKUP(H126,'Assumptions - General'!$33:$33,'Assumptions - General'!$37:$37) -> 283.3220093 | P126: 0 | Q126: 1025.573731 | S126: 777.8066383 | T126: 2.143731343 | U126: 0.2602537313 | V126: 0
G127: 29 | H127: 2046 | I127: 0.542 | J127: 0.1316 | K127: 0 | L127: 129.648 | M127: 129.648 | N127: =LOOKUP(H127,'Assumptions - General'!$33:$33,'Assumptions - General'!$34:$34) -> 0.05 | O127: =LOOKUP(H127,'Assumptions - General'!$33:$33,'Assumptions - General'!$37:$37) -> 293.0917337 | P127: 0 | Q127: 1025.573731 | S127: 804.6275569 | T127: 2.143731343 | U127: 0.2602537313 | V127: 0
G128: 30 | H128: 2047 | I128: 0.542 | J128: 0.1316 | K128: 0 | L128: 129.648 | M128: 129.648 | N128: =LOOKUP(H128,'Assumptions - General'!$33:$33,'Assumptions - General'!$34:$34) -> 0.05 | O128: =LOOKUP(H128,'Assumptions - General'!$33:$33,'Assumptions - General'!$37:$37) -> 303.1983452 | P128: 0 | Q128: 1025.573731 | S128: 832.3733347 | T128: 2.143731343 | U128: 0.2602537313 | V128: 0

Sheet Assumptions - Financing
A1: Capital Structure
B3: Total Debt Percent | F3: % of Cost | G3: 0.75
C4: Year | I4: =YEAR('Assumptions - General'!G6) -> 2016 | J4: =I4+1 -> 2017 | K4: =J4+1 -> 2018 | L4: 2019 | M4: 2020 | N4: 2021 | O4: 2022 | P4: 2023 | Q4: 2024 | R4: 2025 | S4: 2026 | T4: 2027 | U4: 2028 | V4: 2029 | W4: 2030 | X4: 2031
C5: LIBOR - Fixed | I5: 0.025 | J5: 0.025 | K5: 0.025 | L5: 0.025 | M5: 0.025 | N5: 0.025 | O5: 0.025 | P5: 0.025 | Q5: 0.025 | R5: 0.025 | S5: 0.025 | T5: 0.025 | U5: 0.025 | V5: 0.025 | W5: 0.025 | X5: 0.025
C6: LIBOR - Floating | I6: 0.005 | J6: 0.005 | K6: 0.01 | L6: 0.01 | M6: 0.015 | N6: 0.015 | O6: 0.015 | P6: 0.02 | Q6: 0.02 | R6: 0.035 | S6: 0.04 | T6: 0.04 | U6: 0.04 | V6: 0.04 | W6: 0.04 | X6: 0.04
C8: PAK- Floating | I8: 0.05 | J8: 0.05 | K8: 0.05 | L8: 0.05 | M8: 0.05 | N8: 0.05 | O8: 0.05 | P8: 0.05 | Q8: 0.05 | R8: 0.05 | S8: 0.05 | T8: 0.05 | U8: 0.05 | V8: 0.05 | W8: 0.05 | X8: 0.05
C9: Interest Income Rate | I9: 0 | J9: 0 | K9: 0 | L9: 0 | M9: 0 | N9: 0 | O9: 0 | P9: 0 | Q9: 0 | R9: 0 | S9: 0 | T9: 0 | U9: 0 | V9: 0 | W9: 0 | X9: 0
B11: Financial Close Date | F11: Date | G11: ='Assumptions - General'!G7 -> 2017-01-01
B13: U.S. Exim Bank
C14: USD Currency | F14: Switch | G14: TRUE
C15: Debt Size | F15: % of Debt | G15: 0.7
C16: Debt Draws | F16: Pro-Rata | G16: TRUE
C17: Debt Tenor from FC | F17: Years | G17: 15
C18: Grace Period | F18: Years | G18: 2 | H18: FALSE
C19: Start of Repayment | F19: Date | G19: =EDATE($G$11,G18*12) -> 2019-01-01
C20: End of Repayment | F20: Date | G20: =EDATE($G$11,G17*12) -> 2032-01-01
C21: Reapyment Type | F21: Mortgage | G21: TRUE
C22: Reapyment Type | F22: Equal Instlmnt | G22: =NOT(G21) -> FALSE
C23: Year | G23: ='Exim Rates'!G17 -> 0 | H23: ='Exim Rates'!H17 -> 5 | I23: ='Exim Rates'!I17 -> 8 | J23: ='Exim Rates'!J17 -> 11 | K23: ='Exim Rates'!K17 -> 12 | L23: ='Exim Rates'!L17 -> 13 | M23: ='Exim Rates'!M17 -> 14 | N23: ='Exim Rates'!N17 -> 15 | O23: ='Exim Rates'!O17 -> 16 | P23: ='Exim Rates'!P17 -> 17
C24: Credit Spread | F24: % p.a. | G24: ='Exim Rates'!G18 -> 0.0214 | H24: ='Exim Rates'!H18 -> 0.0252 | I24: ='Exim Rates'!I18 -> 0.0285 | J24: ='Exim Rates'!J18 -> 0.0285 | K24: ='Exim Rates'!K18 -> 0.0305 | L24: ='Exim Rates'!L18 -> 0.0313 | M24: ='Exim Rates'!M18 -> 0.0313 | N24: ='Exim Rates'!N18 -> 0.032 | O24: ='Exim Rates'!O18 -> 0.032 | P24: ='Exim Rates'!P18 -> 0.0329
C25: Percent Floating | F25: % | G25: 0.4
C26: Arrangement Fee | F26: % | G26: 0.015
C27: Commintment Fee | F27: % | G27: 0.01
B29: OPIC
C30: USD Currency | F30: Switch | G30: TRUE
C31: Debt Size | F31: % of Debt | G31: 0.1
C32: Debt Draws | F32: Pro-Rata | G32: TRUE
C33: Debt Tenor from FC | F33: Years | G33: 12
C34: Grace Period | G34: 2 | H34: FALSE
C35: Start of Repayment | G35: =EDATE($G$11,G34*12) -> 2019-01-01
C36: End of Repayment | G36: =EDATE($G$11,G33*12) -> 2029-01-01
C37: Reapyment Type | F37: Mortgage | G37: TRUE
C38: Reapyment Type | F38: Equal Instlmnt | G38: =NOT(G37) -> FALSE
C40: Credit Spread | F40: % p.a. | G40: 0.025
C41: Percent Floating | F41: % | G41: 1
C42: Arrangement Fee | F42: % | G42: 0.02
C43: Commintment Fee | F43: % | G43: 0.0075
B45: Commercial Bank
C46: USD Currency | F46: Switch | G46: TRUE
C47: Debt Size | F47: % of Debt | G47: 0.1
C48: Debt Draws | F48: Pro-Rata | G48: TRUE
C49: Debt Tenor from FC | F49: Years | G49: 12
C50: Grace Period | G50: 2 | H50: FALSE
C51: Start of Repayment | G51: =EDATE($G$11,G50*12) -> 2019-01-01
C52: End of Repayment | G52: =EDATE($G$11,G49*12) -> 2029-01-01
C53: Reapyment Type | F53: Mortgage | G53: TRUE
C54: Reapyment Type | F54: Equal Instlmnt | G54: =NOT(G53) -> FALSE
C56: Credit Spread | F56: % p.a. | G56: 0.025
C57: Percent Floating | F57: % | G57: 0.4
C58: Arrangement Fee | F58: % | G58: 0.015
C59: Commintment Fee | F59: % | G59: 0.01
B61: Local Commercial Bank
C62: USD Currency | F62: Switch | G62: FALSE
C63: Debt Size | F63: % of Debt | G63: 0.1
C64: Debt Draws | F64: Pro-Rata | G64: TRUE
C65: Debt Tenor from FC | F65: Years | G65: 12
C66: Grace Period | G66: 2 | H66: FALSE
C67: Start of Repayment | G67: =EDATE($G$11,G66*12) -> 2019-01-01
C68: End of Repayment | G68: =EDATE($G$11,G65*12) -> 2029-01-01
C69: Reapyment Type | F69: Mortgage | G69: TRUE
C70: Reapyment Type | F70: Equal Instlmnt | G70: =NOT(G69) -> FALSE
C72: Credit Spread | F72: % p.a. | G72: 0.025
C73: Percent Floating | F73: % | G73: 0
C74: Arrangement Fee | F74: % | G74: 0.015
C75: Commintment Fee | F75: % | G75: 0.01
A78: Tax Rates
B79: Dividend Witholding Rate | G79: 0.075
B80: Withholding Tax on EPC Contactor
A82: Depreciation Rates
C83: Pre-operational expenses | G83: 5
B84: b. | C84: Financing costs | G84: 12
B85: c. | C85: Non-Depreciable Assets
B86: d. | C86: All other capital costs | G86: 20
E93: Debt
E95: US Exim Bank
E96: OPIC | F96: 0.1
E97: Commercial Bank | F97: 0.1
E98: Local Commercial | F98: 0.1
E100: Sub-Total
E102: Equity | F102: 0.25
E104: FPCDL/FF | F104: 0.4
E105: ARS-I/Investment Partner | F105: 0.35
E106: OPIC | F106: 0.1
E107: Investment Fund | F107: 0.1
E108: Commercial Bank | F108: 0.05
E109: Public Shares | F109: 0
E111: Sub-Total
E113: Total Debt + Equity
E116: Letter of Credit Fees | F116: 0 | G116: 137000 | H116: 0 | I116: 0
E117: Letter of Credit Commitment Fee | F117: 0 | G117: 1000 | H117: 0 | I117: 0
B119: Interest During Construction | G119: 3000000 | H119: 4000000 | I119: 5000000
B120: Debt Reserve Funding | G120: 3500000 | H120: 3500000 | I120: 3500000
B121: Commitment Fees | G121: 700000 | H121: 800000 | I121: 900000
B122: Financing Costs/Financing Fees | G122: 1600000 | H122: 2000000 | I122: 2500000

Sheet Pre-Financing Cash Flow
A1: Timing
B2: Period Counter | M2: 1 | N2: 2 | O2: 3 | P2: 4 | Q2: 5 | R2: 6 | S2: 7 | T2: 8 | U2: 9 | V2: 10 | W2: 11 | X2: 12 | Y2: 13 | Z2: 14 | AA2: 15 | AB2: 16 | AC2: 17 | AD2: 18 | AE2: 19 | AF2: 20 | AG2: 21 | AH2: 22 | AI2: 23 | AJ2: 24 | AK2: 25 | AL2: 26 | AM2: 27 | AN2: 28 | AO2: 29 | AP2: 30 | AQ2: 31 | AR2: 32 | AS2: 33 | AT2: 34 | AU2: 35 | AV2: 36 | AW2: 37 | AX2: 38 | AY2: 39 | AZ2: 40 | BA2: 41 | BB2: 42 | BC2: 43 | BD2: 44 | BE2: 45 | BF2: 46 | BG2: 47 | BH2: 48 | BI2: 49 | BJ2: 50 | BK2: 51 | BL2: 52 | BM2: 53 | BN2: 54 | BO2: 55 | BP2: 56 | BQ2: 57 | BR2: 58 | BS2: 59 | BT2: 60 | BU2: 61 | BV2: 62 | BW2: 63 | BX2: 64 | BY2: 65 | BZ2: 66 | CA2: 67 | CB2: 68 | CC2: 69 | CD2: 70 | CE2: 71 | CF2: 72 | CG2: 73 | CH2: 74 | CI2: 75 | CJ2: 76 | CK2: 77 | CL2: 78 | CM2: 79 | CN2: 80 | CO2: 81 | CP2: 82 | CQ2: 83 | CR2: 84 | CS2: 85 | CT2: 86 | CU2: 87 | CV2: 88 | CW2: 89 | CX2: 90 | CY2: 91 | CZ2: 92 | DA2: 93 | DB2: 94 | DC2: 95 | DD2: 96 | DE2: 97 | DF2: 98 | DG2: 99 | DH2: 100
B3: Pre-COD | F3: Switch | G3: Mnt Per | H3: ='Assumptions - General'!F25 -> 24 | M3: =M2<=$H$3 -> TRUE | N3: TRUE | O3: TRUE | P3: TRUE | Q3: TRUE | R3: TRUE | S3: TRUE | T3: TRUE | U3: TRUE | V3: TRUE | W3: TRUE | X3: TRUE | Y3: TRUE | Z3: TRUE | AA3: TRUE | AB3: TRUE | AC3: TRUE | AD3: TRUE | AE3: TRUE | AF3: TRUE | AG3: TRUE | AH3: TRUE | AI3: TRUE | AJ3: TRUE | AK3: FALSE | AL3: FALSE | AM3: FALSE | AN3: FALSE | AO3: FALSE | AP3: FALSE | AQ3: FALSE | AR3: FALSE | AS3: =AS2<=$H$3 -> FALSE | AT3: FALSE | AU3: FALSE | AV3: FALSE | AW3: FALSE | AX3: FALSE | AY3: FALSE | AZ3: FALSE | BA3: FALSE | BB3: FALSE | BC3: FALSE | BD3: FALSE | BE3: FALSE | BF3: FALSE | BG3: FALSE | BH3: FALSE | BI3: FALSE | BJ3: FALSE | BK3: FALSE | BL3: FALSE | BM3: FALSE | BN3: FALSE | BO3: FALSE | BP3: FALSE | BQ3: FALSE | BR3: FALSE | BS3: FALSE | BT3: FALSE | BU3: FALSE | BV3: FALSE | BW3: FALSE | BX3: FALSE | BY3: =BY2<=$H$3 -> FALSE | BZ3: FALSE | CA3: FALSE | CB3: FALSE | CC3: FALSE | CD3: FALSE | CE3: FALSE | CF3: FALSE | CG3: FALSE | CH3: FALSE | CI3: FALSE | CJ3: FALSE | CK3: FALSE | CL3: FALSE | CM3: FALSE | CN3: FALSE | CO3: FALSE | CP3: FALSE | CQ3: FALSE | CR3: FALSE | CS3: FALSE | CT3: FALSE | CU3: FALSE | CV3: FALSE | CW3: FALSE | CX3: FALSE | CY3: FALSE | CZ3: FALSE | DA3: FALSE | DB3: FALSE | DC3: FALSE | DD3: FALSE | DE3: =DE2<=$H$3 -> FALSE | DF3: =DF2<=$H$3 -> FALSE | DG3: =DG2<=$H$3 -> FALSE | DH3: =DH2<=$H$3 -> FALSE
B4: Months in Period | F4: Months | G4: Pre COD | H4: ='Assumptions - General'!G23 -> 1 | I4: Post COD | J4: ='Assumptions - General'!G24 -> 6 | M4: =IF(M3,$H$4,$J$4) -> 1 | N4: 1 | O4: 1 | P4: 1 | Q4: 1 | R4: 1 | S4: 1 | T4: 1 | U4: 1 | V4: 1 | W4: 1 | X4: 1 | Y4: 1 | Z4: 1 | AA4: 1 | AB4: 1 | AC4: 1 | AD4: 1 | AE4: 1 | AF4: 1 | AG4: 1 | AH4: 1 | AI4: 1 | AJ4: 1 | AK4: 6 | AL4: 6 | AM4: 6 | AN4: 6 | AO4: 6 | AP4: 6 | AQ4: 6 | AR4: 6 | AS4: =IF(AS3,$H$4,$J$4) -> 6 | AT4: 6 | AU4: 6 | AV4: 6 | AW4: 6 | AX4: 6 | AY4: 6 | AZ4: 6 | BA4: 6 | BB4: 6 | BC4: 6 | BD4: 6 | BE4: 6 | BF4: 6 | BG4: 6 | BH4: 6 | BI4: 6 | BJ4: 6 | BK4: 6 | BL4: 6 | BM4: 6 | BN4: 6 | BO4: 6 | BP4: 6 | BQ4: 6 | BR4: 6 | BS4: 6 | BT4: 6 | BU4: 6 | BV4: 6 | BW4: 6 | BX4: 6 | BY4: =IF(BY3,$H$4,$J$4) -> 6 | BZ4: 6 | CA4: 6 | CB4: 6 | CC4: 6 | CD4: 6 | CE4: 6 | CF4: 6 | CG4: 6 | CH4: 6 | CI4: 6 | CJ4: 6 | CK4: 6 | CL4: 6 | CM4: 6 | CN4: 6 | CO4: 6 | CP4: 6 | CQ4: 6 | CR4: 6 | CS4: 6 | CT4: 6 | CU4: 6 | CV4: 6 | CW4: 6 | CX4: 6 | CY4: 6 | CZ4: 6 | DA4: 6 | DB4: 6 | DC4: 6 | DD4: 6 | DE4: =IF(DE3,$H$4,$J$4) -> 6 | DF4: =IF(DF3,$H$4,$J$4) -> 6 | DG4: =IF(DG3,$H$4,$J$4) -> 6 | DH4: =IF(DH3,$H$4,$J$4) -> 6
B5: Periods to Make Year | F5: Periods | M5: =12/M4 -> 12 | N5: =12/N4 -> 12 | O5: 12 | P5: 12 | Q5: 12 | R5: 12 | S5: 12 | T5: 12 | U5: 12 | V5: 12 | W5: 12 | X5: 12 | Y5: 12 | Z5: 12 | AA5: 12 | AB5: 12 | AC5: 12 | AD5: 12 | AE5: 12 | AF5: 12 | AG5: 12 | AH5: 12 | AI5: 12 | AJ5: 12 | AK5: 2 | AL5: 2 | AM5: 2 | AN5: 2 | AO5: 2 | AP5: 2 | AQ5: 2 | AR5: 2 | AS5: 2 | AT5: 2 | AU5: 2 | AV5: 2 | AW5: 2 | AX5: 2 | AY5: 2 | AZ5: 2 | BA5: 2 | BB5: 2 | BC5: 2 | BD5: 2 | BE5: 2 | BF5: 2 | BG5: 2 | BH5: 2 | BI5: 2 | BJ5: 2 | BK5: 2 | BL5: 2 | BM5: 2 | BN5: 2 | BO5: 2 | BP5: 2 | BQ5: 2 | BR5: 2 | BS5: 2 | BT5: 2 | BU5: 2 | BV5: 2 | BW5: 2 | BX5: 2 | BY5: 2 | BZ5: =12/BZ4 -> 2 | CA5: 2 | CB5: 2 | CC5: 2 | CD5: 2 | CE5: 2 | CF5: 2 | CG5: 2 | CH5: 2 | CI5: 2 | CJ5: 2 | CK5: 2 | CL5: 2 | CM5: 2 | CN5: 2 | CO5: 2 | CP5: 2 | CQ5: 2 | CR5: 2 | CS5: 2 | CT5: 2 | CU5: 2 | CV5: 2 | CW5: 2 | CX5: 2 | CY5: 2 | CZ5: 2 | DA5: 2 | DB5: 2 | DC5: 2 | DD5: 2 | DE5: 2 | DF5: 2 | DG5: 2 | DH5: 2
B6: Start of Period | F6: Date | M6: =L7+1 -> 2016-02-01 | N6: 2016-03-01 | O6: 2016-04-01 | P6: 2016-05-01 | Q6: 2016-06-01 | R6: 2016-07-01 | S6: 2016-08-01 | T6: 2016-09-01 | U6: 2016-10-01 | V6: 2016-11-01 | W6: 2016-12-01 | X6: 2017-01-01 | Y6: 2017-02-01 | Z6: 2017-03-01 | AA6: 2017-04-01 | AB6: 2017-05-01 | AC6: 2017-06-01 | AD6: 2017-07-01 | AE6: 2017-08-01 | AF6: 2017-09-01 | AG6: 2017-10-01 | AH6: 2017-11-01 | AI6: 2017-12-01 | AJ6: 2018-01-01 | AK6: 2018-02-01 | AL6: 2018-08-01 | AM6: 2019-02-01 | AN6: 2019-08-01 | AO6: 2020-02-01 | AP6: 2020-08-01 | AQ6: 2021-02-01 | AR6: 2021-08-01 | AS6: =AR7+1 -> 2022-02-01 | AT6: 2022-08-01 | AU6: 2023-02-01 | AV6: 2023-08-01 | AW6: 2024-02-01 | AX6: 2024-08-01 | AY6: 2025-02-01 | AZ6: 2025-08-01 | BA6: 2026-02-01 | BB6: 2026-08-01 | BC6: 2027-02-01 | BD6: 2027-08-01 | BE6: 2028-02-01 | BF6: 2028-08-01 | BG6: 2029-02-01 | BH6: 2029-08-01 | BI6: 2030-02-01 | BJ6: 2030-08-01 | BK6: 2031-02-01 | BL6: 2031-08-01 | BM6: 2032-02-01 | BN6: 2032-08-01 | BO6: 2033-02-01 | BP6: 2033-08-01 | BQ6: 2034-02-01 | BR6: 2034-08-01 | BS6: 2035-02-01 | BT6: 2035-08-01 | BU6: 2036-02-01 | BV6: 2036-08-01 | BW6: 2037-02-01 | BX6: 2037-08-01 | BY6: =BX7+1 -> 2038-02-01 | BZ6: 2038-08-01 | CA6: 2039-02-01 | CB6: 2039-08-01 | CC6: 2040-02-01 | CD6: 2040-08-01 | CE6: 2041-02-01 | CF6: 2041-08-01 | CG6: 2042-02-01 | CH6: 2042-08-01 | CI6: 2043-02-01 | CJ6: 2043-08-01 | CK6: 2044-02-01 | CL6: 2044-08-01 | CM6: 2045-02-01 | CN6: 2045-08-01 | CO6: 2046-02-01 | CP6: 2046-08-01 | CQ6: 2047-02-01 | CR6: 2047-08-01 | CS6: 2048-02-01 | CT6: 2048-08-01 | CU6: 2049-02-01 | CV6: 2049-08-01 | CW6: 2050-02-01 | CX6: 2050-08-01 | CY6: 2051-02-01 | CZ6: 2051-08-01 | DA6: 2052-02-01 | DB6: 2052-08-01 | DC6: 2053-02-01 | DD6: 2053-08-01 | DE6: 2054-02-01 | DF6: 2054-08-01 | DG6: 2055-02-01 | DH6: 2055-08-01
B7: End of Period | F7: Date | L7: ='Assumptions - General'!G6-1 -> 2016-01-31 | M7: =EDATE(M6,M4)-1 -> 2016-02-29 | N7: 2016-03-31 | O7: 2016-04-30 | P7: 2016-05-31 | Q7: 2016-06-30 | R7: 2016-07-31 | S7: 2016-08-31 | T7: 2016-09-30 | U7: 2016-10-31 | V7: 2016-11-30 | W7: 2016-12-31 | X7: 2017-01-31 | Y7: 2017-02-28 | Z7: 2017-03-31 | AA7: 2017-04-30 | AB7: 2017-05-31 | AC7: 2017-06-30 | AD7: 2017-07-31 | AE7: 2017-08-31 | AF7: 2017-09-30 | AG7: 2017-10-31 | AH7: 2017-11-30 | AI7: 2017-12-31 | AJ7: 2018-01-31 | AK7: 2018-07-31 | AL7: 2019-01-31 | AM7: 2019-07-31 | AN7: 2020-01-31 | AO7: 2020-07-31 | AP7: 2021-01-31 | AQ7: 2021-07-31 | AR7: 2022-01-31 | AS7: =EDATE(AS6,AS4)-1 -> 2022-07-31 | AT7: 2023-01-31 | AU7: 2023-07-31 | AV7: 2024-01-31 | AW7: 2024-07-31 | AX7: 2025-01-31 | AY7: 2025-07-31 | AZ7: 2026-01-31 | BA7: 2026-07-31 | BB7: 2027-01-31 | BC7: 2027-07-31 | BD7: 2028-01-31 | BE7: 2028-07-31 | BF7: 2029-01-31 | BG7: 2029-07-31 | BH7: 2030-01-31 | BI7: 2030-07-31 | BJ7: 2031-01-31 | BK7: 2031-07-31 | BL7: 2032-01-31 | BM7: 2032-07-31 | BN7: 2033-01-31 | BO7: 2033-07-31 | BP7: 2034-01-31 | BQ7: 2034-07-31 | BR7: 2035-01-31 | BS7: 2035-07-31 | BT7: 2036-01-31 | BU7: 2036-07-31 | BV7: 2037-01-31 | BW7: 2037-07-31 | BX7: 2038-01-31 | BY7: =EDATE(BY6,BY4)-1 -> 2038-07-31 | BZ7: 2039-01-31 | CA7: 2039-07-31 | CB7: 2040-01-31 | CC7: 2040-07-31 | CD7: 2041-01-31 | CE7: 2041-07-31 | CF7: 2042-01-31 | CG7: 2042-07-31 | CH7: 2043-01-31 | CI7: 2043-07-31 | CJ7: 2044-01-31 | CK7: 2044-07-31 | CL7: 2045-01-31 | CM7: 2045-07-31 | CN7: 2046-01-31 | CO7: 2046-07-31 | CP7: 2047-01-31 | CQ7: 2047-07-31 | CR7: 2048-01-31 | CS7: 2048-07-31 | CT7: 2049-01-31 | CU7: 2049-07-31 | CV7: 2050-01-31 | CW7: 2050-07-31 | CX7: 2051-01-31 | CY7: 2051-07-31 | CZ7: 2052-01-31 | DA7: 2052-07-31 | DB7: 2053-01-31 | DC7: 2053-07-31 | DD7: 2054-01-31 | DE7: =EDATE(DE6,DE4)-1 -> 2054-07-31 | DF7: =EDATE(DF6,DF4)-1 -> 2055-01-31 | DG7: =EDATE(DG6,DG4)-1 -> 2055-07-31 | DH7: =EDATE(DH6,DH4)-1 -> 2056-01-31
B8: Development | F8: Switch | G8: Start | H8: ='Assumptions - General'!G6 -> 2016-02-01 | I8: End | J8: ='Assumptions - General'!G9 -> 2017-04-01 | M8: =AND(M$6>=$H8,M$6<$J8) -> TRUE | N8: TRUE | O8: TRUE | P8: TRUE | Q8: TRUE | R8: TRUE | S8: TRUE | T8: TRUE | U8: TRUE | V8: TRUE | W8: =AND(W$6>=$H8,W$6<$J8) -> TRUE | X8: TRUE | Y8: TRUE | Z8: TRUE | AA8: FALSE | AB8: FALSE | AC8: FALSE | AD8: FALSE | AE8: FALSE | AF8: FALSE | AG8: =AND(AG$6>=$H8,AG$6<$J8) -> FALSE | AH8: FALSE | AI8: FALSE | AJ8: FALSE | AK8: FALSE | AL8: FALSE | AM8: FALSE | AN8: FALSE | AO8: FALSE | AP8: FALSE | AQ8: =AND(AQ$6>=$H8,AQ$6<$J8) -> FALSE | AR8: FALSE | AS8: FALSE | AT8: FALSE | AU8: FALSE | AV8: FALSE | AW8: FALSE | AX8: FALSE | AY8: FALSE | AZ8: FALSE | BA8: =AND(BA$6>=$H8,BA$6<$J8) -> FALSE | BB8: FALSE | BC8: FALSE | BD8: FALSE | BE8: FALSE | BF8: FALSE | BG8: FALSE | BH8: FALSE | BI8: FALSE | BJ8: FALSE | BK8: =AND(BK$6>=$H8,BK$6<$J8) -> FALSE | BL8: FALSE | BM8: FALSE | BN8: FALSE | BO8: FALSE | BP8: FALSE | BQ8: FALSE | BR8: FALSE | BS8: FALSE | BT8: FALSE | BU8: =AND(BU$6>=$H8,BU$6<$J8) -> FALSE | BV8: FALSE | BW8: FALSE | BX8: FALSE | BY8: FALSE | BZ8: FALSE | CA8: FALSE | CB8: FALSE | CC8: FALSE | CD8: FALSE | CE8: =AND(CE$6>=$H8,CE$6<$J8) -> FALSE | CF8: FALSE | CG8: FALSE | CH8: FALSE | CI8: FALSE | CJ8: FALSE | CK8: FALSE | CL8: FALSE | CM8: FALSE | CN8: FALSE | CO8: =AND(CO$6>=$H8,CO$6<$J8) -> FALSE | CP8: FALSE | CQ8: FALSE | CR8: FALSE | CS8: FALSE | CT8: FALSE | CU8: FALSE | CV8: FALSE | CW8: FALSE | CX8: FALSE | CY8: =AND(CY$6>=$H8,CY$6<$J8) -> FALSE | CZ8: FALSE | DA8: FALSE | DB8: FALSE | DC8: FALSE | DD8: FALSE | DE8: FALSE | DF8: FALSE | DG8: FALSE | DH8: FALSE
B9: Construction | F9: Switch | G9: Start | H9: ='Assumptions - General'!G9 -> 2017-04-01 | I9: End | J9: ='Assumptions - General'!G10 -> 2018-01-01 | M9: FALSE | N9: FALSE | O9: FALSE | P9: FALSE | Q9: FALSE | R9: FALSE | S9: FALSE | T9: FALSE | U9: FALSE | V9: FALSE | W9: FALSE | X9: FALSE | Y9: FALSE | Z9: FALSE | AA9: TRUE | AB9: TRUE | AC9: TRUE | AD9: TRUE | AE9: TRUE | AF9: TRUE | AG9: TRUE | AH9: TRUE | AI9: TRUE | AJ9: FALSE | AK9: FALSE | AL9: FALSE | AM9: FALSE | AN9: FALSE | AO9: FALSE | AP9: FALSE | AQ9: FALSE | AR9: FALSE | AS9: FALSE | AT9: FALSE | AU9: FALSE | AV9: FALSE | AW9: FALSE | AX9: FALSE | AY9: FALSE | AZ9: FALSE | BA9: FALSE | BB9: FALSE | BC9: FALSE | BD9: FALSE | BE9: FALSE | BF9: FALSE | BG9: FALSE | BH9: FALSE | BI9: FALSE | BJ9: FALSE | BK9: FALSE | BL9: FALSE | BM9: FALSE | BN9: FALSE | BO9: FALSE | BP9: FALSE | BQ9: FALSE | BR9: FALSE | BS9: FALSE | BT9: FALSE | BU9: FALSE | BV9: FALSE | BW9: FALSE | BX9: FALSE | BY9: FALSE | BZ9: FALSE | CA9: FALSE | CB9: FALSE | CC9: FALSE | CD9: FALSE | CE9: FALSE | CF9: FALSE | CG9: FALSE | CH9: FALSE | CI9: FALSE | CJ9: FALSE | CK9: FALSE | CL9: FALSE | CM9: FALSE | CN9: FALSE | CO9: FALSE | CP9: FALSE | CQ9: FALSE | CR9: FALSE | CS9: FALSE | CT9: FALSE | CU9: FALSE | CV9: FALSE | CW9: FALSE | CX9: FALSE | CY9: FALSE | CZ9: FALSE | DA9: FALSE | DB9: FALSE | DC9: FALSE | DD9: FALSE | DE9: FALSE | DF9: FALSE | DG9: FALSE | DH9: FALSE
B10: Testing | F10: Switch | G10: Start | H10: ='Assumptions - General'!G12 -> 2018-01-01 | I10: End | J10: ='Assumptions - General'!G13 -> 2018-02-01 | M10: FALSE | N10: FALSE | O10: FALSE | P10: FALSE | Q10: FALSE | R10: FALSE | S10: FALSE | T10: FALSE | U10: FALSE | V10: FALSE | W10: FALSE | X10: FALSE | Y10: FALSE | Z10: FALSE | AA10: FALSE | AB10: FALSE | AC10: FALSE | AD10: FALSE | AE10: FALSE | AF10: FALSE | AG10: FALSE | AH10: FALSE | AI10: FALSE | AJ10: TRUE | AK10: FALSE | AL10: FALSE | AM10: FALSE | AN10: FALSE | AO10: FALSE | AP10: FALSE | AQ10: FALSE | AR10: FALSE | AS10: FALSE | AT10: FALSE | AU10: FALSE | AV10: FALSE | AW10: FALSE | AX10: FALSE | AY10: FALSE | AZ10: FALSE | BA10: FALSE | BB10: FALSE | BC10: FALSE | BD10: FALSE | BE10: FALSE | BF10: FALSE | BG10: FALSE | BH10: FALSE | BI10: FALSE | BJ10: FALSE | BK10: FALSE | BL10: FALSE | BM10: FALSE | BN10: FALSE | BO10: FALSE | BP10: FALSE | BQ10: FALSE | BR10: FALSE | BS10: FALSE | BT10: FALSE | BU10: FALSE | BV10: FALSE | BW10: FALSE | BX10: FALSE | BY10: FALSE | BZ10: FALSE | CA10: FALSE | CB10: FALSE | CC10: FALSE | CD10: FALSE | CE10: FALSE | CF10: FALSE | CG10: FALSE | CH10: FALSE | CI10: FALSE | CJ10: FALSE | CK10: FALSE | CL10: FALSE | CM10: FALSE | CN10: FALSE | CO10: FALSE | CP10: FALSE | CQ10: FALSE | CR10: FALSE | CS10: FALSE | CT10: FALSE | CU10: FALSE | CV10: FALSE | CW10: FALSE | CX10: FALSE | CY10: FALSE | CZ10: FALSE | DA10: FALSE | DB10: FALSE | DC10: FALSE | DD10: FALSE | DE10: FALSE | DF10: FALSE | DG10: FALSE | DH10: FALSE
B11: Operation | F11: Switch | G11: Start | H11: ='Assumptions - General'!G15 -> 2018-02-01 | I11: End | J11: ='Assumptions - General'!G17 -> 2048-02-01 | M11: FALSE | N11: FALSE | O11: FALSE | P11: FALSE | Q11: FALSE | R11: FALSE | S11: FALSE | T11: FALSE | U11: FALSE | V11: FALSE | W11: FALSE | X11: FALSE | Y11: FALSE | Z11: FALSE | AA11: FALSE | AB11: FALSE | AC11: FALSE | AD11: FALSE | AE11: FALSE | AF11: FALSE | AG11: FALSE | AH11: FALSE | AI11: FALSE | AJ11: FALSE | AK11: TRUE | AL11: TRUE | AM11: TRUE | AN11: TRUE | AO11: TRUE | AP11: TRUE | AQ11: TRUE | AR11: TRUE | AS11: TRUE | AT11: TRUE | AU11: TRUE | AV11: TRUE | AW11: TRUE | AX11: TRUE | AY11: TRUE | AZ11: TRUE | BA11: TRUE | BB11: TRUE | BC11: TRUE | BD11: TRUE | BE11: TRUE | BF11: TRUE | BG11: TRUE | BH11: TRUE | BI11: TRUE | BJ11: TRUE | BK11: TRUE | BL11: TRUE | BM11: TRUE | BN11: TRUE | BO11: TRUE | BP11: TRUE | BQ11: TRUE | BR11: TRUE | BS11: TRUE | BT11: TRUE | BU11: TRUE | BV11: TRUE | BW11: TRUE | BX11: TRUE | BY11: TRUE | BZ11: TRUE | CA11: TRUE | CB11: TRUE | CC11: TRUE | CD11: TRUE | CE11: TRUE | CF11: TRUE | CG11: TRUE | CH11: TRUE | CI11: TRUE | CJ11: TRUE | CK11: TRUE | CL11: TRUE | CM11: TRUE | CN11: TRUE | CO11: TRUE | CP11: TRUE | CQ11: TRUE | CR11: TRUE | CS11: FALSE | CT11: FALSE | CU11: FALSE | CV11: FALSE | CW11: FALSE | CX11: FALSE | CY11: FALSE | CZ11: FALSE | DA11: FALSE | DB11: FALSE | DC11: FALSE | DD11: FALSE | DE11: FALSE | DF11: FALSE | DG11: FALSE | DH11: FALSE
B12: PPA | F12: Switch | G12: Start | H12: =H11 -> 2018-02-01 | I12: End | J12: ='Assumptions - General'!G19 -> 2048-02-01 | M12: FALSE | N12: FALSE | O12: FALSE | P12: FALSE | Q12: FALSE | R12: FALSE | S12: FALSE | T12: FALSE | U12: FALSE | V12: FALSE | W12: FALSE | X12: FALSE | Y12: FALSE | Z12: FALSE | AA12: FALSE | AB12: FALSE | AC12: FALSE | AD12: FALSE | AE12: FALSE | AF12: FALSE | AG12: FALSE | AH12: FALSE | AI12: FALSE | AJ12: FALSE | AK12: TRUE | AL12: TRUE | AM12: TRUE | AN12: TRUE | AO12: TRUE | AP12: TRUE | AQ12: TRUE | AR12: TRUE | AS12: TRUE | AT12: TRUE | AU12: TRUE | AV12: TRUE | AW12: TRUE | AX12: TRUE | AY12: TRUE | AZ12: TRUE | BA12: TRUE | BB12: TRUE | BC12: TRUE | BD12: TRUE | BE12: TRUE | BF12: TRUE | BG12: TRUE | BH12: TRUE | BI12: TRUE | BJ12: TRUE | BK12: TRUE | BL12: TRUE | BM12: TRUE | BN12: TRUE | BO12: TRUE | BP12: TRUE | BQ12: TRUE | BR12: TRUE | BS12: TRUE | BT12: TRUE | BU12: TRUE | BV12: TRUE | BW12: TRUE | BX12: TRUE | BY12: TRUE | BZ12: TRUE | CA12: TRUE | CB12: TRUE | CC12: TRUE | CD12: TRUE | CE12: TRUE | CF12: TRUE | CG12: TRUE | CH12: TRUE | CI12: TRUE | CJ12: TRUE | CK12: TRUE | CL12: TRUE | CM12: TRUE | CN12: TRUE | CO12: TRUE | CP12: TRUE | CQ12: TRUE | CR12: TRUE | CS12: FALSE | CT12: FALSE | CU12: FALSE | CV12: FALSE | CW12: FALSE | CX12: FALSE | CY12: FALSE | CZ12: FALSE | DA12: FALSE | DB12: FALSE | DC12: FALSE | DD12: FALSE | DE12: FALSE | DF12: FALSE | DG12: FALSE | DH12: FALSE
B13: Year | F13: Year | G13: ='Assumptions - General'!G28 -> 1 | L13: =YEAR(L7) -> 2016 | M13: =IF(MONTH(L7)=$G$13,L13+1,L13) -> 2017 | N13: =IF(MONTH(M7)=$G$13,M13+1,M13) -> 2017 | O13: 2017 | P13: 2017 | Q13: 2017 | R13: 2017 | S13: 2017 | T13: 2017 | U13: 2017 | V13: 2017 | W13: 2017 | X13: 2017 | Y13: 2018 | Z13: 2018 | AA13: 2018 | AB13: 2018 | AC13: 2018 | AD13: 2018 | AE13: 2018 | AF13: 2018 | AG13: 2018 | AH13: 2018 | AI13: 2018 | AJ13: 2018 | AK13: 2019 | AL13: 2019 | AM13: 2020 | AN13: 2020 | AO13: 2021 | AP13: 2021 | AQ13: 2022 | AR13: 2022 | AS13: 2023 | AT13: 2023 | AU13: 2024 | AV13: 2024 | AW13: 2025 | AX13: 2025 | AY13: 2026 | AZ13: 2026 | BA13: 2027 | BB13: 2027 | BC13: 2028 | BD13: 2028 | BE13: 2029 | BF13: 2029 | BG13: 2030 | BH13: 2030 | BI13: 2031 | BJ13: 2031 | BK13: 2032 | BL13: 2032 | BM13: 2033 | BN13: 2033 | BO13: 2034 | BP13: 2034 | BQ13: 2035 | BR13: 2035 | BS13: 2036 | BT13: 2036 | BU13: 2037 | BV13: 2037 | BW13: 2038 | BX13: 2038 | BY13: 2039 | BZ13: =IF(MONTH(BY7)=$G$13,BY13+1,BY13) -> 2039 | CA13: 2040 | CB13: 2040 | CC13: 2041 | CD13: 2041 | CE13: 2042 | CF13: 2042 | CG13: 2043 | CH13: 2043 | CI13: 2044 | CJ13: 2044 | CK13: 2045 | CL13: 2045 | CM13: 2046 | CN13: 2046 | CO13: 2047 | CP13: 2047 | CQ13: 2048 | CR13: 2048 | CS13: 2049 | CT13: 2049 | CU13: 2050 | CV13: 2050 | CW13: 2051 | CX13: 2051 | CY13: 2052 | CZ13: 2052 | DA13: 2053 | DB13: 2053 | DC13: 2054 | DD13: 2054 | DE13: 2055 | DF13: 2055 | DG13: 2056 | DH13: 2056
B14: Month Start | M14: =MONTH(M6) -> 2 | N14: =MONTH(N6) -> 3 | O14: 4 | P14: 5 | Q14: 6 | R14: 7 | S14: 8 | T14: 9 | U14: 10 | V14: 11 | W14: 12 | X14: 1 | Y14: 2 | Z14: 3 | AA14: 4 | AB14: 5 | AC14: 6 | AD14: 7 | AE14: 8 | AF14: 9 | AG14: 10 | AH14: 11 | AI14: 12 | AJ14: 1 | AK14: 2 | AL14: 8 | AM14: 2 | AN14: 8 | AO14: 2 | AP14: 8 | AQ14: 2 | AR14: 8 | AS14: 2 | AT14: 8 | AU14: 2 | AV14: 8 | AW14: 2 | AX14: 8 | AY14: 2 | AZ14: 8 | BA14: 2 | BB14: 8 | BC14: 2 | BD14: 8 | BE14: 2 | BF14: 8 | BG14: 2 | BH14: 8 | BI14: 2 | BJ14: 8 | BK14: 2 | BL14: 8 | BM14: 2 | BN14: 8 | BO14: 2 | BP14: 8 | BQ14: 2 | BR14: 8 | BS14: 2 | BT14: 8 | BU14: 2 | BV14: 8 | BW14: 2 | BX14: 8 | BY14: 2 | BZ14: =MONTH(BZ6) -> 8 | CA14: 2 | CB14: 8 | CC14: 2 | CD14: 8 | CE14: 2 | CF14: 8 | CG14: 2 | CH14: 8 | CI14: 2 | CJ14: 8 | CK14: 2 | CL14: 8 | CM14: 2 | CN14: 8 | CO14: 2 | CP14: 8 | CQ14: 2 | CR14: 8 | CS14: 2 | CT14: 8 | CU14: 2 | CV14: 8 | CW14: 2 | CX14: 8 | CY14: 2 | CZ14: 8 | DA14: 2 | DB14: 8 | DC14: 2 | DD14: 8 | DE14: 2 | DF14: 8 | DG14: 2 | DH14: 8
B15: Month End | M15: =MONTH(M7) -> 2 | N15: =MONTH(N7) -> 3 | O15: 4 | P15: 5 | Q15: 6 | R15: 7 | S15: 8 | T15: 9 | U15: 10 | V15: 11 | W15: 12 | X15: 1 | Y15: 2 | Z15: 3 | AA15: 4 | AB15: 5 | AC15: 6 | AD15: 7 | AE15: 8 | AF15: 9 | AG15: 10 | AH15: 11 | AI15: 12 | AJ15: 1 | AK15: 7 | AL15: 1 | AM15: 7 | AN15: 1 | AO15: 7 | AP15: 1 | AQ15: 7 | AR15: 1 | AS15: 7 | AT15: 1 | AU15: 7 | AV15: 1 | AW15: 7 | AX15: 1 | AY15: 7 | AZ15: 1 | BA15: 7 | BB15: 1 | BC15: 7 | BD15: 1 | BE15: 7 | BF15: 1 | BG15: 7 | BH15: 1 | BI15: 7 | BJ15: 1 | BK15: 7 | BL15: 1 | BM15: 7 | BN15: 1 | BO15: 7 | BP15: 1 | BQ15: 7 | BR15: 1 | BS15: 7 | BT15: 1 | BU15: 7 | BV15: 1 | BW15: 7 | BX15: 1 | BY15: 7 | BZ15: =MONTH(BZ7) -> 1 | CA15: 7 | CB15: 1 | CC15: 7 | CD15: 1 | CE15: 7 | CF15: 1 | CG15: 7 | CH15: 1 | CI15: 7 | CJ15: 1 | CK15: 7 | CL15: 1 | CM15: 7 | CN15: 1 | CO15: 7 | CP15: 1 | CQ15: 7 | CR15: 1 | CS15: 7 | CT15: 1 | CU15: 7 | CV15: 1 | CW15: 7 | CX15: 1 | CY15: 7 | CZ15: 1 | DA15: 7 | DB15: 1 | DC15: 7 | DD15: 1 | DE15: 7 | DF15: 1 | DG15: 7 | DH15: 1
B16: Summer Month | F16: Start | G16: ='Assumptions - Technology'!G12+1 -> 3 | H16: End | I16: ='Assumptions - Technology'!G11-1 -> 10 | M16: =AND(M14>=$G$16,M14<=$I$16) -> FALSE | N16: =AND(N14>=$G$16,N14<=$I$16) -> TRUE | O16: TRUE | P16: TRUE | Q16: TRUE | R16: TRUE | S16: TRUE | T16: TRUE | U16: TRUE | V16: FALSE | W16: FALSE | X16: FALSE | Y16: FALSE | Z16: TRUE | AA16: TRUE | AB16: TRUE | AC16: TRUE | AD16: TRUE | AE16: TRUE | AF16: TRUE | AG16: TRUE | AH16: FALSE | AI16: FALSE | AJ16: FALSE | AK16: FALSE | AL16: TRUE | AM16: FALSE | AN16: TRUE | AO16: FALSE | AP16: TRUE | AQ16: FALSE | AR16: TRUE | AS16: FALSE | AT16: TRUE | AU16: FALSE | AV16: TRUE | AW16: FALSE | AX16: TRUE | AY16: FALSE | AZ16: TRUE | BA16: FALSE | BB16: TRUE | BC16: FALSE | BD16: TRUE | BE16: FALSE | BF16: TRUE | BG16: FALSE | BH16: TRUE | BI16: FALSE | BJ16: TRUE | BK16: FALSE | BL16: TRUE | BM16: FALSE | BN16: TRUE | BO16: FALSE | BP16: TRUE | BQ16: FALSE | BR16: TRUE | BS16: FALSE | BT16: TRUE | BU16: FALSE | BV16: TRUE | BW16: FALSE | BX16: TRUE | BY16: FALSE | BZ16: =AND(BZ14>=$G$16,BZ14<=$I$16) -> TRUE | CA16: FALSE | CB16: TRUE | CC16: FALSE | CD16: TRUE | CE16: FALSE | CF16: TRUE | CG16: FALSE | CH16: TRUE | CI16: FALSE | CJ16: TRUE | CK16: FALSE | CL16: TRUE | CM16: FALSE | CN16: TRUE | CO16: FALSE | CP16: TRUE | CQ16: FALSE | CR16: TRUE | CS16: FALSE | CT16: TRUE | CU16: FALSE | CV16: TRUE | CW16: FALSE | CX16: TRUE | CY16: FALSE | CZ16: TRUE | DA16: FALSE | DB16: TRUE | DC16: FALSE | DD16: TRUE | DE16: FALSE | DF16: TRUE | DG16: FALSE | DH16: TRUE
B17: Winter Month | M17: =NOT(M16) -> TRUE | N17: =NOT(N16) -> FALSE | O17: FALSE | P17: FALSE | Q17: FALSE | R17: FALSE | S17: FALSE | T17: FALSE | U17: FALSE | V17: TRUE | W17: TRUE | X17: TRUE | Y17: TRUE | Z17: FALSE | AA17: FALSE | AB17: FALSE | AC17: FALSE | AD17: FALSE | AE17: FALSE | AF17: FALSE | AG17: FALSE | AH17: TRUE | AI17: TRUE | AJ17: TRUE | AK17: TRUE | AL17: FALSE | AM17: TRUE | AN17: FALSE | AO17: TRUE | AP17: FALSE | AQ17: TRUE | AR17: FALSE | AS17: TRUE | AT17: FALSE | AU17: TRUE | AV17: FALSE | AW17: TRUE | AX17: FALSE | AY17: TRUE | AZ17: FALSE | BA17: TRUE | BB17: FALSE | BC17: TRUE | BD17: FALSE | BE17: TRUE | BF17: FALSE | BG17: TRUE | BH17: FALSE | BI17: TRUE | BJ17: FALSE | BK17: TRUE | BL17: FALSE | BM17: TRUE | BN17: FALSE | BO17: TRUE | BP17: FALSE | BQ17: TRUE | BR17: FALSE | BS17: TRUE | BT17: FALSE | BU17: TRUE | BV17: FALSE | BW17: TRUE | BX17: FALSE | BY17: TRUE | BZ17: =NOT(BZ16) -> FALSE | CA17: TRUE | CB17: FALSE | CC17: TRUE | CD17: FALSE | CE17: TRUE | CF17: FALSE | CG17: TRUE | CH17: FALSE | CI17: TRUE | CJ17: FALSE | CK17: TRUE | CL17: FALSE | CM17: TRUE | CN17: FALSE | CO17: TRUE | CP17: FALSE | CQ17: TRUE | CR17: FALSE | CS17: TRUE | CT17: FALSE | CU17: TRUE | CV17: FALSE | CW17: TRUE | CX17: FALSE | CY17: TRUE | CZ17: FALSE | DA17: TRUE | DB17: FALSE | DC17: TRUE | DD17: FALSE | DE17: TRUE | DF17: FALSE | DG17: TRUE | DH17: FALSE
B19: Start of Summer | K19: =G16 -> 3 | M19: =IF(M14<=$K$20,MAX($K$19,M14),MIN(M14,$K$19)) -> 3 | N19: 3 | O19: 4 | P19: 5 | Q19: 6 | R19: 7 | S19: 8 | T19: 9 | U19: 10 | V19: 3 | W19: 3 | X19: 3 | Y19: 3 | Z19: 3 | AA19: 4 | AB19: 5 | AC19: 6 | AD19: 7 | AE19: 8 | AF19: 9 | AG19: 10 | AH19: 3 | AI19: =IF(AI14<=$K$20,MAX($K$19,AI14),MIN(AI14,$K$19)) -> 3 | AJ19: =IF(AJ14<=$K$20,MAX($K$19,AJ14),MIN(AJ14,$K$19)) -> 3 | AK19: 3 | AL19: 8 | AM19: 3 | AN19: 8 | AO19: 3 | AP19: 8 | AQ19: 3 | AR19: 8 | AS19: 3 | AT19: 8 | AU19: 3 | AV19: 8 | AW19: 3 | AX19: 8 | AY19: 3 | AZ19: 8 | BA19: 3 | BB19: 8 | BC19: 3 | BD19: 8 | BE19: 3 | BF19: 8 | BG19: 3 | BH19: 8 | BI19: 3 | BJ19: 8 | BK19: 3 | BL19: 8 | BM19: 3 | BN19: 8 | BO19: 3 | BP19: 8 | BQ19: 3 | BR19: 8 | BS19: 3 | BT19: 8 | BU19: 3 | BV19: 8 | BW19: 3 | BX19: 8 | BY19: 3 | BZ19: =IF(BZ14<=$K$20,MAX($K$19,BZ14),MIN(BZ14,$K$19)) -> 8 | CA19: 3 | CB19: 8 | CC19: 3 | CD19: 8 | CE19: 3 | CF19: 8 | CG19: 3 | CH19: 8 | CI19: 3 | CJ19: 8 | CK19: 3 | CL19: 8 | CM19: 3 | CN19: 8 | CO19: 3 | CP19: 8 | CQ19: 3 | CR19: 8 | CS19: 3 | CT19: 8 | CU19: 3 | CV19: 8 | CW19: 3 | CX19: 8 | CY19: 3 | CZ19: 8 | DA19: 3 | DB19: 8 | DC19: 3 | DD19: 8 | DE19: 3 | DF19: 8 | DG19: 3 | DH19: 8
B20: End of Summer | K20: =I16 -> 10 | M20: =IF(M15<=$K$19,MAX($K$19,M15),MIN($K$20,M15)) -> 3 | N20: 3 | O20: 4 | P20: 5 | Q20: 6 | R20: 7 | S20: 8 | T20: 9 | U20: 10 | V20: 10 | W20: 10 | X20: 3 | Y20: 3 | Z20: 3 | AA20: 4 | AB20: 5 | AC20: 6 | AD20: 7 | AE20: 8 | AF20: 9 | AG20: 10 | AH20: 10 | AI20: =IF(AI15<=$K$19,MAX($K$19,AI15),MIN($K$20,AI15)) -> 10 | AJ20: =IF(AJ15<=$K$19,MAX($K$19,AJ15),MIN($K$20,AJ15)) -> 3 | AK20: 7 | AL20: 3 | AM20: 7 | AN20: 3 | AO20: 7 | AP20: 3 | AQ20: 7 | AR20: 3 | AS20: 7 | AT20: 3 | AU20: 7 | AV20: 3 | AW20: 7 | AX20: 3 | AY20: 7 | AZ20: 3 | BA20: 7 | BB20: 3 | BC20: 7 | BD20: 3 | BE20: 7 | BF20: 3 | BG20: 7 | BH20: 3 | BI20: 7 | BJ20: 3 | BK20: 7 | BL20: 3 | BM20: 7 | BN20: 3 | BO20: 7 | BP20: 3 | BQ20: 7 | BR20: 3 | BS20: 7 | BT20: 3 | BU20: 7 | BV20: 3 | BW20: 7 | BX20: 3 | BY20: 7 | BZ20: 3 | CA20: 7 | CB20: 3 | CC20: 7 | CD20: 3 | CE20: 7 | CF20: 3 | CG20: 7 | CH20: 3 | CI20: 7 | CJ20: 3 | CK20: 7 | CL20: 3 | CM20: 7 | CN20: 3 | CO20: 7 | CP20: 3 | CQ20: 7 | CR20: 3 | CS20: 7 | CT20: 3 | CU20: 7 | CV20: =IF(CV15<=$K$19,MAX($K$19,CV15),MIN($K$20,CV15)) -> 3 | CW20: 7 | CX20: 3 | CY20: 7 | CZ20: 3 | DA20: 7 | DB20: 3 | DC20: 7 | DD20: 3 | DE20: 7 | DF20: 3 | DG20: 7 | DH20: 3
B21: Total Summer Months | M21: =IF(M20>=M19,M20-M19+1,MAX(M20-$K$19+1)+MAX($K$20-M19+0,1)+0) -> 1 | N21: 1 | O21: 1 | P21: 1 | Q21: 1 | R21: 1 | S21: 1 | T21: 1 | U21: 1 | V21: 8 | W21: 8 | X21: 1 | Y21: 1 | Z21: 1 | AA21: 1 | AB21: 1 | AC21: 1 | AD21: 1 | AE21: 1 | AF21: 1 | AG21: 1 | AH21: 8 | AI21: 8 | AJ21: 1 | AK21: 5 | AL21: 3 | AM21: 5 | AN21: 3 | AO21: 5 | AP21: 3 | AQ21: 5 | AR21: 3 | AS21: =IF(AS20>=AS19,AS20-AS19+1,MAX(AS20-$K$19+1)+MAX($K$20-AS19+0,1)+0) -> 5 | AT21: 3 | AU21: 5 | AV21: 3 | AW21: 5 | AX21: 3 | AY21: 5 | AZ21: 3 | BA21: 5 | BB21: 3 | BC21: 5 | BD21: 3 | BE21: 5 | BF21: 3 | BG21: 5 | BH21: 3 | BI21: 5 | BJ21: 3 | BK21: 5 | BL21: 3 | BM21: 5 | BN21: 3 | BO21: 5 | BP21: 3 | BQ21: 5 | BR21: 3 | BS21: 5 | BT21: 3 | BU21: 5 | BV21: 3 | BW21: 5 | BX21: 3 | BY21: =IF(BY20>=BY19,BY20-BY19+1,MAX(BY20-$K$19+1)+MAX($K$20-BY19+0,1)+0) -> 5 | BZ21: 3 | CA21: 5 | CB21: 3 | CC21: 5 | CD21: 3 | CE21: 5 | CF21: 3 | CG21: 5 | CH21: 3 | CI21: 5 | CJ21: 3 | CK21: 5 | CL21: 3 | CM21: 5 | CN21: 3 | CO21: 5 | CP21: 3 | CQ21: 5 | CR21: 3 | CS21: 5 | CT21: 3 | CU21: 5 | CV21: 3 | CW21: 5 | CX21: 3 | CY21: 5 | CZ21: 3 | DA21: 5 | DB21: 3 | DC21: 5 | DD21: 3 | DE21: =IF(DE20>=DE19,DE20-DE19+1,MAX(DE20-$K$19+1)+MAX($K$20-DE19+0,1)+0) -> 5 | DF21: 3 | DG21: 5 | DH21: 3
B22: Summer Percent | M22: =M21/M4 -> 1 | N22: =N21/N4 -> 1 | O22: 1 | P22: 1 | Q22: 1 | R22: 1 | S22: 1 | T22: 1 | U22: 1 | V22: 8 | W22: 8 | X22: 1 | Y22: 1 | Z22: 1 | AA22: 1 | AB22: 1 | AC22: 1 | AD22: 1 | AE22: 1 | AF22: 1 | AG22: 1 | AH22: 8 | AI22: 8 | AJ22: 1 | AK22: 0.8333333333 | AL22: 0.5 | AM22: 0.8333333333 | AN22: 0.5 | AO22: 0.8333333333 | AP22: 0.5 | AQ22: 0.8333333333 | AR22: 0.5 | AS22: 0.8333333333 | AT22: 0.5 | AU22: 0.8333333333 | AV22: 0.5 | AW22: 0.8333333333 | AX22: 0.5 | AY22: 0.8333333333 | AZ22: 0.5 | BA22: 0.8333333333 | BB22: 0.5 | BC22: 0.8333333333 | BD22: 0.5 | BE22: 0.8333333333 | BF22: 0.5 | BG22: 0.8333333333 | BH22: 0.5 | BI22: 0.8333333333 | BJ22: 0.5 | BK22: 0.8333333333 | BL22: 0.5 | BM22: 0.8333333333 | BN22: 0.5 | BO22: 0.8333333333 | BP22: 0.5 | BQ22: 0.8333333333 | BR22: 0.5 | BS22: 0.8333333333 | BT22: 0.5 | BU22: 0.8333333333 | BV22: 0.5 | BW22: 0.8333333333 | BX22: 0.5 | BY22: 0.8333333333 | BZ22: =BZ21/BZ4 -> 0.5 | CA22: 0.8333333333 | CB22: 0.5 | CC22: 0.8333333333 | CD22: 0.5 | CE22: 0.8333333333 | CF22: 0.5 | CG22: 0.8333333333 | CH22: 0.5 | CI22: 0.8333333333 | CJ22: 0.5 | CK22: 0.8333333333 | CL22: 0.5 | CM22: 0.8333333333 | CN22: 0.5 | CO22: 0.8333333333 | CP22: 0.5 | CQ22: 0.8333333333 | CR22: 0.5 | CS22: 0.8333333333 | CT22: 0.5 | CU22: 0.8333333333 | CV22: 0.5 | CW22: 0.8333333333 | CX22: 0.5 | CY22: 0.8333333333 | CZ22: 0.5 | DA22: 0.8333333333 | DB22: 0.5 | DC22: 0.8333333333 | DD22: 0.5 | DE22: 0.8333333333 | DF22: 0.5 | DG22: 0.8333333333 | DH22: 0.5
B23: Winter Percent | M23: =1-M22 -> 0 | N23: =1-N22 -> 0 | O23: 0 | P23: 0 | Q23: 0 | R23: 0 | S23: 0 | T23: 0 | U23: 0 | V23: -7 | W23: -7 | X23: 0 | Y23: 0 | Z23: 0 | AA23: 0 | AB23: 0 | AC23: 0 | AD23: 0 | AE23: 0 | AF23: 0 | AG23: 0 | AH23: -7 | AI23: -7 | AJ23: 0 | AK23: 0.1666666667 | AL23: 0.5 | AM23: 0.1666666667 | AN23: 0.5 | AO23: 0.1666666667 | AP23: 0.5 | AQ23: 0.1666666667 | AR23: 0.5 | AS23: 0.1666666667 | AT23: 0.5 | AU23: 0.1666666667 | AV23: 0.5 | AW23: 0.1666666667 | AX23: 0.5 | AY23: 0.1666666667 | AZ23: 0.5 | BA23: 0.1666666667 | BB23: 0.5 | BC23: 0.1666666667 | BD23: 0.5 | BE23: 0.1666666667 | BF23: 0.5 | BG23: 0.1666666667 | BH23: 0.5 | BI23: 0.1666666667 | BJ23: 0.5 | BK23: 0.1666666667 | BL23: 0.5 | BM23: 0.1666666667 | BN23: 0.5 | BO23: 0.1666666667 | BP23: 0.5 | BQ23: 0.1666666667 | BR23: 0.5 | BS23: 0.1666666667 | BT23: 0.5 | BU23: 0.1666666667 | BV23: 0.5 | BW23: 0.1666666667 | BX23: 0.5 | BY23: 0.1666666667 | BZ23: =1-BZ22 -> 0.5 | CA23: 0.1666666667 | CB23: 0.5 | CC23: 0.1666666667 | CD23: 0.5 | CE23: 0.1666666667 | CF23: 0.5 | CG23: 0.1666666667 | CH23: 0.5 | CI23: 0.1666666667 | CJ23: 0.5 | CK23: 0.1666666667 | CL23: 0.5 | CM23: 0.1666666667 | CN23: 0.5 | CO23: 0.1666666667 | CP23: 0.5 | CQ23: 0.1666666667 | CR23: 0.5 | CS23: 0.1666666667 | CT23: 0.5 | CU23: 0.1666666667 | CV23: 0.5 | CW23: 0.1666666667 | CX23: 0.5 | CY23: 0.1666666667 | CZ23: 0.5 | DA23: 0.1666666667 | DB23: 0.5 | DC23: 0.1666666667 | DD23: 0.5 | DE23: 0.1666666667 | DF23: 0.5 | DG23: 0.1666666667 | DH23: 0.5
A25: Macro-Economic
B26: Year | M26: =YEAR(M7) -> 2016 | N26: 2016 | O26: 2016 | P26: 2016 | Q26: 2016 | R26: 2016 | S26: 2016 | T26: 2016 | U26: 2016 | V26: 2016 | W26: 2016 | X26: 2017 | Y26: 2017 | Z26: 2017 | AA26: 2017 | AB26: 2017 | AC26: 2017 | AD26: 2017 | AE26: 2017 | AF26: 2017 | AG26: 2017 | AH26: 2017 | AI26: 2017 | AJ26: 2018 | AK26: 2018 | AL26: 2019 | AM26: 2019 | AN26: 2020 | AO26: 2020 | AP26: 2021 | AQ26: 2021 | AR26: 2022 | AS26: =YEAR(AS7) -> 2022 | AT26: 2023 | AU26: 2023 | AV26: 2024 | AW26: 2024 | AX26: 2025 | AY26: 2025 | AZ26: 2026 | BA26: 2026 | BB26: 2027 | BC26: 2027 | BD26: 2028 | BE26: 2028 | BF26: 2029 | BG26: 2029 | BH26: 2030 | BI26: 2030 | BJ26: 2031 | BK26: 2031 | BL26: 2032 | BM26: 2032 | BN26: 2033 | BO26: 2033 | BP26: 2034 | BQ26: 2034 | BR26: 2035 | BS26: 2035 | BT26: 2036 | BU26: 2036 | BV26: 2037 | BW26: 2037 | BX26: 2038 | BY26: =YEAR(BY7) -> 2038 | BZ26: 2039 | CA26: 2039 | CB26: 2040 | CC26: 2040 | CD26: 2041 | CE26: 2041 | CF26: 2042 | CG26: 2042 | CH26: 2043 | CI26: 2043 | CJ26: 2044 | CK26: 2044 | CL26: 2045 | CM26: 2045 | CN26: 2046 | CO26: 2046 | CP26: 2047 | CQ26: 2047 | CR26: 2048 | CS26: 2048 | CT26: 2049 | CU26: 2049 | CV26: 2050 | CW26: 2050 | CX26: 2051 | CY26: 2051 | CZ26: 2052 | DA26: 2052 | DB26: 2053 | DC26: 2053 | DD26: 2054 | DE26: 2054 | DF26: 2055 | DG26: 2055 | DH26: 2056
B27: PAK Inflation Rate - Annual | M27: =LOOKUP(M$26,'Assumptions - General'!$33:$33,'Assumptions - General'!34:34) -> 0 | N27: =LOOKUP(N$26,'Assumptions - General'!$33:$33,'Assumptions - General'!34:34) -> 0 | O27: =LOOKUP(O$26,'Assumptions - General'!$33:$33,'Assumptions - General'!34:34) -> 0 | P27: =LOOKUP(P$26,'Assumptions - General'!$33:$33,'Assumptions - General'!34:34) -> 0 | Q27: =LOOKUP(Q$26,'Assumptions - General'!$33:$33,'Assumptions - General'!34:34) -> 0 | R27: =LOOKUP(R$26,'Assumptions - General'!$33:$33,'Assumptions - General'!34:34) -> 0 | S27: =LOOKUP(S$26,'Assumptions - General'!$33:$33,'Assumptions - General'!34:34) -> 0 | T27: =LOOKUP(T$26,'Assumptions - General'!$33:$33,'Assumptions - General'!34:34) -> 0 | U27: =LOOKUP(U$26,'Assumptions - General'!$33:$33,'Assumptions - General'!34:34) -> 0 | V27: =LOOKUP(V$26,'Assumptions - General'!$33:$33,'Assumptions - General'!34:34) -> 0 | W27: =LOOKUP(W$26,'Assumptions - General'!$33:$33,'Assumptions - General'!34:34) -> 0 | X27: =LOOKUP(X$26,'Assumptions - General'!$33:$33,'Assumptions - General'!34:34) -> 0.05 | Y27: =LOOKUP(Y$26,'Assumptions - General'!$33:$33,'Assumptions - General'!34:34) -> 0.05 | Z27: =LOOKUP(Z$26,'Assumptions - General'!$33:$33,'Assumptions - General'!34:34) -> 0.05 | AA27: =LOOKUP(AA$26,'Assumptions - General'!$33:$33,'Assumptions - General'!34:34) -> 0.05 | AB27: =LOOKUP(AB$26,'Assumptions - General'!$33:$33,'Assumptions - General'!34:34) -> 0.05 | AC27: =LOOKUP(AC$26,'Assumptions - General'!$33:$33,'Assumptions - General'!34:34) -> 0.05 | AD27: =LOOKUP(AD$26,'Assumptions - General'!$33:$33,'Assumptions - General'!34:34) -> 0.05 | AE27: =LOOKUP(AE$26,'Assumptions - General'!$33:$33,'Assumptions - General'!34:34) -> 0.05 | AF27: =LOOKUP(AF$26,'Assumptions - General'!$33:$33,'Assumptions - General'!34:34) -> 0.05 | AG27: =LOOKUP(AG$26,'Assumptions - General'!$33:$33,'Assumptions - General'!34:34) -> 0.05 | AH27: =LOOKUP(AH$26,'Assumptions - General'!$33:$33,'Assumptions - General'!34:34) -> 0.05 | AI27: =LOOKUP(AI$26,'Assumptions - General'!$33:$33,'Assumptions - General'!34:34) -> 0.05 | AJ27: =LOOKUP(AJ$26,'Assumptions - General'!$33:$33,'Assumptions - General'!34:34) -> 0.05 | AK27: =LOOKUP(AK$26,'Assumptions - General'!$33:$33,'Assumptions - General'!34:34) -> 0.05 | AL27: =LOOKUP(AL$26,'Assumptions - General'!$33:$33,'Assumptions - General'!34:34) -> 0.05 | AM27: =LOOKUP(AM$26,'Assumptions - General'!$33:$33,'Assumptions - General'!34:34) -> 0.05 | AN27: =LOOKUP(AN$26,'Assumptions - General'!$33:$33,'Assumptions - General'!34:34) -> 0.05 | AO27: =LOOKUP(AO$26,'Assumptions - General'!$33:$33,'Assumptions - General'!34:34) -> 0.05 | AP27: =LOOKUP(AP$26,'Assumptions - General'!$33:$33,'Assumptions - General'!34:34) -> 0.05 | AQ27: =LOOKUP(AQ$26,'Assumptions - General'!$33:$33,'Assumptions - General'!34:34) -> 0.05 | AR27: =LOOKUP(AR$26,'Assumptions - General'!$33:$33,'Assumptions - General'!34:34) -> 0.05 | AS27: =LOOKUP(AS$26,'Assumptions - General'!$33:$33,'Assumptions - General'!34:34) -> 0.05 | AT27: =LOOKUP(AT$26,'Assumptions - General'!$33:$33,'Assumptions - General'!34:34) -> 0.05 | AU27: =LOOKUP(AU$26,'Assumptions - General'!$33:$33,'Assumptions - General'!34:34) -> 0.05 | AV27: =LOOKUP(AV$26,'Assumptions - General'!$33:$33,'Assumptions - General'!34:34) -> 0.05 | AW27: =LOOKUP(AW$26,'Assumptions - General'!$33:$33,'Assumptions - General'!34:34) -> 0.05 | AX27: =LOOKUP(AX$26,'Assumptions - General'!$33:$33,'Assumptions - General'!34:34) -> 0.05 | AY27: =LOOKUP(AY$26,'Assumptions - General'!$33:$33,'Assumptions - General'!34:34) -> 0.05 | AZ27: =LOOKUP(AZ$26,'Assumptions - General'!$33:$33,'Assumptions - General'!34:34) -> 0.05 | BA27: =LOOKUP(BA$26,'Assumptions - General'!$33:$33,'Assumptions - General'!34:34) -> 0.05 | BB27: =LOOKUP(BB$26,'Assumptions - General'!$33:$33,'Assumptions - General'!34:34) -> 0.05 | BC27: =LOOKUP(BC$26,'Assumptions - General'!$33:$33,'Assumptions - General'!34:34) -> 0.05 | BD27: =LOOKUP(BD$26,'Assumptions - General'!$33:$33,'Assumptions - General'!34:34) -> 0.05 | BE27: =LOOKUP(BE$26,'Assumptions - General'!$33:$33,'Assumptions - General'!34:34) -> 0.05 | BF27: =LOOKUP(BF$26,'Assumptions - General'!$33:$33,'Assumptions - General'!34:34) -> 0.05 | BG27: =LOOKUP(BG$26,'Assumptions - General'!$33:$33,'Assumptions - General'!34:34) -> 0.05 | BH27: =LOOKUP(BH$26,'Assumptions - General'!$33:$33,'Assumptions - General'!34:34) -> 0.05 | BI27: =LOOKUP(BI$26,'Assumptions - General'!$33:$33,'Assumptions - General'!34:34) -> 0.05 | BJ27: =LOOKUP(BJ$26,'Assumptions - General'!$33:$33,'Assumptions - General'!34:34) -> 0.05 | BK27: =LOOKUP(BK$26,'Assumptions - General'!$33:$33,'Assumptions - General'!34:34) -> 0.05 | BL27: =LOOKUP(BL$26,'Assumptions - General'!$33:$33,'Assumptions - General'!34:34) -> 0.05 | BM27: =LOOKUP(BM$26,'Assumptions - General'!$33:$33,'Assumptions - General'!34:34) -> 0.05 | BN27: =LOOKUP(BN$26,'Assumptions - General'!$33:$33,'Assumptions - General'!34:34) -> 0.05 | BO27: =LOOKUP(BO$26,'Assumptions - General'!$33:$33,'Assumptions - General'!34:34) -> 0.05 | BP27: =LOOKUP(BP$26,'Assumptions - General'!$33:$33,'Assumptions - General'!34:34) -> 0.05 | BQ27: =LOOKUP(BQ$26,'Assumptions - General'!$33:$33,'Assumptions - General'!34:34) -> 0.05 | BR27: =LOOKUP(BR$26,'Assumptions - General'!$33:$33,'Assumptions - General'!34:34) -> 0.05 | BS27: =LOOKUP(BS$26,'Assumptions - General'!$33:$33,'Assumptions - General'!34:34) -> 0.05 | BT27: =LOOKUP(BT$26,'Assumptions - General'!$33:$33,'Assumptions - General'!34:34) -> 0.05 | BU27: =LOOKUP(BU$26,'Assumptions - General'!$33:$33,'Assumptions - General'!34:34) -> 0.05 | BV27: =LOOKUP(BV$26,'Assumptions - General'!$33:$33,'Assumptions - General'!34:34) -> 0.05 | BW27: =LOOKUP(BW$26,'Assumptions - General'!$33:$33,'Assumptions - General'!34:34) -> 0.05 | BX27: =LOOKUP(BX$26,'Assumptions - General'!$33:$33,'Assumptions - General'!34:34) -> 0.05 | BY27: =LOOKUP(BY$26,'Assumptions - General'!$33:$33,'Assumptions - General'!34:34) -> 0.05 | BZ27: =LOOKUP(BZ$26,'Assumptions - General'!$33:$33,'Assumptions - General'!34:34) -> 0.05 | CA27: =LOOKUP(CA$26,'Assumptions - General'!$33:$33,'Assumptions - General'!34:34) -> 0.05 | CB27: =LOOKUP(CB$26,'Assumptions - General'!$33:$33,'Assumptions - General'!34:34) -> 0.05 | CC27: =LOOKUP(CC$26,'Assumptions - General'!$33:$33,'Assumptions - General'!34:34) -> 0.05 | CD27: =LOOKUP(CD$26,'Assumptions - General'!$33:$33,'Assumptions - General'!34:34) -> 0.05 | CE27: =LOOKUP(CE$26,'Assumptions - General'!$33:$33,'Assumptions - General'!34:34) -> 0.05 | CF27: =LOOKUP(CF$26,'Assumptions - General'!$33:$33,'Assumptions - General'!34:34) -> 0.05 | CG27: =LOOKUP(CG$26,'Assumptions - General'!$33:$33,'Assumptions - General'!34:34) -> 0.05 | CH27: =LOOKUP(CH$26,'Assumptions - General'!$33:$33,'Assumptions - General'!34:34) -> 0.05 | CI27: =LOOKUP(CI$26,'Assumptions - General'!$33:$33,'Assumptions - General'!34:34) -> 0.05 | CJ27: =LOOKUP(CJ$26,'Assumptions - General'!$33:$33,'Assumptions - General'!34:34) -> 0.05 | CK27: =LOOKUP(CK$26,'Assumptions - General'!$33:$33,'Assumptions - General'!34:34) -> 0.05 | CL27: =LOOKUP(CL$26,'Assumptions - General'!$33:$33,'Assumptions - General'!34:34) -> 0.05 | CM27: =LOOKUP(CM$26,'Assumptions - General'!$33:$33,'Assumptions - General'!34:34) -> 0.05 | CN27: =LOOKUP(CN$26,'Assumptions - General'!$33:$33,'Assumptions - General'!34:34) -> 0.05 | CO27: =LOOKUP(CO$26,'Assumptions - General'!$33:$33,'Assumptions - General'!34:34) -> 0.05 | CP27: =LOOKUP(CP$26,'Assumptions - General'!$33:$33,'Assumptions - General'!34:34) -> 0.05 | CQ27: =LOOKUP(CQ$26,'Assumptions - General'!$33:$33,'Assumptions - General'!34:34) -> 0.05 | CR27: =LOOKUP(CR$26,'Assumptions - General'!$33:$33,'Assumptions - General'!34:34) -> 0.05 | CS27: =LOOKUP(CS$26,'Assumptions - General'!$33:$33,'Assumptions - General'!34:34) -> 0.05 | CT27: =LOOKUP(CT$26,'Assumptions - General'!$33:$33,'Assumptions - General'!34:34) -> 0.05 | CU27: =LOOKUP(CU$26,'Assumptions - General'!$33:$33,'Assumptions - General'!34:34) -> 0.05 | CV27: =LOOKUP(CV$26,'Assumptions - General'!$33:$33,'Assumptions - General'!34:34) -> 0.05 | CW27: =LOOKUP(CW$26,'Assumptions - General'!$33:$33,'Assumptions - General'!34:34) -> 0.05 | CX27: =LOOKUP(CX$26,'Assumptions - General'!$33:$33,'Assumptions - General'!34:34) -> 0.05 | CY27: =LOOKUP(CY$26,'Assumptions - General'!$33:$33,'Assumptions - General'!34:34) -> 0.05 | CZ27: =LOOKUP(CZ$26,'Assumptions - General'!$33:$33,'Assumptions - General'!34:34) -> 0.05 | DA27: =LOOKUP(DA$26,'Assumptions - General'!$33:$33,'Assumptions - General'!34:34) -> 0.05 | DB27: =LOOKUP(DB$26,'Assumptions - General'!$33:$33,'Assumptions - General'!34:34) -> 0.05 | DC27: =LOOKUP(DC$26,'Assumptions - General'!$33:$33,'Assumptions - General'!34:34) -> 0.05 | DD27: =LOOKUP(DD$26,'Assumptions - General'!$33:$33,'Assumptions - General'!34:34) -> 0.05 | DE27: =LOOKUP(DE$26,'Assumptions - General'!$33:$33,'Assumptions - General'!34:34) -> 0.05 | DF27: =LOOKUP(DF$26,'Assumptions - General'!$33:$33,'Assumptions - General'!34:34) -> 0.05 | DG27: =LOOKUP(DG$26,'Assumptions - General'!$33:$33,'Assumptions - General'!34:34) -> 0.05 | DH27: =LOOKUP(DH$26,'Assumptions - General'!$33:$33,'Assumptions - General'!34:34) -> 0.05
B28: USD Inflation Rate - Annual | M28: =LOOKUP(M$26,'Assumptions - General'!$33:$33,'Assumptions - General'!35:35) -> 0 | N28: =LOOKUP(N$26,'Assumptions - General'!$33:$33,'Assumptions - General'!35:35) -> 0 | O28: =LOOKUP(O$26,'Assumptions - General'!$33:$33,'Assumptions - General'!35:35) -> 0 | P28: =LOOKUP(P$26,'Assumptions - General'!$33:$33,'Assumptions - General'!35:35) -> 0 | Q28: =LOOKUP(Q$26,'Assumptions - General'!$33:$33,'Assumptions - General'!35:35) -> 0 | R28: =LOOKUP(R$26,'Assumptions - General'!$33:$33,'Assumptions - General'!35:35) -> 0 | S28: =LOOKUP(S$26,'Assumptions - General'!$33:$33,'Assumptions - General'!35:35) -> 0 | T28: =LOOKUP(T$26,'Assumptions - General'!$33:$33,'Assumptions - General'!35:35) -> 0 | U28: =LOOKUP(U$26,'Assumptions - General'!$33:$33,'Assumptions - General'!35:35) -> 0 | V28: =LOOKUP(V$26,'Assumptions - General'!$33:$33,'Assumptions - General'!35:35) -> 0 | W28: =LOOKUP(W$26,'Assumptions - General'!$33:$33,'Assumptions - General'!35:35) -> 0 | X28: =LOOKUP(X$26,'Assumptions - General'!$33:$33,'Assumptions - General'!35:35) -> 0.015 | Y28: =LOOKUP(Y$26,'Assumptions - General'!$33:$33,'Assumptions - General'!35:35) -> 0.015 | Z28: =LOOKUP(Z$26,'Assumptions - General'!$33:$33,'Assumptions - General'!35:35) -> 0.015 | AA28: =LOOKUP(AA$26,'Assumptions - General'!$33:$33,'Assumptions - General'!35:35) -> 0.015 | AB28: =LOOKUP(AB$26,'Assumptions - General'!$33:$33,'Assumptions - General'!35:35) -> 0.015 | AC28: =LOOKUP(AC$26,'Assumptions - General'!$33:$33,'Assumptions - General'!35:35) -> 0.015 | AD28: =LOOKUP(AD$26,'Assumptions - General'!$33:$33,'Assumptions - General'!35:35) -> 0.015 | AE28: =LOOKUP(AE$26,'Assumptions - General'!$33:$33,'Assumptions - General'!35:35) -> 0.015 | AF28: =LOOKUP(AF$26,'Assumptions - General'!$33:$33,'Assumptions - General'!35:35) -> 0.015 | AG28: =LOOKUP(AG$26,'Assumptions - General'!$33:$33,'Assumptions - General'!35:35) -> 0.015 | AH28: =LOOKUP(AH$26,'Assumptions - General'!$33:$33,'Assumptions - General'!35:35) -> 0.015 | AI28: =LOOKUP(AI$26,'Assumptions - General'!$33:$33,'Assumptions - General'!35:35) -> 0.015 | AJ28: =LOOKUP(AJ$26,'Assumptions - General'!$33:$33,'Assumptions - General'!35:35) -> 0.015 | AK28: =LOOKUP(AK$26,'Assumptions - General'!$33:$33,'Assumptions - General'!35:35) -> 0.015 | AL28: =LOOKUP(AL$26,'Assumptions - General'!$33:$33,'Assumptions - General'!35:35) -> 0.015 | AM28: =LOOKUP(AM$26,'Assumptions - General'!$33:$33,'Assumptions - General'!35:35) -> 0.015 | AN28: =LOOKUP(AN$26,'Assumptions - General'!$33:$33,'Assumptions - General'!35:35) -> 0.015 | AO28: =LOOKUP(AO$26,'Assumptions - General'!$33:$33,'Assumptions - General'!35:35) -> 0.015 | AP28: =LOOKUP(AP$26,'Assumptions - General'!$33:$33,'Assumptions - General'!35:35) -> 0.015 | AQ28: =LOOKUP(AQ$26,'Assumptions - General'!$33:$33,'Assumptions - General'!35:35) -> 0.015 | AR28: =LOOKUP(AR$26,'Assumptions - General'!$33:$33,'Assumptions - General'!35:35) -> 0.015 | AS28: =LOOKUP(AS$26,'Assumptions - General'!$33:$33,'Assumptions - General'!35:35) -> 0.015 | AT28: =LOOKUP(AT$26,'Assumptions - General'!$33:$33,'Assumptions - General'!35:35) -> 0.015 | AU28: =LOOKUP(AU$26,'Assumptions - General'!$33:$33,'Assumptions - General'!35:35) -> 0.015 | AV28: =LOOKUP(AV$26,'Assumptions - General'!$33:$33,'Assumptions - General'!35:35) -> 0.015 | AW28: =LOOKUP(AW$26,'Assumptions - General'!$33:$33,'Assumptions - General'!35:35) -> 0.015 | AX28: =LOOKUP(AX$26,'Assumptions - General'!$33:$33,'Assumptions - General'!35:35) -> 0.015 | AY28: =LOOKUP(AY$26,'Assumptions - General'!$33:$33,'Assumptions - General'!35:35) -> 0.015 | AZ28: =LOOKUP(AZ$26,'Assumptions - General'!$33:$33,'Assumptions - General'!35:35) -> 0.015 | BA28: =LOOKUP(BA$26,'Assumptions - General'!$33:$33,'Assumptions - General'!35:35) -> 0.015 | BB28: =LOOKUP(BB$26,'Assumptions - General'!$33:$33,'Assumptions - General'!35:35) -> 0.015 | BC28: =LOOKUP(BC$26,'Assumptions - General'!$33:$33,'Assumptions - General'!35:35) -> 0.015 | BD28: =LOOKUP(BD$26,'Assumptions - General'!$33:$33,'Assumptions - General'!35:35) -> 0.015 | BE28: =LOOKUP(BE$26,'Assumptions - General'!$33:$33,'Assumptions - General'!35:35) -> 0.015 | BF28: =LOOKUP(BF$26,'Assumptions - General'!$33:$33,'Assumptions - General'!35:35) -> 0.015 | BG28: =LOOKUP(BG$26,'Assumptions - General'!$33:$33,'Assumptions - General'!35:35) -> 0.015 | BH28: =LOOKUP(BH$26,'Assumptions - General'!$33:$33,'Assumptions - General'!35:35) -> 0.015 | BI28: =LOOKUP(BI$26,'Assumptions - General'!$33:$33,'Assumptions - General'!35:35) -> 0.015 | BJ28: =LOOKUP(BJ$26,'Assumptions - General'!$33:$33,'Assumptions - General'!35:35) -> 0.015 | BK28: =LOOKUP(BK$26,'Assumptions - General'!$33:$33,'Assumptions - General'!35:35) -> 0.015 | BL28: =LOOKUP(BL$26,'Assumptions - General'!$33:$33,'Assumptions - General'!35:35) -> 0.015 | BM28: =LOOKUP(BM$26,'Assumptions - General'!$33:$33,'Assumptions - General'!35:35) -> 0.015 | BN28: =LOOKUP(BN$26,'Assumptions - General'!$33:$33,'Assumptions - General'!35:35) -> 0.015 | BO28: =LOOKUP(BO$26,'Assumptions - General'!$33:$33,'Assumptions - General'!35:35) -> 0.015 | BP28: =LOOKUP(BP$26,'Assumptions - General'!$33:$33,'Assumptions - General'!35:35) -> 0.015 | BQ28: =LOOKUP(BQ$26,'Assumptions - General'!$33:$33,'Assumptions - General'!35:35) -> 0.015 | BR28: =LOOKUP(BR$26,'Assumptions - General'!$33:$33,'Assumptions - General'!35:35) -> 0.015 | BS28: =LOOKUP(BS$26,'Assumptions - General'!$33:$33,'Assumptions - General'!35:35) -> 0.015 | BT28: =LOOKUP(BT$26,'Assumptions - General'!$33:$33,'Assumptions - General'!35:35) -> 0.015 | BU28: =LOOKUP(BU$26,'Assumptions - General'!$33:$33,'Assumptions - General'!35:35) -> 0.015 | BV28: =LOOKUP(BV$26,'Assumptions - General'!$33:$33,'Assumptions - General'!35:35) -> 0.015 | BW28: =LOOKUP(BW$26,'Assumptions - General'!$33:$33,'Assumptions - General'!35:35) -> 0.015 | BX28: =LOOKUP(BX$26,'Assumptions - General'!$33:$33,'Assumptions - General'!35:35) -> 0.015 | BY28: =LOOKUP(BY$26,'Assumptions - General'!$33:$33,'Assumptions - General'!35:35) -> 0.015 | BZ28: =LOOKUP(BZ$26,'Assumptions - General'!$33:$33,'Assumptions - General'!35:35) -> 0.015 | CA28: =LOOKUP(CA$26,'Assumptions - General'!$33:$33,'Assumptions - General'!35:35) -> 0.015 | CB28: =LOOKUP(CB$26,'Assumptions - General'!$33:$33,'Assumptions - General'!35:35) -> 0.015 | CC28: =LOOKUP(CC$26,'Assumptions - General'!$33:$33,'Assumptions - General'!35:35) -> 0.015 | CD28: =LOOKUP(CD$26,'Assumptions - General'!$33:$33,'Assumptions - General'!35:35) -> 0.015 | CE28: =LOOKUP(CE$26,'Assumptions - General'!$33:$33,'Assumptions - General'!35:35) -> 0.015 | CF28: =LOOKUP(CF$26,'Assumptions - General'!$33:$33,'Assumptions - General'!35:35) -> 0.015 | CG28: =LOOKUP(CG$26,'Assumptions - General'!$33:$33,'Assumptions - General'!35:35) -> 0.015 | CH28: =LOOKUP(CH$26,'Assumptions - General'!$33:$33,'Assumptions - General'!35:35) -> 0.015 | CI28: =LOOKUP(CI$26,'Assumptions - General'!$33:$33,'Assumptions - General'!35:35) -> 0.015 | CJ28: =LOOKUP(CJ$26,'Assumptions - General'!$33:$33,'Assumptions - General'!35:35) -> 0.015 | CK28: =LOOKUP(CK$26,'Assumptions - General'!$33:$33,'Assumptions - General'!35:35) -> 0.015 | CL28: =LOOKUP(CL$26,'Assumptions - General'!$33:$33,'Assumptions - General'!35:35) -> 0.015 | CM28: =LOOKUP(CM$26,'Assumptions - General'!$33:$33,'Assumptions - General'!35:35) -> 0.015 | CN28: =LOOKUP(CN$26,'Assumptions - General'!$33:$33,'Assumptions - General'!35:35) -> 0.015 | CO28: =LOOKUP(CO$26,'Assumptions - General'!$33:$33,'Assumptions - General'!35:35) -> 0.015 | CP28: =LOOKUP(CP$26,'Assumptions - General'!$33:$33,'Assumptions - General'!35:35) -> 0.015 | CQ28: =LOOKUP(CQ$26,'Assumptions - General'!$33:$33,'Assumptions - General'!35:35) -> 0.015 | CR28: =LOOKUP(CR$26,'Assumptions - General'!$33:$33,'Assumptions - General'!35:35) -> 0.015 | CS28: =LOOKUP(CS$26,'Assumptions - General'!$33:$33,'Assumptions - General'!35:35) -> 0.015 | CT28: =LOOKUP(CT$26,'Assumptions - General'!$33:$33,'Assumptions - General'!35:35) -> 0.015 | CU28: =LOOKUP(CU$26,'Assumptions - General'!$33:$33,'Assumptions - General'!35:35) -> 0.015 | CV28: =LOOKUP(CV$26,'Assumptions - General'!$33:$33,'Assumptions - General'!35:35) -> 0.015 | CW28: =LOOKUP(CW$26,'Assumptions - General'!$33:$33,'Assumptions - General'!35:35) -> 0.015 | CX28: =LOOKUP(CX$26,'Assumptions - General'!$33:$33,'Assumptions - General'!35:35) -> 0.015 | CY28: =LOOKUP(CY$26,'Assumptions - General'!$33:$33,'Assumptions - General'!35:35) -> 0.015 | CZ28: =LOOKUP(CZ$26,'Assumptions - General'!$33:$33,'Assumptions - General'!35:35) -> 0.015 | DA28: =LOOKUP(DA$26,'Assumptions - General'!$33:$33,'Assumptions - General'!35:35) -> 0.015 | DB28: =LOOKUP(DB$26,'Assumptions - General'!$33:$33,'Assumptions - General'!35:35) -> 0.015 | DC28: =LOOKUP(DC$26,'Assumptions - General'!$33:$33,'Assumptions - General'!35:35) -> 0.015 | DD28: =LOOKUP(DD$26,'Assumptions - General'!$33:$33,'Assumptions - General'!35:35) -> 0.015 | DE28: =LOOKUP(DE$26,'Assumptions - General'!$33:$33,'Assumptions - General'!35:35) -> 0.015 | DF28: =LOOKUP(DF$26,'Assumptions - General'!$33:$33,'Assumptions - General'!35:35) -> 0.015 | DG28: =LOOKUP(DG$26,'Assumptions - General'!$33:$33,'Assumptions - General'!35:35) -> 0.015 | DH28: =LOOKUP(DH$26,'Assumptions - General'!$33:$33,'Assumptions - General'!35:35) -> 0.015
B29: PAK Inflation Rate - Index | L29: 1 | M29: =L29*(1+((1+M27)^(1/M$5)-1)) -> 1 | N29: =M29*(1+((1+N27)^(1/N5)-1)) -> 1 | O29: 1 | P29: 1 | Q29: 1 | R29: 1 | S29: 1 | T29: 1 | U29: 1 | V29: 1 | W29: 1 | X29: 1.004074124 | Y29: 1.008164846 | Z29: 1.012272234 | AA29: 1.016396357 | AB29: 1.020537281 | AC29: 1.024695077 | AD29: 1.028869811 | AE29: 1.033061554 | AF29: 1.037270375 | AG29: 1.041496343 | AH29: 1.045739528 | AI29: 1.05 | AJ29: 1.05427783 | AK29: 1.080313302 | AL29: 1.106991721 | AM29: 1.134328967 | AN29: 1.162341308 | AO29: 1.191045415 | AP29: 1.220458373 | AQ29: 1.250597686 | AR29: 1.281481292 | AS29: 1.31312757 | AT29: =AS29*(1+((1+AT27)^(1/AT5)-1)) -> 1.345555356 | AU29: 1.378783949 | AV29: 1.412833124 | AW29: 1.447723146 | AX29: 1.48347478 | AY29: 1.520109303 | AZ29: 1.557648519 | BA29: 1.596114769 | BB29: 1.635530945 | BC29: 1.675920507 | BD29: 1.717307492 | BE29: 1.759716532 | BF29: 1.803172867 | BG29: 1.847702359 | BH29: 1.89333151 | BI29: 1.940087477 | BJ29: 1.987998086 | BK29: 2.037091851 | BL29: 2.08739799 | BM29: 2.138946443 | BN29: 2.19176789 | BO29: 2.245893766 | BP29: 2.301356284 | BQ29: 2.358188454 | BR29: 2.416424098 | BS29: 2.476097877 | BT29: 2.537245303 | BU29: 2.59990277 | BV29: 2.664107568 | BW29: 2.729897909 | BX29: 2.797312947 | BY29: 2.866392804 | BZ29: =BY29*(1+((1+BZ27)^(1/BZ5)-1)) -> 2.937178594 | CA29: 3.009712445 | CB29: 3.084037524 | CC29: 3.160198067 | CD29: 3.2382394 | CE29: 3.31820797 | CF29: 3.40015137 | CG29: 3.484118369 | CH29: 3.570158939 | CI29: 3.658324287 | CJ29: 3.748666886 | CK29: 3.841240501 | CL29: 3.93610023 | CM29: 4.033302526 | CN29: 4.132905241 | CO29: 4.234967653 | CP29: 4.339550503 | CQ29: 4.446716035 | CR29: 4.556528029 | CS29: 4.669051837 | CT29: 4.78435443 | CU29: 4.902504429 | CV29: 5.023572151 | CW29: 5.147629651 | CX29: 5.274750759 | CY29: 5.405011133 | CZ29: 5.538488297 | DA29: 5.67526169 | DB29: 5.815412712 | DC29: 5.959024774 | DD29: 6.106183347 | DE29: 6.256976013 | DF29: 6.411492515 | DG29: 6.569824814 | DH29: 6.732067141
B30: USD Inflation Rate - Index | L30: 1 | M30: =L30*(1+((1+M28)^(1/M$5)-1)) -> 1 | N30: =M30*(1+((1+N28)^(1/N$5)-1)) -> 1 | O30: 1 | P30: 1 | Q30: 1 | R30: 1 | S30: 1 | T30: 1 | U30: 1 | V30: 1 | W30: 1 | X30: 1.001241488 | Y30: 1.002484517 | Z30: 1.003729089 | AA30: 1.004975206 | AB30: 1.006222871 | AC30: 1.007472084 | AD30: 1.008722848 | AE30: 1.009975165 | AF30: 1.011229037 | AG30: 1.012484465 | AH30: 1.013741452 | AI30: 1.015 | AJ30: 1.01626011 | AK30: 1.023853691 | AL30: 1.031504012 | AM30: 1.039211496 | AN30: 1.046976572 | AO30: 1.054799669 | AP30: 1.06268122 | AQ30: 1.070621664 | AR30: 1.078621439 | AS30: 1.086680989 | AT30: 1.09480076 | AU30: 1.102981204 | AV30: 1.111222772 | AW30: 1.119525922 | AX30: 1.127891113 | AY30: 1.13631881 | AZ30: 1.14480948 | BA30: 1.153363593 | BB30: 1.161981622 | BC30: 1.170664046 | BD30: 1.179411347 | BE30: 1.188224007 | BF30: 1.197102517 | BG30: 1.206047367 | BH30: 1.215059054 | BI30: 1.224138078 | BJ30: 1.23328494 | BK30: 1.242500149 | BL30: 1.251784214 | BM30: 1.261137651 | BN30: 1.270560978 | BO30: 1.280054716 | BP30: 1.289619392 | BQ30: 1.299255537 | BR30: 1.308963683 | BS30: 1.31874437 | BT30: 1.328598138 | BU30: 1.338525535 | BV30: 1.34852711 | BW30: 1.358603418 | BX30: 1.368755017 | BY30: 1.37898247 | BZ30: =BY30*(1+((1+BZ28)^(1/BZ$5)-1)) -> 1.389286342 | CA30: 1.399667207 | CB30: 1.410125638 | CC30: 1.420662215 | CD30: 1.431277522 | CE30: 1.441972148 | CF30: 1.452746685 | CG30: 1.46360173 | CH30: 1.474537885 | CI30: 1.485555756 | CJ30: 1.496655953 | CK30: 1.507839092 | CL30: 1.519105793 | CM30: 1.530456679 | CN30: 1.54189238 | CO30: 1.553413529 | CP30: 1.565020765 | CQ30: 1.576714732 | CR30: 1.588496077 | CS30: 1.600365453 | CT30: 1.612323518 | CU30: 1.624370935 | CV30: 1.636508371 | CW30: 1.648736499 | CX30: 1.661055996 | CY30: 1.673467546 | CZ30: 1.685971836 | DA30: 1.698569559 | DB30: 1.711261414 | DC30: 1.724048103 | DD30: 1.736930335 | DE30: 1.749908824 | DF30: 1.76298429 | DG30: 1.776157457 | DH30: 1.789429054
B31: Exhange Rate PPP | F31: R/USD | G31: Base | H31: ='Assumptions - General'!M37 -> 106 | L31: =H31 -> 106 | M31: =$L$31*((M29/M30)) -> 106 | N31: =$L$31*((N29/N30)) -> 106 | O31: 106 | P31: 106 | Q31: 106 | R31: 106 | S31: 106 | T31: 106 | U31: 106 | V31: 106 | W31: 106 | X31: 106.2998871 | Y31: 106.6006227 | Z31: 106.902209 | AA31: 107.2046486 | AB31: 107.5079438 | AC31: 107.8120971 | AD31: 108.1171108 | AE31: 108.4229875 | AF31: 108.7297296 | AG31: 109.0373394 | AH31: 109.3458196 | AI31: 109.6551724 | AJ31: 109.9654005 | AK31: 111.8452871 | AL31: 113.7573108 | AM31: 115.7020211 | AN31: 117.6799767 | AO31: 119.691746 | AP31: 121.7379069 | AQ31: 123.8190476 | AR31: 125.9357658 | AS31: 128.0886699 | AT31: 130.2783784 | AU31: 132.5055206 | AV31: 134.7707363 | AW31: 137.0746765 | AX31: 139.4180031 | AY31: 141.8013894 | AZ31: 144.2255204 | BA31: 146.6910925 | BB31: 149.1988142 | BC31: 151.7494061 | BD31: 154.3436009 | BE31: 156.9821442 | BF31: 159.6657941 | BG31: 162.3953216 | BH31: 165.1715111 | BI31: 167.9951603 | BJ31: 170.8670804 | BK31: 173.7880968 | BL31: 176.7590487 | BM31: 179.7807898 | BN31: 182.8541883 | BO31: 185.9801274 | BP31: 189.1595052 | BQ31: 192.3932352 | BR31: 195.6822467 | BS31: 199.0274847 | BT31: 202.4299104 | BU31: 205.8905014 | BV31: 209.4102522 | BW31: 212.9901739 | BX31: 216.6312953 | BY31: 220.3346627 | BZ31: =$L$31*((BZ29/BZ30)) -> 224.10134 | CA31: 227.9324097 | CB31: 231.8289724 | CC31: 235.7921479 | CD31: 239.8230749 | CE31: 243.9229116 | CF31: 248.0928361 | CG31: 252.3340465 | CH31: 256.6477615 | CI31: 261.0352205 | CJ31: 265.4976843 | CK31: 270.036435 | CL31: 274.6527769 | CM31: 279.3480363 | CN31: 284.1235623 | CO31: 288.9807272 | CP31: 293.9209265 | CQ31: 298.9455798 | CR31: 304.0561309 | CS31: 309.2540481 | CT31: 314.540825 | CU31: 319.9179808 | CV31: 325.3870604 | CW31: 330.9496353 | CX31: 336.6073038 | CY31: 342.3616917 | CZ31: 348.2144522 | DA31: 354.1672673 | DB31: 360.2218472 | DC31: 366.3799316 | DD31: 372.6432902 | DE31: 379.0137224 | DF31: 385.4930588 | DG31: 392.0831611 | DH31: 398.7859229
A33: Technology Analysis
B34: Gross Capacity | F34: MW | G34: ='Assumptions - Technology'!G17 -> 175 | H34: Summer | I34: ='Assumptions - Technology'!G9 -> 195 | J34: Winter | M34: =($G$34*M22+$I$34*M23)*M11 -> 0 | N34: =($G$34*N22+$I$34*N23)*N11 -> 0 | O34: 0 | P34: 0 | Q34: 0 | R34: 0 | S34: 0 | T34: 0 | U34: 0 | V34: 0 | W34: 0 | X34: 0 | Y34: 0 | Z34: 0 | AA34: 0 | AB34: 0 | AC34: 0 | AD34: 0 | AE34: 0 | AF34: 0 | AG34: 0 | AH34: 0 | AI34: 0 | AJ34: 0 | AK34: 178.3333333 | AL34: 185 | AM34: 178.3333333 | AN34: 185 | AO34: 178.3333333 | AP34: 185 | AQ34: 178.3333333 | AR34: 185 | AS34: 178.3333333 | AT34: 185 | AU34: 178.3333333 | AV34: 185 | AW34: 178.3333333 | AX34: 185 | AY34: 178.3333333 | AZ34: 185 | BA34: 178.3333333 | BB34: 185 | BC34: 178.3333333 | BD34: 185 | BE34: 178.3333333 | BF34: 185 | BG34: 178.3333333 | BH34: 185 | BI34: 178.3333333 | BJ34: 185 | BK34: 178.3333333 | BL34: 185 | BM34: 178.3333333 | BN34: 185 | BO34: 178.3333333 | BP34: 185 | BQ34: 178.3333333 | BR34: 185 | BS34: 178.3333333 | BT34: 185 | BU34: 178.3333333 | BV34: 185 | BW34: 178.3333333 | BX34: 185 | BY34: 178.3333333 | BZ34: =($G$34*BZ22+$I$34*BZ23)*BZ11 -> 185 | CA34: 178.3333333 | CB34: 185 | CC34: 178.3333333 | CD34: 185 | CE34: 178.3333333 | CF34: 185 | CG34: 178.3333333 | CH34: 185 | CI34: 178.3333333 | CJ34: 185 | CK34: 178.3333333 | CL34: 185 | CM34: 178.3333333 | CN34: 185 | CO34: 178.3333333 | CP34: 185 | CQ34: 178.3333333 | CR34: 185 | CS34: 0 | CT34: 0 | CU34: 0 | CV34: 0 | CW34: 0 | CX34: 0 | CY34: 0 | CZ34: 0 | DA34: 0 | DB34: 0 | DC34: 0 | DD34: 0 | DE34: 0 | DF34: 0 | DG34: 0 | DH34: 0
B35: Parasitic Load | F35: MW | G35: ='Assumptions - Technology'!G18 -> 0.02 | M35: =$G$35*M11*M34 -> 0 | N35: 0 | O35: 0 | P35: 0 | Q35: 0 | R35: 0 | S35: 0 | T35: 0 | U35: 0 | V35: 0 | W35: 0 | X35: 0 | Y35: 0 | Z35: 0 | AA35: 0 | AB35: 0 | AC35: 0 | AD35: 0 | AE35: 0 | AF35: 0 | AG35: 0 | AH35: 0 | AI35: 0 | AJ35: 0 | AK35: 3.566666667 | AL35: 3.7 | AM35: 3.566666667 | AN35: 3.7 | AO35: 3.566666667 | AP35: 3.7 | AQ35: 3.566666667 | AR35: 3.7 | AS35: =$G$35*AS11*AS34 -> 3.566666667 | AT35: 3.7 | AU35: 3.566666667 | AV35: 3.7 | AW35: 3.566666667 | AX35: 3.7 | AY35: 3.566666667 | AZ35: 3.7 | BA35: 3.566666667 | BB35: 3.7 | BC35: 3.566666667 | BD35: 3.7 | BE35: 3.566666667 | BF35: 3.7 | BG35: 3.566666667 | BH35: 3.7 | BI35: 3.566666667 | BJ35: 3.7 | BK35: 3.566666667 | BL35: 3.7 | BM35: 3.566666667 | BN35: 3.7 | BO35: 3.566666667 | BP35: 3.7 | BQ35: 3.566666667 | BR35: 3.7 | BS35: 3.566666667 | BT35: 3.7 | BU35: 3.566666667 | BV35: 3.7 | BW35: 3.566666667 | BX35: 3.7 | BY35: =$G$35*BY11*BY34 -> 3.566666667 | BZ35: 3.7 | CA35: 3.566666667 | CB35: 3.7 | CC35: 3.566666667 | CD35: 3.7 | CE35: 3.566666667 | CF35: 3.7 | CG35: 3.566666667 | CH35: 3.7 | CI35: 3.566666667 | CJ35: 3.7 | CK35: 3.566666667 | CL35: 3.7 | CM35: 3.566666667 | CN35: 3.7 | CO35: 3.566666667 | CP35: 3.7 | CQ35: 3.566666667 | CR35: 3.7 | CS35: 0 | CT35: 0 | CU35: 0 | CV35: 0 | CW35: 0 | CX35: 0 | CY35: 0 | CZ35: 0 | DA35: 0 | DB35: 0 | DC35: 0 | DD35: 0 | DE35: =$G$35*DE11*DE34 -> 0 | DF35: 0 | DG35: 0 | DH35: 0
B36: Max Net Capacity to Grid | F36: MW | M36: =M34-M35 -> 0 | N36: =N34-N35 -> 0 | O36: 0 | P36: 0 | Q36: 0 | R36: 0 | S36: 0 | T36: 0 | U36: 0 | V36: 0 | W36: 0 | X36: 0 | Y36: 0 | Z36: 0 | AA36: 0 | AB36: 0 | AC36: 0 | AD36: 0 | AE36: 0 | AF36: 0 | AG36: 0 | AH36: 0 | AI36: 0 | AJ36: 0 | AK36: 174.7666667 | AL36: 181.3 | AM36: 174.7666667 | AN36: 181.3 | AO36: 174.7666667 | AP36: 181.3 | AQ36: 174.7666667 | AR36: 181.3 | AS36: 174.7666667 | AT36: 181.3 | AU36: 174.7666667 | AV36: 181.3 | AW36: 174.7666667 | AX36: 181.3 | AY36: 174.7666667 | AZ36: 181.3 | BA36: 174.7666667 | BB36: 181.3 | BC36: 174.7666667 | BD36: 181.3 | BE36: 174.7666667 | BF36: 181.3 | BG36: 174.7666667 | BH36: 181.3 | BI36: 174.7666667 | BJ36: 181.3 | BK36: 174.7666667 | BL36: 181.3 | BM36: 174.7666667 | BN36: 181.3 | BO36: 174.7666667 | BP36: 181.3 | BQ36: 174.7666667 | BR36: 181.3 | BS36: 174.7666667 | BT36: 181.3 | BU36: 174.7666667 | BV36: 181.3 | BW36: 174.7666667 | BX36: 181.3 | BY36: 174.7666667 | BZ36: =BZ34-BZ35 -> 181.3 | CA36: 174.7666667 | CB36: 181.3 | CC36: 174.7666667 | CD36: 181.3 | CE36: 174.7666667 | CF36: 181.3 | CG36: 174.7666667 | CH36: 181.3 | CI36: 174.7666667 | CJ36: 181.3 | CK36: 174.7666667 | CL36: 181.3 | CM36: 174.7666667 | CN36: 181.3 | CO36: 174.7666667 | CP36: 181.3 | CQ36: 174.7666667 | CR36: 181.3 | CS36: 0 | CT36: 0 | CU36: 0 | CV36: 0 | CW36: 0 | CX36: 0 | CY36: 0 | CZ36: 0 | DA36: 0 | DB36: 0 | DC36: 0 | DD36: 0 | DE36: 0 | DF36: 0 | DG36: 0 | DH36: 0
B38: Output
C39: Days in Period | F39: Days | M39: =M7-M6+1 -> 29 | N39: 31 | O39: 30 | P39: 31 | Q39: 30 | R39: 31 | S39: 31 | T39: 30 | U39: 31 | V39: 30 | W39: 31 | X39: 31 | Y39: 28 | Z39: 31 | AA39: 30 | AB39: 31 | AC39: 30 | AD39: 31 | AE39: 31 | AF39: 30 | AG39: 31 | AH39: 30 | AI39: 31 | AJ39: 31 | AK39: 181 | AL39: 184 | AM39: 181 | AN39: 184 | AO39: 182 | AP39: 184 | AQ39: 181 | AR39: 184 | AS39: =AS7-AS6+1 -> 181 | AT39: 184 | AU39: 181 | AV39: 184 | AW39: 182 | AX39: 184 | AY39: 181 | AZ39: 184 | BA39: 181 | BB39: 184 | BC39: 181 | BD39: 184 | BE39: 182 | BF39: 184 | BG39: 181 | BH39: 184 | BI39: 181 | BJ39: 184 | BK39: 181 | BL39: 184 | BM39: 182 | BN39: 184 | BO39: 181 | BP39: 184 | BQ39: 181 | BR39: 184 | BS39: 181 | BT39: 184 | BU39: 182 | BV39: 184 | BW39: 181 | BX39: 184 | BY39: =BY7-BY6+1 -> 181 | BZ39: 184 | CA39: 181 | CB39: 184 | CC39: 182 | CD39: 184 | CE39: 181 | CF39: 184 | CG39: 181 | CH39: 184 | CI39: 181 | CJ39: 184 | CK39: 182 | CL39: 184 | CM39: 181 | CN39: 184 | CO39: 181 | CP39: 184 | CQ39: 181 | CR39: 184 | CS39: 182 | CT39: 184 | CU39: 181 | CV39: 184 | CW39: 181 | CX39: 184 | CY39: 181 | CZ39: 184 | DA39: 182 | DB39: 184 | DC39: 181 | DD39: 184 | DE39: 181 | DF39: 184 | DG39: 181 | DH39: 184
C40: Hours in Period | F40: Hrs | M40: =M39*24 -> 696 | N40: =N39*24 -> 744 | O40: 720 | P40: 744 | Q40: 720 | R40: 744 | S40: 744 | T40: 720 | U40: 744 | V40: 720 | W40: 744 | X40: 744 | Y40: 672 | Z40: 744 | AA40: 720 | AB40: 744 | AC40: 720 | AD40: 744 | AE40: 744 | AF40: 720 | AG40: 744 | AH40: 720 | AI40: 744 | AJ40: 744 | AK40: 4344 | AL40: 4416 | AM40: 4344 | AN40: 4416 | AO40: 4368 | AP40: 4416 | AQ40: 4344 | AR40: 4416 | AS40: 4344 | AT40: 4416 | AU40: 4344 | AV40: 4416 | AW40: 4368 | AX40: 4416 | AY40: 4344 | AZ40: 4416 | BA40: 4344 | BB40: 4416 | BC40: 4344 | BD40: 4416 | BE40: 4368 | BF40: 4416 | BG40: 4344 | BH40: 4416 | BI40: 4344 | BJ40: 4416 | BK40: 4344 | BL40: 4416 | BM40: 4368 | BN40: 4416 | BO40: 4344 | BP40: 4416 | BQ40: 4344 | BR40: 4416 | BS40: 4344 | BT40: 4416 | BU40: 4368 | BV40: 4416 | BW40: 4344 | BX40: 4416 | BY40: 4344 | BZ40: =BZ39*24 -> 4416 | CA40: 4344 | CB40: 4416 | CC40: 4368 | CD40: 4416 | CE40: 4344 | CF40: 4416 | CG40: 4344 | CH40: 4416 | CI40: 4344 | CJ40: 4416 | CK40: 4368 | CL40: 4416 | CM40: 4344 | CN40: 4416 | CO40: 4344 | CP40: 4416 | CQ40: 4344 | CR40: 4416 | CS40: 4368 | CT40: 4416 | CU40: 4344 | CV40: 4416 | CW40: 4344 | CX40: 4416 | CY40: 4344 | CZ40: 4416 | DA40: 4368 | DB40: 4416 | DC40: 4344 | DD40: 4416 | DE40: 4344 | DF40: 4416 | DG40: 4344 | DH40: 4416
C41: Dispatch when Available | F41: % | G41: ='Assumptions - Technology'!G22 -> 1 | M41: =$G$41*M11 -> 0 | N41: 0 | O41: 0 | P41: 0 | Q41: 0 | R41: 0 | S41: 0 | T41: 0 | U41: 0 | V41: 0 | W41: 0 | X41: 0 | Y41: 0 | Z41: 0 | AA41: 0 | AB41: 0 | AC41: 0 | AD41: 0 | AE41: 0 | AF41: 0 | AG41: 0 | AH41: 0 | AI41: 0 | AJ41: 0 | AK41: 1 | AL41: 1 | AM41: 1 | AN41: 1 | AO41: 1 | AP41: 1 | AQ41: 1 | AR41: 1 | AS41: =$G$41*AS11 -> 1 | AT41: 1 | AU41: 1 | AV41: 1 | AW41: 1 | AX41: 1 | AY41: 1 | AZ41: 1 | BA41: 1 | BB41: 1 | BC41: 1 | BD41: 1 | BE41: 1 | BF41: 1 | BG41: 1 | BH41: 1 | BI41: 1 | BJ41: 1 | BK41: 1 | BL41: 1 | BM41: 1 | BN41: 1 | BO41: 1 | BP41: 1 | BQ41: 1 | BR41: 1 | BS41: 1 | BT41: 1 | BU41: 1 | BV41: 1 | BW41: 1 | BX41: 1 | BY41: =$G$41*BY11 -> 1 | BZ41: 1 | CA41: 1 | CB41: 1 | CC41: 1 | CD41: 1 | CE41: 1 | CF41: 1 | CG41: 1 | CH41: 1 | CI41: 1 | CJ41: 1 | CK41: 1 | CL41: 1 | CM41: 1 | CN41: 1 | CO41: 1 | CP41: 1 | CQ41: 1 | CR41: 1 | CS41: 0 | CT41: 0 | CU41: 0 | CV41: 0 | CW41: 0 | CX41: 0 | CY41: 0 | CZ41: 0 | DA41: 0 | DB41: 0 | DC41: 0 | DD41: 0 | DE41: 0 | DF41: 0 | DG41: 0 | DH41: 0
C42: Outage from Gas Unavailability | F42: % | G42: ='Assumptions - Technology'!G57 -> 0.02 | M42: =$G$42*M11 -> 0 | N42: 0 | O42: 0 | P42: 0 | Q42: 0 | R42: 0 | S42: 0 | T42: 0 | U42: 0 | V42: 0 | W42: 0 | X42: 0 | Y42: 0 | Z42: 0 | AA42: 0 | AB42: 0 | AC42: 0 | AD42: 0 | AE42: 0 | AF42: 0 | AG42: 0 | AH42: 0 | AI42: 0 | AJ42: 0 | AK42: 0.02 | AL42: 0.02 | AM42: 0.02 | AN42: 0.02 | AO42: 0.02 | AP42: 0.02 | AQ42: 0.02 | AR42: 0.02 | AS42: =$G$42*AS11 -> 0.02 | AT42: 0.02 | AU42: 0.02 | AV42: 0.02 | AW42: 0.02 | AX42: 0.02 | AY42: 0.02 | AZ42: 0.02 | BA42: 0.02 | BB42: 0.02 | BC42: 0.02 | BD42: 0.02 | BE42: 0.02 | BF42: 0.02 | BG42: 0.02 | BH42: 0.02 | BI42: 0.02 | BJ42: 0.02 | BK42: 0.02 | BL42: 0.02 | BM42: 0.02 | BN42: 0.02 | BO42: 0.02 | BP42: 0.02 | BQ42: 0.02 | BR42: 0.02 | BS42: 0.02 | BT42: 0.02 | BU42: 0.02 | BV42: 0.02 | BW42: 0.02 | BX42: 0.02 | BY42: =$G$42*BY11 -> 0.02 | BZ42: 0.02 | CA42: 0.02 | CB42: 0.02 | CC42: 0.02 | CD42: 0.02 | CE42: 0.02 | CF42: 0.02 | CG42: 0.02 | CH42: 0.02 | CI42: 0.02 | CJ42: 0.02 | CK42: 0.02 | CL42: 0.02 | CM42: 0.02 | CN42: 0.02 | CO42: 0.02 | CP42: 0.02 | CQ42: 0.02 | CR42: 0.02 | CS42: 0 | CT42: 0 | CU42: 0 | CV42: 0 | CW42: 0 | CX42: 0 | CY42: 0 | CZ42: 0 | DA42: 0 | DB42: 0 | DC42: 0 | DD42: 0 | DE42: 0 | DF42: 0 | DG42: 0 | DH42: 0
C43: Forced Outage Rate | F43: % | G43: ='Assumptions - Technology'!G21 -> 0.02 | M43: =$G$43*M11 -> 0 | N43: 0 | O43: 0 | P43: 0 | Q43: 0 | R43: 0 | S43: 0 | T43: 0 | U43: 0 | V43: 0 | W43: 0 | X43: 0 | Y43: 0 | Z43: 0 | AA43: 0 | AB43: 0 | AC43: 0 | AD43: 0 | AE43: 0 | AF43: 0 | AG43: 0 | AH43: 0 | AI43: 0 | AJ43: 0 | AK43: 0.02 | AL43: 0.02 | AM43: 0.02 | AN43: 0.02 | AO43: 0.02 | AP43: 0.02 | AQ43: 0.02 | AR43: 0.02 | AS43: =$G$43*AS11 -> 0.02 | AT43: 0.02 | AU43: 0.02 | AV43: 0.02 | AW43: 0.02 | AX43: 0.02 | AY43: 0.02 | AZ43: 0.02 | BA43: 0.02 | BB43: 0.02 | BC43: 0.02 | BD43: 0.02 | BE43: 0.02 | BF43: 0.02 | BG43: 0.02 | BH43: 0.02 | BI43: 0.02 | BJ43: 0.02 | BK43: 0.02 | BL43: 0.02 | BM43: 0.02 | BN43: 0.02 | BO43: 0.02 | BP43: 0.02 | BQ43: 0.02 | BR43: 0.02 | BS43: 0.02 | BT43: 0.02 | BU43: 0.02 | BV43: 0.02 | BW43: 0.02 | BX43: 0.02 | BY43: =$G$43*BY11 -> 0.02 | BZ43: 0.02 | CA43: 0.02 | CB43: 0.02 | CC43: 0.02 | CD43: 0.02 | CE43: 0.02 | CF43: 0.02 | CG43: 0.02 | CH43: 0.02 | CI43: 0.02 | CJ43: 0.02 | CK43: 0.02 | CL43: 0.02 | CM43: 0.02 | CN43: 0.02 | CO43: 0.02 | CP43: 0.02 | CQ43: 0.02 | CR43: 0.02 | CS43: 0 | CT43: 0 | CU43: 0 | CV43: 0 | CW43: 0 | CX43: 0 | CY43: 0 | CZ43: 0 | DA43: 0 | DB43: 0 | DC43: 0 | DD43: 0 | DE43: 0 | DF43: 0 | DG43: 0 | DH43: 0
C44: Total Dispatch Factor Before Maint Outage | F44: % | M44: =M41-M42-M43 -> 0 | N44: =N41-N42-N43 -> 0 | O44: 0 | P44: 0 | Q44: 0 | R44: 0 | S44: 0 | T44: 0 | U44: 0 | V44: 0 | W44: 0 | X44: 0 | Y44: 0 | Z44: 0 | AA44: 0 | AB44: 0 | AC44: 0 | AD44: 0 | AE44: 0 | AF44: 0 | AG44: 0 | AH44: 0 | AI44: 0 | AJ44: 0 | AK44: 0.96 | AL44: 0.96 | AM44: 0.96 | AN44: 0.96 | AO44: 0.96 | AP44: 0.96 | AQ44: 0.96 | AR44: 0.96 | AS44: 0.96 | AT44: 0.96 | AU44: 0.96 | AV44: 0.96 | AW44: 0.96 | AX44: 0.96 | AY44: 0.96 | AZ44: 0.96 | BA44: 0.96 | BB44: 0.96 | BC44: 0.96 | BD44: 0.96 | BE44: 0.96 | BF44: 0.96 | BG44: 0.96 | BH44: 0.96 | BI44: 0.96 | BJ44: 0.96 | BK44: 0.96 | BL44: 0.96 | BM44: 0.96 | BN44: 0.96 | BO44: 0.96 | BP44: 0.96 | BQ44: 0.96 | BR44: 0.96 | BS44: 0.96 | BT44: 0.96 | BU44: 0.96 | BV44: 0.96 | BW44: 0.96 | BX44: 0.96 | BY44: 0.96 | BZ44: =BZ41-BZ42-BZ43 -> 0.96 | CA44: 0.96 | CB44: 0.96 | CC44: 0.96 | CD44: 0.96 | CE44: 0.96 | CF44: 0.96 | CG44: 0.96 | CH44: 0.96 | CI44: 0.96 | CJ44: 0.96 | CK44: 0.96 | CL44: 0.96 | CM44: 0.96 | CN44: 0.96 | CO44: 0.96 | CP44: 0.96 | CQ44: 0.96 | CR44: 0.96 | CS44: 0 | CT44: 0 | CU44: 0 | CV44: 0 | CW44: 0 | CX44: 0 | CY44: 0 | CZ44: 0 | DA44: 0 | DB44: 0 | DC44: 0 | DD44: 0 | DE44: 0 | DF44: 0 | DG44: 0 | DH44: 0
C46: Hours of Production Before Maintenance | F46: Hrs | M46: =M44*M40 -> 0 | N46: =N44*N40 -> 0 | O46: 0 | P46: 0 | Q46: 0 | R46: 0 | S46: 0 | T46: 0 | U46: 0 | V46: 0 | W46: 0 | X46: 0 | Y46: 0 | Z46: 0 | AA46: 0 | AB46: 0 | AC46: 0 | AD46: 0 | AE46: 0 | AF46: 0 | AG46: 0 | AH46: 0 | AI46: 0 | AJ46: 0 | AK46: 4170.24 | AL46: 4239.36 | AM46: 4170.24 | AN46: 4239.36 | AO46: 4193.28 | AP46: 4239.36 | AQ46: 4170.24 | AR46: 4239.36 | AS46: 4170.24 | AT46: 4239.36 | AU46: 4170.24 | AV46: 4239.36 | AW46: 4193.28 | AX46: 4239.36 | AY46: 4170.24 | AZ46: 4239.36 | BA46: 4170.24 | BB46: 4239.36 | BC46: 4170.24 | BD46: 4239.36 | BE46: 4193.28 | BF46: 4239.36 | BG46: 4170.24 | BH46: 4239.36 | BI46: 4170.24 | BJ46: 4239.36 | BK46: 4170.24 | BL46: 4239.36 | BM46: 4193.28 | BN46: 4239.36 | BO46: 4170.24 | BP46: 4239.36 | BQ46: 4170.24 | BR46: 4239.36 | BS46: 4170.24 | BT46: 4239.36 | BU46: 4193.28 | BV46: 4239.36 | BW46: 4170.24 | BX46: 4239.36 | BY46: 4170.24 | BZ46: =BZ44*BZ40 -> 4239.36 | CA46: 4170.24 | CB46: 4239.36 | CC46: 4193.28 | CD46: 4239.36 | CE46: 4170.24 | CF46: 4239.36 | CG46: 4170.24 | CH46: 4239.36 | CI46: 4170.24 | CJ46: 4239.36 | CK46: 4193.28 | CL46: 4239.36 | CM46: 4170.24 | CN46: 4239.36 | CO46: 4170.24 | CP46: 4239.36 | CQ46: 4170.24 | CR46: 4239.36 | CS46: 0 | CT46: 0 | CU46: 0 | CV46: 0 | CW46: 0 | CX46: 0 | CY46: 0 | CZ46: 0 | DA46: 0 | DB46: 0 | DC46: 0 | DD46: 0 | DE46: 0 | DF46: 0 | DG46: 0 | DH46: 0
A48: Scheduled Maintenance Outages
B49: On-site hot section replacement
C50: On-site hot section replacement number | F50: Number | G50: Hrs | H50: ='Assumptions - Technology'!G36 -> 25000 | M50: =$H$50 -> 25000 | N50: =$H$50 -> 25000 | O50: 25000 | P50: 25000 | Q50: 25000 | R50: 25000 | S50: 25000 | T50: 25000 | U50: 25000 | V50: 25000 | W50: 25000 | X50: 25000 | Y50: 25000 | Z50: 25000 | AA50: 25000 | AB50: 25000 | AC50: 25000 | AD50: 25000 | AE50: 25000 | AF50: 25000 | AG50: 25000 | AH50: 25000 | AI50: 25000 | AJ50: 25000 | AK50: 25000 | AL50: 25000 | AM50: 25000 | AN50: 25000 | AO50: 25000 | AP50: 25000 | AQ50: 25000 | AR50: 25000 | AS50: 25000 | AT50: 25000 | AU50: 25000 | AV50: 25000 | AW50: 25000 | AX50: 25000 | AY50: 25000 | AZ50: 25000 | BA50: 25000 | BB50: 25000 | BC50: 25000 | BD50: 25000 | BE50: 25000 | BF50: 25000 | BG50: 25000 | BH50: 25000 | BI50: 25000 | BJ50: 25000 | BK50: 25000 | BL50: 25000 | BM50: 25000 | BN50: 25000 | BO50: 25000 | BP50: 25000 | BQ50: 25000 | BR50: 25000 | BS50: 25000 | BT50: 25000 | BU50: 25000 | BV50: 25000 | BW50: 25000 | BX50: 25000 | BY50: 25000 | BZ50: =$H$50 -> 25000 | CA50: 25000 | CB50: 25000 | CC50: 25000 | CD50: 25000 | CE50: 25000 | CF50: 25000 | CG50: 25000 | CH50: 25000 | CI50: 25000 | CJ50: 25000 | CK50: 25000 | CL50: 25000 | CM50: 25000 | CN50: 25000 | CO50: 25000 | CP50: 25000 | CQ50: 25000 | CR50: 25000 | CS50: 25000 | CT50: 25000 | CU50: 25000 | CV50: 25000 | CW50: 25000 | CX50: 25000 | CY50: 25000 | CZ50: 25000 | DA50: 25000 | DB50: 25000 | DC50: 25000 | DD50: 25000 | DE50: 25000 | DF50: 25000 | DG50: 25000 | DH50: 25000
C51: Opening Balance of Hour Count | F51: Hrs | M51: =M65 -> 0 | N51: =N65 -> 0 | O51: 0 | P51: 0 | Q51: 0 | R51: 0 | S51: 0 | T51: 0 | U51: 0 | V51: 0 | W51: 0 | X51: 0 | Y51: 0 | Z51: 0 | AA51: 0 | AB51: 0 | AC51: 0 | AD51: 0 | AE51: 0 | AF51: 0 | AG51: 0 | AH51: 0 | AI51: 0 | AJ51: 0 | AK51: 0 | AL51: 4170.24 | AM51: 8409.6 | AN51: 12579.84 | AO51: 16819.2 | AP51: 21012.48 | AQ51: 0 | AR51: 4170.24 | AS51: 8409.6 | AT51: 12579.84 | AU51: 16819.2 | AV51: 20989.44 | AW51: 0 | AX51: 4193.28 | AY51: 8432.64 | AZ51: 12602.88 | BA51: 16842.24 | BB51: 21012.48 | BC51: 0 | BD51: 4170.24 | BE51: 8409.6 | BF51: 12602.88 | BG51: 16842.24 | BH51: 21012.48 | BI51: 0 | BJ51: 4170.24 | BK51: 8409.6 | BL51: 12579.84 | BM51: 16819.2 | BN51: 21012.48 | BO51: 0 | BP51: 4170.24 | BQ51: 8409.6 | BR51: 12579.84 | BS51: 16819.2 | BT51: 20989.44 | BU51: 0 | BV51: 4193.28 | BW51: 8432.64 | BX51: 12602.88 | BY51: 16842.24 | BZ51: =BZ65 -> 21012.48 | CA51: 0 | CB51: 4170.24 | CC51: 8409.6 | CD51: 12602.88 | CE51: 16842.24 | CF51: 21012.48 | CG51: 0 | CH51: 4170.24 | CI51: 8409.6 | CJ51: 12579.84 | CK51: 16819.2 | CL51: 21012.48 | CM51: 0 | CN51: 4170.24 | CO51: 8409.6 | CP51: 12579.84 | CQ51: 16819.2 | CR51: 20989.44 | CS51: 0 | CT51: 0 | CU51: 0 | CV51: 0 | CW51: 0 | CX51: 0 | CY51: 0 | CZ51: 0 | DA51: 0 | DB51: 0 | DC51: 0 | DD51: 0 | DE51: 0 | DF51: 0 | DG51: 0 | DH51: 0
C52: Total of Opening Balance and Production | F52: Hrs | M52: =M51+M46 -> 0 | N52: =N51+N46 -> 0 | O52: 0 | P52: 0 | Q52: 0 | R52: 0 | S52: 0 | T52: 0 | U52: 0 | V52: 0 | W52: 0 | X52: 0 | Y52: 0 | Z52: 0 | AA52: 0 | AB52: 0 | AC52: 0 | AD52: 0 | AE52: 0 | AF52: 0 | AG52: 0 | AH52: 0 | AI52: 0 | AJ52: 0 | AK52: 4170.24 | AL52: 8409.6 | AM52: 12579.84 | AN52: 16819.2 | AO52: 21012.48 | AP52: 25251.84 | AQ52: 4170.24 | AR52: 8409.6 | AS52: 12579.84 | AT52: 16819.2 | AU52: 20989.44 | AV52: 25228.8 | AW52: 4193.28 | AX52: 8432.64 | AY52: 12602.88 | AZ52: 16842.24 | BA52: 21012.48 | BB52: 25251.84 | BC52: 4170.24 | BD52: 8409.6 | BE52: 12602.88 | BF52: 16842.24 | BG52: 21012.48 | BH52: 25251.84 | BI52: 4170.24 | BJ52: 8409.6 | BK52: 12579.84 | BL52: 16819.2 | BM52: 21012.48 | BN52: 25251.84 | BO52: 4170.24 | BP52: 8409.6 | BQ52: 12579.84 | BR52: 16819.2 | BS52: 20989.44 | BT52: 25228.8 | BU52: 4193.28 | BV52: 8432.64 | BW52: 12602.88 | BX52: 16842.24 | BY52: 21012.48 | BZ52: =BZ51+BZ46 -> 25251.84 | CA52: 4170.24 | CB52: 8409.6 | CC52: 12602.88 | CD52: 16842.24 | CE52: 21012.48 | CF52: 25251.84 | CG52: 4170.24 | CH52: 8409.6 | CI52: 12579.84 | CJ52: 16819.2 | CK52: 21012.48 | CL52: 25251.84 | CM52: 4170.24 | CN52: 8409.6 | CO52: 12579.84 | CP52: 16819.2 | CQ52: 20989.44 | CR52: 25228.8 | CS52: 0 | CT52: 0 | CU52: 0 | CV52: 0 | CW52: 0 | CX52: 0 | CY52: 0 | CZ52: 0 | DA52: 0 | DB52: 0 | DC52: 0 | DD52: 0 | DE52: 0 | DF52: 0 | DG52: 0 | DH52: 0
C53: Maximum Limit Test with MIN Function | F53: Hrs | M53: =MIN(M52,M50) -> 0 | N53: =MIN(N52,N50) -> 0 | O53: 0 | P53: 0 | Q53: 0 | R53: 0 | S53: 0 | T53: 0 | U53: 0 | V53: 0 | W53: 0 | X53: 0 | Y53: 0 | Z53: 0 | AA53: 0 | AB53: 0 | AC53: 0 | AD53: 0 | AE53: 0 | AF53: 0 | AG53: 0 | AH53: 0 | AI53: 0 | AJ53: 0 | AK53: 4170.24 | AL53: 8409.6 | AM53: 12579.84 | AN53: 16819.2 | AO53: 21012.48 | AP53: 25000 | AQ53: 4170.24 | AR53: 8409.6 | AS53: 12579.84 | AT53: 16819.2 | AU53: 20989.44 | AV53: 25000 | AW53: 4193.28 | AX53: 8432.64 | AY53: 12602.88 | AZ53: 16842.24 | BA53: 21012.48 | BB53: 25000 | BC53: 4170.24 | BD53: 8409.6 | BE53: 12602.88 | BF53: 16842.24 | BG53: 21012.48 | BH53: 25000 | BI53: 4170.24 | BJ53: 8409.6 | BK53: 12579.84 | BL53: 16819.2 | BM53: 21012.48 | BN53: 25000 | BO53: 4170.24 | BP53: 8409.6 | BQ53: 12579.84 | BR53: 16819.2 | BS53: 20989.44 | BT53: 25000 | BU53: 4193.28 | BV53: 8432.64 | BW53: 12602.88 | BX53: 16842.24 | BY53: 21012.48 | BZ53: =MIN(BZ52,BZ50) -> 25000 | CA53: 4170.24 | CB53: 8409.6 | CC53: 12602.88 | CD53: 16842.24 | CE53: 21012.48 | CF53: 25000 | CG53: 4170.24 | CH53: 8409.6 | CI53: 12579.84 | CJ53: 16819.2 | CK53: 21012.48 | CL53: 25000 | CM53: 4170.24 | CN53: 8409.6 | CO53: 12579.84 | CP53: 16819.2 | CQ53: 20989.44 | CR53: 25000 | CS53: 0 | CT53: 0 | CU53: 0 | CV53: 0 | CW53: 0 | CX53: 0 | CY53: 0 | CZ53: 0 | DA53: 0 | DB53: 0 | DC53: 0 | DD53: 0 | DE53: 0 | DF53: 0 | DG53: 0 | DH53: 0
C55: On-site hot section replacement switch | F55: Switch | M55: =M53=M50 -> FALSE | N55: =N53=N50 -> FALSE | O55: FALSE | P55: FALSE | Q55: FALSE | R55: FALSE | S55: FALSE | T55: FALSE | U55: FALSE | V55: FALSE | W55: FALSE | X55: FALSE | Y55: FALSE | Z55: FALSE | AA55: FALSE | AB55: FALSE | AC55: FALSE | AD55: FALSE | AE55: FALSE | AF55: FALSE | AG55: FALSE | AH55: FALSE | AI55: FALSE | AJ55: FALSE | AK55: FALSE | AL55: FALSE | AM55: FALSE | AN55: FALSE | AO55: FALSE | AP55: TRUE | AQ55: FALSE | AR55: FALSE | AS55: FALSE | AT55: FALSE | AU55: FALSE | AV55: TRUE | AW55: FALSE | AX55: FALSE | AY55: FALSE | AZ55: FALSE | BA55: FALSE | BB55: TRUE | BC55: FALSE | BD55: FALSE | BE55: FALSE | BF55: FALSE | BG55: FALSE | BH55: TRUE | BI55: FALSE | BJ55: FALSE | BK55: FALSE | BL55: FALSE | BM55: FALSE | BN55: TRUE | BO55: FALSE | BP55: FALSE | BQ55: FALSE | BR55: FALSE | BS55: FALSE | BT55: TRUE | BU55: FALSE | BV55: FALSE | BW55: FALSE | BX55: FALSE | BY55: FALSE | BZ55: =BZ53=BZ50 -> TRUE | CA55: FALSE | CB55: FALSE | CC55: FALSE | CD55: FALSE | CE55: FALSE | CF55: TRUE | CG55: FALSE | CH55: FALSE | CI55: FALSE | CJ55: FALSE | CK55: FALSE | CL55: TRUE | CM55: FALSE | CN55: FALSE | CO55: FALSE | CP55: FALSE | CQ55: FALSE | CR55: TRUE | CS55: FALSE | CT55: FALSE | CU55: FALSE | CV55: FALSE | CW55: FALSE | CX55: FALSE | CY55: FALSE | CZ55: FALSE | DA55: FALSE | DB55: FALSE | DC55: FALSE | DD55: FALSE | DE55: FALSE | DF55: FALSE | DG55: FALSE | DH55: FALSE
C57: Required Maintenance Hours | F57: Hrs | G57: Hrs | H57: ='Assumptions - Technology'!G42*24 -> 120 | M57: =$H$57*M55 -> 0 | N57: =$H$57*N55 -> 0 | O57: 0 | P57: 0 | Q57: 0 | R57: 0 | S57: 0 | T57: 0 | U57: 0 | V57: 0 | W57: 0 | X57: 0 | Y57: 0 | Z57: 0 | AA57: 0 | AB57: 0 | AC57: 0 | AD57: 0 | AE57: 0 | AF57: 0 | AG57: 0 | AH57: 0 | AI57: 0 | AJ57: 0 | AK57: 0 | AL57: 0 | AM57: 0 | AN57: 0 | AO57: 0 | AP57: 120 | AQ57: 0 | AR57: 0 | AS57: 0 | AT57: 0 | AU57: 0 | AV57: 120 | AW57: 0 | AX57: 0 | AY57: 0 | AZ57: 0 | BA57: 0 | BB57: 120 | BC57: 0 | BD57: 0 | BE57: 0 | BF57: 0 | BG57: 0 | BH57: 120 | BI57: 0 | BJ57: 0 | BK57: 0 | BL57: 0 | BM57: 0 | BN57: 120 | BO57: 0 | BP57: 0 | BQ57: 0 | BR57: 0 | BS57: 0 | BT57: 120 | BU57: 0 | BV57: 0 | BW57: 0 | BX57: 0 | BY57: 0 | BZ57: =$H$57*BZ55 -> 120 | CA57: 0 | CB57: 0 | CC57: 0 | CD57: 0 | CE57: 0 | CF57: 120 | CG57: 0 | CH57: 0 | CI57: 0 | CJ57: 0 | CK57: 0 | CL57: 120 | CM57: 0 | CN57: 0 | CO57: 0 | CP57: 0 | CQ57: 0 | CR57: 120 | CS57: 0 | CT57: 0 | CU57: 0 | CV57: 0 | CW57: 0 | CX57: 0 | CY57: 0 | CZ57: 0 | DA57: 0 | DB57: 0 | DC57: 0 | DD57: 0 | DE57: 0 | DF57: 0 | DG57: 0 | DH57: 0
C58: Production in Initial Part of Period | F58: Hrs | M58: =M55*(M53-M51) -> 0 | N58: =N55*(N53-N51) -> 0 | O58: 0 | P58: 0 | Q58: 0 | R58: 0 | S58: 0 | T58: 0 | U58: 0 | V58: 0 | W58: 0 | X58: 0 | Y58: 0 | Z58: 0 | AA58: 0 | AB58: 0 | AC58: 0 | AD58: 0 | AE58: 0 | AF58: 0 | AG58: 0 | AH58: 0 | AI58: 0 | AJ58: 0 | AK58: 0 | AL58: 0 | AM58: 0 | AN58: 0 | AO58: 0 | AP58: 3987.52 | AQ58: 0 | AR58: 0 | AS58: 0 | AT58: 0 | AU58: 0 | AV58: 4010.56 | AW58: 0 | AX58: 0 | AY58: 0 | AZ58: 0 | BA58: 0 | BB58: 3987.52 | BC58: 0 | BD58: 0 | BE58: 0 | BF58: 0 | BG58: 0 | BH58: 3987.52 | BI58: 0 | BJ58: 0 | BK58: 0 | BL58: 0 | BM58: 0 | BN58: 3987.52 | BO58: 0 | BP58: 0 | BQ58: 0 | BR58: 0 | BS58: 0 | BT58: 4010.56 | BU58: 0 | BV58: 0 | BW58: 0 | BX58: 0 | BY58: 0 | BZ58: =BZ55*(BZ53-BZ51) -> 3987.52 | CA58: 0 | CB58: 0 | CC58: 0 | CD58: 0 | CE58: 0 | CF58: 3987.52 | CG58: 0 | CH58: 0 | CI58: 0 | CJ58: 0 | CK58: 0 | CL58: 3987.52 | CM58: 0 | CN58: 0 | CO58: 0 | CP58: 0 | CQ58: 0 | CR58: 4010.56 | CS58: 0 | CT58: 0 | CU58: 0 | CV58: 0 | CW58: 0 | CX58: 0 | CY58: 0 | CZ58: 0 | DA58: 0 | DB58: 0 | DC58: 0 | DD58: 0 | DE58: 0 | DF58: 0 | DG58: 0 | DH58: 0
C59: Hours Available for Maintenance | F59: Hrs | M59: =(M40-M58)*M55 -> 0 | N59: =(N40-N58)*N55 -> 0 | O59: 0 | P59: 0 | Q59: 0 | R59: 0 | S59: 0 | T59: 0 | U59: 0 | V59: 0 | W59: 0 | X59: 0 | Y59: 0 | Z59: 0 | AA59: 0 | AB59: 0 | AC59: 0 | AD59: 0 | AE59: 0 | AF59: 0 | AG59: 0 | AH59: 0 | AI59: 0 | AJ59: 0 | AK59: 0 | AL59: 0 | AM59: 0 | AN59: 0 | AO59: 0 | AP59: 428.48 | AQ59: 0 | AR59: 0 | AS59: 0 | AT59: 0 | AU59: 0 | AV59: 405.44 | AW59: 0 | AX59: 0 | AY59: 0 | AZ59: 0 | BA59: 0 | BB59: 428.48 | BC59: 0 | BD59: 0 | BE59: 0 | BF59: 0 | BG59: 0 | BH59: 428.48 | BI59: 0 | BJ59: 0 | BK59: 0 | BL59: 0 | BM59: 0 | BN59: 428.48 | BO59: 0 | BP59: 0 | BQ59: 0 | BR59: 0 | BS59: 0 | BT59: 405.44 | BU59: 0 | BV59: 0 | BW59: 0 | BX59: 0 | BY59: 0 | BZ59: =(BZ40-BZ58)*BZ55 -> 428.48 | CA59: 0 | CB59: 0 | CC59: 0 | CD59: 0 | CE59: 0 | CF59: 428.48 | CG59: 0 | CH59: 0 | CI59: 0 | CJ59: 0 | CK59: 0 | CL59: 428.48 | CM59: 0 | CN59: 0 | CO59: 0 | CP59: 0 | CQ59: 0 | CR59: 405.44 | CS59: 0 | CT59: 0 | CU59: 0 | CV59: 0 | CW59: 0 | CX59: 0 | CY59: 0 | CZ59: 0 | DA59: 0 | DB59: 0 | DC59: 0 | DD59: 0 | DE59: 0 | DF59: 0 | DG59: 0 | DH59: 0
C60: Maintenance this Period | F60: Hrs | H60: =H57 -> 120 | M60: =MIN($H$60,M59)*M55 -> 0 | N60: =MIN($H$60,N59)*N55 -> 0 | O60: 0 | P60: 0 | Q60: 0 | R60: 0 | S60: 0 | T60: 0 | U60: 0 | V60: 0 | W60: 0 | X60: 0 | Y60: 0 | Z60: 0 | AA60: 0 | AB60: 0 | AC60: 0 | AD60: 0 | AE60: 0 | AF60: 0 | AG60: 0 | AH60: 0 | AI60: 0 | AJ60: 0 | AK60: 0 | AL60: 0 | AM60: 0 | AN60: 0 | AO60: 0 | AP60: 120 | AQ60: 0 | AR60: 0 | AS60: 0 | AT60: 0 | AU60: 0 | AV60: 120 | AW60: 0 | AX60: 0 | AY60: 0 | AZ60: 0 | BA60: 0 | BB60: 120 | BC60: 0 | BD60: 0 | BE60: 0 | BF60: 0 | BG60: 0 | BH60: 120 | BI60: 0 | BJ60: 0 | BK60: 0 | BL60: 0 | BM60: 0 | BN60: 120 | BO60: 0 | BP60: 0 | BQ60: 0 | BR60: 0 | BS60: 0 | BT60: 120 | BU60: 0 | BV60: 0 | BW60: 0 | BX60: 0 | BY60: 0 | BZ60: =MIN($H$60,BZ59)*BZ55 -> 120 | CA60: 0 | CB60: 0 | CC60: 0 | CD60: 0 | CE60: 0 | CF60: 120 | CG60: 0 | CH60: 0 | CI60: 0 | CJ60: 0 | CK60: 0 | CL60: 120 | CM60: 0 | CN60: 0 | CO60: 0 | CP60: 0 | CQ60: 0 | CR60: 120 | CS60: 0 | CT60: 0 | CU60: 0 | CV60: 0 | CW60: 0 | CX60: 0 | CY60: 0 | CZ60: 0 | DA60: 0 | DB60: 0 | DC60: 0 | DD60: 0 | DE60: 0 | DF60: 0 | DG60: 0 | DH60: 0
C61: Maintenance Carried Forward | F61: Hrs | N61: =($H$60-M60)*M55 -> 0 | O61: =($H$60-N60)*N55 -> 0 | P61: 0 | Q61: 0 | R61: 0 | S61: 0 | T61: 0 | U61: 0 | V61: 0 | W61: 0 | X61: 0 | Y61: 0 | Z61: 0 | AA61: 0 | AB61: 0 | AC61: 0 | AD61: 0 | AE61: 0 | AF61: 0 | AG61: 0 | AH61: 0 | AI61: 0 | AJ61: 0 | AK61: 0 | AL61: 0 | AM61: 0 | AN61: 0 | AO61: 0 | AP61: 0 | AQ61: 0 | AR61: 0 | AS61: 0 | AT61: 0 | AU61: 0 | AV61: 0 | AW61: 0 | AX61: 0 | AY61: 0 | AZ61: 0 | BA61: 0 | BB61: 0 | BC61: 0 | BD61: 0 | BE61: 0 | BF61: 0 | BG61: 0 | BH61: 0 | BI61: 0 | BJ61: 0 | BK61: 0 | BL61: 0 | BM61: 0 | BN61: 0 | BO61: 0 | BP61: 0 | BQ61: 0 | BR61: 0 | BS61: 0 | BT61: 0 | BU61: 0 | BV61: 0 | BW61: 0 | BX61: 0 | BY61: 0 | BZ61: 0 | CA61: =($H$60-BZ60)*BZ55 -> 0 | CB61: 0 | CC61: 0 | CD61: 0 | CE61: 0 | CF61: 0 | CG61: 0 | CH61: 0 | CI61: 0 | CJ61: 0 | CK61: 0 | CL61: 0 | CM61: 0 | CN61: 0 | CO61: 0 | CP61: 0 | CQ61: 0 | CR61: 0 | CS61: 0 | CT61: 0 | CU61: 0 | CV61: 0 | CW61: 0 | CX61: 0 | CY61: 0 | CZ61: 0 | DA61: 0 | DB61: 0 | DC61: 0 | DD61: 0 | DE61: 0 | DF61: 0 | DG61: 0 | DH61: 0
C63: Net Production | F63: Hrs | M63: =M46-M60-M61 -> 0 | N63: =N46-N60-N61 -> 0 | O63: 0 | P63: 0 | Q63: 0 | R63: 0 | S63: 0 | T63: 0 | U63: 0 | V63: 0 | W63: 0 | X63: 0 | Y63: 0 | Z63: 0 | AA63: 0 | AB63: 0 | AC63: 0 | AD63: 0 | AE63: 0 | AF63: 0 | AG63: 0 | AH63: 0 | AI63: 0 | AJ63: 0 | AK63: 4170.24 | AL63: 4239.36 | AM63: 4170.24 | AN63: 4239.36 | AO63: 4193.28 | AP63: 4119.36 | AQ63: 4170.24 | AR63: 4239.36 | AS63: 4170.24 | AT63: 4239.36 | AU63: 4170.24 | AV63: 4119.36 | AW63: 4193.28 | AX63: 4239.36 | AY63: 4170.24 | AZ63: 4239.36 | BA63: 4170.24 | BB63: 4119.36 | BC63: 4170.24 | BD63: 4239.36 | BE63: 4193.28 | BF63: 4239.36 | BG63: 4170.24 | BH63: 4119.36 | BI63: 4170.24 | BJ63: 4239.36 | BK63: 4170.24 | BL63: 4239.36 | BM63: 4193.28 | BN63: 4119.36 | BO63: 4170.24 | BP63: 4239.36 | BQ63: 4170.24 | BR63: 4239.36 | BS63: 4170.24 | BT63: 4119.36 | BU63: 4193.28 | BV63: 4239.36 | BW63: 4170.24 | BX63: 4239.36 | BY63: 4170.24 | BZ63: =BZ46-BZ60-BZ61 -> 4119.36 | CA63: 4170.24 | CB63: 4239.36 | CC63: 4193.28 | CD63: 4239.36 | CE63: 4170.24 | CF63: 4119.36 | CG63: 4170.24 | CH63: 4239.36 | CI63: 4170.24 | CJ63: 4239.36 | CK63: 4193.28 | CL63: 4119.36 | CM63: 4170.24 | CN63: 4239.36 | CO63: 4170.24 | CP63: 4239.36 | CQ63: 4170.24 | CR63: 4119.36 | CS63: 0 | CT63: 0 | CU63: 0 | CV63: 0 | CW63: 0 | CX63: 0 | CY63: 0 | CZ63: 0 | DA63: 0 | DB63: 0 | DC63: 0 | DD63: 0 | DE63: 0 | DF63: 0 | DG63: 0 | DH63: 0
C65: Opening Balance | F65: Hrs | M65: =L67 -> 0 | N65: =M67 -> 0 | O65: 0 | P65: 0 | Q65: 0 | R65: 0 | S65: 0 | T65: 0 | U65: 0 | V65: 0 | W65: 0 | X65: 0 | Y65: 0 | Z65: 0 | AA65: 0 | AB65: 0 | AC65: 0 | AD65: 0 | AE65: 0 | AF65: 0 | AG65: 0 | AH65: 0 | AI65: 0 | AJ65: 0 | AK65: 0 | AL65: 4170.24 | AM65: 8409.6 | AN65: 12579.84 | AO65: 16819.2 | AP65: 21012.48 | AQ65: 0 | AR65: 4170.24 | AS65: 8409.6 | AT65: 12579.84 | AU65: 16819.2 | AV65: 20989.44 | AW65: 0 | AX65: 4193.28 | AY65: 8432.64 | AZ65: 12602.88 | BA65: 16842.24 | BB65: 21012.48 | BC65: 0 | BD65: 4170.24 | BE65: 8409.6 | BF65: 12602.88 | BG65: 16842.24 | BH65: 21012.48 | BI65: 0 | BJ65: 4170.24 | BK65: 8409.6 | BL65: 12579.84 | BM65: 16819.2 | BN65: 21012.48 | BO65: 0 | BP65: 4170.24 | BQ65: 8409.6 | BR65: 12579.84 | BS65: 16819.2 | BT65: 20989.44 | BU65: 0 | BV65: 4193.28 | BW65: 8432.64 | BX65: 12602.88 | BY65: 16842.24 | BZ65: =BY67 -> 21012.48 | CA65: 0 | CB65: 4170.24 | CC65: 8409.6 | CD65: 12602.88 | CE65: 16842.24 | CF65: 21012.48 | CG65: 0 | CH65: 4170.24 | CI65: 8409.6 | CJ65: 12579.84 | CK65: 16819.2 | CL65: 21012.48 | CM65: 0 | CN65: 4170.24 | CO65: 8409.6 | CP65: 12579.84 | CQ65: 16819.2 | CR65: 20989.44 | CS65: 0 | CT65: 0 | CU65: 0 | CV65: 0 | CW65: 0 | CX65: 0 | CY65: 0 | CZ65: 0 | DA65: 0 | DB65: 0 | DC65: 0 | DD65: 0 | DE65: 0 | DF65: 0 | DG65: 0 | DH65: 0
C66: Add: Net Production | F66: Hrs | M66: =M63 -> 0 | N66: =N63 -> 0 | O66: 0 | P66: 0 | Q66: 0 | R66: 0 | S66: 0 | T66: 0 | U66: 0 | V66: 0 | W66: 0 | X66: 0 | Y66: 0 | Z66: 0 | AA66: 0 | AB66: 0 | AC66: 0 | AD66: 0 | AE66: 0 | AF66: 0 | AG66: 0 | AH66: 0 | AI66: 0 | AJ66: 0 | AK66: 4170.24 | AL66: 4239.36 | AM66: 4170.24 | AN66: 4239.36 | AO66: 4193.28 | AP66: 4119.36 | AQ66: 4170.24 | AR66: 4239.36 | AS66: 4170.24 | AT66: 4239.36 | AU66: 4170.24 | AV66: 4119.36 | AW66: 4193.28 | AX66: 4239.36 | AY66: 4170.24 | AZ66: 4239.36 | BA66: 4170.24 | BB66: 4119.36 | BC66: 4170.24 | BD66: 4239.36 | BE66: 4193.28 | BF66: 4239.36 | BG66: 4170.24 | BH66: 4119.36 | BI66: 4170.24 | BJ66: 4239.36 | BK66: 4170.24 | BL66: 4239.36 | BM66: 4193.28 | BN66: 4119.36 | BO66: 4170.24 | BP66: 4239.36 | BQ66: 4170.24 | BR66: 4239.36 | BS66: 4170.24 | BT66: 4119.36 | BU66: 4193.28 | BV66: 4239.36 | BW66: 4170.24 | BX66: 4239.36 | BY66: 4170.24 | BZ66: =BZ63 -> 4119.36 | CA66: 4170.24 | CB66: 4239.36 | CC66: 4193.28 | CD66: 4239.36 | CE66: 4170.24 | CF66: 4119.36 | CG66: 4170.24 | CH66: 4239.36 | CI66: 4170.24 | CJ66: 4239.36 | CK66: 4193.28 | CL66: 4119.36 | CM66: 4170.24 | CN66: 4239.36 | CO66: 4170.24 | CP66: 4239.36 | CQ66: 4170.24 | CR66: 4119.36 | CS66: 0 | CT66: 0 | CU66: 0 | CV66: 0 | CW66: 0 | CX66: 0 | CY66: 0 | CZ66: 0 | DA66: 0 | DB66: 0 | DC66: 0 | DD66: 0 | DE66: 0 | DF66: 0 | DG66: 0 | DH66: 0
C67: Closing Balance | F67: Hrs | M67: =IF(M55,0,M65+M66) -> 0 | N67: =IF(N55,0,N65+N66) -> 0 | O67: 0 | P67: 0 | Q67: 0 | R67: 0 | S67: 0 | T67: 0 | U67: 0 | V67: 0 | W67: 0 | X67: 0 | Y67: 0 | Z67: 0 | AA67: 0 | AB67: 0 | AC67: 0 | AD67: 0 | AE67: 0 | AF67: 0 | AG67: 0 | AH67: 0 | AI67: 0 | AJ67: 0 | AK67: 4170.24 | AL67: 8409.6 | AM67: 12579.84 | AN67: 16819.2 | AO67: 21012.48 | AP67: 0 | AQ67: 4170.24 | AR67: 8409.6 | AS67: 12579.84 | AT67: 16819.2 | AU67: 20989.44 | AV67: 0 | AW67: 4193.28 | AX67: 8432.64 | AY67: 12602.88 | AZ67: 16842.24 | BA67: 21012.48 | BB67: 0 | BC67: 4170.24 | BD67: 8409.6 | BE67: 12602.88 | BF67: 16842.24 | BG67: 21012.48 | BH67: 0 | BI67: 4170.24 | BJ67: 8409.6 | BK67: 12579.84 | BL67: 16819.2 | BM67: 21012.48 | BN67: 0 | BO67: 4170.24 | BP67: 8409.6 | BQ67: 12579.84 | BR67: 16819.2 | BS67: 20989.44 | BT67: 0 | BU67: 4193.28 | BV67: 8432.64 | BW67: 12602.88 | BX67: 16842.24 | BY67: 21012.48 | BZ67: =IF(BZ55,0,BZ65+BZ66) -> 0 | CA67: 4170.24 | CB67: 8409.6 | CC67: 12602.88 | CD67: 16842.24 | CE67: 21012.48 | CF67: 0 | CG67: 4170.24 | CH67: 8409.6 | CI67: 12579.84 | CJ67: 16819.2 | CK67: 21012.48 | CL67: 0 | CM67: 4170.24 | CN67: 8409.6 | CO67: 12579.84 | CP67: 16819.2 | CQ67: 20989.44 | CR67: 0 | CS67: 0 | CT67: 0 | CU67: 0 | CV67: 0 | CW67: 0 | CX67: 0 | CY67: 0 | CZ67: 0 | DA67: 0 | DB67: 0 | DC67: 0 | DD67: 0 | DE67: 0 | DF67: 0 | DG67: 0 | DH67: 0
B69: Depot maintenance overhaul of hot section
C70: Depot maintenance of hot section number | F70: Number | G70: Hrs | H70: ='Assumptions - Technology'!G37 -> 50000 | M70: =$H$70 -> 50000 | N70: =$H$70 -> 50000 | O70: 50000 | P70: 50000 | Q70: 50000 | R70: 50000 | S70: 50000 | T70: 50000 | U70: 50000 | V70: 50000 | W70: 50000 | X70: 50000 | Y70: 50000 | Z70: 50000 | AA70: 50000 | AB70: 50000 | AC70: 50000 | AD70: 50000 | AE70: 50000 | AF70: 50000 | AG70: 50000 | AH70: 50000 | AI70: 50000 | AJ70: 50000 | AK70: 50000 | AL70: 50000 | AM70: 50000 | AN70: 50000 | AO70: 50000 | AP70: 50000 | AQ70: 50000 | AR70: 50000 | AS70: 50000 | AT70: 50000 | AU70: 50000 | AV70: 50000 | AW70: 50000 | AX70: 50000 | AY70: 50000 | AZ70: 50000 | BA70: 50000 | BB70: 50000 | BC70: 50000 | BD70: 50000 | BE70: 50000 | BF70: 50000 | BG70: 50000 | BH70: 50000 | BI70: 50000 | BJ70: 50000 | BK70: 50000 | BL70: 50000 | BM70: 50000 | BN70: 50000 | BO70: 50000 | BP70: 50000 | BQ70: 50000 | BR70: 50000 | BS70: 50000 | BT70: 50000 | BU70: 50000 | BV70: 50000 | BW70: 50000 | BX70: 50000 | BY70: 50000 | BZ70: =$H$70 -> 50000 | CA70: 50000 | CB70: 50000 | CC70: 50000 | CD70: 50000 | CE70: 50000 | CF70: 50000 | CG70: 50000 | CH70: 50000 | CI70: 50000 | CJ70: 50000 | CK70: 50000 | CL70: 50000 | CM70: 50000 | CN70: 50000 | CO70: 50000 | CP70: 50000 | CQ70: 50000 | CR70: 50000 | CS70: 50000 | CT70: 50000 | CU70: 50000 | CV70: 50000 | CW70: 50000 | CX70: 50000 | CY70: 50000 | CZ70: 50000 | DA70: 50000 | DB70: 50000 | DC70: 50000 | DD70: 50000 | DE70: 50000 | DF70: 50000 | DG70: 50000 | DH70: 50000
C71: Opening Balance of Hour Count - Depot | M71: =M85 -> 0 | N71: =N85 -> 0 | O71: 0 | P71: 0 | Q71: 0 | R71: 0 | S71: 0 | T71: 0 | U71: 0 | V71: 0 | W71: 0 | X71: 0 | Y71: 0 | Z71: 0 | AA71: 0 | AB71: 0 | AC71: 0 | AD71: 0 | AE71: 0 | AF71: 0 | AG71: 0 | AH71: 0 | AI71: 0 | AJ71: 0 | AK71: 0 | AL71: 4170.24 | AM71: 8409.6 | AN71: 12579.84 | AO71: 16819.2 | AP71: 21012.48 | AQ71: 25131.84 | AR71: 29302.08 | AS71: 33541.44 | AT71: 37711.68 | AU71: 41951.04 | AV71: 46121.28 | AW71: 0 | AX71: 4130.56 | AY71: 8369.92 | AZ71: 12540.16 | BA71: 16779.52 | BB71: 20949.76 | BC71: 25069.12 | BD71: 29239.36 | BE71: 33478.72 | BF71: 37672 | BG71: 41911.36 | BH71: 46081.6 | BI71: 0 | BJ71: 4067.84 | BK71: 8307.2 | BL71: 12477.44 | BM71: 16716.8 | BN71: 20910.08 | BO71: 25029.44 | BP71: 29199.68 | BQ71: 33439.04 | BR71: 37609.28 | BS71: 41848.64 | BT71: 46018.88 | BU71: 0 | BV71: 4028.16 | BW71: 8267.52 | BX71: 12437.76 | BY71: 16677.12 | BZ71: =BZ85 -> 20847.36 | CA71: 24966.72 | CB71: 29136.96 | CC71: 33376.32 | CD71: 37569.6 | CE71: 41808.96 | CF71: 45979.2 | CG71: 0 | CH71: 3965.44 | CI71: 8204.8 | CJ71: 12375.04 | CK71: 16614.4 | CL71: 20807.68 | CM71: 24927.04 | CN71: 29097.28 | CO71: 33336.64 | CP71: 37506.88 | CQ71: 41746.24 | CR71: 45916.48 | CS71: 0 | CT71: -267.52 | CU71: -267.52 | CV71: -267.52 | CW71: -267.52 | CX71: -267.52 | CY71: -267.52 | CZ71: -267.52 | DA71: -267.52 | DB71: -267.52 | DC71: -267.52 | DD71: -267.52 | DE71: -267.52 | DF71: -267.52 | DG71: -267.52 | DH71: -267.52
C72: Total of Opening Balance and Production | M72: =M63+M71 -> 0 | N72: =N63+N71 -> 0 | O72: 0 | P72: 0 | Q72: 0 | R72: 0 | S72: 0 | T72: 0 | U72: 0 | V72: 0 | W72: 0 | X72: 0 | Y72: 0 | Z72: 0 | AA72: 0 | AB72: 0 | AC72: 0 | AD72: 0 | AE72: 0 | AF72: 0 | AG72: 0 | AH72: 0 | AI72: 0 | AJ72: 0 | AK72: 4170.24 | AL72: 8409.6 | AM72: 12579.84 | AN72: 16819.2 | AO72: 21012.48 | AP72: 25131.84 | AQ72: 29302.08 | AR72: 33541.44 | AS72: 37711.68 | AT72: 41951.04 | AU72: 46121.28 | AV72: 50240.64 | AW72: 4193.28 | AX72: 8369.92 | AY72: 12540.16 | AZ72: 16779.52 | BA72: 20949.76 | BB72: 25069.12 | BC72: 29239.36 | BD72: 33478.72 | BE72: 37672 | BF72: 41911.36 | BG72: 46081.6 | BH72: 50200.96 | BI72: 4170.24 | BJ72: 8307.2 | BK72: 12477.44 | BL72: 16716.8 | BM72: 20910.08 | BN72: 25029.44 | BO72: 29199.68 | BP72: 33439.04 | BQ72: 37609.28 | BR72: 41848.64 | BS72: 46018.88 | BT72: 50138.24 | BU72: 4193.28 | BV72: 8267.52 | BW72: 12437.76 | BX72: 16677.12 | BY72: 20847.36 | BZ72: =BZ63+BZ71 -> 24966.72 | CA72: 29136.96 | CB72: 33376.32 | CC72: 37569.6 | CD72: 41808.96 | CE72: 45979.2 | CF72: 50098.56 | CG72: 4170.24 | CH72: 8204.8 | CI72: 12375.04 | CJ72: 16614.4 | CK72: 20807.68 | CL72: 24927.04 | CM72: 29097.28 | CN72: 33336.64 | CO72: 37506.88 | CP72: 41746.24 | CQ72: 45916.48 | CR72: 50035.84 | CS72: 0 | CT72: -267.52 | CU72: -267.52 | CV72: -267.52 | CW72: -267.52 | CX72: -267.52 | CY72: -267.52 | CZ72: -267.52 | DA72: -267.52 | DB72: -267.52 | DC72: -267.52 | DD72: -267.52 | DE72: -267.52 | DF72: -267.52 | DG72: -267.52 | DH72: -267.52
C73: Maximum Limit Test with MIN Function | M73: =MIN(M72,M70) -> 0 | N73: =MIN(N72,N70) -> 0 | O73: 0 | P73: 0 | Q73: 0 | R73: 0 | S73: 0 | T73: 0 | U73: 0 | V73: 0 | W73: 0 | X73: 0 | Y73: 0 | Z73: 0 | AA73: 0 | AB73: 0 | AC73: 0 | AD73: 0 | AE73: 0 | AF73: 0 | AG73: 0 | AH73: 0 | AI73: 0 | AJ73: 0 | AK73: 4170.24 | AL73: 8409.6 | AM73: 12579.84 | AN73: 16819.2 | AO73: 21012.48 | AP73: 25131.84 | AQ73: 29302.08 | AR73: 33541.44 | AS73: 37711.68 | AT73: 41951.04 | AU73: 46121.28 | AV73: 50000 | AW73: 4193.28 | AX73: 8369.92 | AY73: 12540.16 | AZ73: 16779.52 | BA73: 20949.76 | BB73: 25069.12 | BC73: 29239.36 | BD73: 33478.72 | BE73: 37672 | BF73: 41911.36 | BG73: 46081.6 | BH73: 50000 | BI73: 4170.24 | BJ73: 8307.2 | BK73: 12477.44 | BL73: 16716.8 | BM73: 20910.08 | BN73: 25029.44 | BO73: 29199.68 | BP73: 33439.04 | BQ73: 37609.28 | BR73: 41848.64 | BS73: 46018.88 | BT73: 50000 | BU73: 4193.28 | BV73: 8267.52 | BW73: 12437.76 | BX73: 16677.12 | BY73: 20847.36 | BZ73: =MIN(BZ72,BZ70) -> 24966.72 | CA73: 29136.96 | CB73: 33376.32 | CC73: 37569.6 | CD73: 41808.96 | CE73: 45979.2 | CF73: 50000 | CG73: 4170.24 | CH73: 8204.8 | CI73: 12375.04 | CJ73: 16614.4 | CK73: 20807.68 | CL73: 24927.04 | CM73: 29097.28 | CN73: 33336.64 | CO73: 37506.88 | CP73: 41746.24 | CQ73: 45916.48 | CR73: 50000 | CS73: 0 | CT73: -267.52 | CU73: -267.52 | CV73: -267.52 | CW73: -267.52 | CX73: -267.52 | CY73: -267.52 | CZ73: -267.52 | DA73: -267.52 | DB73: -267.52 | DC73: -267.52 | DD73: -267.52 | DE73: -267.52 | DF73: -267.52 | DG73: -267.52 | DH73: -267.52
C75: On-site hot section replacement switch | M75: =AND(M73=M70,M11) -> FALSE | N75: FALSE | O75: FALSE | P75: FALSE | Q75: FALSE | R75: FALSE | S75: FALSE | T75: FALSE | U75: FALSE | V75: FALSE | W75: FALSE | X75: FALSE | Y75: FALSE | Z75: FALSE | AA75: FALSE | AB75: FALSE | AC75: FALSE | AD75: FALSE | AE75: FALSE | AF75: FALSE | AG75: FALSE | AH75: FALSE | AI75: FALSE | AJ75: FALSE | AK75: FALSE | AL75: FALSE | AM75: FALSE | AN75: FALSE | AO75: FALSE | AP75: FALSE | AQ75: FALSE | AR75: FALSE | AS75: =AND(AS73=AS70,AS11) -> FALSE | AT75: FALSE | AU75: FALSE | AV75: TRUE | AW75: FALSE | AX75: FALSE | AY75: FALSE | AZ75: FALSE | BA75: FALSE | BB75: FALSE | BC75: FALSE | BD75: FALSE | BE75: FALSE | BF75: FALSE | BG75: FALSE | BH75: TRUE | BI75: FALSE | BJ75: FALSE | BK75: FALSE | BL75: FALSE | BM75: FALSE | BN75: FALSE | BO75: FALSE | BP75: FALSE | BQ75: FALSE | BR75: FALSE | BS75: FALSE | BT75: TRUE | BU75: FALSE | BV75: FALSE | BW75: FALSE | BX75: FALSE | BY75: =AND(BY73=BY70,BY11) -> FALSE | BZ75: FALSE | CA75: FALSE | CB75: FALSE | CC75: FALSE | CD75: FALSE | CE75: FALSE | CF75: TRUE | CG75: FALSE | CH75: FALSE | CI75: FALSE | CJ75: FALSE | CK75: FALSE | CL75: FALSE | CM75: FALSE | CN75: FALSE | CO75: FALSE | CP75: FALSE | CQ75: FALSE | CR75: TRUE | CS75: FALSE | CT75: FALSE | CU75: FALSE | CV75: FALSE | CW75: FALSE | CX75: FALSE | CY75: FALSE | CZ75: FALSE | DA75: FALSE | DB75: FALSE | DC75: FALSE | DD75: FALSE | DE75: FALSE | DF75: FALSE | DG75: FALSE | DH75: FALSE
C77: Required Maintenance Hours | F77: Hrs | H77: ='Assumptions - Technology'!G43*24 -> 480 | M77: =$H$77*M75 -> 0 | N77: =$H$77*N75 -> 0 | O77: 0 | P77: 0 | Q77: 0 | R77: 0 | S77: 0 | T77: 0 | U77: 0 | V77: 0 | W77: 0 | X77: 0 | Y77: 0 | Z77: 0 | AA77: 0 | AB77: 0 | AC77: 0 | AD77: 0 | AE77: 0 | AF77: 0 | AG77: 0 | AH77: 0 | AI77: 0 | AJ77: 0 | AK77: 0 | AL77: 0 | AM77: 0 | AN77: 0 | AO77: 0 | AP77: 0 | AQ77: 0 | AR77: 0 | AS77: 0 | AT77: 0 | AU77: 0 | AV77: 480 | AW77: 0 | AX77: 0 | AY77: 0 | AZ77: 0 | BA77: 0 | BB77: 0 | BC77: 0 | BD77: 0 | BE77: 0 | BF77: 0 | BG77: 0 | BH77: 480 | BI77: 0 | BJ77: 0 | BK77: 0 | BL77: 0 | BM77: 0 | BN77: 0 | BO77: 0 | BP77: 0 | BQ77: 0 | BR77: 0 | BS77: 0 | BT77: 480 | BU77: 0 | BV77: 0 | BW77: 0 | BX77: 0 | BY77: 0 | BZ77: =$H$77*BZ75 -> 0 | CA77: 0 | CB77: 0 | CC77: 0 | CD77: 0 | CE77: 0 | CF77: 480 | CG77: 0 | CH77: 0 | CI77: 0 | CJ77: 0 | CK77: 0 | CL77: 0 | CM77: 0 | CN77: 0 | CO77: 0 | CP77: 0 | CQ77: 0 | CR77: 480 | CS77: 0 | CT77: 0 | CU77: 0 | CV77: 0 | CW77: 0 | CX77: 0 | CY77: 0 | CZ77: 0 | DA77: 0 | DB77: 0 | DC77: 0 | DD77: 0 | DE77: 0 | DF77: 0 | DG77: 0 | DH77: 0
C78: Production in Initial Part of Period | M78: =M75*(M73-M71) -> 0 | N78: =N75*(N73-N71) -> 0 | O78: 0 | P78: 0 | Q78: 0 | R78: 0 | S78: 0 | T78: 0 | U78: 0 | V78: 0 | W78: 0 | X78: 0 | Y78: 0 | Z78: 0 | AA78: 0 | AB78: 0 | AC78: 0 | AD78: 0 | AE78: 0 | AF78: 0 | AG78: 0 | AH78: 0 | AI78: 0 | AJ78: 0 | AK78: 0 | AL78: 0 | AM78: 0 | AN78: 0 | AO78: 0 | AP78: 0 | AQ78: 0 | AR78: 0 | AS78: 0 | AT78: 0 | AU78: 0 | AV78: 3878.72 | AW78: 0 | AX78: 0 | AY78: 0 | AZ78: 0 | BA78: 0 | BB78: 0 | BC78: 0 | BD78: 0 | BE78: 0 | BF78: 0 | BG78: 0 | BH78: 3918.4 | BI78: 0 | BJ78: 0 | BK78: 0 | BL78: 0 | BM78: 0 | BN78: 0 | BO78: 0 | BP78: 0 | BQ78: 0 | BR78: 0 | BS78: 0 | BT78: 3981.12 | BU78: 0 | BV78: 0 | BW78: 0 | BX78: 0 | BY78: 0 | BZ78: =BZ75*(BZ73-BZ71) -> 0 | CA78: 0 | CB78: 0 | CC78: 0 | CD78: 0 | CE78: 0 | CF78: 4020.8 | CG78: 0 | CH78: 0 | CI78: 0 | CJ78: 0 | CK78: 0 | CL78: 0 | CM78: 0 | CN78: 0 | CO78: 0 | CP78: 0 | CQ78: 0 | CR78: 4083.52 | CS78: 0 | CT78: 0 | CU78: 0 | CV78: 0 | CW78: 0 | CX78: 0 | CY78: 0 | CZ78: 0 | DA78: 0 | DB78: 0 | DC78: 0 | DD78: 0 | DE78: 0 | DF78: 0 | DG78: 0 | DH78: 0
C79: Hours Available for Maintenance | M79: =(M40-M78-M60-M61)*M75 -> 0 | N79: =(N40-N78-N60-N61)*N75 -> 0 | O79: 0 | P79: 0 | Q79: 0 | R79: 0 | S79: 0 | T79: 0 | U79: 0 | V79: 0 | W79: 0 | X79: 0 | Y79: 0 | Z79: 0 | AA79: 0 | AB79: 0 | AC79: 0 | AD79: 0 | AE79: 0 | AF79: 0 | AG79: 0 | AH79: 0 | AI79: 0 | AJ79: 0 | AK79: 0 | AL79: 0 | AM79: 0 | AN79: 0 | AO79: 0 | AP79: 0 | AQ79: 0 | AR79: 0 | AS79: 0 | AT79: 0 | AU79: 0 | AV79: 417.28 | AW79: 0 | AX79: 0 | AY79: 0 | AZ79: 0 | BA79: 0 | BB79: 0 | BC79: 0 | BD79: 0 | BE79: 0 | BF79: 0 | BG79: 0 | BH79: 377.6 | BI79: 0 | BJ79: 0 | BK79: 0 | BL79: 0 | BM79: 0 | BN79: 0 | BO79: 0 | BP79: 0 | BQ79: 0 | BR79: 0 | BS79: 0 | BT79: 314.88 | BU79: 0 | BV79: 0 | BW79: 0 | BX79: 0 | BY79: 0 | BZ79: =(BZ40-BZ78-BZ60-BZ61)*BZ75 -> 0 | CA79: 0 | CB79: 0 | CC79: 0 | CD79: 0 | CE79: 0 | CF79: 275.2 | CG79: 0 | CH79: 0 | CI79: 0 | CJ79: 0 | CK79: 0 | CL79: 0 | CM79: 0 | CN79: 0 | CO79: 0 | CP79: 0 | CQ79: 0 | CR79: 212.48 | CS79: 0 | CT79: 0 | CU79: 0 | CV79: 0 | CW79: 0 | CX79: 0 | CY79: 0 | CZ79: 0 | DA79: 0 | DB79: 0 | DC79: 0 | DD79: 0 | DE79: 0 | DF79: 0 | DG79: 0 | DH79: 0
C80: Maintenance this Period | H80: =H77 -> 480 | M80: =MIN($H$80,M79)*M75 -> 0 | N80: =MIN($H$80,N79)*N75 -> 0 | O80: 0 | P80: 0 | Q80: 0 | R80: 0 | S80: 0 | T80: 0 | U80: 0 | V80: 0 | W80: 0 | X80: 0 | Y80: 0 | Z80: 0 | AA80: 0 | AB80: 0 | AC80: 0 | AD80: 0 | AE80: 0 | AF80: 0 | AG80: 0 | AH80: 0 | AI80: 0 | AJ80: 0 | AK80: 0 | AL80: 0 | AM80: 0 | AN80: 0 | AO80: 0 | AP80: 0 | AQ80: 0 | AR80: 0 | AS80: 0 | AT80: 0 | AU80: 0 | AV80: 417.28 | AW80: 0 | AX80: 0 | AY80: 0 | AZ80: 0 | BA80: 0 | BB80: 0 | BC80: 0 | BD80: 0 | BE80: 0 | BF80: 0 | BG80: 0 | BH80: 377.6 | BI80: 0 | BJ80: 0 | BK80: 0 | BL80: 0 | BM80: 0 | BN80: 0 | BO80: 0 | BP80: 0 | BQ80: 0 | BR80: 0 | BS80: 0 | BT80: 314.88 | BU80: 0 | BV80: 0 | BW80: 0 | BX80: 0 | BY80: 0 | BZ80: =MIN($H$80,BZ79)*BZ75 -> 0 | CA80: 0 | CB80: 0 | CC80: 0 | CD80: 0 | CE80: 0 | CF80: 275.2 | CG80: 0 | CH80: 0 | CI80: 0 | CJ80: 0 | CK80: 0 | CL80: 0 | CM80: 0 | CN80: 0 | CO80: 0 | CP80: 0 | CQ80: 0 | CR80: 212.48 | CS80: 0 | CT80: 0 | CU80: 0 | CV80: 0 | CW80: 0 | CX80: 0 | CY80: 0 | CZ80: 0 | DA80: 0 | DB80: 0 | DC80: 0 | DD80: 0 | DE80: 0 | DF80: 0 | DG80: 0 | DH80: 0
C81: Maintenance Carried Forward | N81: =($H$80-M80)*M75 -> 0 | O81: =($H$80-N80)*N75 -> 0 | P81: 0 | Q81: 0 | R81: 0 | S81: 0 | T81: 0 | U81: 0 | V81: 0 | W81: 0 | X81: 0 | Y81: 0 | Z81: 0 | AA81: 0 | AB81: 0 | AC81: 0 | AD81: 0 | AE81: 0 | AF81: 0 | AG81: 0 | AH81: 0 | AI81: 0 | AJ81: 0 | AK81: 0 | AL81: 0 | AM81: 0 | AN81: 0 | AO81: 0 | AP81: 0 | AQ81: 0 | AR81: 0 | AS81: 0 | AT81: 0 | AU81: 0 | AV81: 0 | AW81: 62.72 | AX81: 0 | AY81: 0 | AZ81: 0 | BA81: 0 | BB81: 0 | BC81: 0 | BD81: 0 | BE81: 0 | BF81: 0 | BG81: 0 | BH81: 0 | BI81: 102.4 | BJ81: 0 | BK81: 0 | BL81: 0 | BM81: 0 | BN81: 0 | BO81: 0 | BP81: 0 | BQ81: 0 | BR81: 0 | BS81: 0 | BT81: 0 | BU81: 165.12 | BV81: 0 | BW81: 0 | BX81: 0 | BY81: 0 | BZ81: 0 | CA81: =($H$80-BZ80)*BZ75 -> 0 | CB81: 0 | CC81: 0 | CD81: 0 | CE81: 0 | CF81: 0 | CG81: 204.8 | CH81: 0 | CI81: 0 | CJ81: 0 | CK81: 0 | CL81: 0 | CM81: 0 | CN81: 0 | CO81: 0 | CP81: 0 | CQ81: 0 | CR81: 0 | CS81: 267.52 | CT81: 0 | CU81: 0 | CV81: 0 | CW81: 0 | CX81: 0 | CY81: 0 | CZ81: 0 | DA81: 0 | DB81: 0 | DC81: 0 | DD81: 0 | DE81: 0 | DF81: 0 | DG81: 0 | DH81: 0
C83: Net Production | M83: =M63-M80-M81 -> 0 | N83: =N63-N80-N81 -> 0 | O83: 0 | P83: 0 | Q83: 0 | R83: 0 | S83: 0 | T83: 0 | U83: 0 | V83: 0 | W83: 0 | X83: 0 | Y83: 0 | Z83: 0 | AA83: 0 | AB83: 0 | AC83: 0 | AD83: 0 | AE83: 0 | AF83: 0 | AG83: 0 | AH83: 0 | AI83: 0 | AJ83: 0 | AK83: 4170.24 | AL83: 4239.36 | AM83: 4170.24 | AN83: 4239.36 | AO83: 4193.28 | AP83: 4119.36 | AQ83: 4170.24 | AR83: 4239.36 | AS83: 4170.24 | AT83: 4239.36 | AU83: 4170.24 | AV83: 3702.08 | AW83: 4130.56 | AX83: 4239.36 | AY83: 4170.24 | AZ83: 4239.36 | BA83: 4170.24 | BB83: 4119.36 | BC83: 4170.24 | BD83: 4239.36 | BE83: 4193.28 | BF83: 4239.36 | BG83: 4170.24 | BH83: 3741.76 | BI83: 4067.84 | BJ83: 4239.36 | BK83: 4170.24 | BL83: 4239.36 | BM83: 4193.28 | BN83: 4119.36 | BO83: 4170.24 | BP83: 4239.36 | BQ83: 4170.24 | BR83: 4239.36 | BS83: 4170.24 | BT83: 3804.48 | BU83: 4028.16 | BV83: 4239.36 | BW83: 4170.24 | BX83: 4239.36 | BY83: 4170.24 | BZ83: =BZ63-BZ80-BZ81 -> 4119.36 | CA83: 4170.24 | CB83: 4239.36 | CC83: 4193.28 | CD83: 4239.36 | CE83: 4170.24 | CF83: 3844.16 | CG83: 3965.44 | CH83: 4239.36 | CI83: 4170.24 | CJ83: 4239.36 | CK83: 4193.28 | CL83: 4119.36 | CM83: 4170.24 | CN83: 4239.36 | CO83: 4170.24 | CP83: 4239.36 | CQ83: 4170.24 | CR83: 3906.88 | CS83: -267.52 | CT83: 0 | CU83: 0 | CV83: 0 | CW83: 0 | CX83: 0 | CY83: 0 | CZ83: 0 | DA83: 0 | DB83: 0 | DC83: 0 | DD83: 0 | DE83: 0 | DF83: 0 | DG83: 0 | DH83: 0
C85: Opening Balance | M85: =L87 -> 0 | N85: =M87 -> 0 | O85: 0 | P85: 0 | Q85: 0 | R85: 0 | S85: 0 | T85: 0 | U85: 0 | V85: 0 | W85: 0 | X85: 0 | Y85: 0 | Z85: 0 | AA85: 0 | AB85: 0 | AC85: 0 | AD85: 0 | AE85: 0 | AF85: 0 | AG85: 0 | AH85: 0 | AI85: 0 | AJ85: 0 | AK85: 0 | AL85: 4170.24 | AM85: 8409.6 | AN85: 12579.84 | AO85: 16819.2 | AP85: 21012.48 | AQ85: 25131.84 | AR85: 29302.08 | AS85: 33541.44 | AT85: 37711.68 | AU85: 41951.04 | AV85: 46121.28 | AW85: 0 | AX85: 4130.56 | AY85: 8369.92 | AZ85: 12540.16 | BA85: 16779.52 | BB85: 20949.76 | BC85: 25069.12 | BD85: 29239.36 | BE85: 33478.72 | BF85: 37672 | BG85: 41911.36 | BH85: 46081.6 | BI85: 0 | BJ85: 4067.84 | BK85: 8307.2 | BL85: 12477.44 | BM85: 16716.8 | BN85: 20910.08 | BO85: 25029.44 | BP85: 29199.68 | BQ85: 33439.04 | BR85: 37609.28 | BS85: 41848.64 | BT85: 46018.88 | BU85: 0 | BV85: 4028.16 | BW85: 8267.52 | BX85: 12437.76 | BY85: 16677.12 | BZ85: =BY87 -> 20847.36 | CA85: 24966.72 | CB85: 29136.96 | CC85: 33376.32 | CD85: 37569.6 | CE85: 41808.96 | CF85: 45979.2 | CG85: 0 | CH85: 3965.44 | CI85: 8204.8 | CJ85: 12375.04 | CK85: 16614.4 | CL85: 20807.68 | CM85: 24927.04 | CN85: 29097.28 | CO85: 33336.64 | CP85: 37506.88 | CQ85: 41746.24 | CR85: 45916.48 | CS85: 0 | CT85: -267.52 | CU85: -267.52 | CV85: -267.52 | CW85: -267.52 | CX85: -267.52 | CY85: -267.52 | CZ85: -267.52 | DA85: -267.52 | DB85: -267.52 | DC85: -267.52 | DD85: -267.52 | DE85: -267.52 | DF85: -267.52 | DG85: -267.52 | DH85: -267.52
C86: Add: Net Production | M86: =M83 -> 0 | N86: =N83 -> 0 | O86: 0 | P86: 0 | Q86: 0 | R86: 0 | S86: 0 | T86: 0 | U86: 0 | V86: 0 | W86: 0 | X86: 0 | Y86: 0 | Z86: 0 | AA86: 0 | AB86: 0 | AC86: 0 | AD86: 0 | AE86: 0 | AF86: 0 | AG86: 0 | AH86: 0 | AI86: 0 | AJ86: 0 | AK86: 4170.24 | AL86: 4239.36 | AM86: 4170.24 | AN86: 4239.36 | AO86: 4193.28 | AP86: 4119.36 | AQ86: 4170.24 | AR86: 4239.36 | AS86: 4170.24 | AT86: 4239.36 | AU86: 4170.24 | AV86: 3702.08 | AW86: 4130.56 | AX86: 4239.36 | AY86: 4170.24 | AZ86: 4239.36 | BA86: 4170.24 | BB86: 4119.36 | BC86: 4170.24 | BD86: 4239.36 | BE86: 4193.28 | BF86: 4239.36 | BG86: 4170.24 | BH86: 3741.76 | BI86: 4067.84 | BJ86: 4239.36 | BK86: 4170.24 | BL86: 4239.36 | BM86: 4193.28 | BN86: 4119.36 | BO86: 4170.24 | BP86: 4239.36 | BQ86: 4170.24 | BR86: 4239.36 | BS86: 4170.24 | BT86: 3804.48 | BU86: 4028.16 | BV86: 4239.36 | BW86: 4170.24 | BX86: 4239.36 | BY86: 4170.24 | BZ86: =BZ83 -> 4119.36 | CA86: 4170.24 | CB86: 4239.36 | CC86: 4193.28 | CD86: 4239.36 | CE86: 4170.24 | CF86: 3844.16 | CG86: 3965.44 | CH86: 4239.36 | CI86: 4170.24 | CJ86: 4239.36 | CK86: 4193.28 | CL86: 4119.36 | CM86: 4170.24 | CN86: 4239.36 | CO86: 4170.24 | CP86: 4239.36 | CQ86: 4170.24 | CR86: 3906.88 | CS86: -267.52 | CT86: 0 | CU86: 0 | CV86: 0 | CW86: 0 | CX86: 0 | CY86: 0 | CZ86: 0 | DA86: 0 | DB86: 0 | DC86: 0 | DD86: 0 | DE86: 0 | DF86: 0 | DG86: 0 | DH86: 0
C87: Closing Balance | M87: =IF(M75,0,M85+M86) -> 0 | N87: =IF(N75,0,N85+N86) -> 0 | O87: 0 | P87: 0 | Q87: 0 | R87: 0 | S87: 0 | T87: 0 | U87: 0 | V87: 0 | W87: 0 | X87: 0 | Y87: 0 | Z87: 0 | AA87: 0 | AB87: 0 | AC87: 0 | AD87: 0 | AE87: 0 | AF87: 0 | AG87: 0 | AH87: 0 | AI87: 0 | AJ87: 0 | AK87: 4170.24 | AL87: 8409.6 | AM87: 12579.84 | AN87: 16819.2 | AO87: 21012.48 | AP87: 25131.84 | AQ87: 29302.08 | AR87: 33541.44 | AS87: 37711.68 | AT87: 41951.04 | AU87: 46121.28 | AV87: 0 | AW87: 4130.56 | AX87: 8369.92 | AY87: 12540.16 | AZ87: 16779.52 | BA87: 20949.76 | BB87: 25069.12 | BC87: 29239.36 | BD87: 33478.72 | BE87: 37672 | BF87: 41911.36 | BG87: 46081.6 | BH87: 0 | BI87: 4067.84 | BJ87: 8307.2 | BK87: 12477.44 | BL87: 16716.8 | BM87: 20910.08 | BN87: 25029.44 | BO87: 29199.68 | BP87: 33439.04 | BQ87: 37609.28 | BR87: 41848.64 | BS87: 46018.88 | BT87: 0 | BU87: 4028.16 | BV87: 8267.52 | BW87: 12437.76 | BX87: 16677.12 | BY87: 20847.36 | BZ87: =IF(BZ75,0,BZ85+BZ86) -> 24966.72 | CA87: 29136.96 | CB87: 33376.32 | CC87: 37569.6 | CD87: 41808.96 | CE87: 45979.2 | CF87: 0 | CG87: 3965.44 | CH87: 8204.8 | CI87: 12375.04 | CJ87: 16614.4 | CK87: 20807.68 | CL87: 24927.04 | CM87: 29097.28 | CN87: 33336.64 | CO87: 37506.88 | CP87: 41746.24 | CQ87: 45916.48 | CR87: 0 | CS87: -267.52 | CT87: -267.52 | CU87: -267.52 | CV87: -267.52 | CW87: -267.52 | CX87: -267.52 | CY87: -267.52 | CZ87: -267.52 | DA87: -267.52 | DB87: -267.52 | DC87: -267.52 | DD87: -267.52 | DE87: -267.52 | DF87: -267.52 | DG87: -267.52 | DH87: -267.52
B89: Net on-site hot section replacement
C90: Net on-site hot replacement number | F90: Number | G90: Hrs | H90: ='Assumptions - Technology'!H38 -> 75000 | M90: =$H$90 -> 75000 | N90: =$H$90 -> 75000 | O90: 75000 | P90: 75000 | Q90: 75000 | R90: 75000 | S90: 75000 | T90: 75000 | U90: 75000 | V90: 75000 | W90: 75000 | X90: 75000 | Y90: 75000 | Z90: 75000 | AA90: 75000 | AB90: 75000 | AC90: 75000 | AD90: 75000 | AE90: 75000 | AF90: 75000 | AG90: 75000 | AH90: 75000 | AI90: 75000 | AJ90: 75000 | AK90: 75000 | AL90: 75000 | AM90: 75000 | AN90: 75000 | AO90: 75000 | AP90: 75000 | AQ90: 75000 | AR90: 75000 | AS90: 75000 | AT90: 75000 | AU90: 75000 | AV90: 75000 | AW90: 75000 | AX90: 75000 | AY90: 75000 | AZ90: 75000 | BA90: 75000 | BB90: 75000 | BC90: 75000 | BD90: 75000 | BE90: 75000 | BF90: 75000 | BG90: 75000 | BH90: 75000 | BI90: 75000 | BJ90: 75000 | BK90: 75000 | BL90: 75000 | BM90: 75000 | BN90: 75000 | BO90: 75000 | BP90: 75000 | BQ90: 75000 | BR90: 75000 | BS90: 75000 | BT90: 75000 | BU90: 75000 | BV90: 75000 | BW90: 75000 | BX90: 75000 | BY90: 75000 | BZ90: =$H$90 -> 75000 | CA90: 75000 | CB90: 75000 | CC90: 75000 | CD90: 75000 | CE90: 75000 | CF90: 75000 | CG90: 75000 | CH90: 75000 | CI90: 75000 | CJ90: 75000 | CK90: 75000 | CL90: 75000 | CM90: 75000 | CN90: 75000 | CO90: 75000 | CP90: 75000 | CQ90: 75000 | CR90: 75000 | CS90: 75000 | CT90: 75000 | CU90: 75000 | CV90: 75000 | CW90: 75000 | CX90: 75000 | CY90: 75000 | CZ90: 75000 | DA90: 75000 | DB90: 75000 | DC90: 75000 | DD90: 75000 | DE90: 75000 | DF90: 75000 | DG90: 75000 | DH90: 75000
C91: Opening Balance of Hour Count - Depot | M91: =M105 -> 0 | N91: =N105 -> 0 | O91: 0 | P91: 0 | Q91: 0 | R91: 0 | S91: 0 | T91: 0 | U91: 0 | V91: 0 | W91: 0 | X91: 0 | Y91: 0 | Z91: 0 | AA91: 0 | AB91: 0 | AC91: 0 | AD91: 0 | AE91: 0 | AF91: 0 | AG91: 0 | AH91: 0 | AI91: 0 | AJ91: 0 | AK91: 0 | AL91: 4170.24 | AM91: 8409.6 | AN91: 12579.84 | AO91: 16819.2 | AP91: 21012.48 | AQ91: 25131.84 | AR91: 29302.08 | AS91: 33541.44 | AT91: 37711.68 | AU91: 41951.04 | AV91: 46121.28 | AW91: 49823.36 | AX91: 53953.92 | AY91: 58193.28 | AZ91: 62363.52 | BA91: 66602.88 | BB91: 70773.12 | BC91: 74892.48 | BD91: 0 | BE91: 4239.36 | BF91: 8432.64 | BG91: 12672 | BH91: 16842.24 | BI91: 20584 | BJ91: 24651.84 | BK91: 28891.2 | BL91: 33061.44 | BM91: 37300.8 | BN91: 41494.08 | BO91: 45613.44 | BP91: 49783.68 | BQ91: 54023.04 | BR91: 58193.28 | BS91: 62432.64 | BT91: 66602.88 | BU91: 70407.36 | BV91: 74435.52 | BW91: 0 | BX91: 4170.24 | BY91: 8409.6 | BZ91: =BZ105 -> 12579.84 | CA91: 16699.2 | CB91: 20869.44 | CC91: 25108.8 | CD91: 29302.08 | CE91: 33541.44 | CF91: 37711.68 | CG91: 41555.84 | CH91: 45521.28 | CI91: 49760.64 | CJ91: 53930.88 | CK91: 58170.24 | CL91: 62363.52 | CM91: 66482.88 | CN91: 70653.12 | CO91: 74892.48 | CP91: 0 | CQ91: 4239.36 | CR91: 8409.6 | CS91: 12316.48 | CT91: 12048.96 | CU91: 12048.96 | CV91: 12048.96 | CW91: 12048.96 | CX91: 12048.96 | CY91: 12048.96 | CZ91: 12048.96 | DA91: 12048.96 | DB91: 12048.96 | DC91: 12048.96 | DD91: 12048.96 | DE91: 12048.96 | DF91: 12048.96 | DG91: 12048.96 | DH91: 12048.96
C92: Total of Opening Balance and Production | M92: =M91+M83 -> 0 | N92: =N91+N83 -> 0 | O92: 0 | P92: 0 | Q92: 0 | R92: 0 | S92: 0 | T92: 0 | U92: 0 | V92: 0 | W92: 0 | X92: 0 | Y92: 0 | Z92: 0 | AA92: 0 | AB92: 0 | AC92: 0 | AD92: 0 | AE92: 0 | AF92: 0 | AG92: 0 | AH92: 0 | AI92: 0 | AJ92: 0 | AK92: 4170.24 | AL92: 8409.6 | AM92: 12579.84 | AN92: 16819.2 | AO92: 21012.48 | AP92: 25131.84 | AQ92: 29302.08 | AR92: 33541.44 | AS92: 37711.68 | AT92: 41951.04 | AU92: 46121.28 | AV92: 49823.36 | AW92: 53953.92 | AX92: 58193.28 | AY92: 62363.52 | AZ92: 66602.88 | BA92: 70773.12 | BB92: 74892.48 | BC92: 79062.72 | BD92: 4239.36 | BE92: 8432.64 | BF92: 12672 | BG92: 16842.24 | BH92: 20584 | BI92: 24651.84 | BJ92: 28891.2 | BK92: 33061.44 | BL92: 37300.8 | BM92: 41494.08 | BN92: 45613.44 | BO92: 49783.68 | BP92: 54023.04 | BQ92: 58193.28 | BR92: 62432.64 | BS92: 66602.88 | BT92: 70407.36 | BU92: 74435.52 | BV92: 78674.88 | BW92: 4170.24 | BX92: 8409.6 | BY92: 12579.84 | BZ92: =BZ91+BZ83 -> 16699.2 | CA92: 20869.44 | CB92: 25108.8 | CC92: 29302.08 | CD92: 33541.44 | CE92: 37711.68 | CF92: 41555.84 | CG92: 45521.28 | CH92: 49760.64 | CI92: 53930.88 | CJ92: 58170.24 | CK92: 62363.52 | CL92: 66482.88 | CM92: 70653.12 | CN92: 74892.48 | CO92: 79062.72 | CP92: 4239.36 | CQ92: 8409.6 | CR92: 12316.48 | CS92: 12048.96 | CT92: 12048.96 | CU92: 12048.96 | CV92: 12048.96 | CW92: 12048.96 | CX92: 12048.96 | CY92: 12048.96 | CZ92: 12048.96 | DA92: 12048.96 | DB92: 12048.96 | DC92: 12048.96 | DD92: 12048.96 | DE92: 12048.96 | DF92: 12048.96 | DG92: 12048.96 | DH92: 12048.96
C93: Maximum Limit Test with MIN Function | M93: =MIN(M92,M90) -> 0 | N93: =MIN(N92,N90) -> 0 | O93: 0 | P93: 0 | Q93: 0 | R93: 0 | S93: 0 | T93: 0 | U93: 0 | V93: 0 | W93: 0 | X93: 0 | Y93: 0 | Z93: 0 | AA93: 0 | AB93: 0 | AC93: 0 | AD93: 0 | AE93: 0 | AF93: 0 | AG93: 0 | AH93: 0 | AI93: 0 | AJ93: 0 | AK93: 4170.24 | AL93: 8409.6 | AM93: 12579.84 | AN93: 16819.2 | AO93: 21012.48 | AP93: 25131.84 | AQ93: 29302.08 | AR93: 33541.44 | AS93: 37711.68 | AT93: 41951.04 | AU93: 46121.28 | AV93: 49823.36 | AW93: 53953.92 | AX93: 58193.28 | AY93: 62363.52 | AZ93: 66602.88 | BA93: 70773.12 | BB93: 74892.48 | BC93: 75000 | BD93: 4239.36 | BE93: 8432.64 | BF93: 12672 | BG93: 16842.24 | BH93: 20584 | BI93: 24651.84 | BJ93: 28891.2 | BK93: 33061.44 | BL93: 37300.8 | BM93: 41494.08 | BN93: 45613.44 | BO93: 49783.68 | BP93: 54023.04 | BQ93: 58193.28 | BR93: 62432.64 | BS93: 66602.88 | BT93: 70407.36 | BU93: 74435.52 | BV93: 75000 | BW93: 4170.24 | BX93: 8409.6 | BY93: 12579.84 | BZ93: =MIN(BZ92,BZ90) -> 16699.2 | CA93: 20869.44 | CB93: 25108.8 | CC93: 29302.08 | CD93: 33541.44 | CE93: 37711.68 | CF93: 41555.84 | CG93: 45521.28 | CH93: 49760.64 | CI93: 53930.88 | CJ93: 58170.24 | CK93: 62363.52 | CL93: 66482.88 | CM93: 70653.12 | CN93: 74892.48 | CO93: 75000 | CP93: 4239.36 | CQ93: 8409.6 | CR93: 12316.48 | CS93: 12048.96 | CT93: 12048.96 | CU93: 12048.96 | CV93: 12048.96 | CW93: 12048.96 | CX93: 12048.96 | CY93: 12048.96 | CZ93: 12048.96 | DA93: 12048.96 | DB93: 12048.96 | DC93: 12048.96 | DD93: 12048.96 | DE93: 12048.96 | DF93: 12048.96 | DG93: 12048.96 | DH93: 12048.96
C95: Net on-site hot replacement switch | F95: Switch | M95: =M90=M93 -> FALSE | N95: =N90=N93 -> FALSE | O95: FALSE | P95: FALSE | Q95: FALSE | R95: FALSE | S95: FALSE | T95: FALSE | U95: FALSE | V95: FALSE | W95: FALSE | X95: FALSE | Y95: FALSE | Z95: FALSE | AA95: FALSE | AB95: FALSE | AC95: FALSE | AD95: FALSE | AE95: FALSE | AF95: FALSE | AG95: FALSE | AH95: FALSE | AI95: FALSE | AJ95: FALSE | AK95: FALSE | AL95: FALSE | AM95: FALSE | AN95: FALSE | AO95: FALSE | AP95: FALSE | AQ95: FALSE | AR95: FALSE | AS95: FALSE | AT95: FALSE | AU95: FALSE | AV95: FALSE | AW95: FALSE | AX95: FALSE | AY95: FALSE | AZ95: FALSE | BA95: FALSE | BB95: FALSE | BC95: TRUE | BD95: FALSE | BE95: FALSE | BF95: FALSE | BG95: FALSE | BH95: FALSE | BI95: FALSE | BJ95: FALSE | BK95: FALSE | BL95: FALSE | BM95: FALSE | BN95: FALSE | BO95: FALSE | BP95: FALSE | BQ95: FALSE | BR95: FALSE | BS95: FALSE | BT95: FALSE | BU95: FALSE | BV95: TRUE | BW95: FALSE | BX95: FALSE | BY95: FALSE | BZ95: =BZ90=BZ93 -> FALSE | CA95: FALSE | CB95: FALSE | CC95: FALSE | CD95: FALSE | CE95: FALSE | CF95: FALSE | CG95: FALSE | CH95: FALSE | CI95: FALSE | CJ95: FALSE | CK95: FALSE | CL95: FALSE | CM95: FALSE | CN95: FALSE | CO95: TRUE | CP95: FALSE | CQ95: FALSE | CR95: FALSE | CS95: FALSE | CT95: FALSE | CU95: FALSE | CV95: FALSE | CW95: FALSE | CX95: FALSE | CY95: FALSE | CZ95: FALSE | DA95: FALSE | DB95: FALSE | DC95: FALSE | DD95: FALSE | DE95: FALSE | DF95: FALSE | DG95: FALSE | DH95: FALSE
C97: Required Maintenance Hours | H97: ='Assumptions - Technology'!G44*24 -> 168 | M97: =$H$97*M95 -> 0 | N97: =$H$97*N95 -> 0 | O97: 0 | P97: 0 | Q97: 0 | R97: 0 | S97: 0 | T97: 0 | U97: 0 | V97: 0 | W97: 0 | X97: 0 | Y97: 0 | Z97: 0 | AA97: 0 | AB97: 0 | AC97: 0 | AD97: 0 | AE97: 0 | AF97: 0 | AG97: 0 | AH97: 0 | AI97: 0 | AJ97: 0 | AK97: 0 | AL97: 0 | AM97: 0 | AN97: 0 | AO97: 0 | AP97: 0 | AQ97: 0 | AR97: 0 | AS97: 0 | AT97: 0 | AU97: 0 | AV97: 0 | AW97: 0 | AX97: 0 | AY97: 0 | AZ97: 0 | BA97: 0 | BB97: 0 | BC97: 168 | BD97: 0 | BE97: 0 | BF97: 0 | BG97: 0 | BH97: 0 | BI97: 0 | BJ97: 0 | BK97: 0 | BL97: 0 | BM97: 0 | BN97: 0 | BO97: 0 | BP97: 0 | BQ97: 0 | BR97: 0 | BS97: 0 | BT97: 0 | BU97: 0 | BV97: 168 | BW97: 0 | BX97: 0 | BY97: 0 | BZ97: =$H$97*BZ95 -> 0 | CA97: 0 | CB97: 0 | CC97: 0 | CD97: 0 | CE97: 0 | CF97: 0 | CG97: 0 | CH97: 0 | CI97: 0 | CJ97: 0 | CK97: 0 | CL97: 0 | CM97: 0 | CN97: 0 | CO97: 168 | CP97: 0 | CQ97: 0 | CR97: 0 | CS97: 0 | CT97: 0 | CU97: 0 | CV97: 0 | CW97: 0 | CX97: 0 | CY97: 0 | CZ97: 0 | DA97: 0 | DB97: 0 | DC97: 0 | DD97: 0 | DE97: 0 | DF97: 0 | DG97: 0 | DH97: 0
C98: Production in Initial Part of Period | M98: =M95*(M93-M91) -> 0 | N98: =N95*(N93-N91) -> 0 | O98: 0 | P98: 0 | Q98: 0 | R98: 0 | S98: 0 | T98: 0 | U98: 0 | V98: 0 | W98: 0 | X98: 0 | Y98: 0 | Z98: 0 | AA98: 0 | AB98: 0 | AC98: 0 | AD98: 0 | AE98: 0 | AF98: 0 | AG98: 0 | AH98: 0 | AI98: 0 | AJ98: 0 | AK98: 0 | AL98: 0 | AM98: 0 | AN98: 0 | AO98: 0 | AP98: 0 | AQ98: 0 | AR98: 0 | AS98: 0 | AT98: 0 | AU98: 0 | AV98: 0 | AW98: 0 | AX98: 0 | AY98: 0 | AZ98: 0 | BA98: 0 | BB98: 0 | BC98: 107.52 | BD98: 0 | BE98: 0 | BF98: 0 | BG98: 0 | BH98: 0 | BI98: 0 | BJ98: 0 | BK98: 0 | BL98: 0 | BM98: 0 | BN98: 0 | BO98: 0 | BP98: 0 | BQ98: 0 | BR98: 0 | BS98: 0 | BT98: 0 | BU98: 0 | BV98: 564.48 | BW98: 0 | BX98: 0 | BY98: 0 | BZ98: =BZ95*(BZ93-BZ91) -> 0 | CA98: 0 | CB98: 0 | CC98: 0 | CD98: 0 | CE98: 0 | CF98: 0 | CG98: 0 | CH98: 0 | CI98: 0 | CJ98: 0 | CK98: 0 | CL98: 0 | CM98: 0 | CN98: 0 | CO98: 107.52 | CP98: 0 | CQ98: 0 | CR98: 0 | CS98: 0 | CT98: 0 | CU98: 0 | CV98: 0 | CW98: 0 | CX98: 0 | CY98: 0 | CZ98: 0 | DA98: 0 | DB98: 0 | DC98: 0 | DD98: 0 | DE98: 0 | DF98: 0 | DG98: 0 | DH98: 0
C99: Hours Available for Maintenance | M99: =(M40-M60-M61-M80-M81-M98)*M95 -> 0 | N99: =(N40-N60-N61-N80-N81-N98)*N95 -> 0 | O99: 0 | P99: 0 | Q99: 0 | R99: 0 | S99: 0 | T99: 0 | U99: 0 | V99: 0 | W99: 0 | X99: 0 | Y99: 0 | Z99: 0 | AA99: 0 | AB99: 0 | AC99: 0 | AD99: 0 | AE99: 0 | AF99: 0 | AG99: 0 | AH99: 0 | AI99: 0 | AJ99: 0 | AK99: 0 | AL99: 0 | AM99: 0 | AN99: 0 | AO99: 0 | AP99: 0 | AQ99: 0 | AR99: 0 | AS99: 0 | AT99: 0 | AU99: 0 | AV99: 0 | AW99: 0 | AX99: 0 | AY99: 0 | AZ99: 0 | BA99: 0 | BB99: 0 | BC99: 4236.48 | BD99: 0 | BE99: 0 | BF99: 0 | BG99: 0 | BH99: 0 | BI99: 0 | BJ99: 0 | BK99: 0 | BL99: 0 | BM99: 0 | BN99: 0 | BO99: 0 | BP99: 0 | BQ99: 0 | BR99: 0 | BS99: 0 | BT99: 0 | BU99: 0 | BV99: 3851.52 | BW99: 0 | BX99: 0 | BY99: 0 | BZ99: =(BZ40-BZ60-BZ61-BZ80-BZ81-BZ98)*BZ95 -> 0 | CA99: 0 | CB99: 0 | CC99: 0 | CD99: 0 | CE99: 0 | CF99: 0 | CG99: 0 | CH99: 0 | CI99: 0 | CJ99: 0 | CK99: 0 | CL99: 0 | CM99: 0 | CN99: 0 | CO99: 4236.48 | CP99: 0 | CQ99: 0 | CR99: 0 | CS99: 0 | CT99: 0 | CU99: 0 | CV99: 0 | CW99: 0 | CX99: 0 | CY99: 0 | CZ99: 0 | DA99: 0 | DB99: 0 | DC99: 0 | DD99: 0 | DE99: 0 | DF99: 0 | DG99: 0 | DH99: 0
C100: Maintenance this Period | H100: =H97 -> 168 | M100: =MIN($H$100,M99)*M95 -> 0 | N100: =MIN($H$100,N99)*N95 -> 0 | O100: 0 | P100: 0 | Q100: 0 | R100: 0 | S100: 0 | T100: 0 | U100: 0 | V100: 0 | W100: 0 | X100: 0 | Y100: 0 | Z100: 0 | AA100: 0 | AB100: 0 | AC100: 0 | AD100: 0 | AE100: 0 | AF100: 0 | AG100: 0 | AH100: 0 | AI100: 0 | AJ100: 0 | AK100: 0 | AL100: 0 | AM100: 0 | AN100: 0 | AO100: 0 | AP100: 0 | AQ100: 0 | AR100: 0 | AS100: 0 | AT100: 0 | AU100: 0 | AV100: 0 | AW100: 0 | AX100: 0 | AY100: 0 | AZ100: 0 | BA100: 0 | BB100: 0 | BC100: 168 | BD100: 0 | BE100: 0 | BF100: 0 | BG100: 0 | BH100: 0 | BI100: 0 | BJ100: 0 | BK100: 0 | BL100: 0 | BM100: 0 | BN100: 0 | BO100: 0 | BP100: 0 | BQ100: 0 | BR100: 0 | BS100: 0 | BT100: 0 | BU100: 0 | BV100: 168 | BW100: 0 | BX100: 0 | BY100: 0 | BZ100: =MIN($H$100,BZ99)*BZ95 -> 0 | CA100: 0 | CB100: 0 | CC100: 0 | CD100: 0 | CE100: 0 | CF100: 0 | CG100: 0 | CH100: 0 | CI100: 0 | CJ100: 0 | CK100: 0 | CL100: 0 | CM100: 0 | CN100: 0 | CO100: 168 | CP100: 0 | CQ100: 0 | CR100: 0 | CS100: 0 | CT100: 0 | CU100: 0 | CV100: 0 | CW100: 0 | CX100: 0 | CY100: 0 | CZ100: 0 | DA100: 0 | DB100: 0 | DC100: 0 | DD100: 0 | DE100: 0 | DF100: 0 | DG100: 0 | DH100: 0
C101: Maintenance Carried Forward | N101: =($H$100-M100)*M95 -> 0 | O101: =($H$100-N100)*N95 -> 0 | P101: 0 | Q101: 0 | R101: 0 | S101: 0 | T101: 0 | U101: 0 | V101: 0 | W101: 0 | X101: 0 | Y101: 0 | Z101: 0 | AA101: 0 | AB101: 0 | AC101: 0 | AD101: 0 | AE101: 0 | AF101: 0 | AG101: 0 | AH101: 0 | AI101: 0 | AJ101: 0 | AK101: 0 | AL101: 0 | AM101: 0 | AN101: 0 | AO101: 0 | AP101: 0 | AQ101: 0 | AR101: 0 | AS101: 0 | AT101: 0 | AU101: 0 | AV101: 0 | AW101: 0 | AX101: 0 | AY101: 0 | AZ101: 0 | BA101: 0 | BB101: 0 | BC101: 0 | BD101: 0 | BE101: 0 | BF101: 0 | BG101: 0 | BH101: 0 | BI101: 0 | BJ101: 0 | BK101: 0 | BL101: 0 | BM101: 0 | BN101: 0 | BO101: 0 | BP101: 0 | BQ101: 0 | BR101: 0 | BS101: 0 | BT101: 0 | BU101: 0 | BV101: 0 | BW101: 0 | BX101: 0 | BY101: 0 | BZ101: 0 | CA101: =($H$100-BZ100)*BZ95 -> 0 | CB101: 0 | CC101: 0 | CD101: 0 | CE101: 0 | CF101: 0 | CG101: 0 | CH101: 0 | CI101: 0 | CJ101: 0 | CK101: 0 | CL101: 0 | CM101: 0 | CN101: 0 | CO101: 0 | CP101: 0 | CQ101: 0 | CR101: 0 | CS101: 0 | CT101: 0 | CU101: 0 | CV101: 0 | CW101: 0 | CX101: 0 | CY101: 0 | CZ101: 0 | DA101: 0 | DB101: 0 | DC101: 0 | DD101: 0 | DE101: 0 | DF101: 0 | DG101: 0 | DH101: 0
C103: Net Production | M103: =M83-M100-M101 -> 0 | N103: =N83-N100-N101 -> 0 | O103: 0 | P103: 0 | Q103: 0 | R103: 0 | S103: 0 | T103: 0 | U103: 0 | V103: 0 | W103: 0 | X103: 0 | Y103: 0 | Z103: 0 | AA103: 0 | AB103: 0 | AC103: 0 | AD103: 0 | AE103: 0 | AF103: 0 | AG103: 0 | AH103: 0 | AI103: 0 | AJ103: 0 | AK103: 4170.24 | AL103: 4239.36 | AM103: 4170.24 | AN103: 4239.36 | AO103: 4193.28 | AP103: 4119.36 | AQ103: 4170.24 | AR103: 4239.36 | AS103: 4170.24 | AT103: 4239.36 | AU103: 4170.24 | AV103: 3702.08 | AW103: 4130.56 | AX103: 4239.36 | AY103: 4170.24 | AZ103: 4239.36 | BA103: 4170.24 | BB103: 4119.36 | BC103: 4002.24 | BD103: 4239.36 | BE103: 4193.28 | BF103: 4239.36 | BG103: 4170.24 | BH103: 3741.76 | BI103: 4067.84 | BJ103: 4239.36 | BK103: 4170.24 | BL103: 4239.36 | BM103: 4193.28 | BN103: 4119.36 | BO103: 4170.24 | BP103: 4239.36 | BQ103: 4170.24 | BR103: 4239.36 | BS103: 4170.24 | BT103: 3804.48 | BU103: 4028.16 | BV103: 4071.36 | BW103: 4170.24 | BX103: 4239.36 | BY103: 4170.24 | BZ103: =BZ83-BZ100-BZ101 -> 4119.36 | CA103: 4170.24 | CB103: 4239.36 | CC103: 4193.28 | CD103: 4239.36 | CE103: 4170.24 | CF103: 3844.16 | CG103: 3965.44 | CH103: 4239.36 | CI103: 4170.24 | CJ103: 4239.36 | CK103: 4193.28 | CL103: 4119.36 | CM103: 4170.24 | CN103: 4239.36 | CO103: 4002.24 | CP103: 4239.36 | CQ103: 4170.24 | CR103: 3906.88 | CS103: -267.52 | CT103: 0 | CU103: 0 | CV103: 0 | CW103: 0 | CX103: 0 | CY103: 0 | CZ103: 0 | DA103: 0 | DB103: 0 | DC103: 0 | DD103: 0 | DE103: 0 | DF103: 0 | DG103: 0 | DH103: 0
C105: Opening Balance | M105: =L107 -> 0 | N105: =M107 -> 0 | O105: 0 | P105: 0 | Q105: 0 | R105: 0 | S105: 0 | T105: 0 | U105: 0 | V105: 0 | W105: 0 | X105: 0 | Y105: 0 | Z105: 0 | AA105: 0 | AB105: 0 | AC105: 0 | AD105: 0 | AE105: 0 | AF105: 0 | AG105: 0 | AH105: 0 | AI105: 0 | AJ105: 0 | AK105: 0 | AL105: 4170.24 | AM105: 8409.6 | AN105: 12579.84 | AO105: 16819.2 | AP105: 21012.48 | AQ105: 25131.84 | AR105: 29302.08 | AS105: 33541.44 | AT105: 37711.68 | AU105: 41951.04 | AV105: 46121.28 | AW105: 49823.36 | AX105: 53953.92 | AY105: 58193.28 | AZ105: 62363.52 | BA105: 66602.88 | BB105: 70773.12 | BC105: 74892.48 | BD105: 0 | BE105: 4239.36 | BF105: 8432.64 | BG105: 12672 | BH105: 16842.24 | BI105: 20584 | BJ105: 24651.84 | BK105: 28891.2 | BL105: 33061.44 | BM105: 37300.8 | BN105: 41494.08 | BO105: 45613.44 | BP105: 49783.68 | BQ105: 54023.04 | BR105: 58193.28 | BS105: 62432.64 | BT105: 66602.88 | BU105: 70407.36 | BV105: 74435.52 | BW105: 0 | BX105: 4170.24 | BY105: 8409.6 | BZ105: =BY107 -> 12579.84 | CA105: 16699.2 | CB105: 20869.44 | CC105: 25108.8 | CD105: 29302.08 | CE105: 33541.44 | CF105: 37711.68 | CG105: 41555.84 | CH105: 45521.28 | CI105: 49760.64 | CJ105: 53930.88 | CK105: 58170.24 | CL105: 62363.52 | CM105: 66482.88 | CN105: 70653.12 | CO105: 74892.48 | CP105: 0 | CQ105: 4239.36 | CR105: 8409.6 | CS105: 12316.48 | CT105: 12048.96 | CU105: 12048.96 | CV105: 12048.96 | CW105: 12048.96 | CX105: 12048.96 | CY105: 12048.96 | CZ105: 12048.96 | DA105: 12048.96 | DB105: 12048.96 | DC105: 12048.96 | DD105: 12048.96 | DE105: 12048.96 | DF105: 12048.96 | DG105: 12048.96 | DH105: 12048.96
C106: Add: Net Production | M106: =M103 -> 0 | N106: =N103 -> 0 | O106: 0 | P106: 0 | Q106: 0 | R106: 0 | S106: 0 | T106: 0 | U106: 0 | V106: 0 | W106: 0 | X106: 0 | Y106: 0 | Z106: 0 | AA106: 0 | AB106: 0 | AC106: 0 | AD106: 0 | AE106: 0 | AF106: 0 | AG106: 0 | AH106: 0 | AI106: 0 | AJ106: 0 | AK106: 4170.24 | AL106: 4239.36 | AM106: 4170.24 | AN106: 4239.36 | AO106: 4193.28 | AP106: 4119.36 | AQ106: 4170.24 | AR106: 4239.36 | AS106: 4170.24 | AT106: 4239.36 | AU106: 4170.24 | AV106: 3702.08 | AW106: 4130.56 | AX106: 4239.36 | AY106: 4170.24 | AZ106: 4239.36 | BA106: 4170.24 | BB106: 4119.36 | BC106: 4002.24 | BD106: 4239.36 | BE106: 4193.28 | BF106: 4239.36 | BG106: 4170.24 | BH106: 3741.76 | BI106: 4067.84 | BJ106: 4239.36 | BK106: 4170.24 | BL106: 4239.36 | BM106: 4193.28 | BN106: 4119.36 | BO106: 4170.24 | BP106: 4239.36 | BQ106: 4170.24 | BR106: 4239.36 | BS106: 4170.24 | BT106: 3804.48 | BU106: 4028.16 | BV106: 4071.36 | BW106: 4170.24 | BX106: 4239.36 | BY106: 4170.24 | BZ106: =BZ103 -> 4119.36 | CA106: 4170.24 | CB106: 4239.36 | CC106: 4193.28 | CD106: 4239.36 | CE106: 4170.24 | CF106: 3844.16 | CG106: 3965.44 | CH106: 4239.36 | CI106: 4170.24 | CJ106: 4239.36 | CK106: 4193.28 | CL106: 4119.36 | CM106: 4170.24 | CN106: 4239.36 | CO106: 4002.24 | CP106: 4239.36 | CQ106: 4170.24 | CR106: 3906.88 | CS106: -267.52 | CT106: 0 | CU106: 0 | CV106: 0 | CW106: 0 | CX106: 0 | CY106: 0 | CZ106: 0 | DA106: 0 | DB106: 0 | DC106: 0 | DD106: 0 | DE106: 0 | DF106: 0 | DG106: 0 | DH106: 0
C107: Closing Balance | M107: =IF(M95,0,M105+M106) -> 0 | N107: =IF(N95,0,N105+N106) -> 0 | O107: 0 | P107: 0 | Q107: 0 | R107: 0 | S107: 0 | T107: 0 | U107: 0 | V107: 0 | W107: 0 | X107: 0 | Y107: 0 | Z107: 0 | AA107: 0 | AB107: 0 | AC107: 0 | AD107: 0 | AE107: 0 | AF107: 0 | AG107: 0 | AH107: 0 | AI107: 0 | AJ107: 0 | AK107: 4170.24 | AL107: 8409.6 | AM107: 12579.84 | AN107: 16819.2 | AO107: 21012.48 | AP107: 25131.84 | AQ107: 29302.08 | AR107: 33541.44 | AS107: 37711.68 | AT107: 41951.04 | AU107: 46121.28 | AV107: 49823.36 | AW107: 53953.92 | AX107: 58193.28 | AY107: 62363.52 | AZ107: 66602.88 | BA107: 70773.12 | BB107: 74892.48 | BC107: 0 | BD107: 4239.36 | BE107: 8432.64 | BF107: 12672 | BG107: 16842.24 | BH107: 20584 | BI107: 24651.84 | BJ107: 28891.2 | BK107: 33061.44 | BL107: 37300.8 | BM107: 41494.08 | BN107: 45613.44 | BO107: 49783.68 | BP107: 54023.04 | BQ107: 58193.28 | BR107: 62432.64 | BS107: 66602.88 | BT107: 70407.36 | BU107: 74435.52 | BV107: 0 | BW107: 4170.24 | BX107: 8409.6 | BY107: 12579.84 | BZ107: =IF(BZ95,0,BZ105+BZ106) -> 16699.2 | CA107: 20869.44 | CB107: 25108.8 | CC107: 29302.08 | CD107: 33541.44 | CE107: 37711.68 | CF107: 41555.84 | CG107: 45521.28 | CH107: 49760.64 | CI107: 53930.88 | CJ107: 58170.24 | CK107: 62363.52 | CL107: 66482.88 | CM107: 70653.12 | CN107: 74892.48 | CO107: 0 | CP107: 4239.36 | CQ107: 8409.6 | CR107: 12316.48 | CS107: 12048.96 | CT107: 12048.96 | CU107: 12048.96 | CV107: 12048.96 | CW107: 12048.96 | CX107: 12048.96 | CY107: 12048.96 | CZ107: 12048.96 | DA107: 12048.96 | DB107: 12048.96 | DC107: 12048.96 | DD107: 12048.96 | DE107: 12048.96 | DF107: 12048.96 | DG107: 12048.96 | DH107: 12048.96
B109: Depot maintenance
C110: Depot maintenance number | F110: Number | G110: Hrs | H110: ='Assumptions - Technology'!H39 -> 100000 | M110: =$H$110 -> 100000 | N110: =$H$110 -> 100000 | O110: 100000 | P110: 100000 | Q110: 100000 | R110: 100000 | S110: 100000 | T110: 100000 | U110: 100000 | V110: 100000 | W110: 100000 | X110: 100000 | Y110: 100000 | Z110: 100000 | AA110: 100000 | AB110: 100000 | AC110: 100000 | AD110: 100000 | AE110: 100000 | AF110: 100000 | AG110: 100000 | AH110: 100000 | AI110: 100000 | AJ110: 100000 | AK110: 100000 | AL110: 100000 | AM110: 100000 | AN110: 100000 | AO110: 100000 | AP110: 100000 | AQ110: 100000 | AR110: 100000 | AS110: 100000 | AT110: 100000 | AU110: 100000 | AV110: 100000 | AW110: 100000 | AX110: 100000 | AY110: 100000 | AZ110: 100000 | BA110: 100000 | BB110: 100000 | BC110: 100000 | BD110: 100000 | BE110: 100000 | BF110: 100000 | BG110: 100000 | BH110: 100000 | BI110: 100000 | BJ110: 100000 | BK110: 100000 | BL110: 100000 | BM110: 100000 | BN110: 100000 | BO110: 100000 | BP110: 100000 | BQ110: 100000 | BR110: 100000 | BS110: 100000 | BT110: 100000 | BU110: 100000 | BV110: 100000 | BW110: 100000 | BX110: 100000 | BY110: 100000 | BZ110: =$H$110 -> 100000 | CA110: 100000 | CB110: 100000 | CC110: 100000 | CD110: 100000 | CE110: 100000 | CF110: 100000 | CG110: 100000 | CH110: 100000 | CI110: 100000 | CJ110: 100000 | CK110: 100000 | CL110: 100000 | CM110: 100000 | CN110: 100000 | CO110: 100000 | CP110: 100000 | CQ110: 100000 | CR110: 100000 | CS110: 100000 | CT110: 100000 | CU110: 100000 | CV110: 100000 | CW110: 100000 | CX110: 100000 | CY110: 100000 | CZ110: 100000 | DA110: 100000 | DB110: 100000 | DC110: 100000 | DD110: 100000 | DE110: 100000 | DF110: 100000 | DG110: 100000 | DH110: 100000
C111: Opening Balance of Hour Count - Depot | M111: =M125 -> 0 | N111: =N125 -> 0 | O111: 0 | P111: 0 | Q111: 0 | R111: 0 | S111: 0 | T111: 0 | U111: 0 | V111: 0 | W111: 0 | X111: 0 | Y111: 0 | Z111: 0 | AA111: 0 | AB111: 0 | AC111: 0 | AD111: 0 | AE111: 0 | AF111: 0 | AG111: 0 | AH111: 0 | AI111: 0 | AJ111: 0 | AK111: 0 | AL111: 4170.24 | AM111: 8409.6 | AN111: 12579.84 | AO111: 16819.2 | AP111: 21012.48 | AQ111: 25131.84 | AR111: 29302.08 | AS111: 33541.44 | AT111: 37711.68 | AU111: 41951.04 | AV111: 46121.28 | AW111: 49823.36 | AX111: 53953.92 | AY111: 58193.28 | AZ111: 62363.52 | BA111: 66602.88 | BB111: 70773.12 | BC111: 74892.48 | BD111: 78894.72 | BE111: 83134.08 | BF111: 87327.36 | BG111: 91566.72 | BH111: 95736.96 | BI111: 99478.72 | BJ111: 0 | BK111: 4239.36 | BL111: 8409.6 | BM111: 12648.96 | BN111: 16842.24 | BO111: 20961.6 | BP111: 25131.84 | BQ111: 29371.2 | BR111: 33541.44 | BS111: 37780.8 | BT111: 41951.04 | BU111: 45755.52 | BV111: 49783.68 | BW111: 53855.04 | BX111: 58025.28 | BY111: 62264.64 | BZ111: =BZ125 -> 66434.88 | CA111: 70554.24 | CB111: 74724.48 | CC111: 78963.84 | CD111: 83157.12 | CE111: 87396.48 | CF111: 91566.72 | CG111: 95410.88 | CH111: 99376.32 | CI111: 0 | CJ111: 4170.24 | CK111: 8409.6 | CL111: 12602.88 | CM111: 16722.24 | CN111: 20892.48 | CO111: 25131.84 | CP111: 29134.08 | CQ111: 33373.44 | CR111: 37543.68 | CS111: 41450.56 | CT111: 41450.56 | CU111: 41450.56 | CV111: 41450.56 | CW111: 41450.56 | CX111: 41450.56 | CY111: 41450.56 | CZ111: 41450.56 | DA111: 41450.56 | DB111: 41450.56 | DC111: 41450.56 | DD111: 41450.56 | DE111: 41450.56 | DF111: 41450.56 | DG111: 41450.56 | DH111: 41450.56
C112: Total of Opening Balance and Production | M112: =M111+M103 -> 0 | N112: =N111+N103 -> 0 | O112: 0 | P112: 0 | Q112: 0 | R112: 0 | S112: 0 | T112: 0 | U112: 0 | V112: 0 | W112: 0 | X112: 0 | Y112: 0 | Z112: 0 | AA112: 0 | AB112: 0 | AC112: 0 | AD112: 0 | AE112: 0 | AF112: 0 | AG112: 0 | AH112: 0 | AI112: 0 | AJ112: 0 | AK112: 4170.24 | AL112: 8409.6 | AM112: 12579.84 | AN112: 16819.2 | AO112: 21012.48 | AP112: 25131.84 | AQ112: 29302.08 | AR112: 33541.44 | AS112: 37711.68 | AT112: 41951.04 | AU112: 46121.28 | AV112: 49823.36 | AW112: 53953.92 | AX112: 58193.28 | AY112: 62363.52 | AZ112: 66602.88 | BA112: 70773.12 | BB112: 74892.48 | BC112: 78894.72 | BD112: 83134.08 | BE112: 87327.36 | BF112: 91566.72 | BG112: 95736.96 | BH112: 99478.72 | BI112: 103546.56 | BJ112: 4239.36 | BK112: 8409.6 | BL112: 12648.96 | BM112: 16842.24 | BN112: 20961.6 | BO112: 25131.84 | BP112: 29371.2 | BQ112: 33541.44 | BR112: 37780.8 | BS112: 41951.04 | BT112: 45755.52 | BU112: 49783.68 | BV112: 53855.04 | BW112: 58025.28 | BX112: 62264.64 | BY112: 66434.88 | BZ112: =BZ111+BZ103 -> 70554.24 | CA112: 74724.48 | CB112: 78963.84 | CC112: 83157.12 | CD112: 87396.48 | CE112: 91566.72 | CF112: 95410.88 | CG112: 99376.32 | CH112: 103615.68 | CI112: 4170.24 | CJ112: 8409.6 | CK112: 12602.88 | CL112: 16722.24 | CM112: 20892.48 | CN112: 25131.84 | CO112: 29134.08 | CP112: 33373.44 | CQ112: 37543.68 | CR112: 41450.56 | CS112: 41183.04 | CT112: 41450.56 | CU112: 41450.56 | CV112: 41450.56 | CW112: 41450.56 | CX112: 41450.56 | CY112: 41450.56 | CZ112: 41450.56 | DA112: 41450.56 | DB112: 41450.56 | DC112: 41450.56 | DD112: 41450.56 | DE112: 41450.56 | DF112: 41450.56 | DG112: 41450.56 | DH112: 41450.56
C113: Maximum Limit Test with MIN Function | M113: =MIN(M110,M112) -> 0 | N113: =MIN(N110,N112) -> 0 | O113: 0 | P113: 0 | Q113: 0 | R113: 0 | S113: 0 | T113: 0 | U113: 0 | V113: 0 | W113: 0 | X113: 0 | Y113: 0 | Z113: 0 | AA113: 0 | AB113: 0 | AC113: 0 | AD113: 0 | AE113: 0 | AF113: 0 | AG113: 0 | AH113: 0 | AI113: 0 | AJ113: 0 | AK113: 4170.24 | AL113: 8409.6 | AM113: 12579.84 | AN113: 16819.2 | AO113: 21012.48 | AP113: 25131.84 | AQ113: 29302.08 | AR113: 33541.44 | AS113: 37711.68 | AT113: 41951.04 | AU113: 46121.28 | AV113: 49823.36 | AW113: 53953.92 | AX113: 58193.28 | AY113: 62363.52 | AZ113: 66602.88 | BA113: 70773.12 | BB113: 74892.48 | BC113: 78894.72 | BD113: 83134.08 | BE113: 87327.36 | BF113: 91566.72 | BG113: 95736.96 | BH113: 99478.72 | BI113: 100000 | BJ113: 4239.36 | BK113: 8409.6 | BL113: 12648.96 | BM113: 16842.24 | BN113: 20961.6 | BO113: 25131.84 | BP113: 29371.2 | BQ113: 33541.44 | BR113: 37780.8 | BS113: 41951.04 | BT113: 45755.52 | BU113: 49783.68 | BV113: 53855.04 | BW113: 58025.28 | BX113: 62264.64 | BY113: 66434.88 | BZ113: =MIN(BZ110,BZ112) -> 70554.24 | CA113: 74724.48 | CB113: 78963.84 | CC113: 83157.12 | CD113: 87396.48 | CE113: 91566.72 | CF113: 95410.88 | CG113: 99376.32 | CH113: 100000 | CI113: 4170.24 | CJ113: 8409.6 | CK113: 12602.88 | CL113: 16722.24 | CM113: 20892.48 | CN113: 25131.84 | CO113: 29134.08 | CP113: 33373.44 | CQ113: 37543.68 | CR113: 41450.56 | CS113: 41183.04 | CT113: 41450.56 | CU113: 41450.56 | CV113: 41450.56 | CW113: 41450.56 | CX113: 41450.56 | CY113: 41450.56 | CZ113: 41450.56 | DA113: 41450.56 | DB113: 41450.56 | DC113: 41450.56 | DD113: 41450.56 | DE113: 41450.56 | DF113: 41450.56 | DG113: 41450.56 | DH113: 41450.56
C115: Depot maintenance switch | F115: Switch | M115: =M110=M113 -> FALSE | N115: =N110=N113 -> FALSE | O115: FALSE | P115: FALSE | Q115: FALSE | R115: FALSE | S115: FALSE | T115: FALSE | U115: FALSE | V115: FALSE | W115: FALSE | X115: FALSE | Y115: FALSE | Z115: FALSE | AA115: FALSE | AB115: FALSE | AC115: FALSE | AD115: FALSE | AE115: FALSE | AF115: FALSE | AG115: FALSE | AH115: FALSE | AI115: FALSE | AJ115: FALSE | AK115: FALSE | AL115: FALSE | AM115: FALSE | AN115: FALSE | AO115: FALSE | AP115: FALSE | AQ115: FALSE | AR115: FALSE | AS115: FALSE | AT115: FALSE | AU115: FALSE | AV115: FALSE | AW115: FALSE | AX115: FALSE | AY115: FALSE | AZ115: FALSE | BA115: FALSE | BB115: FALSE | BC115: FALSE | BD115: FALSE | BE115: FALSE | BF115: FALSE | BG115: FALSE | BH115: FALSE | BI115: TRUE | BJ115: FALSE | BK115: FALSE | BL115: FALSE | BM115: FALSE | BN115: FALSE | BO115: FALSE | BP115: FALSE | BQ115: FALSE | BR115: FALSE | BS115: FALSE | BT115: FALSE | BU115: FALSE | BV115: FALSE | BW115: FALSE | BX115: FALSE | BY115: FALSE | BZ115: =BZ110=BZ113 -> FALSE | CA115: FALSE | CB115: FALSE | CC115: FALSE | CD115: FALSE | CE115: FALSE | CF115: FALSE | CG115: FALSE | CH115: TRUE | CI115: FALSE | CJ115: FALSE | CK115: FALSE | CL115: FALSE | CM115: FALSE | CN115: FALSE | CO115: FALSE | CP115: FALSE | CQ115: FALSE | CR115: FALSE | CS115: FALSE | CT115: FALSE | CU115: FALSE | CV115: FALSE | CW115: FALSE | CX115: FALSE | CY115: FALSE | CZ115: FALSE | DA115: FALSE | DB115: FALSE | DC115: FALSE | DD115: FALSE | DE115: FALSE | DF115: FALSE | DG115: FALSE | DH115: FALSE
C117: Required Maintenance Hours | F117: Hrs | H117: ='Assumptions - Technology'!H45*24 -> 840 | M117: =$H$117*M115 -> 0 | N117: =$H$117*N115 -> 0 | O117: 0 | P117: 0 | Q117: 0 | R117: 0 | S117: 0 | T117: 0 | U117: 0 | V117: 0 | W117: 0 | X117: 0 | Y117: 0 | Z117: 0 | AA117: 0 | AB117: 0 | AC117: 0 | AD117: 0 | AE117: 0 | AF117: 0 | AG117: 0 | AH117: 0 | AI117: 0 | AJ117: 0 | AK117: 0 | AL117: 0 | AM117: 0 | AN117: 0 | AO117: 0 | AP117: 0 | AQ117: 0 | AR117: 0 | AS117: 0 | AT117: 0 | AU117: 0 | AV117: 0 | AW117: 0 | AX117: 0 | AY117: 0 | AZ117: 0 | BA117: 0 | BB117: 0 | BC117: 0 | BD117: 0 | BE117: 0 | BF117: 0 | BG117: 0 | BH117: 0 | BI117: 840 | BJ117: 0 | BK117: 0 | BL117: 0 | BM117: 0 | BN117: 0 | BO117: 0 | BP117: 0 | BQ117: 0 | BR117: 0 | BS117: 0 | BT117: 0 | BU117: 0 | BV117: 0 | BW117: 0 | BX117: 0 | BY117: 0 | BZ117: =$H$117*BZ115 -> 0 | CA117: 0 | CB117: 0 | CC117: 0 | CD117: 0 | CE117: 0 | CF117: 0 | CG117: 0 | CH117: 840 | CI117: 0 | CJ117: 0 | CK117: 0 | CL117: 0 | CM117: 0 | CN117: 0 | CO117: 0 | CP117: 0 | CQ117: 0 | CR117: 0 | CS117: 0 | CT117: 0 | CU117: 0 | CV117: 0 | CW117: 0 | CX117: 0 | CY117: 0 | CZ117: 0 | DA117: 0 | DB117: 0 | DC117: 0 | DD117: 0 | DE117: 0 | DF117: 0 | DG117: 0 | DH117: 0
C118: Production in Initial Part of Period | M118: =M115*(M113-M111) -> 0 | N118: =N115*(N113-N111) -> 0 | O118: 0 | P118: 0 | Q118: 0 | R118: 0 | S118: 0 | T118: 0 | U118: 0 | V118: 0 | W118: 0 | X118: 0 | Y118: 0 | Z118: 0 | AA118: 0 | AB118: 0 | AC118: 0 | AD118: 0 | AE118: 0 | AF118: 0 | AG118: 0 | AH118: 0 | AI118: 0 | AJ118: 0 | AK118: 0 | AL118: 0 | AM118: 0 | AN118: 0 | AO118: 0 | AP118: 0 | AQ118: 0 | AR118: 0 | AS118: 0 | AT118: 0 | AU118: 0 | AV118: 0 | AW118: 0 | AX118: 0 | AY118: 0 | AZ118: 0 | BA118: 0 | BB118: 0 | BC118: 0 | BD118: 0 | BE118: 0 | BF118: 0 | BG118: =BG115*(BG113-BG111) -> 0 | BH118: 0 | BI118: 521.28 | BJ118: 0 | BK118: 0 | BL118: 0 | BM118: 0 | BN118: 0 | BO118: 0 | BP118: 0 | BQ118: 0 | BR118: 0 | BS118: 0 | BT118: 0 | BU118: 0 | BV118: 0 | BW118: 0 | BX118: 0 | BY118: 0 | BZ118: =BZ115*(BZ113-BZ111) -> 0 | CA118: 0 | CB118: 0 | CC118: 0 | CD118: 0 | CE118: 0 | CF118: 0 | CG118: 0 | CH118: 623.68 | CI118: 0 | CJ118: 0 | CK118: 0 | CL118: 0 | CM118: 0 | CN118: 0 | CO118: 0 | CP118: 0 | CQ118: 0 | CR118: 0 | CS118: 0 | CT118: 0 | CU118: 0 | CV118: 0 | CW118: 0 | CX118: 0 | CY118: 0 | CZ118: 0 | DA118: 0 | DB118: 0 | DC118: 0 | DD118: 0 | DE118: 0 | DF118: 0 | DG118: 0 | DH118: 0
C119: Hours Available for Maintenance | M119: =(M40-M60-M61-M80-M81-M100-M101-M118)*M115 -> 0 | N119: =(N40-N60-N61-N80-N81-N100-N101-N118)*N115 -> 0 | O119: 0 | P119: 0 | Q119: 0 | R119: 0 | S119: 0 | T119: 0 | U119: 0 | V119: 0 | W119: 0 | X119: 0 | Y119: 0 | Z119: 0 | AA119: 0 | AB119: 0 | AC119: 0 | AD119: 0 | AE119: 0 | AF119: 0 | AG119: 0 | AH119: 0 | AI119: 0 | AJ119: 0 | AK119: 0 | AL119: 0 | AM119: 0 | AN119: 0 | AO119: 0 | AP119: 0 | AQ119: 0 | AR119: 0 | AS119: 0 | AT119: 0 | AU119: 0 | AV119: 0 | AW119: 0 | AX119: 0 | AY119: 0 | AZ119: 0 | BA119: 0 | BB119: 0 | BC119: 0 | BD119: 0 | BE119: 0 | BF119: 0 | BG119: 0 | BH119: 0 | BI119: 3720.32 | BJ119: 0 | BK119: 0 | BL119: 0 | BM119: 0 | BN119: 0 | BO119: 0 | BP119: 0 | BQ119: 0 | BR119: 0 | BS119: 0 | BT119: 0 | BU119: 0 | BV119: 0 | BW119: 0 | BX119: 0 | BY119: 0 | BZ119: =(BZ40-BZ60-BZ61-BZ80-BZ81-BZ100-BZ101-BZ118)*BZ115 -> 0 | CA119: 0 | CB119: 0 | CC119: 0 | CD119: 0 | CE119: 0 | CF119: 0 | CG119: 0 | CH119: 3792.32 | CI119: 0 | CJ119: 0 | CK119: 0 | CL119: 0 | CM119: 0 | CN119: 0 | CO119: 0 | CP119: 0 | CQ119: 0 | CR119: 0 | CS119: 0 | CT119: 0 | CU119: 0 | CV119: 0 | CW119: 0 | CX119: 0 | CY119: 0 | CZ119: 0 | DA119: 0 | DB119: 0 | DC119: 0 | DD119: 0 | DE119: 0 | DF119: 0 | DG119: 0 | DH119: 0
C120: Maintenance this Period | H120: =H117 -> 840 | M120: =MIN(M119,$H$120) -> 0 | N120: =MIN(N119,$H$120) -> 0 | O120: 0 | P120: 0 | Q120: 0 | R120: 0 | S120: 0 | T120: 0 | U120: 0 | V120: 0 | W120: 0 | X120: 0 | Y120: 0 | Z120: 0 | AA120: 0 | AB120: 0 | AC120: 0 | AD120: 0 | AE120: 0 | AF120: 0 | AG120: 0 | AH120: 0 | AI120: 0 | AJ120: 0 | AK120: 0 | AL120: 0 | AM120: 0 | AN120: 0 | AO120: 0 | AP120: 0 | AQ120: 0 | AR120: 0 | AS120: 0 | AT120: 0 | AU120: 0 | AV120: 0 | AW120: 0 | AX120: 0 | AY120: 0 | AZ120: 0 | BA120: 0 | BB120: 0 | BC120: 0 | BD120: 0 | BE120: 0 | BF120: 0 | BG120: 0 | BH120: 0 | BI120: 840 | BJ120: 0 | BK120: 0 | BL120: 0 | BM120: 0 | BN120: 0 | BO120: 0 | BP120: 0 | BQ120: 0 | BR120: 0 | BS120: 0 | BT120: 0 | BU120: 0 | BV120: 0 | BW120: 0 | BX120: 0 | BY120: 0 | BZ120: =MIN(BZ119,$H$120) -> 0 | CA120: 0 | CB120: 0 | CC120: 0 | CD120: 0 | CE120: 0 | CF120: 0 | CG120: 0 | CH120: 840 | CI120: 0 | CJ120: 0 | CK120: 0 | CL120: 0 | CM120: 0 | CN120: 0 | CO120: 0 | CP120: 0 | CQ120: 0 | CR120: 0 | CS120: 0 | CT120: 0 | CU120: 0 | CV120: 0 | CW120: 0 | CX120: 0 | CY120: 0 | CZ120: 0 | DA120: 0 | DB120: 0 | DC120: 0 | DD120: 0 | DE120: 0 | DF120: 0 | DG120: 0 | DH120: 0
C121: Maintenance Carried Forward | N121: =($H$120-M120)*M115 -> 0 | O121: =($H$120-N120)*N115 -> 0 | P121: 0 | Q121: 0 | R121: 0 | S121: 0 | T121: 0 | U121: 0 | V121: 0 | W121: 0 | X121: 0 | Y121: 0 | Z121: 0 | AA121: 0 | AB121: 0 | AC121: 0 | AD121: 0 | AE121: 0 | AF121: 0 | AG121: 0 | AH121: 0 | AI121: 0 | AJ121: 0 | AK121: 0 | AL121: 0 | AM121: 0 | AN121: 0 | AO121: 0 | AP121: 0 | AQ121: 0 | AR121: 0 | AS121: 0 | AT121: 0 | AU121: 0 | AV121: 0 | AW121: 0 | AX121: 0 | AY121: 0 | AZ121: 0 | BA121: 0 | BB121: 0 | BC121: 0 | BD121: 0 | BE121: 0 | BF121: 0 | BG121: 0 | BH121: 0 | BI121: 0 | BJ121: 0 | BK121: 0 | BL121: 0 | BM121: 0 | BN121: 0 | BO121: 0 | BP121: 0 | BQ121: 0 | BR121: 0 | BS121: 0 | BT121: 0 | BU121: 0 | BV121: 0 | BW121: 0 | BX121: 0 | BY121: 0 | BZ121: 0 | CA121: =($H$120-BZ120)*BZ115 -> 0 | CB121: 0 | CC121: 0 | CD121: 0 | CE121: 0 | CF121: 0 | CG121: 0 | CH121: 0 | CI121: 0 | CJ121: 0 | CK121: 0 | CL121: 0 | CM121: 0 | CN121: 0 | CO121: 0 | CP121: 0 | CQ121: 0 | CR121: 0 | CS121: 0 | CT121: 0 | CU121: 0 | CV121: 0 | CW121: 0 | CX121: 0 | CY121: 0 | CZ121: 0 | DA121: 0 | DB121: 0 | DC121: 0 | DD121: 0 | DE121: 0 | DF121: 0 | DG121: 0 | DH121: 0
C123: Net Production | M123: =(M103-M120-M121)*M11 -> 0 | N123: 0 | O123: 0 | P123: 0 | Q123: 0 | R123: 0 | S123: 0 | T123: 0 | U123: 0 | V123: 0 | W123: 0 | X123: 0 | Y123: 0 | Z123: 0 | AA123: 0 | AB123: 0 | AC123: 0 | AD123: 0 | AE123: 0 | AF123: 0 | AG123: 0 | AH123: 0 | AI123: 0 | AJ123: 0 | AK123: 4170.24 | AL123: 4239.36 | AM123: 4170.24 | AN123: 4239.36 | AO123: 4193.28 | AP123: 4119.36 | AQ123: 4170.24 | AR123: 4239.36 | AS123: =(AS103-AS120-AS121)*AS11 -> 4170.24 | AT123: 4239.36 | AU123: 4170.24 | AV123: 3702.08 | AW123: 4130.56 | AX123: 4239.36 | AY123: 4170.24 | AZ123: 4239.36 | BA123: 4170.24 | BB123: 4119.36 | BC123: 4002.24 | BD123: 4239.36 | BE123: 4193.28 | BF123: 4239.36 | BG123: 4170.24 | BH123: 3741.76 | BI123: 3227.84 | BJ123: 4239.36 | BK123: 4170.24 | BL123: 4239.36 | BM123: 4193.28 | BN123: 4119.36 | BO123: 4170.24 | BP123: 4239.36 | BQ123: 4170.24 | BR123: 4239.36 | BS123: 4170.24 | BT123: 3804.48 | BU123: 4028.16 | BV123: 4071.36 | BW123: 4170.24 | BX123: 4239.36 | BY123: =(BY103-BY120-BY121)*BY11 -> 4170.24 | BZ123: 4119.36 | CA123: 4170.24 | CB123: 4239.36 | CC123: 4193.28 | CD123: 4239.36 | CE123: 4170.24 | CF123: 3844.16 | CG123: 3965.44 | CH123: 3399.36 | CI123: 4170.24 | CJ123: 4239.36 | CK123: 4193.28 | CL123: 4119.36 | CM123: 4170.24 | CN123: 4239.36 | CO123: 4002.24 | CP123: 4239.36 | CQ123: 4170.24 | CR123: 3906.88 | CS123: 0 | CT123: 0 | CU123: 0 | CV123: 0 | CW123: 0 | CX123: 0 | CY123: 0 | CZ123: 0 | DA123: 0 | DB123: 0 | DC123: 0 | DD123: 0 | DE123: 0 | DF123: 0 | DG123: 0 | DH123: 0
C125: Opening Balance | M125: =L127 -> 0 | N125: =M127 -> 0 | O125: 0 | P125: 0 | Q125: 0 | R125: 0 | S125: 0 | T125: 0 | U125: 0 | V125: 0 | W125: 0 | X125: 0 | Y125: 0 | Z125: 0 | AA125: 0 | AB125: 0 | AC125: 0 | AD125: 0 | AE125: 0 | AF125: 0 | AG125: 0 | AH125: 0 | AI125: 0 | AJ125: 0 | AK125: 0 | AL125: 4170.24 | AM125: 8409.6 | AN125: 12579.84 | AO125: 16819.2 | AP125: 21012.48 | AQ125: 25131.84 | AR125: 29302.08 | AS125: 33541.44 | AT125: 37711.68 | AU125: 41951.04 | AV125: 46121.28 | AW125: 49823.36 | AX125: 53953.92 | AY125: 58193.28 | AZ125: 62363.52 | BA125: 66602.88 | BB125: 70773.12 | BC125: 74892.48 | BD125: 78894.72 | BE125: 83134.08 | BF125: 87327.36 | BG125: 91566.72 | BH125: 95736.96 | BI125: 99478.72 | BJ125: 0 | BK125: 4239.36 | BL125: 8409.6 | BM125: 12648.96 | BN125: 16842.24 | BO125: 20961.6 | BP125: 25131.84 | BQ125: 29371.2 | BR125: 33541.44 | BS125: 37780.8 | BT125: 41951.04 | BU125: 45755.52 | BV125: 49783.68 | BW125: 53855.04 | BX125: 58025.28 | BY125: 62264.64 | BZ125: =BY127 -> 66434.88 | CA125: 70554.24 | CB125: 74724.48 | CC125: 78963.84 | CD125: 83157.12 | CE125: 87396.48 | CF125: 91566.72 | CG125: 95410.88 | CH125: 99376.32 | CI125: 0 | CJ125: 4170.24 | CK125: 8409.6 | CL125: 12602.88 | CM125: 16722.24 | CN125: 20892.48 | CO125: 25131.84 | CP125: 29134.08 | CQ125: 33373.44 | CR125: 37543.68 | CS125: 41450.56 | CT125: 41450.56 | CU125: 41450.56 | CV125: 41450.56 | CW125: 41450.56 | CX125: 41450.56 | CY125: 41450.56 | CZ125: 41450.56 | DA125: 41450.56 | DB125: 41450.56 | DC125: 41450.56 | DD125: 41450.56 | DE125: 41450.56 | DF125: 41450.56 | DG125: 41450.56 | DH125: 41450.56
C126: Add: Net Production | M126: =M123 -> 0 | N126: =N123 -> 0 | O126: 0 | P126: 0 | Q126: 0 | R126: 0 | S126: 0 | T126: 0 | U126: 0 | V126: 0 | W126: 0 | X126: 0 | Y126: 0 | Z126: 0 | AA126: 0 | AB126: 0 | AC126: 0 | AD126: 0 | AE126: 0 | AF126: 0 | AG126: 0 | AH126: 0 | AI126: 0 | AJ126: 0 | AK126: 4170.24 | AL126: 4239.36 | AM126: 4170.24 | AN126: 4239.36 | AO126: 4193.28 | AP126: 4119.36 | AQ126: 4170.24 | AR126: 4239.36 | AS126: 4170.24 | AT126: 4239.36 | AU126: 4170.24 | AV126: 3702.08 | AW126: 4130.56 | AX126: 4239.36 | AY126: 4170.24 | AZ126: 4239.36 | BA126: 4170.24 | BB126: 4119.36 | BC126: 4002.24 | BD126: 4239.36 | BE126: 4193.28 | BF126: 4239.36 | BG126: 4170.24 | BH126: 3741.76 | BI126: 3227.84 | BJ126: 4239.36 | BK126: 4170.24 | BL126: 4239.36 | BM126: 4193.28 | BN126: 4119.36 | BO126: 4170.24 | BP126: 4239.36 | BQ126: 4170.24 | BR126: 4239.36 | BS126: 4170.24 | BT126: 3804.48 | BU126: 4028.16 | BV126: 4071.36 | BW126: 4170.24 | BX126: 4239.36 | BY126: 4170.24 | BZ126: =BZ123 -> 4119.36 | CA126: 4170.24 | CB126: 4239.36 | CC126: 4193.28 | CD126: 4239.36 | CE126: 4170.24 | CF126: 3844.16 | CG126: 3965.44 | CH126: 3399.36 | CI126: 4170.24 | CJ126: 4239.36 | CK126: 4193.28 | CL126: 4119.36 | CM126: 4170.24 | CN126: 4239.36 | CO126: 4002.24 | CP126: 4239.36 | CQ126: 4170.24 | CR126: 3906.88 | CS126: 0 | CT126: 0 | CU126: 0 | CV126: 0 | CW126: 0 | CX126: 0 | CY126: 0 | CZ126: 0 | DA126: 0 | DB126: 0 | DC126: 0 | DD126: 0 | DE126: 0 | DF126: 0 | DG126: 0 | DH126: 0
C127: Closing Balance | M127: =IF(M115,0,M125+M126) -> 0 | N127: =IF(N115,0,N125+N126) -> 0 | O127: 0 | P127: 0 | Q127: 0 | R127: 0 | S127: 0 | T127: 0 | U127: 0 | V127: 0 | W127: 0 | X127: 0 | Y127: 0 | Z127: 0 | AA127: 0 | AB127: 0 | AC127: 0 | AD127: 0 | AE127: 0 | AF127: 0 | AG127: 0 | AH127: 0 | AI127: 0 | AJ127: 0 | AK127: 4170.24 | AL127: 8409.6 | AM127: 12579.84 | AN127: 16819.2 | AO127: 21012.48 | AP127: 25131.84 | AQ127: 29302.08 | AR127: 33541.44 | AS127: 37711.68 | AT127: 41951.04 | AU127: 46121.28 | AV127: 49823.36 | AW127: 53953.92 | AX127: 58193.28 | AY127: 62363.52 | AZ127: 66602.88 | BA127: 70773.12 | BB127: 74892.48 | BC127: 78894.72 | BD127: 83134.08 | BE127: 87327.36 | BF127: 91566.72 | BG127: 95736.96 | BH127: 99478.72 | BI127: 0 | BJ127: 4239.36 | BK127: 8409.6 | BL127: 12648.96 | BM127: 16842.24 | BN127: 20961.6 | BO127: 25131.84 | BP127: 29371.2 | BQ127: 33541.44 | BR127: 37780.8 | BS127: 41951.04 | BT127: 45755.52 | BU127: 49783.68 | BV127: 53855.04 | BW127: 58025.28 | BX127: 62264.64 | BY127: 66434.88 | BZ127: =IF(BZ115,0,BZ125+BZ126) -> 70554.24 | CA127: 74724.48 | CB127: 78963.84 | CC127: 83157.12 | CD127: 87396.48 | CE127: 91566.72 | CF127: 95410.88 | CG127: 99376.32 | CH127: 0 | CI127: 4170.24 | CJ127: 8409.6 | CK127: 12602.88 | CL127: 16722.24 | CM127: 20892.48 | CN127: 25131.84 | CO127: 29134.08 | CP127: 33373.44 | CQ127: 37543.68 | CR127: 41450.56 | CS127: 41450.56 | CT127: 41450.56 | CU127: 41450.56 | CV127: 41450.56 | CW127: 41450.56 | CX127: 41450.56 | CY127: 41450.56 | CZ127: 41450.56 | DA127: 41450.56 | DB127: 41450.56 | DC127: 41450.56 | DD127: 41450.56 | DE127: 41450.56 | DF127: 41450.56 | DG127: 41450.56 | DH127: 41450.56
C129: Total Production | F129: Hrs | M129: =M123 -> 0 | N129: =N123 -> 0 | O129: 0 | P129: 0 | Q129: 0 | R129: 0 | S129: 0 | T129: 0 | U129: 0 | V129: 0 | W129: 0 | X129: 0 | Y129: 0 | Z129: 0 | AA129: 0 | AB129: 0 | AC129: 0 | AD129: 0 | AE129: 0 | AF129: 0 | AG129: 0 | AH129: 0 | AI129: 0 | AJ129: 0 | AK129: 4170.24 | AL129: 4239.36 | AM129: 4170.24 | AN129: 4239.36 | AO129: 4193.28 | AP129: 4119.36 | AQ129: 4170.24 | AR129: 4239.36 | AS129: 4170.24 | AT129: 4239.36 | AU129: 4170.24 | AV129: 3702.08 | AW129: 4130.56 | AX129: 4239.36 | AY129: 4170.24 | AZ129: 4239.36 | BA129: 4170.24 | BB129: 4119.36 | BC129: 4002.24 | BD129: 4239.36 | BE129: 4193.28 | BF129: 4239.36 | BG129: 4170.24 | BH129: 3741.76 | BI129: 3227.84 | BJ129: 4239.36 | BK129: 4170.24 | BL129: 4239.36 | BM129: 4193.28 | BN129: 4119.36 | BO129: 4170.24 | BP129: 4239.36 | BQ129: 4170.24 | BR129: 4239.36 | BS129: 4170.24 | BT129: 3804.48 | BU129: 4028.16 | BV129: 4071.36 | BW129: 4170.24 | BX129: 4239.36 | BY129: 4170.24 | BZ129: =BZ123 -> 4119.36 | CA129: 4170.24 | CB129: 4239.36 | CC129: 4193.28 | CD129: 4239.36 | CE129: 4170.24 | CF129: 3844.16 | CG129: 3965.44 | CH129: 3399.36 | CI129: 4170.24 | CJ129: 4239.36 | CK129: 4193.28 | CL129: 4119.36 | CM129: 4170.24 | CN129: 4239.36 | CO129: 4002.24 | CP129: 4239.36 | CQ129: 4170.24 | CR129: 3906.88 | CS129: 0 | CT129: 0 | CU129: 0 | CV129: 0 | CW129: 0 | CX129: 0 | CY129: 0 | CZ129: 0 | DA129: 0 | DB129: 0 | DC129: 0 | DD129: 0 | DE129: 0 | DF129: 0 | DG129: 0 | DH129: 0
C130: Total Maintenance Hours | F130: Hrs | M130: =M46-M129 -> 0 | N130: =N46-N129 -> 0 | O130: 0 | P130: 0 | Q130: 0 | R130: 0 | S130: 0 | T130: 0 | U130: 0 | V130: 0 | W130: 0 | X130: 0 | Y130: 0 | Z130: 0 | AA130: 0 | AB130: 0 | AC130: 0 | AD130: 0 | AE130: 0 | AF130: 0 | AG130: 0 | AH130: 0 | AI130: 0 | AJ130: 0 | AK130: 0 | AL130: 0 | AM130: 0 | AN130: 0 | AO130: 0 | AP130: 120 | AQ130: 0 | AR130: 0 | AS130: 0 | AT130: 0 | AU130: 0 | AV130: 537.28 | AW130: 62.72 | AX130: 0 | AY130: 0 | AZ130: 0 | BA130: 0 | BB130: 120 | BC130: 168 | BD130: 0 | BE130: 0 | BF130: 0 | BG130: 0 | BH130: 497.6 | BI130: 942.4 | BJ130: 0 | BK130: 0 | BL130: 0 | BM130: 0 | BN130: 120 | BO130: 0 | BP130: 0 | BQ130: 0 | BR130: 0 | BS130: 0 | BT130: 434.88 | BU130: 165.12 | BV130: 168 | BW130: 0 | BX130: 0 | BY130: 0 | BZ130: =BZ46-BZ129 -> 120 | CA130: 0 | CB130: 0 | CC130: 0 | CD130: 0 | CE130: 0 | CF130: 395.2 | CG130: 204.8 | CH130: 840 | CI130: 0 | CJ130: 0 | CK130: 0 | CL130: 120 | CM130: 0 | CN130: 0 | CO130: 168 | CP130: 0 | CQ130: 0 | CR130: 332.48 | CS130: 0 | CT130: 0 | CU130: 0 | CV130: 0 | CW130: 0 | CX130: 0 | CY130: 0 | CZ130: 0 | DA130: 0 | DB130: 0 | DC130: 0 | DD130: 0 | DE130: 0 | DF130: 0 | DG130: 0 | DH130: 0
C131: Maintenance as Percent of Total Hours | F131: % | M131: =IF(M40,M130/M40,0) -> 0 | N131: =IF(N40,N130/N40,0) -> 0 | O131: 0 | P131: 0 | Q131: 0 | R131: 0 | S131: 0 | T131: 0 | U131: 0 | V131: 0 | W131: 0 | X131: 0 | Y131: 0 | Z131: 0 | AA131: 0 | AB131: 0 | AC131: 0 | AD131: 0 | AE131: 0 | AF131: 0 | AG131: 0 | AH131: 0 | AI131: 0 | AJ131: 0 | AK131: 0 | AL131: 0 | AM131: 0 | AN131: 0 | AO131: 0 | AP131: 0.02717391304 | AQ131: 0 | AR131: 0 | AS131: 0 | AT131: 0 | AU131: 0 | AV131: 0.1216666667 | AW131: 0.01435897436 | AX131: 0 | AY131: 0 | AZ131: 0 | BA131: 0 | BB131: 0.02717391304 | BC131: 0.03867403315 | BD131: 0 | BE131: 0 | BF131: 0 | BG131: 0 | BH131: 0.1126811594 | BI131: 0.2169429098 | BJ131: 0 | BK131: 0 | BL131: 0 | BM131: 0 | BN131: 0.02717391304 | BO131: 0 | BP131: 0 | BQ131: 0 | BR131: 0 | BS131: 0 | BT131: 0.09847826087 | BU131: 0.0378021978 | BV131: 0.03804347826 | BW131: 0 | BX131: 0 | BY131: 0 | BZ131: =IF(BZ40,BZ130/BZ40,0) -> 0.02717391304 | CA131: 0 | CB131: 0 | CC131: 0 | CD131: 0 | CE131: 0 | CF131: 0.08949275362 | CG131: 0.04714548803 | CH131: 0.1902173913 | CI131: 0 | CJ131: 0 | CK131: 0 | CL131: 0.02717391304 | CM131: 0 | CN131: 0 | CO131: 0.03867403315 | CP131: 0 | CQ131: 0 | CR131: 0.07528985507 | CS131: 0 | CT131: 0 | CU131: 0 | CV131: 0 | CW131: 0 | CX131: 0 | CY131: 0 | CZ131: 0 | DA131: 0 | DB131: 0 | DC131: 0 | DD131: 0 | DE131: 0 | DF131: 0 | DG131: 0 | DH131: 0
B133: Degradation
C134: Capacity Degradation
D135: Degradation Recovery Period | M135: =M75 -> FALSE | N135: =N75 -> FALSE | O135: FALSE | P135: FALSE | Q135: FALSE | R135: FALSE | S135: FALSE | T135: FALSE | U135: FALSE | V135: FALSE | W135: FALSE | X135: FALSE | Y135: FALSE | Z135: FALSE | AA135: FALSE | AB135: FALSE | AC135: FALSE | AD135: FALSE | AE135: FALSE | AF135: FALSE | AG135: FALSE | AH135: FALSE | AI135: FALSE | AJ135: FALSE | AK135: FALSE | AL135: FALSE | AM135: FALSE | AN135: FALSE | AO135: FALSE | AP135: FALSE | AQ135: FALSE | AR135: FALSE | AS135: FALSE | AT135: FALSE | AU135: FALSE | AV135: TRUE | AW135: FALSE | AX135: FALSE | AY135: FALSE | AZ135: FALSE | BA135: FALSE | BB135: FALSE | BC135: FALSE | BD135: FALSE | BE135: FALSE | BF135: FALSE | BG135: FALSE | BH135: TRUE | BI135: FALSE | BJ135: FALSE | BK135: FALSE | BL135: FALSE | BM135: FALSE | BN135: FALSE | BO135: FALSE | BP135: FALSE | BQ135: FALSE | BR135: FALSE | BS135: FALSE | BT135: TRUE | BU135: FALSE | BV135: FALSE | BW135: FALSE | BX135: FALSE | BY135: FALSE | BZ135: =BZ75 -> FALSE | CA135: FALSE | CB135: FALSE | CC135: FALSE | CD135: FALSE | CE135: FALSE | CF135: TRUE | CG135: FALSE | CH135: FALSE | CI135: FALSE | CJ135: FALSE | CK135: FALSE | CL135: FALSE | CM135: FALSE | CN135: FALSE | CO135: FALSE | CP135: FALSE | CQ135: FALSE | CR135: TRUE | CS135: FALSE | CT135: FALSE | CU135: FALSE | CV135: FALSE | CW135: FALSE | CX135: FALSE | CY135: FALSE | CZ135: FALSE | DA135: FALSE | DB135: FALSE | DC135: FALSE | DD135: FALSE | DE135: FALSE | DF135: FALSE | DG135: FALSE | DH135: FALSE
D136: Recovery of Degradation | F136: % | G136: % p.a. | H136: ='Assumptions - Technology'!G49 -> 1 | M136: =$H$136*M135 -> 0 | N136: =$H$136*N135 -> 0 | O136: 0 | P136: 0 | Q136: 0 | R136: 0 | S136: 0 | T136: 0 | U136: 0 | V136: 0 | W136: 0 | X136: 0 | Y136: 0 | Z136: 0 | AA136: 0 | AB136: 0 | AC136: 0 | AD136: 0 | AE136: 0 | AF136: 0 | AG136: 0 | AH136: 0 | AI136: 0 | AJ136: 0 | AK136: 0 | AL136: 0 | AM136: 0 | AN136: 0 | AO136: 0 | AP136: 0 | AQ136: 0 | AR136: 0 | AS136: 0 | AT136: 0 | AU136: 0 | AV136: 1 | AW136: 0 | AX136: 0 | AY136: 0 | AZ136: 0 | BA136: 0 | BB136: 0 | BC136: 0 | BD136: 0 | BE136: 0 | BF136: 0 | BG136: 0 | BH136: 1 | BI136: 0 | BJ136: 0 | BK136: 0 | BL136: 0 | BM136: 0 | BN136: 0 | BO136: 0 | BP136: 0 | BQ136: 0 | BR136: 0 | BS136: 0 | BT136: 1 | BU136: 0 | BV136: 0 | BW136: 0 | BX136: 0 | BY136: 0 | BZ136: =$H$136*BZ135 -> 0 | CA136: 0 | CB136: 0 | CC136: 0 | CD136: 0 | CE136: 0 | CF136: 1 | CG136: 0 | CH136: 0 | CI136: 0 | CJ136: 0 | CK136: 0 | CL136: 0 | CM136: 0 | CN136: 0 | CO136: 0 | CP136: 0 | CQ136: 0 | CR136: 1 | CS136: 0 | CT136: 0 | CU136: 0 | CV136: 0 | CW136: 0 | CX136: 0 | CY136: 0 | CZ136: 0 | DA136: 0 | DB136: 0 | DC136: 0 | DD136: 0 | DE136: 0 | DF136: 0 | DG136: 0 | DH136: 0
D137: Recovery Index | L137: 1 | M137: =IF(M135,M136*L137,L137) -> 1 | N137: =IF(N135,N136*M137,M137) -> 1 | O137: 1 | P137: 1 | Q137: 1 | R137: 1 | S137: 1 | T137: 1 | U137: 1 | V137: 1 | W137: 1 | X137: 1 | Y137: 1 | Z137: 1 | AA137: 1 | AB137: 1 | AC137: 1 | AD137: 1 | AE137: 1 | AF137: 1 | AG137: 1 | AH137: 1 | AI137: 1 | AJ137: 1 | AK137: 1 | AL137: 1 | AM137: 1 | AN137: 1 | AO137: 1 | AP137: 1 | AQ137: 1 | AR137: 1 | AS137: 1 | AT137: 1 | AU137: 1 | AV137: 1 | AW137: 1 | AX137: 1 | AY137: 1 | AZ137: 1 | BA137: 1 | BB137: 1 | BC137: 1 | BD137: 1 | BE137: 1 | BF137: 1 | BG137: 1 | BH137: 1 | BI137: 1 | BJ137: 1 | BK137: 1 | BL137: 1 | BM137: 1 | BN137: 1 | BO137: 1 | BP137: 1 | BQ137: 1 | BR137: 1 | BS137: 1 | BT137: 1 | BU137: 1 | BV137: 1 | BW137: 1 | BX137: 1 | BY137: 1 | BZ137: =IF(BZ135,BZ136*BY137,BY137) -> 1 | CA137: 1 | CB137: 1 | CC137: 1 | CD137: 1 | CE137: 1 | CF137: 1 | CG137: 1 | CH137: 1 | CI137: 1 | CJ137: 1 | CK137: 1 | CL137: 1 | CM137: 1 | CN137: 1 | CO137: 1 | CP137: 1 | CQ137: 1 | CR137: 1 | CS137: 1 | CT137: 1 | CU137: 1 | CV137: 1 | CW137: 1 | CX137: 1 | CY137: 1 | CZ137: 1 | DA137: 1 | DB137: 1 | DC137: 1 | DD137: 1 | DE137: 1 | DF137: 1 | DG137: 1 | DH137: 1
D138: Capacity Degradation Index | F138: % | G138: % p.a. | H138: ='Assumptions - Technology'!G48 -> 0.001226398699 | I138: =(1+H138)^(1/2)-1 -> 0.0006130114578 | L138: 1 | M138: =IF(M135,M137,L138*(1-$I$138*M11)) -> 1 | N138: 1 | O138: 1 | P138: 1 | Q138: 1 | R138: 1 | S138: 1 | T138: 1 | U138: 1 | V138: 1 | W138: 1 | X138: 1 | Y138: 1 | Z138: 1 | AA138: 1 | AB138: 1 | AC138: 1 | AD138: 1 | AE138: 1 | AF138: 1 | AG138: 1 | AH138: 1 | AI138: 1 | AJ138: 1 | AK138: 0.9993869885 | AL138: 0.9987743529 | AM138: 0.9981620927 | AN138: 0.9975502079 | AO138: 0.9969386982 | AP138: 0.9963275634 | AQ138: 0.9957168032 | AR138: 0.9951064174 | AS138: =IF(AS135,AS137,AR138*(1-$I$138*AS11)) -> 0.9944964057 | AT138: 0.993886768 | AU138: 0.9932775041 | AV138: 1 | AW138: 0.9993869885 | AX138: 0.9987743529 | AY138: 0.9981620927 | AZ138: 0.9975502079 | BA138: 0.9969386982 | BB138: 0.9963275634 | BC138: 0.9957168032 | BD138: 0.9951064174 | BE138: 0.9944964057 | BF138: 0.993886768 | BG138: 0.9932775041 | BH138: 1 | BI138: 0.9993869885 | BJ138: 0.9987743529 | BK138: 0.9981620927 | BL138: 0.9975502079 | BM138: 0.9969386982 | BN138: 0.9963275634 | BO138: 0.9957168032 | BP138: 0.9951064174 | BQ138: 0.9944964057 | BR138: 0.993886768 | BS138: 0.9932775041 | BT138: 1 | BU138: 0.9993869885 | BV138: 0.9987743529 | BW138: 0.9981620927 | BX138: 0.9975502079 | BY138: =IF(BY135,BY137,BX138*(1-$I$138*BY11)) -> 0.9969386982 | BZ138: 0.9963275634 | CA138: 0.9957168032 | CB138: 0.9951064174 | CC138: 0.9944964057 | CD138: 0.993886768 | CE138: 0.9932775041 | CF138: 1 | CG138: 0.9993869885 | CH138: 0.9987743529 | CI138: 0.9981620927 | CJ138: 0.9975502079 | CK138: 0.9969386982 | CL138: 0.9963275634 | CM138: 0.9957168032 | CN138: 0.9951064174 | CO138: 0.9944964057 | CP138: 0.993886768 | CQ138: 0.9932775041 | CR138: 1 | CS138: 1 | CT138: 1 | CU138: 1 | CV138: 1 | CW138: 1 | CX138: 1 | CY138: 1 | CZ138: 1 | DA138: 1 | DB138: 1 | DC138: 1 | DD138: 1 | DE138: =IF(DE135,DE137,DD138*(1-$I$138*DE11)) -> 1 | DF138: 1 | DG138: 1 | DH138: 1
C140: Heat Rate Degradation
D141: Degradation Recovery Period | M141: =M135 -> FALSE | N141: =N135 -> FALSE | O141: FALSE | P141: FALSE | Q141: FALSE | R141: FALSE | S141: FALSE | T141: FALSE | U141: FALSE | V141: FALSE | W141: FALSE | X141: FALSE | Y141: FALSE | Z141: FALSE | AA141: FALSE | AB141: FALSE | AC141: FALSE | AD141: FALSE | AE141: FALSE | AF141: FALSE | AG141: FALSE | AH141: FALSE | AI141: FALSE | AJ141: FALSE | AK141: FALSE | AL141: FALSE | AM141: FALSE | AN141: FALSE | AO141: FALSE | AP141: FALSE | AQ141: FALSE | AR141: FALSE | AS141: FALSE | AT141: FALSE | AU141: FALSE | AV141: TRUE | AW141: FALSE | AX141: FALSE | AY141: FALSE | AZ141: FALSE | BA141: FALSE | BB141: FALSE | BC141: FALSE | BD141: FALSE | BE141: FALSE | BF141: FALSE | BG141: FALSE | BH141: TRUE | BI141: FALSE | BJ141: FALSE | BK141: FALSE | BL141: FALSE | BM141: FALSE | BN141: FALSE | BO141: FALSE | BP141: FALSE | BQ141: FALSE | BR141: FALSE | BS141: FALSE | BT141: TRUE | BU141: FALSE | BV141: FALSE | BW141: FALSE | BX141: FALSE | BY141: FALSE | BZ141: =BZ135 -> FALSE | CA141: FALSE | CB141: FALSE | CC141: FALSE | CD141: FALSE | CE141: FALSE | CF141: TRUE | CG141: FALSE | CH141: FALSE | CI141: FALSE | CJ141: FALSE | CK141: FALSE | CL141: FALSE | CM141: FALSE | CN141: FALSE | CO141: FALSE | CP141: FALSE | CQ141: FALSE | CR141: TRUE | CS141: FALSE | CT141: FALSE | CU141: FALSE | CV141: FALSE | CW141: FALSE | CX141: FALSE | CY141: FALSE | CZ141: FALSE | DA141: FALSE | DB141: FALSE | DC141: FALSE | DD141: FALSE | DE141: FALSE | DF141: FALSE | DG141: FALSE | DH141: FALSE
D142: Recovery of Degradation | F142: % | G142: % p.a. | H142: ='Assumptions - Technology'!G53 -> 1 | M142: =$H$142*M141 -> 0 | N142: =$H$142*N141 -> 0 | O142: 0 | P142: 0 | Q142: 0 | R142: 0 | S142: 0 | T142: 0 | U142: 0 | V142: 0 | W142: 0 | X142: 0 | Y142: 0 | Z142: 0 | AA142: 0 | AB142: 0 | AC142: 0 | AD142: 0 | AE142: 0 | AF142: 0 | AG142: 0 | AH142: 0 | AI142: 0 | AJ142: 0 | AK142: 0 | AL142: 0 | AM142: 0 | AN142: 0 | AO142: 0 | AP142: 0 | AQ142: 0 | AR142: 0 | AS142: 0 | AT142: 0 | AU142: 0 | AV142: 1 | AW142: 0 | AX142: 0 | AY142: 0 | AZ142: 0 | BA142: 0 | BB142: 0 | BC142: 0 | BD142: 0 | BE142: 0 | BF142: 0 | BG142: 0 | BH142: 1 | BI142: 0 | BJ142: 0 | BK142: 0 | BL142: 0 | BM142: 0 | BN142: 0 | BO142: 0 | BP142: 0 | BQ142: 0 | BR142: 0 | BS142: 0 | BT142: 1 | BU142: 0 | BV142: 0 | BW142: 0 | BX142: 0 | BY142: 0 | BZ142: =$H$142*BZ141 -> 0 | CA142: 0 | CB142: 0 | CC142: 0 | CD142: 0 | CE142: 0 | CF142: 1 | CG142: 0 | CH142: 0 | CI142: 0 | CJ142: 0 | CK142: 0 | CL142: 0 | CM142: 0 | CN142: 0 | CO142: 0 | CP142: 0 | CQ142: 0 | CR142: 1 | CS142: 0 | CT142: 0 | CU142: 0 | CV142: 0 | CW142: 0 | CX142: 0 | CY142: 0 | CZ142: 0 | DA142: 0 | DB142: 0 | DC142: 0 | DD142: 0 | DE142: 0 | DF142: 0 | DG142: 0 | DH142: 0
D143: Recovery Index | L143: 1 | M143: =IF(M141,M142,L143) -> 1 | N143: =IF(N141,N142,M143) -> 1 | O143: 1 | P143: 1 | Q143: 1 | R143: 1 | S143: 1 | T143: 1 | U143: 1 | V143: 1 | W143: 1 | X143: 1 | Y143: 1 | Z143: 1 | AA143: 1 | AB143: 1 | AC143: 1 | AD143: 1 | AE143: 1 | AF143: 1 | AG143: 1 | AH143: 1 | AI143: 1 | AJ143: 1 | AK143: 1 | AL143: 1 | AM143: 1 | AN143: 1 | AO143: 1 | AP143: 1 | AQ143: 1 | AR143: 1 | AS143: 1 | AT143: 1 | AU143: 1 | AV143: 1 | AW143: 1 | AX143: 1 | AY143: 1 | AZ143: 1 | BA143: 1 | BB143: 1 | BC143: 1 | BD143: 1 | BE143: 1 | BF143: 1 | BG143: 1 | BH143: 1 | BI143: 1 | BJ143: 1 | BK143: 1 | BL143: 1 | BM143: 1 | BN143: 1 | BO143: 1 | BP143: 1 | BQ143: 1 | BR143: 1 | BS143: 1 | BT143: 1 | BU143: 1 | BV143: 1 | BW143: 1 | BX143: 1 | BY143: 1 | BZ143: =IF(BZ141,BZ142,BY143) -> 1 | CA143: 1 | CB143: 1 | CC143: 1 | CD143: 1 | CE143: 1 | CF143: 1 | CG143: 1 | CH143: 1 | CI143: 1 | CJ143: 1 | CK143: 1 | CL143: 1 | CM143: 1 | CN143: 1 | CO143: 1 | CP143: 1 | CQ143: 1 | CR143: 1 | CS143: 1 | CT143: 1 | CU143: 1 | CV143: 1 | CW143: 1 | CX143: 1 | CY143: 1 | CZ143: 1 | DA143: 1 | DB143: 1 | DC143: 1 | DD143: 1 | DE143: 1 | DF143: 1 | DG143: 1 | DH143: 1
D144: Heat Rate Degradation Index | F144: % | G144: % p.a. | H144: ='Assumptions - Technology'!G52 -> 0.0009241393239 | I144: =(1+H144)^(1/2)-1 -> 0.0004619629571 | L144: 1 | M144: =IF(M141,M143,L144*(1+$I$144*M11)) -> 1 | N144: 1 | O144: 1 | P144: 1 | Q144: 1 | R144: 1 | S144: 1 | T144: 1 | U144: 1 | V144: 1 | W144: 1 | X144: 1 | Y144: 1 | Z144: 1 | AA144: 1 | AB144: 1 | AC144: 1 | AD144: 1 | AE144: 1 | AF144: 1 | AG144: 1 | AH144: 1 | AI144: 1 | AJ144: 1 | AK144: 1.000461963 | AL144: 1.000924139 | AM144: 1.001386529 | AN144: 1.001849133 | AO144: 1.00231195 | AP144: 1.002774981 | AQ144: 1.003238226 | AR144: 1.003701685 | AS144: =IF(AS141,AS143,AR144*(1+$I$144*AS11)) -> 1.004165358 | AT144: 1.004629245 | AU144: 1.005093346 | AV144: 1 | AW144: 1.000461963 | AX144: 1.000924139 | AY144: 1.001386529 | AZ144: 1.001849133 | BA144: 1.00231195 | BB144: 1.002774981 | BC144: 1.003238226 | BD144: 1.003701685 | BE144: 1.004165358 | BF144: 1.004629245 | BG144: 1.005093346 | BH144: 1 | BI144: 1.000461963 | BJ144: 1.000924139 | BK144: 1.001386529 | BL144: 1.001849133 | BM144: 1.00231195 | BN144: 1.002774981 | BO144: 1.003238226 | BP144: 1.003701685 | BQ144: 1.004165358 | BR144: 1.004629245 | BS144: 1.005093346 | BT144: 1 | BU144: 1.000461963 | BV144: 1.000924139 | BW144: 1.001386529 | BX144: 1.001849133 | BY144: =IF(BY141,BY143,BX144*(1+$I$144*BY11)) -> 1.00231195 | BZ144: 1.002774981 | CA144: 1.003238226 | CB144: 1.003701685 | CC144: 1.004165358 | CD144: 1.004629245 | CE144: 1.005093346 | CF144: 1 | CG144: 1.000461963 | CH144: 1.000924139 | CI144: 1.001386529 | CJ144: 1.001849133 | CK144: 1.00231195 | CL144: 1.002774981 | CM144: 1.003238226 | CN144: 1.003701685 | CO144: 1.004165358 | CP144: 1.004629245 | CQ144: 1.005093346 | CR144: 1 | CS144: 1 | CT144: 1 | CU144: 1 | CV144: 1 | CW144: 1 | CX144: 1 | CY144: 1 | CZ144: 1 | DA144: 1 | DB144: 1 | DC144: 1 | DD144: 1 | DE144: =IF(DE141,DE143,DD144*(1+$I$144*DE11)) -> 1 | DF144: 1 | DG144: 1 | DH144: 1
A146: Capacity, Heat Rate, Generation and Fuel Use
C147: Gross Capacity for Fuel Cost Measurement | F147: MW | M147: =M34 -> 0 | N147: =N34 -> 0 | O147: 0 | P147: 0 | Q147: 0 | R147: 0 | S147: 0 | T147: 0 | U147: 0 | V147: 0 | W147: 0 | X147: 0 | Y147: 0 | Z147: 0 | AA147: 0 | AB147: 0 | AC147: 0 | AD147: 0 | AE147: 0 | AF147: 0 | AG147: 0 | AH147: 0 | AI147: 0 | AJ147: 0 | AK147: 178.3333333 | AL147: 185 | AM147: 178.3333333 | AN147: 185 | AO147: 178.3333333 | AP147: 185 | AQ147: 178.3333333 | AR147: 185 | AS147: 178.3333333 | AT147: 185 | AU147: 178.3333333 | AV147: 185 | AW147: 178.3333333 | AX147: 185 | AY147: 178.3333333 | AZ147: 185 | BA147: 178.3333333 | BB147: 185 | BC147: 178.3333333 | BD147: 185 | BE147: 178.3333333 | BF147: 185 | BG147: 178.3333333 | BH147: 185 | BI147: 178.3333333 | BJ147: 185 | BK147: 178.3333333 | BL147: 185 | BM147: 178.3333333 | BN147: 185 | BO147: 178.3333333 | BP147: 185 | BQ147: 178.3333333 | BR147: 185 | BS147: 178.3333333 | BT147: 185 | BU147: 178.3333333 | BV147: 185 | BW147: 178.3333333 | BX147: 185 | BY147: 178.3333333 | BZ147: =BZ34 -> 185 | CA147: 178.3333333 | CB147: 185 | CC147: 178.3333333 | CD147: 185 | CE147: 178.3333333 | CF147: 185 | CG147: 178.3333333 | CH147: 185 | CI147: 178.3333333 | CJ147: 185 | CK147: 178.3333333 | CL147: 185 | CM147: 178.3333333 | CN147: 185 | CO147: 178.3333333 | CP147: 185 | CQ147: 178.3333333 | CR147: 185 | CS147: 0 | CT147: 0 | CU147: 0 | CV147: 0 | CW147: 0 | CX147: 0 | CY147: 0 | CZ147: 0 | DA147: 0 | DB147: 0 | DC147: 0 | DD147: 0 | DE147: 0 | DF147: 0 | DG147: 0 | DH147: 0
C148: Auxiliary Use | F148: MW | M148: =M35 -> 0 | N148: =N35 -> 0 | O148: 0 | P148: 0 | Q148: 0 | R148: 0 | S148: 0 | T148: 0 | U148: 0 | V148: 0 | W148: 0 | X148: 0 | Y148: 0 | Z148: 0 | AA148: 0 | AB148: 0 | AC148: 0 | AD148: 0 | AE148: 0 | AF148: 0 | AG148: 0 | AH148: 0 | AI148: 0 | AJ148: 0 | AK148: 3.566666667 | AL148: 3.7 | AM148: 3.566666667 | AN148: 3.7 | AO148: 3.566666667 | AP148: 3.7 | AQ148: 3.566666667 | AR148: 3.7 | AS148: 3.566666667 | AT148: 3.7 | AU148: 3.566666667 | AV148: 3.7 | AW148: 3.566666667 | AX148: 3.7 | AY148: 3.566666667 | AZ148: 3.7 | BA148: 3.566666667 | BB148: 3.7 | BC148: 3.566666667 | BD148: 3.7 | BE148: 3.566666667 | BF148: 3.7 | BG148: 3.566666667 | BH148: 3.7 | BI148: 3.566666667 | BJ148: 3.7 | BK148: 3.566666667 | BL148: 3.7 | BM148: 3.566666667 | BN148: 3.7 | BO148: 3.566666667 | BP148: 3.7 | BQ148: 3.566666667 | BR148: 3.7 | BS148: 3.566666667 | BT148: 3.7 | BU148: 3.566666667 | BV148: 3.7 | BW148: 3.566666667 | BX148: 3.7 | BY148: 3.566666667 | BZ148: =BZ35 -> 3.7 | CA148: 3.566666667 | CB148: 3.7 | CC148: 3.566666667 | CD148: 3.7 | CE148: 3.566666667 | CF148: 3.7 | CG148: 3.566666667 | CH148: 3.7 | CI148: 3.566666667 | CJ148: 3.7 | CK148: 3.566666667 | CL148: 3.7 | CM148: 3.566666667 | CN148: 3.7 | CO148: 3.566666667 | CP148: 3.7 | CQ148: 3.566666667 | CR148: 3.7 | CS148: 0 | CT148: 0 | CU148: 0 | CV148: 0 | CW148: 0 | CX148: 0 | CY148: 0 | CZ148: 0 | DA148: 0 | DB148: 0 | DC148: 0 | DD148: 0 | DE148: 0 | DF148: 0 | DG148: 0 | DH148: 0
C149: Net Generation for Export | F149: MW | M149: =M147-M148 -> 0 | N149: =N147-N148 -> 0 | O149: 0 | P149: 0 | Q149: 0 | R149: 0 | S149: 0 | T149: 0 | U149: 0 | V149: 0 | W149: 0 | X149: 0 | Y149: 0 | Z149: 0 | AA149: 0 | AB149: 0 | AC149: 0 | AD149: 0 | AE149: 0 | AF149: 0 | AG149: 0 | AH149: 0 | AI149: 0 | AJ149: 0 | AK149: 174.7666667 | AL149: 181.3 | AM149: 174.7666667 | AN149: 181.3 | AO149: 174.7666667 | AP149: 181.3 | AQ149: 174.7666667 | AR149: 181.3 | AS149: 174.7666667 | AT149: 181.3 | AU149: 174.7666667 | AV149: 181.3 | AW149: 174.7666667 | AX149: 181.3 | AY149: 174.7666667 | AZ149: 181.3 | BA149: 174.7666667 | BB149: 181.3 | BC149: 174.7666667 | BD149: 181.3 | BE149: 174.7666667 | BF149: 181.3 | BG149: 174.7666667 | BH149: 181.3 | BI149: 174.7666667 | BJ149: 181.3 | BK149: 174.7666667 | BL149: 181.3 | BM149: 174.7666667 | BN149: 181.3 | BO149: 174.7666667 | BP149: 181.3 | BQ149: 174.7666667 | BR149: 181.3 | BS149: 174.7666667 | BT149: 181.3 | BU149: 174.7666667 | BV149: 181.3 | BW149: 174.7666667 | BX149: 181.3 | BY149: 174.7666667 | BZ149: =BZ147-BZ148 -> 181.3 | CA149: 174.7666667 | CB149: 181.3 | CC149: 174.7666667 | CD149: 181.3 | CE149: 174.7666667 | CF149: 181.3 | CG149: 174.7666667 | CH149: 181.3 | CI149: 174.7666667 | CJ149: 181.3 | CK149: 174.7666667 | CL149: 181.3 | CM149: 174.7666667 | CN149: 181.3 | CO149: 174.7666667 | CP149: 181.3 | CQ149: 174.7666667 | CR149: 181.3 | CS149: 0 | CT149: 0 | CU149: 0 | CV149: 0 | CW149: 0 | CX149: 0 | CY149: 0 | CZ149: 0 | DA149: 0 | DB149: 0 | DC149: 0 | DD149: 0 | DE149: 0 | DF149: 0 | DG149: 0 | DH149: 0
C151: Hours of Generation | F151: hrs | M151: =M123 -> 0 | N151: =N123 -> 0 | O151: 0 | P151: 0 | Q151: 0 | R151: 0 | S151: 0 | T151: 0 | U151: 0 | V151: 0 | W151: 0 | X151: 0 | Y151: 0 | Z151: 0 | AA151: 0 | AB151: 0 | AC151: 0 | AD151: 0 | AE151: 0 | AF151: 0 | AG151: 0 | AH151: 0 | AI151: 0 | AJ151: 0 | AK151: 4170.24 | AL151: 4239.36 | AM151: 4170.24 | AN151: 4239.36 | AO151: 4193.28 | AP151: 4119.36 | AQ151: 4170.24 | AR151: 4239.36 | AS151: 4170.24 | AT151: 4239.36 | AU151: 4170.24 | AV151: 3702.08 | AW151: 4130.56 | AX151: 4239.36 | AY151: 4170.24 | AZ151: 4239.36 | BA151: 4170.24 | BB151: 4119.36 | BC151: 4002.24 | BD151: 4239.36 | BE151: 4193.28 | BF151: 4239.36 | BG151: 4170.24 | BH151: 3741.76 | BI151: 3227.84 | BJ151: 4239.36 | BK151: 4170.24 | BL151: 4239.36 | BM151: 4193.28 | BN151: 4119.36 | BO151: 4170.24 | BP151: 4239.36 | BQ151: 4170.24 | BR151: 4239.36 | BS151: 4170.24 | BT151: 3804.48 | BU151: 4028.16 | BV151: 4071.36 | BW151: 4170.24 | BX151: 4239.36 | BY151: 4170.24 | BZ151: =BZ123 -> 4119.36 | CA151: 4170.24 | CB151: 4239.36 | CC151: 4193.28 | CD151: 4239.36 | CE151: 4170.24 | CF151: 3844.16 | CG151: 3965.44 | CH151: 3399.36 | CI151: 4170.24 | CJ151: 4239.36 | CK151: 4193.28 | CL151: 4119.36 | CM151: 4170.24 | CN151: 4239.36 | CO151: 4002.24 | CP151: 4239.36 | CQ151: 4170.24 | CR151: 3906.88 | CS151: 0 | CT151: 0 | CU151: 0 | CV151: 0 | CW151: 0 | CX151: 0 | CY151: 0 | CZ151: 0 | DA151: 0 | DB151: 0 | DC151: 0 | DD151: 0 | DE151: 0 | DF151: 0 | DG151: 0 | DH151: 0
C152: Energy Generation - Gross | F152: MWH | M152: =M151*M147 -> 0 | N152: =N151*N147 -> 0 | O152: 0 | P152: 0 | Q152: 0 | R152: 0 | S152: 0 | T152: 0 | U152: 0 | V152: 0 | W152: 0 | X152: 0 | Y152: 0 | Z152: 0 | AA152: 0 | AB152: 0 | AC152: 0 | AD152: 0 | AE152: 0 | AF152: 0 | AG152: 0 | AH152: 0 | AI152: 0 | AJ152: 0 | AK152: 743692.8 | AL152: 784281.6 | AM152: 743692.8 | AN152: 784281.6 | AO152: 747801.6 | AP152: 762081.6 | AQ152: 743692.8 | AR152: 784281.6 | AS152: 743692.8 | AT152: 784281.6 | AU152: 743692.8 | AV152: 684884.8 | AW152: 736616.5333 | AX152: 784281.6 | AY152: 743692.8 | AZ152: 784281.6 | BA152: 743692.8 | BB152: 762081.6 | BC152: 713732.8 | BD152: 784281.6 | BE152: 747801.6 | BF152: 784281.6 | BG152: 743692.8 | BH152: 692225.6 | BI152: 575631.4667 | BJ152: 784281.6 | BK152: 743692.8 | BL152: 784281.6 | BM152: 747801.6 | BN152: 762081.6 | BO152: 743692.8 | BP152: 784281.6 | BQ152: 743692.8 | BR152: 784281.6 | BS152: 743692.8 | BT152: 703828.8 | BU152: 718355.2 | BV152: 753201.6 | BW152: 743692.8 | BX152: 784281.6 | BY152: 743692.8 | BZ152: =BZ151*BZ147 -> 762081.6 | CA152: 743692.8 | CB152: 784281.6 | CC152: 747801.6 | CD152: 784281.6 | CE152: 743692.8 | CF152: 711169.6 | CG152: 707170.1333 | CH152: 628881.6 | CI152: 743692.8 | CJ152: 784281.6 | CK152: 747801.6 | CL152: 762081.6 | CM152: 743692.8 | CN152: 784281.6 | CO152: 713732.8 | CP152: 784281.6 | CQ152: 743692.8 | CR152: 722772.8 | CS152: 0 | CT152: 0 | CU152: 0 | CV152: 0 | CW152: 0 | CX152: 0 | CY152: 0 | CZ152: 0 | DA152: 0 | DB152: 0 | DC152: 0 | DD152: 0 | DE152: 0 | DF152: 0 | DG152: 0 | DH152: 0
C153: Energy Generation - Net Export | F153: MWH | M153: =M151*M149 -> 0 | N153: =N151*N149 -> 0 | O153: 0 | P153: 0 | Q153: 0 | R153: 0 | S153: 0 | T153: 0 | U153: 0 | V153: 0 | W153: 0 | X153: 0 | Y153: 0 | Z153: 0 | AA153: 0 | AB153: 0 | AC153: 0 | AD153: 0 | AE153: 0 | AF153: 0 | AG153: 0 | AH153: 0 | AI153: 0 | AJ153: 0 | AK153: 728818.944 | AL153: 768595.968 | AM153: 728818.944 | AN153: 768595.968 | AO153: 732845.568 | AP153: 746839.968 | AQ153: 728818.944 | AR153: 768595.968 | AS153: 728818.944 | AT153: 768595.968 | AU153: 728818.944 | AV153: 671187.104 | AW153: 721884.2027 | AX153: 768595.968 | AY153: 728818.944 | AZ153: 768595.968 | BA153: 728818.944 | BB153: 746839.968 | BC153: 699458.144 | BD153: 768595.968 | BE153: 732845.568 | BF153: 768595.968 | BG153: 728818.944 | BH153: 678381.088 | BI153: 564118.8373 | BJ153: 768595.968 | BK153: 728818.944 | BL153: 768595.968 | BM153: 732845.568 | BN153: 746839.968 | BO153: 728818.944 | BP153: 768595.968 | BQ153: 728818.944 | BR153: 768595.968 | BS153: 728818.944 | BT153: 689752.224 | BU153: 703988.096 | BV153: 738137.568 | BW153: 728818.944 | BX153: 768595.968 | BY153: 728818.944 | BZ153: =BZ151*BZ149 -> 746839.968 | CA153: 728818.944 | CB153: 768595.968 | CC153: 732845.568 | CD153: 768595.968 | CE153: 728818.944 | CF153: 696946.208 | CG153: 693026.7307 | CH153: 616303.968 | CI153: 728818.944 | CJ153: 768595.968 | CK153: 732845.568 | CL153: 746839.968 | CM153: 728818.944 | CN153: 768595.968 | CO153: 699458.144 | CP153: 768595.968 | CQ153: 728818.944 | CR153: 708317.344 | CS153: 0 | CT153: 0 | CU153: 0 | CV153: 0 | CW153: 0 | CX153: 0 | CY153: 0 | CZ153: 0 | DA153: 0 | DB153: 0 | DC153: 0 | DD153: 0 | DE153: 0 | DF153: 0 | DG153: 0 | DH153: 0
C155: Full Capacity Heat Rate (LHV) Before Degradation | F155: BTU/kWh | G155: ='Assumptions - Technology'!G31 -> 6700 | H155: Summer | I155: ='Assumptions - Technology'!G33 -> 6531 | J155: Winter | M155: =($G$155*M22+$I$155*M23) -> 6700 | N155: =($G$155*N22+$I$155*N23) -> 6700 | O155: 6700 | P155: 6700 | Q155: 6700 | R155: 6700 | S155: 6700 | T155: 6700 | U155: 6700 | V155: 7883 | W155: 7883 | X155: 6700 | Y155: 6700 | Z155: 6700 | AA155: 6700 | AB155: 6700 | AC155: 6700 | AD155: 6700 | AE155: 6700 | AF155: 6700 | AG155: 6700 | AH155: 7883 | AI155: 7883 | AJ155: 6700 | AK155: 6671.833333 | AL155: 6615.5 | AM155: 6671.833333 | AN155: 6615.5 | AO155: 6671.833333 | AP155: 6615.5 | AQ155: 6671.833333 | AR155: 6615.5 | AS155: 6671.833333 | AT155: 6615.5 | AU155: 6671.833333 | AV155: 6615.5 | AW155: 6671.833333 | AX155: 6615.5 | AY155: 6671.833333 | AZ155: 6615.5 | BA155: 6671.833333 | BB155: 6615.5 | BC155: 6671.833333 | BD155: 6615.5 | BE155: 6671.833333 | BF155: 6615.5 | BG155: 6671.833333 | BH155: 6615.5 | BI155: 6671.833333 | BJ155: 6615.5 | BK155: 6671.833333 | BL155: 6615.5 | BM155: 6671.833333 | BN155: 6615.5 | BO155: 6671.833333 | BP155: 6615.5 | BQ155: 6671.833333 | BR155: 6615.5 | BS155: 6671.833333 | BT155: 6615.5 | BU155: 6671.833333 | BV155: 6615.5 | BW155: 6671.833333 | BX155: 6615.5 | BY155: 6671.833333 | BZ155: =($G$155*BZ22+$I$155*BZ23) -> 6615.5 | CA155: 6671.833333 | CB155: 6615.5 | CC155: 6671.833333 | CD155: 6615.5 | CE155: 6671.833333 | CF155: 6615.5 | CG155: 6671.833333 | CH155: 6615.5 | CI155: 6671.833333 | CJ155: 6615.5 | CK155: 6671.833333 | CL155: 6615.5 | CM155: 6671.833333 | CN155: 6615.5 | CO155: 6671.833333 | CP155: 6615.5 | CQ155: 6671.833333 | CR155: 6615.5 | CS155: 6671.833333 | CT155: 6615.5 | CU155: 6671.833333 | CV155: 6615.5 | CW155: 6671.833333 | CX155: 6615.5 | CY155: 6671.833333 | CZ155: 6615.5 | DA155: 6671.833333 | DB155: 6615.5 | DC155: 6671.833333 | DD155: 6615.5 | DE155: 6671.833333 | DF155: 6615.5 | DG155: 6671.833333 | DH155: 6615.5
C156: Full Capacity Heat Rate (LHV) After Degradation | F156: BTU/kWh | M156: =M155*M144 -> 6700 | N156: =N155*N144 -> 6700 | O156: 6700 | P156: 6700 | Q156: 6700 | R156: 6700 | S156: 6700 | T156: 6700 | U156: 6700 | V156: 7883 | W156: 7883 | X156: 6700 | Y156: 6700 | Z156: 6700 | AA156: 6700 | AB156: 6700 | AC156: 6700 | AD156: 6700 | AE156: 6700 | AF156: 6700 | AG156: 6700 | AH156: 7883 | AI156: 7883 | AJ156: 6700 | AK156: 6674.915473 | AL156: 6621.613644 | AM156: 6681.084025 | AN156: 6627.732937 | AO156: 6687.258278 | AP156: 6633.857886 | AQ156: 6693.438236 | AR156: 6639.988495 | AS156: 6699.623905 | AT156: 6646.124769 | AU156: 6705.815291 | AV156: 6615.5 | AW156: 6674.915473 | AX156: 6621.613644 | AY156: 6681.084025 | AZ156: 6627.732937 | BA156: 6687.258278 | BB156: 6633.857886 | BC156: 6693.438236 | BD156: 6639.988495 | BE156: 6699.623905 | BF156: 6646.124769 | BG156: 6705.815291 | BH156: 6615.5 | BI156: 6674.915473 | BJ156: 6621.613644 | BK156: 6681.084025 | BL156: 6627.732937 | BM156: 6687.258278 | BN156: 6633.857886 | BO156: 6693.438236 | BP156: 6639.988495 | BQ156: 6699.623905 | BR156: 6646.124769 | BS156: 6705.815291 | BT156: 6615.5 | BU156: 6674.915473 | BV156: 6621.613644 | BW156: 6681.084025 | BX156: 6627.732937 | BY156: 6687.258278 | BZ156: =BZ155*BZ144 -> 6633.857886 | CA156: 6693.438236 | CB156: 6639.988495 | CC156: 6699.623905 | CD156: 6646.124769 | CE156: 6705.815291 | CF156: 6615.5 | CG156: 6674.915473 | CH156: 6621.613644 | CI156: 6681.084025 | CJ156: 6627.732937 | CK156: 6687.258278 | CL156: 6633.857886 | CM156: 6693.438236 | CN156: 6639.988495 | CO156: 6699.623905 | CP156: 6646.124769 | CQ156: 6705.815291 | CR156: 6615.5 | CS156: 6671.833333 | CT156: 6615.5 | CU156: 6671.833333 | CV156: 6615.5 | CW156: 6671.833333 | CX156: 6615.5 | CY156: 6671.833333 | CZ156: 6615.5 | DA156: 6671.833333 | DB156: 6615.5 | DC156: 6671.833333 | DD156: 6615.5 | DE156: 6671.833333 | DF156: 6615.5 | DG156: 6671.833333 | DH156: 6615.5
C157: Fuel Use | F157: MMBTU | M157: =M152*M156/1000 -> 0 | N157: =N152*N156/1000 -> 0 | O157: 0 | P157: 0 | Q157: 0 | R157: 0 | S157: 0 | T157: 0 | U157: 0 | V157: 0 | W157: 0 | X157: 0 | Y157: 0 | Z157: 0 | AA157: 0 | AB157: 0 | AC157: 0 | AD157: 0 | AE157: 0 | AF157: 0 | AG157: 0 | AH157: 0 | AI157: 0 | AJ157: 0 | AK157: 4964086.578 | AL157: 5193209.743 | AM157: 4968674.086 | AN157: 5198008.992 | AO157: 5000742.44 | AP157: 5055541.032 | AQ157: 4977861.823 | AR157: 5207620.801 | AS157: 4982462.061 | AT157: 5212433.368 | AU157: 4987066.55 | AV157: 4530855.394 | AW157: 4916853.096 | AX157: 5193209.743 | AY157: 4968674.086 | AZ157: 5198008.992 | BA157: 4973265.833 | BB157: 5055541.032 | BC157: 4777326.414 | BD157: 5207620.801 | BE157: 5009989.476 | BF157: 5212433.368 | BG157: 4987066.55 | BH157: 4579418.457 | BI157: 3842291.384 | BJ157: 5193209.743 | BK157: 4968674.086 | BL157: 5198008.992 | BM157: 5000742.44 | BN157: 5055541.032 | BO157: 4977861.823 | BP157: 5207620.801 | BQ157: 4982462.061 | BR157: 5212433.368 | BS157: 4987066.55 | BT157: 4656179.426 | BU157: 4794960.24 | BV157: 4987409.991 | BW157: 4968674.086 | BX157: 5198008.992 | BY157: 4973265.833 | BZ157: =BZ152*BZ156/1000 -> 5055541.032 | CA157: 4977861.823 | CB157: 5207620.801 | CC157: 5009989.476 | CD157: 5212433.368 | CE157: 4987066.55 | CF157: 4704742.489 | CG157: 4720300.865 | CH157: 4164210.983 | CI157: 4968674.086 | CJ157: 5198008.992 | CK157: 5000742.44 | CL157: 5055541.032 | CM157: 4977861.823 | CN157: 5207620.801 | CO157: 4781741.329 | CP157: 5212433.368 | CQ157: 4987066.55 | CR157: 4781503.458 | CS157: 0 | CT157: 0 | CU157: 0 | CV157: 0 | CW157: 0 | CX157: 0 | CY157: 0 | CZ157: 0 | DA157: 0 | DB157: 0 | DC157: 0 | DD157: 0 | DE157: 0 | DF157: 0 | DG157: 0 | DH157: 0
C158: Days in Period | F158: Days | M158: =(M7-M6)+1 -> 29 | N158: 31 | O158: 30 | P158: 31 | Q158: 30 | R158: 31 | S158: 31 | T158: 30 | U158: 31 | V158: 30 | W158: 31 | X158: 31 | Y158: 28 | Z158: 31 | AA158: 30 | AB158: 31 | AC158: 30 | AD158: 31 | AE158: 31 | AF158: 30 | AG158: 31 | AH158: 30 | AI158: 31 | AJ158: 31 | AK158: 181 | AL158: 184 | AM158: 181 | AN158: 184 | AO158: 182 | AP158: 184 | AQ158: 181 | AR158: 184 | AS158: =(AS7-AS6)+1 -> 181 | AT158: 184 | AU158: 181 | AV158: 184 | AW158: 182 | AX158: 184 | AY158: 181 | AZ158: 184 | BA158: 181 | BB158: 184 | BC158: 181 | BD158: 184 | BE158: 182 | BF158: 184 | BG158: 181 | BH158: 184 | BI158: 181 | BJ158: 184 | BK158: 181 | BL158: 184 | BM158: 182 | BN158: 184 | BO158: 181 | BP158: 184 | BQ158: 181 | BR158: 184 | BS158: 181 | BT158: 184 | BU158: 182 | BV158: 184 | BW158: 181 | BX158: 184 | BY158: =(BY7-BY6)+1 -> 181 | BZ158: 184 | CA158: 181 | CB158: 184 | CC158: 182 | CD158: 184 | CE158: 181 | CF158: 184 | CG158: 181 | CH158: 184 | CI158: 181 | CJ158: 184 | CK158: 182 | CL158: 184 | CM158: 181 | CN158: 184 | CO158: 181 | CP158: 184 | CQ158: 181 | CR158: 184 | CS158: 182 | CT158: 184 | CU158: 181 | CV158: 184 | CW158: 181 | CX158: 184 | CY158: 181 | CZ158: 184 | DA158: 182 | DB158: 184 | DC158: 181 | DD158: 184 | DE158: 181 | DF158: 184 | DG158: 181 | DH158: 184
C159: Fuel Use per Day | F159: MMBTU/Day | M159: =M157/M158 -> 0 | N159: =N157/N158 -> 0 | O159: 0 | P159: 0 | Q159: 0 | R159: 0 | S159: 0 | T159: 0 | U159: 0 | V159: 0 | W159: 0 | X159: 0 | Y159: 0 | Z159: 0 | AA159: 0 | AB159: 0 | AC159: 0 | AD159: 0 | AE159: 0 | AF159: 0 | AG159: 0 | AH159: 0 | AI159: 0 | AJ159: 0 | AK159: 27425.8927 | AL159: 28223.96599 | AM159: 27451.23804 | AN159: 28250.04887 | AO159: 27476.60681 | AP159: 27475.76648 | AQ159: 27501.99902 | AR159: 28302.28696 | AS159: 27527.4147 | AT159: 28328.44222 | AU159: 27552.85387 | AV159: 24624.2141 | AW159: 27015.67635 | AX159: 28223.96599 | AY159: 27451.23804 | AZ159: 28250.04887 | BA159: 27476.60681 | BB159: 27475.76648 | BC159: 26394.06858 | BD159: 28302.28696 | BE159: 27527.4147 | BF159: 28328.44222 | BG159: 27552.85387 | BH159: 24888.14379 | BI159: 21228.12919 | BJ159: 28223.96599 | BK159: 27451.23804 | BL159: 28250.04887 | BM159: 27476.60681 | BN159: 27475.76648 | BO159: 27501.99902 | BP159: 28302.28696 | BQ159: 27527.4147 | BR159: 28328.44222 | BS159: 27552.85387 | BT159: 25305.32297 | BU159: 26345.93538 | BV159: 27105.48908 | BW159: 27451.23804 | BX159: 28250.04887 | BY159: 27476.60681 | BZ159: =BZ157/BZ158 -> 27475.76648 | CA159: 27501.99902 | CB159: 28302.28696 | CC159: 27527.4147 | CD159: 28328.44222 | CE159: 27552.85387 | CF159: 25569.25266 | CG159: 26079.0103 | CH159: 22631.58143 | CI159: 27451.23804 | CJ159: 28250.04887 | CK159: 27476.60681 | CL159: 27475.76648 | CM159: 27501.99902 | CN159: 28302.28696 | CO159: 26418.46038 | CP159: 28328.44222 | CQ159: 27552.85387 | CR159: 25986.43184 | CS159: 0 | CT159: 0 | CU159: 0 | CV159: 0 | CW159: 0 | CX159: 0 | CY159: 0 | CZ159: 0 | DA159: 0 | DB159: 0 | DC159: 0 | DD159: 0 | DE159: 0 | DF159: 0 | DG159: 0 | DH159: 0
C160: Fuel Use per Day | F160: MMCF/Day | G160: ='Assumptions - Technology'!G62 -> 1029 | M160: =M159/$G$160 -> 0 | N160: =N159/$G$160 -> 0 | O160: 0 | P160: 0 | Q160: 0 | R160: 0 | S160: 0 | T160: 0 | U160: 0 | V160: 0 | W160: 0 | X160: 0 | Y160: 0 | Z160: 0 | AA160: 0 | AB160: 0 | AC160: 0 | AD160: 0 | AE160: 0 | AF160: 0 | AG160: 0 | AH160: 0 | AI160: 0 | AJ160: 0 | AK160: 26.65295694 | AL160: 27.42853838 | AM160: 26.67758799 | AN160: 27.45388617 | AO160: 26.7022418 | AP160: 26.70142515 | AQ160: 26.72691839 | AR160: 27.50465205 | AS160: 26.75161779 | AT160: 27.53007018 | AU160: 26.77634001 | AV160: 23.93023722 | AW160: 26.25430161 | AX160: 27.42853838 | AY160: 26.67758799 | AZ160: 27.45388617 | BA160: 26.7022418 | BB160: 26.70142515 | BC160: 25.65021242 | BD160: 27.50465205 | BE160: 26.75161779 | BF160: 27.53007018 | BG160: 26.77634001 | BH160: 24.18672866 | BI160: 20.62986316 | BJ160: 27.42853838 | BK160: 26.67758799 | BL160: 27.45388617 | BM160: 26.7022418 | BN160: 26.70142515 | BO160: 26.72691839 | BP160: 27.50465205 | BQ160: 26.75161779 | BR160: 27.53007018 | BS160: 26.77634001 | BT160: 24.5921506 | BU160: 25.60343575 | BV160: 26.34158317 | BW160: 26.67758799 | BX160: 27.45388617 | BY160: 26.7022418 | BZ160: =BZ159/$G$160 -> 26.70142515 | CA160: 26.72691839 | CB160: 27.50465205 | CC160: 26.75161779 | CD160: 27.53007018 | CE160: 26.77634001 | CF160: 24.84864204 | CG160: 25.34403334 | CH160: 21.99376232 | CI160: 26.67758799 | CJ160: 27.45388617 | CK160: 26.7022418 | CL160: 26.70142515 | CM160: 26.72691839 | CN160: 27.50465205 | CO160: 25.67391679 | CP160: 27.53007018 | CQ160: 26.77634001 | CR160: 25.25406398 | CS160: 0 | CT160: 0 | CU160: 0 | CV160: 0 | CW160: 0 | CX160: 0 | CY160: 0 | CZ160: 0 | DA160: 0 | DB160: 0 | DC160: 0 | DD160: 0 | DE160: 0 | DF160: 0 | DG160: 0 | DH160: 0
C161: Existing Supply from Pipeline | F161: MMCF/Day | G161: ='Assumptions - Technology'!G61 -> 70 | M161: =$G$161 -> 70 | N161: =$G$161 -> 70 | O161: 70 | P161: 70 | Q161: 70 | R161: 70 | S161: 70 | T161: 70 | U161: 70 | V161: 70 | W161: 70 | X161: 70 | Y161: 70 | Z161: 70 | AA161: 70 | AB161: 70 | AC161: 70 | AD161: 70 | AE161: 70 | AF161: 70 | AG161: 70 | AH161: 70 | AI161: 70 | AJ161: 70 | AK161: 70 | AL161: 70 | AM161: 70 | AN161: 70 | AO161: 70 | AP161: 70 | AQ161: 70 | AR161: 70 | AS161: 70 | AT161: 70 | AU161: 70 | AV161: 70 | AW161: 70 | AX161: 70 | AY161: 70 | AZ161: 70 | BA161: 70 | BB161: 70 | BC161: 70 | BD161: 70 | BE161: 70 | BF161: 70 | BG161: 70 | BH161: 70 | BI161: 70 | BJ161: 70 | BK161: 70 | BL161: 70 | BM161: 70 | BN161: 70 | BO161: 70 | BP161: 70 | BQ161: 70 | BR161: 70 | BS161: 70 | BT161: 70 | BU161: 70 | BV161: 70 | BW161: 70 | BX161: 70 | BY161: 70 | BZ161: =$G$161 -> 70 | CA161: 70 | CB161: 70 | CC161: 70 | CD161: 70 | CE161: 70 | CF161: 70 | CG161: 70 | CH161: 70 | CI161: 70 | CJ161: 70 | CK161: 70 | CL161: 70 | CM161: 70 | CN161: 70 | CO161: 70 | CP161: 70 | CQ161: 70 | CR161: 70 | CS161: 70 | CT161: 70 | CU161: 70 | CV161: 70 | CW161: 70 | CX161: 70 | CY161: 70 | CZ161: 70 | DA161: 70 | DB161: 70 | DC161: 70 | DD161: 70 | DE161: 70 | DF161: 70 | DG161: 70 | DH161: 70
C162: Percent Use of Existing Pipeline | F162: % | M162: =M160/M161 -> 0 | N162: =N160/N161 -> 0 | O162: 0 | P162: 0 | Q162: 0 | R162: 0 | S162: 0 | T162: 0 | U162: 0 | V162: 0 | W162: 0 | X162: 0 | Y162: 0 | Z162: 0 | AA162: 0 | AB162: 0 | AC162: 0 | AD162: 0 | AE162: 0 | AF162: 0 | AG162: 0 | AH162: 0 | AI162: 0 | AJ162: 0 | AK162: 0.3807565278 | AL162: 0.3918362626 | AM162: 0.3811083999 | AN162: 0.3921983739 | AO162: 0.3814605971 | AP162: 0.3814489307 | AQ162: 0.3818131199 | AR162: 0.3929236007 | AS162: 0.3821659684 | AT162: 0.3932867169 | AU162: 0.382519143 | AV162: 0.3418605317 | AW162: 0.3750614515 | AX162: 0.3918362626 | AY162: 0.3811083999 | AZ162: 0.3921983739 | BA162: 0.3814605971 | BB162: 0.3814489307 | BC162: 0.3664316061 | BD162: 0.3929236007 | BE162: 0.3821659684 | BF162: 0.3932867169 | BG162: 0.382519143 | BH162: 0.3455246951 | BI162: 0.2947123309 | BJ162: 0.3918362626 | BK162: 0.3811083999 | BL162: 0.3921983739 | BM162: 0.3814605971 | BN162: 0.3814489307 | BO162: 0.3818131199 | BP162: 0.3929236007 | BQ162: 0.3821659684 | BR162: 0.3932867169 | BS162: 0.382519143 | BT162: 0.3513164372 | BU162: 0.3657633678 | BV162: 0.376308331 | BW162: 0.3811083999 | BX162: 0.3921983739 | BY162: 0.3814605971 | BZ162: =BZ160/BZ161 -> 0.3814489307 | CA162: 0.3818131199 | CB162: 0.3929236007 | CC162: 0.3821659684 | CD162: 0.3932867169 | CE162: 0.382519143 | CF162: 0.3549806005 | CG162: 0.3620576191 | CH162: 0.3141966046 | CI162: 0.3811083999 | CJ162: 0.3921983739 | CK162: 0.3814605971 | CL162: 0.3814489307 | CM162: 0.3818131199 | CN162: 0.3929236007 | CO162: 0.3667702399 | CP162: 0.3932867169 | CQ162: 0.382519143 | CR162: 0.3607723426 | CS162: 0 | CT162: 0 | CU162: 0 | CV162: 0 | CW162: 0 | CX162: 0 | CY162: 0 | CZ162: 0 | DA162: 0 | DB162: 0 | DC162: 0 | DD162: 0 | DE162: 0 | DF162: 0 | DG162: 0 | DH162: 0
C163: Production Constraint | F163: Switch | M163: =M162>100% -> FALSE | N163: =N162>100% -> FALSE | O163: FALSE | P163: FALSE | Q163: FALSE | R163: FALSE | S163: FALSE | T163: FALSE | U163: FALSE | V163: FALSE | W163: FALSE | X163: FALSE | Y163: FALSE | Z163: FALSE | AA163: FALSE | AB163: FALSE | AC163: FALSE | AD163: FALSE | AE163: FALSE | AF163: FALSE | AG163: FALSE | AH163: FALSE | AI163: FALSE | AJ163: FALSE | AK163: FALSE | AL163: FALSE | AM163: FALSE | AN163: FALSE | AO163: FALSE | AP163: FALSE | AQ163: FALSE | AR163: FALSE | AS163: FALSE | AT163: FALSE | AU163: FALSE | AV163: FALSE | AW163: FALSE | AX163: FALSE | AY163: FALSE | AZ163: FALSE | BA163: FALSE | BB163: FALSE | BC163: FALSE | BD163: FALSE | BE163: FALSE | BF163: FALSE | BG163: FALSE | BH163: FALSE | BI163: FALSE | BJ163: FALSE | BK163: FALSE | BL163: FALSE | BM163: FALSE | BN163: FALSE | BO163: FALSE | BP163: FALSE | BQ163: FALSE | BR163: FALSE | BS163: FALSE | BT163: FALSE | BU163: FALSE | BV163: FALSE | BW163: FALSE | BX163: FALSE | BY163: FALSE | BZ163: =BZ162>100% -> FALSE | CA163: FALSE | CB163: FALSE | CC163: FALSE | CD163: FALSE | CE163: FALSE | CF163: FALSE | CG163: FALSE | CH163: FALSE | CI163: FALSE | CJ163: FALSE | CK163: FALSE | CL163: FALSE | CM163: FALSE | CN163: FALSE | CO163: FALSE | CP163: FALSE | CQ163: FALSE | CR163: FALSE | CS163: FALSE | CT163: FALSE | CU163: FALSE | CV163: FALSE | CW163: FALSE | CX163: FALSE | CY163: FALSE | CZ163: FALSE | DA163: FALSE | DB163: FALSE | DC163: FALSE | DD163: FALSE | DE163: FALSE | DF163: FALSE | DG163: FALSE | DH163: FALSE
C165: Capacity Factor - Gross | F165: % | M165: =IF(M147,(M152/M40)/M147) -> FALSE | N165: =IF(N147,(N152/N40)/N147) -> FALSE | O165: FALSE | P165: FALSE | Q165: FALSE | R165: FALSE | S165: FALSE | T165: FALSE | U165: FALSE | V165: FALSE | W165: FALSE | X165: FALSE | Y165: FALSE | Z165: FALSE | AA165: FALSE | AB165: FALSE | AC165: FALSE | AD165: FALSE | AE165: FALSE | AF165: FALSE | AG165: FALSE | AH165: FALSE | AI165: FALSE | AJ165: FALSE | AK165: 0.96 | AL165: 0.96 | AM165: 0.96 | AN165: 0.96 | AO165: 0.96 | AP165: 0.932826087 | AQ165: 0.96 | AR165: 0.96 | AS165: 0.96 | AT165: 0.96 | AU165: 0.96 | AV165: 0.8383333333 | AW165: 0.9456410256 | AX165: 0.96 | AY165: 0.96 | AZ165: 0.96 | BA165: 0.96 | BB165: 0.932826087 | BC165: 0.9213259669 | BD165: 0.96 | BE165: 0.96 | BF165: 0.96 | BG165: 0.96 | BH165: 0.8473188406 | BI165: 0.7430570902 | BJ165: 0.96 | BK165: 0.96 | BL165: 0.96 | BM165: 0.96 | BN165: 0.932826087 | BO165: 0.96 | BP165: 0.96 | BQ165: 0.96 | BR165: 0.96 | BS165: 0.96 | BT165: 0.8615217391 | BU165: 0.9221978022 | BV165: 0.9219565217 | BW165: 0.96 | BX165: 0.96 | BY165: 0.96 | BZ165: =IF(BZ147,(BZ152/BZ40)/BZ147) -> 0.932826087 | CA165: 0.96 | CB165: 0.96 | CC165: 0.96 | CD165: 0.96 | CE165: 0.96 | CF165: 0.8705072464 | CG165: 0.912854512 | CH165: 0.7697826087 | CI165: 0.96 | CJ165: 0.96 | CK165: 0.96 | CL165: 0.932826087 | CM165: 0.96 | CN165: 0.96 | CO165: 0.9213259669 | CP165: 0.96 | CQ165: 0.96 | CR165: 0.8847101449 | CS165: FALSE | CT165: FALSE | CU165: FALSE | CV165: FALSE | CW165: FALSE | CX165: FALSE | CY165: FALSE | CZ165: FALSE | DA165: FALSE | DB165: FALSE | DC165: FALSE | DD165: FALSE | DE165: FALSE | DF165: FALSE | DG165: FALSE | DH165: FALSE
A167: Capital Expenditures
B168: EPC Costs
C169: Expenditure Percent | F169: % | M169: =LOOKUP(M6,'Assumptions - Budget & Timing'!8:8,'Assumptions - Budget & Timing'!9:9) -> 0 | N169: =LOOKUP(N6,'Assumptions - Budget & Timing'!8:8,'Assumptions - Budget & Timing'!9:9) -> 0 | O169: =LOOKUP(O6,'Assumptions - Budget & Timing'!8:8,'Assumptions - Budget & Timing'!9:9) -> 0 | P169: =LOOKUP(P6,'Assumptions - Budget & Timing'!8:8,'Assumptions - Budget & Timing'!9:9) -> 0 | Q169: =LOOKUP(Q6,'Assumptions - Budget & Timing'!8:8,'Assumptions - Budget & Timing'!9:9) -> 0 | R169: =LOOKUP(R6,'Assumptions - Budget & Timing'!8:8,'Assumptions - Budget & Timing'!9:9) -> 0 | S169: =LOOKUP(S6,'Assumptions - Budget & Timing'!8:8,'Assumptions - Budget & Timing'!9:9) -> 0 | T169: =LOOKUP(T6,'Assumptions - Budget & Timing'!8:8,'Assumptions - Budget & Timing'!9:9) -> 0 | U169: =LOOKUP(U6,'Assumptions - Budget & Timing'!8:8,'Assumptions - Budget & Timing'!9:9) -> 0 | V169: =LOOKUP(V6,'Assumptions - Budget & Timing'!8:8,'Assumptions - Budget & Timing'!9:9) -> 0 | W169: =LOOKUP(W6,'Assumptions - Budget & Timing'!8:8,'Assumptions - Budget & Timing'!9:9) -> 0 | X169: =LOOKUP(X6,'Assumptions - Budget & Timing'!8:8,'Assumptions - Budget & Timing'!9:9) -> 0 | Y169: =LOOKUP(Y6,'Assumptions - Budget & Timing'!8:8,'Assumptions - Budget & Timing'!9:9) -> 0 | Z169: =LOOKUP(Z6,'Assumptions - Budget & Timing'!8:8,'Assumptions - Budget & Timing'!9:9) -> 0 | AA169: =LOOKUP(AA6,'Assumptions - Budget & Timing'!8:8,'Assumptions - Budget & Timing'!9:9) -> 0 | AB169: =LOOKUP(AB6,'Assumptions - Budget & Timing'!8:8,'Assumptions - Budget & Timing'!9:9) -> 0.08 | AC169: =LOOKUP(AC6,'Assumptions - Budget & Timing'!8:8,'Assumptions - Budget & Timing'!9:9) -> 0.1 | AD169: =LOOKUP(AD6,'Assumptions - Budget & Timing'!8:8,'Assumptions - Budget & Timing'!9:9) -> 0.1 | AE169: =LOOKUP(AE6,'Assumptions - Budget & Timing'!8:8,'Assumptions - Budget & Timing'!9:9) -> 0.2 | AF169: =LOOKUP(AF6,'Assumptions - Budget & Timing'!8:8,'Assumptions - Budget & Timing'!9:9) -> 0.1 | AG169: =LOOKUP(AG6,'Assumptions - Budget & Timing'!8:8,'Assumptions - Budget & Timing'!9:9) -> 0.1 | AH169: =LOOKUP(AH6,'Assumptions - Budget & Timing'!8:8,'Assumptions - Budget & Timing'!9:9) -> 0.2 | AI169: =LOOKUP(AI6,'Assumptions - Budget & Timing'!8:8,'Assumptions - Budget & Timing'!9:9) -> 0.12 | AJ169: =LOOKUP(AJ6,'Assumptions - Budget & Timing'!8:8,'Assumptions - Budget & Timing'!9:9) -> 0 | AK169: =LOOKUP(AK6,'Assumptions - Budget & Timing'!8:8,'Assumptions - Budget & Timing'!9:9) -> 0 | AL169: =LOOKUP(AL6,'Assumptions - Budget & Timing'!8:8,'Assumptions - Budget & Timing'!9:9) -> 0 | AM169: =LOOKUP(AM6,'Assumptions - Budget & Timing'!8:8,'Assumptions - Budget & Timing'!9:9) -> 0 | AN169: =LOOKUP(AN6,'Assumptions - Budget & Timing'!8:8,'Assumptions - Budget & Timing'!9:9) -> 0 | AO169: =LOOKUP(AO6,'Assumptions - Budget & Timing'!8:8,'Assumptions - Budget & Timing'!9:9) -> 0 | AP169: =LOOKUP(AP6,'Assumptions - Budget & Timing'!8:8,'Assumptions - Budget & Timing'!9:9) -> 0 | AQ169: =LOOKUP(AQ6,'Assumptions - Budget & Timing'!8:8,'Assumptions - Budget & Timing'!9:9) -> 0 | AR169: =LOOKUP(AR6,'Assumptions - Budget & Timing'!8:8,'Assumptions - Budget & Timing'!9:9) -> 0 | AS169: =LOOKUP(AS6,'Assumptions - Budget & Timing'!8:8,'Assumptions - Budget & Timing'!9:9) -> 0 | AT169: =LOOKUP(AT6,'Assumptions - Budget & Timing'!8:8,'Assumptions - Budget & Timing'!9:9) -> 0 | AU169: =LOOKUP(AU6,'Assumptions - Budget & Timing'!8:8,'Assumptions - Budget & Timing'!9:9) -> 0 | AV169: =LOOKUP(AV6,'Assumptions - Budget & Timing'!8:8,'Assumptions - Budget & Timing'!9:9) -> 0 | AW169: =LOOKUP(AW6,'Assumptions - Budget & Timing'!8:8,'Assumptions - Budget & Timing'!9:9) -> 0 | AX169: =LOOKUP(AX6,'Assumptions - Budget & Timing'!8:8,'Assumptions - Budget & Timing'!9:9) -> 0 | AY169: =LOOKUP(AY6,'Assumptions - Budget & Timing'!8:8,'Assumptions - Budget & Timing'!9:9) -> 0 | AZ169: =LOOKUP(AZ6,'Assumptions - Budget & Timing'!8:8,'Assumptions - Budget & Timing'!9:9) -> 0 | BA169: =LOOKUP(BA6,'Assumptions - Budget & Timing'!8:8,'Assumptions - Budget & Timing'!9:9) -> 0 | BB169: =LOOKUP(BB6,'Assumptions - Budget & Timing'!8:8,'Assumptions - Budget & Timing'!9:9) -> 0 | BC169: =LOOKUP(BC6,'Assumptions - Budget & Timing'!8:8,'Assumptions - Budget & Timing'!9:9) -> 0 | BD169: =LOOKUP(BD6,'Assumptions - Budget & Timing'!8:8,'Assumptions - Budget & Timing'!9:9) -> 0 | BE169: =LOOKUP(BE6,'Assumptions - Budget & Timing'!8:8,'Assumptions - Budget & Timing'!9:9) -> 0 | BF169: =LOOKUP(BF6,'Assumptions - Budget & Timing'!8:8,'Assumptions - Budget & Timing'!9:9) -> 0 | BG169: =LOOKUP(BG6,'Assumptions - Budget & Timing'!8:8,'Assumptions - Budget & Timing'!9:9) -> 0 | BH169: =LOOKUP(BH6,'Assumptions - Budget & Timing'!8:8,'Assumptions - Budget & Timing'!9:9) -> 0 | BI169: =LOOKUP(BI6,'Assumptions - Budget & Timing'!8:8,'Assumptions - Budget & Timing'!9:9) -> 0 | BJ169: =LOOKUP(BJ6,'Assumptions - Budget & Timing'!8:8,'Assumptions - Budget & Timing'!9:9) -> 0 | BK169: =LOOKUP(BK6,'Assumptions - Budget & Timing'!8:8,'Assumptions - Budget & Timing'!9:9) -> 0 | BL169: =LOOKUP(BL6,'Assumptions - Budget & Timing'!8:8,'Assumptions - Budget & Timing'!9:9) -> 0 | BM169: =LOOKUP(BM6,'Assumptions - Budget & Timing'!8:8,'Assumptions - Budget & Timing'!9:9) -> 0 | BN169: =LOOKUP(BN6,'Assumptions - Budget & Timing'!8:8,'Assumptions - Budget & Timing'!9:9) -> 0 | BO169: =LOOKUP(BO6,'Assumptions - Budget & Timing'!8:8,'Assumptions - Budget & Timing'!9:9) -> 0 | BP169: =LOOKUP(BP6,'Assumptions - Budget & Timing'!8:8,'Assumptions - Budget & Timing'!9:9) -> 0 | BQ169: =LOOKUP(BQ6,'Assumptions - Budget & Timing'!8:8,'Assumptions - Budget & Timing'!9:9) -> 0 | BR169: =LOOKUP(BR6,'Assumptions - Budget & Timing'!8:8,'Assumptions - Budget & Timing'!9:9) -> 0 | BS169: =LOOKUP(BS6,'Assumptions - Budget & Timing'!8:8,'Assumptions - Budget & Timing'!9:9) -> 0 | BT169: =LOOKUP(BT6,'Assumptions - Budget & Timing'!8:8,'Assumptions - Budget & Timing'!9:9) -> 0 | BU169: =LOOKUP(BU6,'Assumptions - Budget & Timing'!8:8,'Assumptions - Budget & Timing'!9:9) -> 0 | BV169: =LOOKUP(BV6,'Assumptions - Budget & Timing'!8:8,'Assumptions - Budget & Timing'!9:9) -> 0 | BW169: =LOOKUP(BW6,'Assumptions - Budget & Timing'!8:8,'Assumptions - Budget & Timing'!9:9) -> 0 | BX169: =LOOKUP(BX6,'Assumptions - Budget & Timing'!8:8,'Assumptions - Budget & Timing'!9:9) -> 0 | BY169: =LOOKUP(BY6,'Assumptions - Budget & Timing'!8:8,'Assumptions - Budget & Timing'!9:9) -> 0 | BZ169: =LOOKUP(BZ6,'Assumptions - Budget & Timing'!8:8,'Assumptions - Budget & Timing'!9:9) -> 0 | CA169: =LOOKUP(CA6,'Assumptions - Budget & Timing'!8:8,'Assumptions - Budget & Timing'!9:9) -> 0 | CB169: =LOOKUP(CB6,'Assumptions - Budget & Timing'!8:8,'Assumptions - Budget & Timing'!9:9) -> 0 | CC169: =LOOKUP(CC6,'Assumptions - Budget & Timing'!8:8,'Assumptions - Budget & Timing'!9:9) -> 0 | CD169: =LOOKUP(CD6,'Assumptions - Budget & Timing'!8:8,'Assumptions - Budget & Timing'!9:9) -> 0 | CE169: =LOOKUP(CE6,'Assumptions - Budget & Timing'!8:8,'Assumptions - Budget & Timing'!9:9) -> 0 | CF169: =LOOKUP(CF6,'Assumptions - Budget & Timing'!8:8,'Assumptions - Budget & Timing'!9:9) -> 0 | CG169: =LOOKUP(CG6,'Assumptions - Budget & Timing'!8:8,'Assumptions - Budget & Timing'!9:9) -> 0 | CH169: =LOOKUP(CH6,'Assumptions - Budget & Timing'!8:8,'Assumptions - Budget & Timing'!9:9) -> 0 | CI169: =LOOKUP(CI6,'Assumptions - Budget & Timing'!8:8,'Assumptions - Budget & Timing'!9:9) -> 0 | CJ169: =LOOKUP(CJ6,'Assumptions - Budget & Timing'!8:8,'Assumptions - Budget & Timing'!9:9) -> 0 | CK169: =LOOKUP(CK6,'Assumptions - Budget & Timing'!8:8,'Assumptions - Budget & Timing'!9:9) -> 0 | CL169: =LOOKUP(CL6,'Assumptions - Budget & Timing'!8:8,'Assumptions - Budget & Timing'!9:9) -> 0 | CM169: =LOOKUP(CM6,'Assumptions - Budget & Timing'!8:8,'Assumptions - Budget & Timing'!9:9) -> 0 | CN169: =LOOKUP(CN6,'Assumptions - Budget & Timing'!8:8,'Assumptions - Budget & Timing'!9:9) -> 0 | CO169: =LOOKUP(CO6,'Assumptions - Budget & Timing'!8:8,'Assumptions - Budget & Timing'!9:9) -> 0 | CP169: =LOOKUP(CP6,'Assumptions - Budget & Timing'!8:8,'Assumptions - Budget & Timing'!9:9) -> 0 | CQ169: =LOOKUP(CQ6,'Assumptions - Budget & Timing'!8:8,'Assumptions - Budget & Timing'!9:9) -> 0 | CR169: =LOOKUP(CR6,'Assumptions - Budget & Timing'!8:8,'Assumptions - Budget & Timing'!9:9) -> 0 | CS169: =LOOKUP(CS6,'Assumptions - Budget & Timing'!8:8,'Assumptions - Budget & Timing'!9:9) -> 0 | CT169: =LOOKUP(CT6,'Assumptions - Budget & Timing'!8:8,'Assumptions - Budget & Timing'!9:9) -> 0 | CU169: =LOOKUP(CU6,'Assumptions - Budget & Timing'!8:8,'Assumptions - Budget & Timing'!9:9) -> 0 | CV169: =LOOKUP(CV6,'Assumptions - Budget & Timing'!8:8,'Assumptions - Budget & Timing'!9:9) -> 0 | CW169: =LOOKUP(CW6,'Assumptions - Budget & Timing'!8:8,'Assumptions - Budget & Timing'!9:9) -> 0 | CX169: =LOOKUP(CX6,'Assumptions - Budget & Timing'!8:8,'Assumptions - Budget & Timing'!9:9) -> 0 | CY169: =LOOKUP(CY6,'Assumptions - Budget & Timing'!8:8,'Assumptions - Budget & Timing'!9:9) -> 0 | CZ169: =LOOKUP(CZ6,'Assumptions - Budget & Timing'!8:8,'Assumptions - Budget & Timing'!9:9) -> 0 | DA169: =LOOKUP(DA6,'Assumptions - Budget & Timing'!8:8,'Assumptions - Budget & Timing'!9:9) -> 0 | DB169: =LOOKUP(DB6,'Assumptions - Budget & Timing'!8:8,'Assumptions - Budget & Timing'!9:9) -> 0 | DC169: =LOOKUP(DC6,'Assumptions - Budget & Timing'!8:8,'Assumptions - Budget & Timing'!9:9) -> 0 | DD169: =LOOKUP(DD6,'Assumptions - Budget & Timing'!8:8,'Assumptions - Budget & Timing'!9:9) -> 0 | DE169: =LOOKUP(DE6,'Assumptions - Budget & Timing'!8:8,'Assumptions - Budget & Timing'!9:9) -> 0 | DF169: =LOOKUP(DF6,'Assumptions - Budget & Timing'!8:8,'Assumptions - Budget & Timing'!9:9) -> 0 | DG169: =LOOKUP(DG6,'Assumptions - Budget & Timing'!8:8,'Assumptions - Budget & Timing'!9:9) -> 0 | DH169: =LOOKUP(DH6,'Assumptions - Budget & Timing'!8:8,'Assumptions - Budget & Timing'!9:9) -> 0
C170: ='Assumptions - Budget & Timing'!G13 -> Civil Works | F170: USD | G170: Cost | H170: =SUMIF('Assumptions - Budget & Timing'!G:G,'Pre-Financing Cash Flow'!$C170,'Assumptions - Budget & Timing'!H:H) -> 9600000 | M170: =M$169*$H170 -> 0 | N170: =N$169*$H170 -> 0 | O170: 0 | P170: 0 | Q170: 0 | R170: 0 | S170: 0 | T170: 0 | U170: 0 | V170: 0 | W170: 0 | X170: 0 | Y170: 0 | Z170: 0 | AA170: 0 | AB170: 768000 | AC170: 960000 | AD170: 960000 | AE170: 1920000 | AF170: 960000 | AG170: 960000 | AH170: 1920000 | AI170: 1152000 | AJ170: 0 | AK170: 0 | AL170: 0 | AM170: 0 | AN170: 0 | AO170: 0 | AP170: 0 | AQ170: 0 | AR170: 0 | AS170: 0 | AT170: 0 | AU170: 0 | AV170: 0 | AW170: 0 | AX170: 0 | AY170: 0 | AZ170: 0 | BA170: 0 | BB170: 0 | BC170: 0 | BD170: 0 | BE170: 0 | BF170: 0 | BG170: 0 | BH170: 0 | BI170: 0 | BJ170: 0 | BK170: 0 | BL170: 0 | BM170: 0 | BN170: 0 | BO170: 0 | BP170: 0 | BQ170: 0 | BR170: 0 | BS170: 0 | BT170: 0 | BU170: 0 | BV170: 0 | BW170: 0 | BX170: 0 | BY170: 0 | BZ170: =BZ$169*$H170 -> 0 | CA170: 0 | CB170: 0 | CC170: 0 | CD170: 0 | CE170: 0 | CF170: 0 | CG170: 0 | CH170: 0 | CI170: 0 | CJ170: 0 | CK170: 0 | CL170: 0 | CM170: 0 | CN170: 0 | CO170: 0 | CP170: 0 | CQ170: 0 | CR170: 0 | CS170: 0 | CT170: 0 | CU170: 0 | CV170: 0 | CW170: 0 | CX170: 0 | CY170: 0 | CZ170: 0 | DA170: 0 | DB170: 0 | DC170: 0 | DD170: 0 | DE170: 0 | DF170: 0 | DG170: 0 | DH170: 0
C171: ='Assumptions - Budget & Timing'!G16 -> Plant & Equip | F171: USD | G171: Cost | H171: =SUMIF('Assumptions - Budget & Timing'!G:G,'Pre-Financing Cash Flow'!$C171,'Assumptions - Budget & Timing'!H:H) -> 134872500 | M171: =M$169*$H171 -> 0 | N171: 0 | O171: 0 | P171: 0 | Q171: 0 | R171: 0 | S171: 0 | T171: 0 | U171: 0 | V171: 0 | W171: 0 | X171: 0 | Y171: 0 | Z171: 0 | AA171: 0 | AB171: 10789800 | AC171: 13487250 | AD171: 13487250 | AE171: 26974500 | AF171: 13487250 | AG171: 13487250 | AH171: 26974500 | AI171: 16184700 | AJ171: 0 | AK171: 0 | AL171: 0 | AM171: 0 | AN171: 0 | AO171: 0 | AP171: 0 | AQ171: 0 | AR171: 0 | AS171: 0 | AT171: 0 | AU171: 0 | AV171: 0 | AW171: 0 | AX171: 0 | AY171: 0 | AZ171: 0 | BA171: 0 | BB171: 0 | BC171: 0 | BD171: 0 | BE171: 0 | BF171: 0 | BG171: 0 | BH171: 0 | BI171: 0 | BJ171: 0 | BK171: 0 | BL171: 0 | BM171: 0 | BN171: 0 | BO171: 0 | BP171: 0 | BQ171: 0 | BR171: 0 | BS171: 0 | BT171: 0 | BU171: 0 | BV171: 0 | BW171: 0 | BX171: 0 | BY171: 0 | BZ171: 0 | CA171: 0 | CB171: 0 | CC171: 0 | CD171: 0 | CE171: 0 | CF171: 0 | CG171: 0 | CH171: 0 | CI171: 0 | CJ171: 0 | CK171: 0 | CL171: 0 | CM171: 0 | CN171: 0 | CO171: 0 | CP171: 0 | CQ171: 0 | CR171: 0 | CS171: 0 | CT171: 0 | CU171: 0 | CV171: 0 | CW171: 0 | CX171: 0 | CY171: 0 | CZ171: 0 | DA171: 0 | DB171: 0 | DC171: 0 | DD171: 0 | DE171: 0 | DF171: 0 | DG171: 0 | DH171: 0
C172: ='Assumptions - Budget & Timing'!G24 -> Engineering | F172: USD | G172: Cost | H172: =SUMIF('Assumptions - Budget & Timing'!G:G,'Pre-Financing Cash Flow'!$C172,'Assumptions - Budget & Timing'!H:H) -> 4000000 | M172: 0 | N172: 0 | O172: 0 | P172: 0 | Q172: 0 | R172: 0 | S172: 0 | T172: 0 | U172: 0 | V172: 0 | W172: 0 | X172: 0 | Y172: 0 | Z172: 0 | AA172: 0 | AB172: 320000 | AC172: 400000 | AD172: 400000 | AE172: 800000 | AF172: 400000 | AG172: 400000 | AH172: 800000 | AI172: 480000 | AJ172: 0 | AK172: 0 | AL172: 0 | AM172: 0 | AN172: 0 | AO172: 0 | AP172: 0 | AQ172: 0 | AR172: 0 | AS172: 0 | AT172: 0 | AU172: 0 | AV172: 0 | AW172: 0 | AX172: 0 | AY172: 0 | AZ172: 0 | BA172: 0 | BB172: 0 | BC172: 0 | BD172: 0 | BE172: 0 | BF172: 0 | BG172: 0 | BH172: 0 | BI172: 0 | BJ172: 0 | BK172: 0 | BL172: 0 | BM172: 0 | BN172: 0 | BO172: 0 | BP172: 0 | BQ172: 0 | BR172: 0 | BS172: 0 | BT172: 0 | BU172: 0 | BV172: 0 | BW172: 0 | BX172: 0 | BY172: 0 | BZ172: 0 | CA172: 0 | CB172: 0 | CC172: 0 | CD172: 0 | CE172: 0 | CF172: 0 | CG172: 0 | CH172: 0 | CI172: 0 | CJ172: 0 | CK172: 0 | CL172: 0 | CM172: 0 | CN172: 0 | CO172: 0 | CP172: 0 | CQ172: 0 | CR172: 0 | CS172: 0 | CT172: 0 | CU172: 0 | CV172: 0 | CW172: 0 | CX172: 0 | CY172: 0 | CZ172: 0 | DA172: 0 | DB172: 0 | DC172: 0 | DD172: 0 | DE172: 0 | DF172: 0 | DG172: 0 | DH172: 0
D173: Total EPC | F173: USD | H173: =SUM(H170:H172) -> 148472500 | L173: =H173='Assumptions - Budget & Timing'!H28 -> TRUE | M173: =SUM(M170:M172) -> 0 | N173: =SUM(N170:N172) -> 0 | O173: 0 | P173: 0 | Q173: 0 | R173: 0 | S173: 0 | T173: 0 | U173: 0 | V173: 0 | W173: 0 | X173: 0 | Y173: 0 | Z173: 0 | AA173: 0 | AB173: 11877800 | AC173: 14847250 | AD173: 14847250 | AE173: 29694500 | AF173: 14847250 | AG173: 14847250 | AH173: 29694500 | AI173: 17816700 | AJ173: 0 | AK173: 0 | AL173: 0 | AM173: 0 | AN173: 0 | AO173: 0 | AP173: 0 | AQ173: 0 | AR173: 0 | AS173: 0 | AT173: 0 | AU173: 0 | AV173: 0 | AW173: 0 | AX173: 0 | AY173: 0 | AZ173: 0 | BA173: 0 | BB173: 0 | BC173: 0 | BD173: 0 | BE173: 0 | BF173: 0 | BG173: 0 | BH173: 0 | BI173: 0 | BJ173: 0 | BK173: 0 | BL173: 0 | BM173: 0 | BN173: 0 | BO173: 0 | BP173: 0 | BQ173: 0 | BR173: 0 | BS173: 0 | BT173: 0 | BU173: 0 | BV173: 0 | BW173: 0 | BX173: 0 | BY173: 0 | BZ173: =SUM(BZ170:BZ172) -> 0 | CA173: 0 | CB173: 0 | CC173: 0 | CD173: 0 | CE173: 0 | CF173: 0 | CG173: 0 | CH173: 0 | CI173: 0 | CJ173: 0 | CK173: 0 | CL173: 0 | CM173: 0 | CN173: 0 | CO173: 0 | CP173: 0 | CQ173: 0 | CR173: 0 | CS173: 0 | CT173: 0 | CU173: 0 | CV173: 0 | CW173: 0 | CX173: 0 | CY173: 0 | CZ173: 0 | DA173: 0 | DB173: 0 | DC173: 0 | DD173: 0 | DE173: 0 | DF173: 0 | DG173: 0 | DH173: 0
B175: Soft Costs | I175: Start | J175: End | K175: Pct
C176: ='Assumptions - Budget & Timing'!G47 -> Development | F176: USD | G176: Cost | H176: =SUMIF('Assumptions - Budget & Timing'!G:G,'Pre-Financing Cash Flow'!$C176,'Assumptions - Budget & Timing'!H:H) -> 4280000 | I176: ='Assumptions - Budget & Timing'!F40 -> 2016-02-01 | J176: ='Assumptions - Budget & Timing'!G40 -> 2017-01-01 | K176: ='Assumptions - Budget & Timing'!I40 -> 0.09090909091 | L176: =SUM(M176:DH176)=H176 -> TRUE | M176: =AND(M$6>=$I176,M$6<$J176)*$H176*$K176 -> 389090.9091 | N176: =AND(N$6>=$I176,N$6<$J176)*$H176*$K176 -> 389090.9091 | O176: 389090.9091 | P176: 389090.9091 | Q176: 389090.9091 | R176: 389090.9091 | S176: 389090.9091 | T176: 389090.9091 | U176: 389090.9091 | V176: 389090.9091 | W176: 389090.9091 | X176: 0 | Y176: 0 | Z176: 0 | AA176: 0 | AB176: 0 | AC176: 0 | AD176: 0 | AE176: 0 | AF176: 0 | AG176: 0 | AH176: 0 | AI176: 0 | AJ176: 0 | AK176: 0 | AL176: 0 | AM176: 0 | AN176: 0 | AO176: 0 | AP176: 0 | AQ176: 0 | AR176: 0 | AS176: 0 | AT176: 0 | AU176: 0 | AV176: 0 | AW176: 0 | AX176: 0 | AY176: 0 | AZ176: 0 | BA176: 0 | BB176: 0 | BC176: 0 | BD176: 0 | BE176: 0 | BF176: 0 | BG176: 0 | BH176: 0 | BI176: 0 | BJ176: 0 | BK176: 0 | BL176: 0 | BM176: 0 | BN176: 0 | BO176: 0 | BP176: 0 | BQ176: 0 | BR176: 0 | BS176: 0 | BT176: 0 | BU176: 0 | BV176: 0 | BW176: 0 | BX176: 0 | BY176: 0 | BZ176: =AND(BZ$6>=$I176,BZ$6<$J176)*$H176*$K176 -> 0 | CA176: 0 | CB176: 0 | CC176: 0 | CD176: 0 | CE176: 0 | CF176: 0 | CG176: 0 | CH176: 0 | CI176: 0 | CJ176: 0 | CK176: 0 | CL176: 0 | CM176: 0 | CN176: 0 | CO176: 0 | CP176: 0 | CQ176: 0 | CR176: 0 | CS176: 0 | CT176: 0 | CU176: 0 | CV176: 0 | CW176: 0 | CX176: 0 | CY176: 0 | CZ176: 0 | DA176: 0 | DB176: 0 | DC176: 0 | DD176: 0 | DE176: 0 | DF176: 0 | DG176: 0 | DH176: 0
C177: ='Assumptions - Budget & Timing'!G49 -> General | F177: USD | G177: Cost | H177: =SUMIF('Assumptions - Budget & Timing'!G:G,'Pre-Financing Cash Flow'!$C177,'Assumptions - Budget & Timing'!H:H) -> 3450000 | I177: ='Assumptions - Budget & Timing'!F41 -> 2017-01-01 | J177: ='Assumptions - Budget & Timing'!G41 -> 2018-01-01 | K177: ='Assumptions - Budget & Timing'!I41 -> 0.08333333333 | L177: =SUM(M177:DH177)=H177 -> TRUE | M177: =AND(M$6>=$I177,M$6<$J177)*$H177*$K177 -> 0 | N177: 0 | O177: 0 | P177: 0 | Q177: 0 | R177: 0 | S177: 0 | T177: 0 | U177: 0 | V177: 0 | W177: 0 | X177: 287500 | Y177: 287500 | Z177: 287500 | AA177: 287500 | AB177: 287500 | AC177: 287500 | AD177: 287500 | AE177: 287500 | AF177: 287500 | AG177: 287500 | AH177: 287500 | AI177: 287500 | AJ177: 0 | AK177: 0 | AL177: 0 | AM177: 0 | AN177: 0 | AO177: 0 | AP177: 0 | AQ177: 0 | AR177: 0 | AS177: 0 | AT177: 0 | AU177: 0 | AV177: 0 | AW177: 0 | AX177: 0 | AY177: 0 | AZ177: 0 | BA177: 0 | BB177: 0 | BC177: 0 | BD177: 0 | BE177: 0 | BF177: 0 | BG177: 0 | BH177: 0 | BI177: 0 | BJ177: 0 | BK177: 0 | BL177: 0 | BM177: 0 | BN177: 0 | BO177: 0 | BP177: 0 | BQ177: 0 | BR177: 0 | BS177: 0 | BT177: 0 | BU177: 0 | BV177: 0 | BW177: 0 | BX177: 0 | BY177: 0 | BZ177: 0 | CA177: 0 | CB177: 0 | CC177: 0 | CD177: 0 | CE177: 0 | CF177: 0 | CG177: 0 | CH177: 0 | CI177: 0 | CJ177: 0 | CK177: 0 | CL177: 0 | CM177: 0 | CN177: 0 | CO177: 0 | CP177: 0 | CQ177: 0 | CR177: 0 | CS177: 0 | CT177: 0 | CU177: 0 | CV177: 0 | CW177: 0 | CX177: 0 | CY177: 0 | CZ177: 0 | DA177: 0 | DB177: 0 | DC177: 0 | DD177: 0 | DE177: 0 | DF177: 0 | DG177: 0 | DH177: 0
C178: ='Assumptions - Budget & Timing'!G51 -> Owner Costs | F178: USD | G178: Cost | H178: =SUMIF('Assumptions - Budget & Timing'!G:G,'Pre-Financing Cash Flow'!$C178,'Assumptions - Budget & Timing'!H:H) -> 17907085.01 | I178: ='Assumptions - Budget & Timing'!F42 -> 2016-02-01 | J178: ='Assumptions - Budget & Timing'!G42 -> 2018-01-01 | K178: ='Assumptions - Budget & Timing'!I42 -> 0.04347826087 | L178: =SUM(M178:DH178)=H178 -> TRUE | M178: 778568.9133 | N178: 778568.9133 | O178: 778568.9133 | P178: 778568.9133 | Q178: 778568.9133 | R178: 778568.9133 | S178: 778568.9133 | T178: 778568.9133 | U178: 778568.9133 | V178: 778568.9133 | W178: 778568.9133 | X178: 778568.9133 | Y178: 778568.9133 | Z178: 778568.9133 | AA178: 778568.9133 | AB178: 778568.9133 | AC178: 778568.9133 | AD178: 778568.9133 | AE178: 778568.9133 | AF178: 778568.9133 | AG178: 778568.9133 | AH178: 778568.9133 | AI178: 778568.9133 | AJ178: 0 | AK178: 0 | AL178: 0 | AM178: 0 | AN178: 0 | AO178: 0 | AP178: 0 | AQ178: 0 | AR178: 0 | AS178: 0 | AT178: 0 | AU178: 0 | AV178: 0 | AW178: 0 | AX178: 0 | AY178: 0 | AZ178: 0 | BA178: 0 | BB178: 0 | BC178: 0 | BD178: 0 | BE178: 0 | BF178: 0 | BG178: 0 | BH178: 0 | BI178: 0 | BJ178: 0 | BK178: 0 | BL178: 0 | BM178: 0 | BN178: 0 | BO178: 0 | BP178: 0 | BQ178: 0 | BR178: 0 | BS178: 0 | BT178: 0 | BU178: 0 | BV178: 0 | BW178: 0 | BX178: 0 | BY178: 0 | BZ178: 0 | CA178: 0 | CB178: 0 | CC178: 0 | CD178: 0 | CE178: 0 | CF178: 0 | CG178: 0 | CH178: 0 | CI178: 0 | CJ178: 0 | CK178: 0 | CL178: 0 | CM178: 0 | CN178: 0 | CO178: 0 | CP178: 0 | CQ178: 0 | CR178: 0 | CS178: 0 | CT178: 0 | CU178: 0 | CV178: 0 | CW178: 0 | CX178: 0 | CY178: 0 | CZ178: 0 | DA178: 0 | DB178: 0 | DC178: 0 | DD178: 0 | DE178: 0 | DF178: 0 | DG178: 0 | DH178: 0
C179: ='Assumptions - Budget & Timing'!G56 -> Insurance | F179: USD | G179: Cost | H179: =SUMIF('Assumptions - Budget & Timing'!G:G,'Pre-Financing Cash Flow'!$C179,'Assumptions - Budget & Timing'!H:H) -> 3500000 | I179: ='Assumptions - Budget & Timing'!F43 -> 2017-01-01 | J179: ='Assumptions - Budget & Timing'!G43 -> 2018-01-01 | K179: ='Assumptions - Budget & Timing'!I43 -> 0.08333333333 | L179: =SUM(M179:DH179)=H179 -> TRUE | M179: 0 | N179: 0 | O179: 0 | P179: 0 | Q179: 0 | R179: 0 | S179: 0 | T179: 0 | U179: 0 | V179: 0 | W179: 0 | X179: 291666.6667 | Y179: 291666.6667 | Z179: 291666.6667 | AA179: 291666.6667 | AB179: 291666.6667 | AC179: 291666.6667 | AD179: 291666.6667 | AE179: 291666.6667 | AF179: 291666.6667 | AG179: 291666.6667 | AH179: 291666.6667 | AI179: 291666.6667 | AJ179: 0 | AK179: 0 | AL179: 0 | AM179: 0 | AN179: 0 | AO179: 0 | AP179: 0 | AQ179: 0 | AR179: 0 | AS179: 0 | AT179: 0 | AU179: 0 | AV179: 0 | AW179: 0 | AX179: 0 | AY179: 0 | AZ179: 0 | BA179: 0 | BB179: 0 | BC179: 0 | BD179: 0 | BE179: 0 | BF179: 0 | BG179: 0 | BH179: 0 | BI179: 0 | BJ179: 0 | BK179: 0 | BL179: 0 | BM179: 0 | BN179: 0 | BO179: 0 | BP179: 0 | BQ179: 0 | BR179: 0 | BS179: 0 | BT179: 0 | BU179: 0 | BV179: 0 | BW179: 0 | BX179: 0 | BY179: 0 | BZ179: 0 | CA179: 0 | CB179: 0 | CC179: 0 | CD179: 0 | CE179: 0 | CF179: 0 | CG179: 0 | CH179: 0 | CI179: 0 | CJ179: 0 | CK179: 0 | CL179: 0 | CM179: 0 | CN179: 0 | CO179: 0 | CP179: 0 | CQ179: 0 | CR179: 0 | CS179: 0 | CT179: 0 | CU179: 0 | CV179: 0 | CW179: 0 | CX179: 0 | CY179: 0 | CZ179: 0 | DA179: 0 | DB179: 0 | DC179: 0 | DD179: 0 | DE179: 0 | DF179: 0 | DG179: 0 | DH179: 0
D180: Total Soft Costs | H180: =SUM(H176:H179) -> 29137085.01 | M180: =SUM(M176:M179) -> 1167659.822 | N180: =SUM(N176:N179) -> 1167659.822 | O180: 1167659.822 | P180: 1167659.822 | Q180: 1167659.822 | R180: 1167659.822 | S180: 1167659.822 | T180: 1167659.822 | U180: 1167659.822 | V180: 1167659.822 | W180: 1167659.822 | X180: 1357735.58 | Y180: 1357735.58 | Z180: 1357735.58 | AA180: 1357735.58 | AB180: 1357735.58 | AC180: 1357735.58 | AD180: 1357735.58 | AE180: 1357735.58 | AF180: 1357735.58 | AG180: 1357735.58 | AH180: 1357735.58 | AI180: 1357735.58 | AJ180: 0 | AK180: 0 | AL180: 0 | AM180: 0 | AN180: 0 | AO180: 0 | AP180: 0 | AQ180: 0 | AR180: 0 | AS180: 0 | AT180: 0 | AU180: 0 | AV180: 0 | AW180: 0 | AX180: 0 | AY180: 0 | AZ180: 0 | BA180: 0 | BB180: 0 | BC180: 0 | BD180: 0 | BE180: 0 | BF180: 0 | BG180: 0 | BH180: 0 | BI180: 0 | BJ180: 0 | BK180: 0 | BL180: 0 | BM180: 0 | BN180: 0 | BO180: 0 | BP180: 0 | BQ180: 0 | BR180: 0 | BS180: 0 | BT180: 0 | BU180: 0 | BV180: 0 | BW180: 0 | BX180: 0 | BY180: 0 | BZ180: =SUM(BZ176:BZ179) -> 0 | CA180: 0 | CB180: 0 | CC180: 0 | CD180: 0 | CE180: 0 | CF180: 0 | CG180: 0 | CH180: 0 | CI180: 0 | CJ180: 0 | CK180: 0 | CL180: 0 | CM180: 0 | CN180: 0 | CO180: 0 | CP180: 0 | CQ180: 0 | CR180: 0 | CS180: 0 | CT180: 0 | CU180: 0 | CV180: 0 | CW180: 0 | CX180: 0 | CY180: 0 | CZ180: 0 | DA180: 0 | DB180: 0 | DC180: 0 | DD180: 0 | DE180: 0 | DF180: 0 | DG180: 0 | DH180: 0
D182: Total Capital Expenditures | M182: =M180+M173 -> 1167659.822 | N182: =N180+N173 -> 1167659.822 | O182: 1167659.822 | P182: 1167659.822 | Q182: 1167659.822 | R182: 1167659.822 | S182: 1167659.822 | T182: 1167659.822 | U182: 1167659.822 | V182: 1167659.822 | W182: 1167659.822 | X182: 1357735.58 | Y182: 1357735.58 | Z182: 1357735.58 | AA182: 1357735.58 | AB182: 13235535.58 | AC182: 16204985.58 | AD182: 16204985.58 | AE182: 31052235.58 | AF182: 16204985.58 | AG182: 16204985.58 | AH182: 31052235.58 | AI182: 19174435.58 | AJ182: 0 | AK182: 0 | AL182: 0 | AM182: 0 | AN182: 0 | AO182: 0 | AP182: 0 | AQ182: 0 | AR182: 0 | AS182: 0 | AT182: 0 | AU182: 0 | AV182: 0 | AW182: 0 | AX182: 0 | AY182: 0 | AZ182: 0 | BA182: 0 | BB182: 0 | BC182: 0 | BD182: 0 | BE182: 0 | BF182: 0 | BG182: 0 | BH182: 0 | BI182: 0 | BJ182: 0 | BK182: 0 | BL182: 0 | BM182: 0 | BN182: 0 | BO182: 0 | BP182: 0 | BQ182: 0 | BR182: 0 | BS182: 0 | BT182: 0 | BU182: 0 | BV182: 0 | BW182: 0 | BX182: 0 | BY182: 0 | BZ182: =BZ180+BZ173 -> 0 | CA182: 0 | CB182: 0 | CC182: 0 | CD182: 0 | CE182: 0 | CF182: 0 | CG182: 0 | CH182: 0 | CI182: 0 | CJ182: 0 | CK182: 0 | CL182: 0 | CM182: 0 | CN182: 0 | CO182: 0 | CP182: 0 | CQ182: 0 | CR182: 0 | CS182: 0 | CT182: 0 | CU182: 0 | CV182: 0 | CW182: 0 | CX182: 0 | CY182: 0 | CZ182: 0 | DA182: 0 | DB182: 0 | DC182: 0 | DD182: 0 | DE182: 0 | DF182: 0 | DG182: 0 | DH182: 0
